Workbook

Sheet Rates Summary
B1: 2016 Rates Summary - changes and additions for 2016
B4: Rate Rider Description | C4: Residential | D4: General Service < 50 kW | E4: General Service 50 to 4,999 kW | F4: Large Use | G4: Unmetered Scattered Load | H4: Street Lighting | I4: Standby Power Approved on a Final Basis | J4: General Service 50 to 4,999 excluding WMP | K4: Recovery Period | L4: Metric
A5: 1 | B5: Disposition of Deferral/Variance Accounts (2016) | C5: 0.0007 | D5: -0.0007 | E5: 0.7048 | F5: -0.5603 | G5: 0.0003 | H5: 14.8985 | I5: 0 | J5: -1.0947 | K5: 1 | L5: $ per kWh/kW
A6: 2 | B6: Disposition of Global Adjustment Sub-Account (2016) | C6: 0.0205 | D6: 0.0205 | E6: 0 | F6: 0 | G6: 0.0205 | H6: 7.84 | I6: 0 | J6: 7.4692 | K6: 0.6666666667 | L6: $ per kWh/kW | N6: effective May 1 2016 to Dec 31 2016
A7: 3 | B7: Lost Revenue Adjustment Mechanism Variance Account (LRAMVA) (2016) | C7: 0.0003 | D7: 0.0008 | E7: 0.0293 | F7: 0.0268 | G7: 0 | H7: 7.0279 | I7: 0 | J7: 0 | K7: 1 | L7: $ per kWh/kW
A8: 4 | B8: Dispostion of accounting changes under CGAAP (2016) | C8: -0.0108 | D8: -0.0062 | E8: -1.0875 | F8: -0.5513 | G8: -0.006 | H8: -6.6952 | I8: 0 | J8: 0 | K8: 1 | L8: $ per kWh/kW
A9: 5 | B9: Disposition of Incremental Capital Cost Sub-Account (2016) | C9: 0.0004 | D9: 0.0002 | E9: 0.04 | F9: 0.0203 | G9: 0.0002 | H9: 0.246 | I9: 0 | J9: 0 | K9: 1 | L9: $ per kWh/kW
A10: 6 | B10: Recovery of Residual Smart Meter Capital (2016) | C10: 0.25 | D10: 0.43 | E10: 0 | F10: 0 | G10: 0 | H10: 0 | I10: 0 | J10: 0 | K10: 1 | L10: $
A11: 7 | B11: Recovery of Stranded Meter Assets (2016) | C11: 3.69 | D11: 6.4 | E11: 0 | F11: 0 | G11: 0 | H11: 0 | I11: 0 | J11: 0 | K11: 1 | L11: $
C12: Note not shown above is the tax change 2015 and global adjustment 2015 rate riders that end Apr 30, 2016. These are in bill impacts and tariff of rates and charges.
B14: Pass-Through Rates 2016 | C14: Residential | D14: General Service < 50 kW | E14: General Service 50 to 4,999 kW | F14: Large Use | G14: Unmetered Scattered Load | H14: Street Lighting | I14: Standby Power Approved on a Final Basis
B15: Low Voltage Service Rate | C15: 0.0012 | D15: 0.0011 | E15: 0.4663 | F15: 0.5619 | G15: 0.0012 | H15: 0.3368 | I15: 0 | J15: 0 | L15: $ per kWh/kW
B16: Smart Meter Entity Charge | C16: 0.788 | D16: 0.788 | E16: 0 | F16: 0 | G16: 0 | H16: 0 | I16: 0 | J16: 0 | L16: $
B17: RTSR - Network | C17: 0.0071 | D17: 0.0063 | E17: 2.7797 | F17: 3.3492 | G17: 0.0071 | H17: 2.0078 | I17: 0 | J17: 0 | L17: $ per kWh/kW
B18: RTSR - Line and Transformation Connection | C18: 0.0056 | D18: 0.0051 | E18: 2.2225 | F18: 2.678 | G18: 0.0056 | H18: 1.6053 | I18: 0 | J18: 0 | L18: $ per kWh/kW
B19: Wholesale Market Service Charge (WMSC) | C19: 0.0044 | D19: 0.0044 | E19: 0.0044 | F19: 0.0044 | G19: 0.0044 | H19: 0.0044 | I19: 0 | J19: 0 | L19: $ per kWh
B20: Rural and Remote Rate Protection (RRRP) | C20: 0.0013 | D20: 0.0013 | E20: 0.0013 | F20: 0.0013 | G20: 0.0013 | H20: 0.0013 | I20: 0 | J20: 0 | L20: $ per kWh
B21: Standard Supply Service Charge | C21: 0.25 | D21: 0.25 | E21: 0.25 | F21: 0.25 | G21: 0.25 | H21: 0.25 | I21: 0 | J21: 0 | L21: $
B22: Debt Retirement Charge (DRC) | C22: 0 | D22: 0.007 | E22: 0.007 | F22: 0.007 | G22: 0.007 | H22: 0.007 | L22: $ per kWh
B26: Distribution Rates | G26: PROPOSED FIXED RATES
B27: Customer Class Name | C27: Metric | D27: 2015 | E27: 2016 | F27: 2017 | G27: 2018 | H27: 2019 | I27: 2020
B28: Residential | C28: $ | D28: 12.56 | E28: 13.98 | F28: 18.54 | G28: 21.88 | H28: 25.35 | I28: 25.96
B29: General Service < 50 kW | C29: $ | D29: 25.85 | E29: 14.27 | F29: 14.59 | G29: 14.94 | H29: 15.22 | I29: 15.4
B30: General Service 50 to 4999 kW | C30: $ | D30: 280.09 | E30: 105.62 | F30: 107.49 | G30: 109.29 | H30: 110.99 | I30: 112.13
B31: Large Use | C31: $ | D31: 5164 | E31: 5164 | F31: 5164 | G31: 5164 | H31: 5164 | I31: 5164
B32: Unmetered Scattered Load | C32: $ | D32: 11.55 | E32: 5.78 | F32: 5.95 | G32: 6.1 | H32: 6.31 | I32: 6.46
B33: Street Lighting | C33: $ per light | D33: 1.02 | E33: 0.88 | F33: 1.05 | G33: 1.24 | H33: 1.28 | I33: 1.31
B34: Standby Approved on a Final Basis | C34: Continued
G38: PROPOSED VARIABLE RATES
B39: Customer Class Name | C39: Metric | D39: 2015 | E39: 2016 | F39: 2017 | G39: 2018 | H39: 2019 | I39: 2020 | J39: per
B40: Residential | C40: $ per kWh | D40: 0.0154 | E40: 0.0139 | F40: 0.0082 | G40: 0.0042 | H40: 0 | I40: 0 | J40: kWh
B41: General Service < 50 kW | C41: $ per kWh | D41: 0.0106 | E41: 0.0146 | F41: 0.0151 | G41: 0.0155 | H41: 0.0161 | I41: 0.0166 | J41: kWh
B42: General Service 50 to 4999 kW | C42: $ per kW | D42: 2.0063 | E42: 2.9849 | F42: 3.101 | G42: 3.213 | H42: 3.3261 | I42: 3.4096 | J42: kW
B43: Large Use | C43: $ per kW | D43: 1.0535 | E43: 1.1548 | F43: 1.216 | G43: 1.275 | H43: 1.3339 | I43: 1.377 | J43: kW
B44: Unmetered Scattered Load | C44: $ per kWh | D44: 0.0141 | E44: 0.0115 | F44: 0.0118 | G44: 0.0121 | H44: 0.0125 | I44: 0.0128 | J44: kWh
B45: Street Lighting | C45: $ per kW | D45: 4.675 | E45: 9.952 | F45: 11.891 | G45: 14.0417 | H45: 14.5188 | I45: 14.8695 | J45: kW
B46: Standby Approved on a Final Basis | C46: Continued

Sheet Summary Bill Impacts-Settlement
B1: Summary of 2016-2020 Bill Impacts*
B3: Customer Class | E3: 2015 Approved | F3: 2016 Proposed | G3: 2017 Proposed | H3: 2018 Proposed | I3: 2019 Proposed | J3: 2020 Proposed
B4: Residential | D4: Distribution Charge (excluding pass-through) | E4: ='Bill Impact Resi 204kWh'!$G$39 -> 18.3112 | F4: ='Bill Impact Resi 204kWh'!$K$39 -> 20.8984 | G4: ='Bill Impact Resi 204kWh'!$R$39 -> 20.2128 | H4: ='Bill Impact Resi 204kWh'!$Y$39 -> 22.7368 | I4: ='Bill Impact Resi 204kWh'!$AF$39 -> 25.35 | J4: ='Bill Impact Resi 204kWh'!$AM$39 -> 25.96
B5: ='Bill Impact Resi 204kWh'!E18 -> 204 | C5: kWh | D5: Change in Distribution Charge | F5: ='Bill Impact Resi 204kWh'!$M$39 -> 2.5872 | G5: ='Bill Impact Resi 204kWh'!$T$39 -> -0.6856 | H5: ='Bill Impact Resi 204kWh'!$AA$39 -> 2.524 | I5: ='Bill Impact Resi 204kWh'!$AH$39 -> 2.6132 | J5: ='Bill Impact Resi 204kWh'!$AO$39 -> 0.61
D6: % Distribution Increase | F6: ='Bill Impact Resi 204kWh'!$N$39 -> 0.1412905763 | G6: ='Bill Impact Resi 204kWh'!$U$39 -> -0.03280633924 | H6: ='Bill Impact Resi 204kWh'!$AB$39 -> 0.1248713686 | I6: ='Bill Impact Resi 204kWh'!$AI$39 -> 0.1149326202 | J6: ='Bill Impact Resi 204kWh'!$AP$39 -> 0.02406311637
D7: % Increase Total Bill | F7: ='Bill Impact Resi 204kWh'!$N$66 -> 0.09979796767 | G7: ='Bill Impact Resi 204kWh'!$U$66 -> 0.02934491246 | H7: ='Bill Impact Resi 204kWh'!$AB$66 -> 0.05233855438 | I7: ='Bill Impact Resi 204kWh'!$AI$66 -> 0.03592619334 | J7: ='Bill Impact Resi 204kWh'!$AP$66 -> 0.01160320356
B9: Residential | D9: Distribution Charge (excluding pass-through) | E9: ='Bill Impact Resi 800kWh'!$G$39 -> 27.43 | F9: ='Bill Impact Resi 800kWh'!$K$39 -> 29.6 | G9: ='Bill Impact Resi 800kWh'!$R$39 -> 25.1 | H9: ='Bill Impact Resi 800kWh'!$Y$39 -> 25.24 | I9: ='Bill Impact Resi 800kWh'!$AF$39 -> 25.35 | J9: ='Bill Impact Resi 800kWh'!$AM$39 -> 25.96
B10: ='Bill Impact Resi 800kWh'!E18 -> 800 | C10: kWh | D10: Change in Distribution Charge | F10: ='Bill Impact Resi 800kWh'!$M$39 -> 2.17 | G10: ='Bill Impact Resi 800kWh'!$T$39 -> -4.5 | H10: ='Bill Impact Resi 800kWh'!$AA$39 -> 0.14 | I10: ='Bill Impact Resi 800kWh'!$AH$39 -> 0.11 | J10: ='Bill Impact Resi 800kWh'!$AO$39 -> 0.61
D11: % Distribution Increase | F11: ='Bill Impact Resi 800kWh'!$N$39 -> 0.079110463 | G11: ='Bill Impact Resi 800kWh'!$U$39 -> -0.152027027 | H11: ='Bill Impact Resi 800kWh'!$AB$39 -> 0.005577689243 | I11: ='Bill Impact Resi 800kWh'!$AI$39 -> 0.004358161648 | J11: ='Bill Impact Resi 800kWh'!$AP$39 -> 0.02406311637
D12: % Increase Total Bill | F12: ='Bill Impact Resi 800kWh'!$N$66 -> 0.03177320544 | G12: ='Bill Impact Resi 800kWh'!$U$66 -> 0.02789654015 | H12: ='Bill Impact Resi 800kWh'!$AB$66 -> 0.001061319023 | I12: ='Bill Impact Resi 800kWh'!$AI$66 -> -0.005149512834 | J12: ='Bill Impact Resi 800kWh'!$AP$66 -> 0.004643326795
B14: GS<50 kW | D14: Distribution Charge (excluding pass-through) | E14: ='Bill Impact GS < 50 2000kWh'!$G$39 -> 50.5 | F14: ='Bill Impact GS < 50 2000kWh'!$K$39 -> 52.3 | G14: ='Bill Impact GS < 50 2000kWh'!$R$39 -> 44.79 | H14: ='Bill Impact GS < 50 2000kWh'!$Y$39 -> 45.94 | I14: ='Bill Impact GS < 50 2000kWh'!$AF$39 -> 47.42 | J14: ='Bill Impact GS < 50 2000kWh'!$AM$39 -> 48.6
B15: ='Bill Impact GS < 50 2000kWh'!E18 -> 2000 | C15: kWh | D15: Change in Distribution Charge | F15: ='Bill Impact GS < 50 2000kWh'!$M$39 -> 1.8 | G15: ='Bill Impact GS < 50 2000kWh'!$T$39 -> -7.51 | H15: ='Bill Impact GS < 50 2000kWh'!$AA$39 -> 1.15 | I15: ='Bill Impact GS < 50 2000kWh'!$AH$39 -> 1.48 | J15: ='Bill Impact GS < 50 2000kWh'!$AO$39 -> 1.18
D16: % Distribution Increase | F16: ='Bill Impact GS < 50 2000kWh'!$N$39 -> 0.03564356436 | G16: ='Bill Impact GS < 50 2000kWh'!$U$39 -> -0.1435946463 | H16: ='Bill Impact GS < 50 2000kWh'!$AB$39 -> 0.02567537397 | I16: ='Bill Impact GS < 50 2000kWh'!$AI$39 -> 0.03221593383 | J16: ='Bill Impact GS < 50 2000kWh'!$AP$39 -> 0.02488401518
D17: % Increase Total Bill | F17: ='Bill Impact GS < 50 2000kWh'!$N$66 -> 0.08318590226 | G17: ='Bill Impact GS < 50 2000kWh'!$U$66 -> 0.0199640624 | H17: ='Bill Impact GS < 50 2000kWh'!$AB$66 -> 0.003578584228 | I17: ='Bill Impact GS < 50 2000kWh'!$AI$66 -> 0.002139494177 | J17: ='Bill Impact GS < 50 2000kWh'!$AP$66 -> 0.003651033749
B19: GS 50 to 4,999 kW | D19: Distribution Charge (excluding pass-through) | E19: ='Bill Impact GS50-4999 60kW'!$G$39 -> 399.874 | F19: ='Bill Impact GS50-4999 60kW'!$K$39 -> 288.872 | G19: ='Bill Impact GS50-4999 60kW'!$R$39 -> 293.55 | H19: ='Bill Impact GS50-4999 60kW'!$Y$39 -> 302.07 | I19: ='Bill Impact GS50-4999 60kW'!$AF$39 -> 310.556 | J19: ='Bill Impact GS50-4999 60kW'!$AM$39 -> 316.706
B20: ='Bill Impact GS50-4999 60kW'!E18 -> 40000 | C20: kWh | D20: Change in Distribution Charge | F20: ='Bill Impact GS50-4999 60kW'!$M$39 -> -111.002 | G20: ='Bill Impact GS50-4999 60kW'!$T$39 -> 4.678 | H20: ='Bill Impact GS50-4999 60kW'!$AA$39 -> 8.52 | I20: ='Bill Impact GS50-4999 60kW'!$AH$39 -> 8.486 | J20: ='Bill Impact GS50-4999 60kW'!$AO$39 -> 6.15
B21: ='Bill Impact GS50-4999 60kW'!E19 -> 60 | C21: kW | D21: % Distribution Increase | F21: ='Bill Impact GS50-4999 60kW'!$N$39 -> -0.2775924416 | G21: ='Bill Impact GS50-4999 60kW'!$U$39 -> 0.01619402365 | H21: ='Bill Impact GS50-4999 60kW'!$AB$39 -> 0.02902401635 | I21: ='Bill Impact GS50-4999 60kW'!$AI$39 -> 0.02809282617 | J21: ='Bill Impact GS50-4999 60kW'!$AP$39 -> 0.01980319169
D22: % Increase Total Bill | F22: ='Bill Impact GS50-4999 60kW'!$N$66 -> -0.006488237182 | G22: ='Bill Impact GS50-4999 60kW'!$U$66 -> -0.05944206326 | H22: ='Bill Impact GS50-4999 60kW'!$AB$66 -> 0.00151749611 | I22: ='Bill Impact GS50-4999 60kW'!$AI$66 -> 0.001509150245 | J22: ='Bill Impact GS50-4999 60kW'!$AP$66 -> 0.001092067909
B24: Large Use | D24: Distribution Charge (excluding pass-through) | E24: ='Bill Impact Large Use 8000kW'!$G$39 -> 13556 | F24: ='Bill Impact Large Use 8000kW'!$K$39 -> 14779.2 | G24: ='Bill Impact Large Use 8000kW'!$R$39 -> 14892 | H24: ='Bill Impact Large Use 8000kW'!$Y$39 -> 15364 | I24: ='Bill Impact Large Use 8000kW'!$AF$39 -> 15835.2 | J24: ='Bill Impact Large Use 8000kW'!$AM$39 -> 16180
B25: ='Bill Impact Large Use 8000kW'!E18 -> 5000000 | C25: kWh | D25: Change in Distribution Charge | F25: ='Bill Impact Large Use 8000kW'!$M$39 -> 1223.2 | G25: ='Bill Impact Large Use 8000kW'!$T$39 -> 112.8 | H25: ='Bill Impact Large Use 8000kW'!$AA$39 -> 472 | I25: ='Bill Impact Large Use 8000kW'!$AH$39 -> 471.2 | J25: ='Bill Impact Large Use 8000kW'!$AO$39 -> 344.8
B26: ='Bill Impact Large Use 8000kW'!E19 -> 8000 | C26: kW | D26: % Distribution Increase | F26: ='Bill Impact Large Use 8000kW'!$N$39 -> 0.09023310711 | G26: ='Bill Impact Large Use 8000kW'!$U$39 -> 0.007632348165 | H26: ='Bill Impact Large Use 8000kW'!$AB$39 -> 0.03169486973 | I26: ='Bill Impact Large Use 8000kW'!$AI$39 -> 0.03066909659 | J26: ='Bill Impact Large Use 8000kW'!$AP$39 -> 0.02177427503
D27: % Increase Total Bill | F27: ='Bill Impact Large Use 8000kW'!$N$66 -> -0.002523600599 | G27: ='Bill Impact Large Use 8000kW'!$U$66 -> 0.01342005664 | H27: ='Bill Impact Large Use 8000kW'!$AB$66 -> 0.0006940554985 | I27: ='Bill Impact Large Use 8000kW'!$AI$66 -> 0.0006923985702 | J27: ='Bill Impact Large Use 8000kW'!$AP$66 -> 0.0005063112029
B29: Unmetered Scattered Load | D29: Distribution Charge (excluding pass-through) | E29: ='Bill Impact USL 750kWh'!$G$39 -> 22.05 | F29: ='Bill Impact USL 750kWh'!$K$39 -> 14.555 | G29: ='Bill Impact USL 750kWh'!$R$39 -> 14.8 | H29: ='Bill Impact USL 750kWh'!$Y$39 -> 15.175 | I29: ='Bill Impact USL 750kWh'!$AF$39 -> 15.685 | J29: ='Bill Impact USL 750kWh'!$AM$39 -> 16.06
B30: ='Bill Impact USL 750kWh'!E18 -> 750 | C30: kWh | D30: Change in Distribution Charge | F30: ='Bill Impact USL 750kWh'!$M$39 -> -7.495 | G30: ='Bill Impact USL 750kWh'!$T$39 -> 0.245 | H30: ='Bill Impact USL 750kWh'!$AA$39 -> 0.375 | I30: ='Bill Impact USL 750kWh'!$AH$39 -> 0.51 | J30: ='Bill Impact USL 750kWh'!$AO$39 -> 0.375
D31: % Distribution Increase | F31: ='Bill Impact USL 750kWh'!$N$39 -> -0.3399092971 | G31: ='Bill Impact USL 750kWh'!$U$39 -> 0.01683270354 | H31: ='Bill Impact USL 750kWh'!$AB$39 -> 0.02533783784 | I31: ='Bill Impact USL 750kWh'!$AI$39 -> 0.03360790774 | J31: ='Bill Impact USL 750kWh'!$AP$39 -> 0.02390819254
D32: % Increase Total Bill | F32: ='Bill Impact USL 750kWh'!$N$66 -> 0.02023564319 | G32: ='Bill Impact USL 750kWh'!$U$66 -> 0.03932465354 | H32: ='Bill Impact USL 750kWh'!$AB$66 -> 0.003139109815 | I32: ='Bill Impact USL 750kWh'!$AI$66 -> 0.004255829831 | J32: ='Bill Impact USL 750kWh'!$AP$66 -> 0.003116025367
B34: Street Lighting | D34: Distribution Charge (excluding pass-through) | E34: ='Bill Impact St Light 375kW'!$G$39 -> 6842.7 | F34: ='Bill Impact St Light 375kW'!$K$39 -> 10859.7125 | G34: ='Bill Impact St Light 375kW'!$R$39 -> 9709.125 | H34: ='Bill Impact St Light 375kW'!$Y$39 -> 11465.6375 | I34: ='Bill Impact St Light 375kW'!$AF$39 -> 11844.55 | J34: ='Bill Impact St Light 375kW'!$AM$39 -> 12126.0625
B35: ='Bill Impact St Light 375kW'!E18 -> 150000 | C35: kWh | D35: Change in Distribution Charge | F35: ='Bill Impact St Light 375kW'!$M$39 -> 4017.0125 | G35: ='Bill Impact St Light 375kW'!$T$39 -> -1150.5875 | H35: ='Bill Impact St Light 375kW'!$AA$39 -> 1756.5125 | I35: ='Bill Impact St Light 375kW'!$AH$39 -> 378.9125 | J35: ='Bill Impact St Light 375kW'!$AO$39 -> 281.5125
B36: ='Bill Impact St Light 375kW'!E19 -> 375 | C36: kW | D36: % Distribution Increase | F36: ='Bill Impact St Light 375kW'!$N$39 -> 0.5870507987 | G36: ='Bill Impact St Light 375kW'!$U$39 -> -0.1059500885 | H36: ='Bill Impact St Light 375kW'!$AB$39 -> 0.1809135736 | I36: ='Bill Impact St Light 375kW'!$AI$39 -> 0.03304766089 | J36: ='Bill Impact St Light 375kW'!$AP$39 -> 0.02376726005
B37: ='Bill Impact St Light 375kW'!E17 -> 5000 | C37: Lights | D37: % Increase Total Bill | F37: ='Bill Impact St Light 375kW'!$N$66 -> 0.2834360107 | G37: ='Bill Impact St Light 375kW'!$U$66 -> -0.1932817918 | H37: ='Bill Impact St Light 375kW'!$AB$66 -> 0.05872101158 | I37: ='Bill Impact St Light 375kW'!$AI$66 -> 0.01196464133 | J37: ='Bill Impact St Light 375kW'!$AP$66 -> 0.008784015569
B39: Standby Approved on a Final Basis
B41: * Numbers subject to change, based on items to be adjusted at a later date as set out in this Settlement Proposal.

Sheet Bill Impact Resi 204kWh
M1: File Number: | N1: =EBNUMBER -> EB-2015-0083 | S1: 1
M2: Exhibit: | N2: 8
M3: Tab: | N3: 4
M4: Schedule: | N4: 3
M5: Page:
N7: Settlement
M8: Date: | N8: 2015-10-20
A10: Appendix 2-W
A11: Bill Impacts
A14: Customer Class: | C14: Residential | P14: =C14 -> Residential | AK14: =P14 -> Residential
A16: TOU / non-TOU: | C16: TOU
C18: Consumption | E18: 204 | F18: kWh
E20: 2015 Current Board-Approved | I20: 2016 Test Year 1 Proposed | M20: Impact 2016 TEST vs. 2015 Bridge | P20: 2017 Test Year 2 Proposed | T20: Impact 2017 TEST 2 vs. 2016 Test 1 | W20: 2018 Test Year 3 Proposed | AA20: Impact 2018 TEST 3 vs. 2017 Test 2 | AD20: 2019 Test Year 4 Proposed | AH20: Impact 2019 TEST 4 vs. 2018 Test 3 | AK20: 2020 Test Year 5 Proposed | AO20: Impact 2020 TEST 5 vs. 2019 Test 4
C21: Charge Unit | E21: Rate | F21: Volume | G21: Charge | I21: Rate | J21: Volume | K21: Charge | M21: $ Change | N21: % Change | P21: Rate | Q21: Volume | R21: Charge | T21: $ Change | U21: % Change | W21: Rate | X21: Volume | Y21: Charge | AA21: $ Change | AB21: % Change | AD21: Rate | AE21: Volume | AF21: Charge | AH21: $ Change | AI21: % Change | AK21: Rate | AL21: Volume | AM21: Charge | AO21: $ Change | AP21: % Change
E22: ($) | G22: ($) | I22: ($) | K22: ($) | P22: ($) | R22: ($) | W22: ($) | Y22: ($) | AD22: ($) | AF22: ($) | AK22: ($) | AM22: ($)
A23: Monthly Service Charge | C23: Monthly | E23: 12.56 | F23: 1 | G23: =F23*E23 -> 12.56 | I23: ='Rates Summary'!$E$28 -> 13.98 | J23: 1 | K23: =J23*I23 -> 13.98 | M23: =K23-G23 -> 1.42 | N23: =IF((G23)=0,"",(M23/G23)) -> 0.1130573248 | P23: ='Rates Summary'!$F$28 -> 18.54 | Q23: 1 | R23: =Q23*P23 -> 18.54 | T23: =R23-K23 -> 4.56 | U23: =IF((K23)=0,"",(T23/K23)) -> 0.3261802575 | W23: ='Rates Summary'!$G$28 -> 21.88 | X23: 1 | Y23: =X23*W23 -> 21.88 | AA23: =Y23-R23 -> 3.34 | AB23: =IF((R23)=0,"",(AA23/R23)) -> 0.1801510248 | AD23: ='Rates Summary'!$H$28 -> 25.35 | AE23: 1 | AF23: =AE23*AD23 -> 25.35 | AH23: =AF23-Y23 -> 3.47 | AI23: =IF((Y23)=0,"",(AH23/Y23)) -> 0.1585923218 | AK23: ='Rates Summary'!$I$28 -> 25.96 | AL23: 1 | AM23: =AL23*AK23 -> 25.96 | AO23: =AM23-AF23 -> 0.61 | AP23: =IF((AF23)=0,"",(AO23/AF23)) -> 0.02406311637
A24: Smart Meter (SMIRR) Rate Rider | C24: Monthly | E24: 2.63 | F24: 1 | G24: =F24*E24 -> 2.63 | I24: 0 | J24: 1 | K24: =J24*I24 -> 0 | M24: =K24-G24 -> -2.63 | N24: =IF((G24)=0,"",(M24/G24)) -> -1 | P24: 0 | Q24: 1 | R24: =Q24*P24 -> 0 | T24: 0 | U24: =IF((K24)=0,"",(T24/K24)) ->  | W24: 0 | X24: 1 | Y24: =X24*W24 -> 0 | AA24: 0 | AB24: =IF((R24)=0,"",(AA24/R24)) ->  | AD24: 0 | AE24: 1 | AF24: =AE24*AD24 -> 0 | AH24: 0 | AI24: =IF((Y24)=0,"",(AH24/Y24)) ->  | AK24: 0 | AL24: 1 | AM24: =AL24*AK24 -> 0 | AO24: 0 | AP24: =IF((AF24)=0,"",(AO24/AF24)) -> 
A25: Rate Rider Smart Meters Capital (2016) | C25: Monthly | E25: 0 | F25: 1 | G25: 0 | I25: ='Rates Summary'!C10 -> 0.25 | J25: 1 | K25: =J25*I25 -> 0.25 | M25: =K25-G25 -> 0.25 | P25: 0 | Q25: 1 | R25: =Q25*P25 -> 0 | T25: -0.25 | U25: -1 | W25: 0 | X25: 1 | Y25: =X25*W25 -> 0 | AA25: 0 | AD25: 0 | AE25: 1 | AF25: =AE25*AD25 -> 0 | AH25: 0 | AK25: 0 | AL25: 1 | AM25: =AL25*AK25 -> 0 | AO25: 0
A26: Rate Rider Recovery of Stranded Meters | C26: Monthly | E26: 0 | F26: 1 | G26: 0 | I26: ='Rates Summary'!$C11 -> 3.69 | J26: 1 | K26: 3.69 | M26: 3.69 | P26: 0 | Q26: 1 | R26: 0 | T26: -3.69 | U26: -1 | W26: 0 | X26: 1 | Y26: 0 | AA26: 0 | AD26: 0 | AE26: 1 | AF26: 0 | AH26: 0 | AK26: 0 | AL26: 1 | AM26: 0 | AO26: 0
F27: 1 | G27: 0 | J27: 1 | K27: 0 | M27: 0 | N27: =IF((G27)=0,"",(M27/G27)) ->  | Q27: 1 | R27: 0 | T27: 0 | X27: 1 | Y27: 0 | AA27: 0 | AE27: 1 | AF27: 0 | AH27: 0 | AL27: 1 | AM27: 0 | AO27: 0
F28: 1 | G28: 0 | J28: 1 | K28: 0 | M28: 0 | Q28: 1 | R28: 0 | T28: 0 | X28: 1 | Y28: 0 | AA28: 0 | AE28: 1 | AF28: 0 | AH28: 0 | AL28: 1 | AM28: 0 | AO28: 0
A29: Distribution Volumetric Rate | C29: per kWh | E29: 0.0154 | F29: =$E$18 -> 204 | G29: =F29*E29 -> 3.1416 | I29: ='Rates Summary'!$E$40 -> 0.0139 | J29: =$E$18 -> 204 | K29: 2.8356 | M29: -0.306 | N29: -0.0974025974 | P29: ='Rates Summary'!$F$40 -> 0.0082 | Q29: =$E$18 -> 204 | R29: 1.6728 | T29: -1.1628 | U29: -0.4100719424 | W29: ='Rates Summary'!$G$40 -> 0.0042 | X29: =$E$18 -> 204 | Y29: 0.8568 | AA29: -0.816 | AB29: -0.487804878 | AD29: ='Rates Summary'!$H$40 -> 0 | AE29: =$E$18 -> 204 | AF29: 0 | AH29: -0.8568 | AI29: -1 | AK29: ='Rates Summary'!$I$40 -> 0 | AL29: =$E$18 -> 204 | AM29: 0 | AO29: 0
A30: Rate Rider Tax Change (2015) | C30: per kWh | E30: -0.0001 | F30: =$E$18 -> 204 | G30: =F30*E30 -> -0.0204 | I30: 0 | J30: =$E$18 -> 204 | K30: 0 | M30: 0.0204 | N30: =IF((G30)=0,"",(M30/G30)) -> -1 | P30: 0 | Q30: =$E$18 -> 204 | R30: 0 | T30: 0 | W30: 0 | X30: =$E$18 -> 204 | Y30: 0 | AA30: 0 | AD30: 0 | AE30: =$E$18 -> 204 | AF30: 0 | AH30: 0 | AK30: 0 | AL30: =$E$18 -> 204 | AM30: 0 | AO30: 0
A31: LRAM VA (2016) | C31: per kWh | E31: 0 | F31: =$E$18 -> 204 | G31: 0 | I31: ='Rates Summary'!C7 -> 0.0003 | J31: 204 | K31: 0.0612 | M31: 0.0612 | P31: 0 | Q31: 204 | R31: 0 | T31: -0.0612 | U31: =IF((K31)=0,"",(T31/K31)) -> -1 | W31: 0 | X31: 204 | Y31: 0 | AA31: 0 | AD31: 0 | AE31: 204 | AF31: 0 | AH31: 0 | AK31: 0 | AL31: 204 | AM31: 0 | AO31: 0
A32: Rate Rider Incremental Capital 2012 True-Up (2016) | C32: per kWh | E32: 0 | F32: =$E$18 -> 204 | G32: 0 | I32: ='Rates Summary'!C9 -> 0.0004 | J32: 204 | K32: 0.0816 | M32: 0.0816 | P32: 0 | Q32: 204 | R32: 0 | T32: -0.0816 | U32: =IF((K32)=0,"",(T32/K32)) -> -1 | W32: 0 | X32: 204 | Y32: 0 | AA32: 0 | AD32: 0 | AE32: 204 | AF32: 0 | AH32: 0 | AK32: 0 | AL32: 204 | AM32: 0 | AO32: 0
C33: per kWh | E33: 0 | F33: =$E$19 -> 0 | G33: 0 | J33: =$E$19 -> 0 | K33: 0 | M33: 0 | N33: =IF((G33)=0,"",(M33/G33)) ->  | Q33: =$E$19 -> 0 | R33: 0 | T33: 0 | X33: =$E$19 -> 0 | Y33: 0 | AA33: 0 | AE33: =$E$19 -> 0 | AF33: 0 | AH33: 0 | AL33: =$E$19 -> 0 | AM33: 0 | AO33: 0
E34: 0 | F34: 204 | G34: 0 | J34: 204 | K34: 0 | M34: 0 | Q34: 204 | R34: 0 | T34: 0 | X34: 204 | Y34: 0 | AA34: 0 | AE34: 204 | AF34: 0 | AH34: 0 | AL34: 204 | AM34: 0 | AO34: 0
F35: 204 | G35: 0 | J35: 204 | K35: 0 | M35: 0 | Q35: 204 | R35: 0 | T35: 0 | X35: 204 | Y35: 0 | AA35: 0 | AE35: 204 | AF35: 0 | AH35: 0 | AL35: 204 | AM35: 0 | AO35: 0
F36: 204 | G36: 0 | J36: 204 | K36: 0 | M36: 0 | Q36: 204 | R36: 0 | T36: 0 | X36: 204 | Y36: 0 | AA36: 0 | AE36: 204 | AF36: 0 | AH36: 0 | AL36: 204 | AM36: 0 | AO36: 0
F37: 204 | G37: 0 | J37: 204 | K37: 0 | M37: 0 | Q37: 204 | R37: 0 | T37: 0 | X37: 204 | Y37: 0 | AA37: 0 | AE37: 204 | AF37: 0 | AH37: 0 | AL37: 204 | AM37: 0 | AO37: 0
F38: 204 | G38: 0 | J38: 204 | K38: 0 | M38: 0 | Q38: 204 | R38: 0 | T38: 0 | X38: 204 | Y38: 0 | AA38: 0 | AE38: 204 | AF38: 0 | AH38: 0 | AL38: 204 | AM38: 0 | AO38: 0
A39: Sub-Total A (excluding pass through) | G39: =SUM(G23:G38) -> 18.3112 | K39: =SUM(K23:K38) -> 20.8984 | M39: =K39-G39 -> 2.5872 | N39: 0.1412905763 | R39: =SUM(R23:R38) -> 20.2128 | T39: -0.6856 | U39: -0.03280633924 | Y39: =SUM(Y23:Y38) -> 22.7368 | AA39: 2.524 | AB39: 0.1248713686 | AF39: =SUM(AF23:AF38) -> 25.35 | AH39: 2.6132 | AI39: 0.1149326202 | AM39: =SUM(AM23:AM38) -> 25.96 | AO39: 0.61 | AP39: 0.02406311637
A40: Deferral/Variance Account Disposition Rate Rider (2016) | C40: per kWh | E40: 0 | F40: =$E$18 -> 204 | G40: =F40*E40 -> 0 | I40: ='Rates Summary'!C5 -> 0.0007 | J40: =$E$18 -> 204 | K40: =J40*I40 -> 0.1428 | M40: =K40-G40 -> 0.1428 | N40: =IF((G40)=0,"",(M40/G40)) ->  | P40: 0 | Q40: =$E$18 -> 204 | R40: =Q40*P40 -> 0 | T40: =R40-K40 -> -0.1428 | U40: -1 | W40: 0 | X40: =$E$18 -> 204 | Y40: =X40*W40 -> 0 | AA40: 0 | AD40: 0 | AE40: =$E$18 -> 204 | AF40: =AE40*AD40 -> 0 | AH40: 0 | AK40: 0 | AL40: =$E$18 -> 204 | AM40: =AL40*AK40 -> 0 | AO40: 0
F41: =$E$18 -> 204 | G41: =F41*E41 -> 0 | I41: =E41 -> 0 | J41: =$E$18 -> 204 | K41: =J41*I41 -> 0 | M41: =K41-G41 -> 0 | N41: =IF((G41)=0,"",(M41/G41)) ->  | Q41: =$E$18 -> 204 | R41: =Q41*P41 -> 0 | T41: =R41-K41 -> 0 | U41: =IF((K41)=0,"",(T41/K41)) ->  | X41: =$E$18 -> 204 | Y41: =X41*W41 -> 0 | AA41: =Y41-R41 -> 0 | AB41: =IF((R41)=0,"",(AA41/R41)) ->  | AE41: =$E$18 -> 204 | AF41: =AE41*AD41 -> 0 | AH41: =AF41-Y41 -> 0 | AI41: =IF((Y41)=0,"",(AH41/Y41)) ->  | AL41: =$E$18 -> 204 | AM41: =AL41*AK41 -> 0 | AO41: =AM41-AF41 -> 0 | AP41: =IF((AF41)=0,"",(AO41/AF41)) -> 
A42: Rate Rider CGAAP Account 1576 (2016) | C42: per kWh | E42: 0 | F42: 204 | G42: 0 | I42: ='Rates Summary'!$C$8 -> -0.0108 | J42: 204 | K42: -2.2032 | M42: -2.2032 | P42: 0 | Q42: 204 | R42: 0 | T42: 2.2032 | U42: -1 | W42: =P42 -> 0 | X42: 204 | Y42: 0 | AA42: 0 | AD42: =W42 -> 0 | AE42: 204 | AF42: 0 | AH42: 0 | AK42: =AD42 -> 0 | AL42: 204 | AM42: 0 | AO42: 0
A43: Disposition of Global Adjustment (2015) Applicable to Non-RPP Customers | C43: per kWh | E43: 0.0156 | F43: 0 | G43: =F43*E43 -> 0 | I43: 0 | J43: 204 | K43: =J43*I43 -> 0 | M43: =K43-G43 -> 0 | N43: =IF((G43)=0,"",(M43/G43)) ->  | P43: 0 | Q43: 204 | R43: =Q43*P43 -> 0 | T43: 0 | W43: 0 | X43: 204 | Y43: =X43*W43 -> 0 | AA43: 0 | AD43: 0 | AE43: 204 | AF43: =AE43*AD43 -> 0 | AH43: 0 | AK43: 0 | AL43: 204 | AM43: =AL43*AK43 -> 0 | AO43: 0
A44: Disposition of Global Adjustment (2016) Applicable to Non-RPP Customers | C44: per kWh | E44: 0 | F44: 204 | G44: 0 | I44: ='Rates Summary'!C6 -> 0.0205 | J44: 0 | K44: 0 | M44: 0 | P44: 0 | Q44: 204 | R44: 0 | T44: 0 | W44: 0 | X44: 204 | Y44: 0 | AA44: 0 | AD44: 0 | AE44: 204 | AF44: 0 | AH44: 0 | AK44: 0 | AL44: 204 | AM44: 0 | AO44: 0
A45: Low Voltage Service Charge | C45: per kWh | E45: 0.0007 | F45: 204 | G45: =F45*E45 -> 0.1428 | I45: ='Rates Summary'!C15 -> 0.0012 | J45: 204 | K45: =J45*I45 -> 0.2448 | M45: =K45-G45 -> 0.102 | N45: =IF((G45)=0,"",(M45/G45)) -> 0.7142857143 | P45: =I45 -> 0.0012 | Q45: 204 | R45: =Q45*P45 -> 0.2448 | T45: =R45-K45 -> 0 | U45: 0 | W45: =P45 -> 0.0012 | X45: 204 | Y45: =X45*W45 -> 0.2448 | AA45: =Y45-R45 -> 0 | AB45: 0 | AD45: =W45 -> 0.0012 | AE45: 204 | AF45: =AE45*AD45 -> 0.2448 | AH45: =AF45-Y45 -> 0 | AI45: 0 | AK45: =AD45 -> 0.0012 | AL45: 204 | AM45: =AL45*AK45 -> 0.2448 | AO45: =AM45-AF45 -> 0 | AP45: 0
A46: Line Losses on Cost of Power | C46: per kWh | E46: =IF(ISBLANK(C16)=TRUE, 0, IF(C16="TOU", 0.64*$E$56+0.18*$E$57+0.18*$E$58, IF(AND(C16="non-TOU", F60>0), E60,E59))) -> 0.10766 | F46: =$E$18*(1+$E$75)-$E$18 -> 7.0176 | G46: 0.755514816 | I46: =E46 -> 0.10766 | J46: =$E$18*(1+$I$75)-$E$18 -> 8.0172 | K46: 0.863131752 | M46: 0.107616936 | N46: 0.1424418605 | P46: =I46 -> 0.10766 | Q46: =$E$18*(1+$I$75)-$E$18 -> 8.0172 | R46: =Q46*P46 -> 0.863131752 | T46: =R46-K46 -> 0 | U46: 0 | W46: =P46 -> 0.10766 | X46: =$E$18*(1+$I$75)-$E$18 -> 8.0172 | Y46: =X46*W46 -> 0.863131752 | AA46: =Y46-R46 -> 0 | AB46: 0 | AD46: =W46 -> 0.10766 | AE46: =$E$18*(1+$I$75)-$E$18 -> 8.0172 | AF46: =AE46*AD46 -> 0.863131752 | AH46: =AF46-Y46 -> 0 | AI46: 0 | AK46: =AD46 -> 0.10766 | AL46: =$E$18*(1+$I$75)-$E$18 -> 8.0172 | AM46: =AL46*AK46 -> 0.863131752 | AO46: =AM46-AF46 -> 0 | AP46: 0
A47: Smart Meter Entity Charge | C47: Monthly | E47: 0.79 | F47: 1 | G47: =F47*E47 -> 0.79 | I47: 0.79 | J47: 1 | K47: =J47*I47 -> 0.79 | M47: =K47-G47 -> 0 | P47: 0.79 | Q47: 1 | R47: =Q47*P47 -> 0.79 | T47: =R47-K47 -> 0 | U47: 0 | W47: 0.79 | X47: 1 | Y47: =X47*W47 -> 0.79 | AA47: =Y47-R47 -> 0 | AB47: 0 | AD47: 0 | AE47: 1 | AF47: =AE47*AD47 -> 0 | AH47: =AF47-Y47 -> -0.79 | AI47: -1 | AK47: 0 | AL47: 1 | AM47: =AL47*AK47 -> 0 | AO47: =AM47-AF47 -> 0
A48: Sub-Total B - Distribution (includes Sub-Total A) | G48: =SUM(G40:G47)+G39 -> 19.99951482 | K48: =SUM(K40:K47)+K39 -> 20.73593175 | M48: =K48-G48 -> 0.736416936 | N48: =IF((G48)=0,"",(M48/G48)) -> 0.03682174007 | R48: =SUM(R40:R47)+R39 -> 22.11073175 | T48: =R48-K48 -> 1.3748 | U48: 0.06630037253 | Y48: =SUM(Y40:Y47)+Y39 -> 24.63473175 | AA48: =Y48-R48 -> 2.524 | AB48: 0.1141527123 | AF48: =SUM(AF40:AF47)+AF39 -> 26.45793175 | AH48: =AF48-Y48 -> 1.8232 | AI48: 0.07400933034 | AM48: =SUM(AM40:AM47)+AM39 -> 27.06793175 | AO48: =AM48-AF48 -> 0.61 | AP48: 0.02305546804
A49: RTSR - Network | C49: per kWh | E49: 0.0067 | F49: =$E$18*(1+$E$75) -> 211.0176 | G49: =F49*E49 -> 1.41381792 | I49: ='Rates Summary'!C17 -> 0.0071 | J49: =$E$18*(1+$I$75) -> 212.0172 | K49: =J49*I49 -> 1.50532212 | M49: 0.0915042 | N49: 0.06472134686 | P49: =I49 -> 0.0071 | Q49: =$E$18*(1+P75) -> 212.0172 | R49: =Q49*P49 -> 1.50532212 | T49: 0 | U49: 0 | W49: =P49 -> 0.0071 | X49: =$E$18*(1+W75) -> 212.0172 | Y49: =X49*W49 -> 1.50532212 | AA49: 0 | AB49: 0 | AD49: =W49 -> 0.0071 | AE49: =$E$18*(1+AD75) -> 212.0172 | AF49: =AE49*AD49 -> 1.50532212 | AH49: 0 | AI49: 0 | AK49: =AD49 -> 0.0071 | AL49: =$E$18*(1+AK75) -> 212.0172 | AM49: =AL49*AK49 -> 1.50532212 | AO49: 0 | AP49: 0
A50: RTSR - Line and Transformation Connection | C50: per kWh | E50: 0.0051 | F50: =F49 -> 211.0176 | G50: =F50*E50 -> 1.07618976 | I50: ='Rates Summary'!C18 -> 0.0056 | J50: =J49 -> 212.0172 | K50: =J50*I50 -> 1.18729632 | M50: 0.11110656 | N50: 0.1032406776 | P50: =I50 -> 0.0056 | Q50: =Q49 -> 212.0172 | R50: =Q50*P50 -> 1.18729632 | T50: 0 | U50: 0 | W50: =P50 -> 0.0056 | X50: =X49 -> 212.0172 | Y50: =X50*W50 -> 1.18729632 | AA50: 0 | AB50: 0 | AD50: =W50 -> 0.0056 | AE50: =AE49 -> 212.0172 | AF50: =AE50*AD50 -> 1.18729632 | AH50: 0 | AI50: 0 | AK50: =AD50 -> 0.0056 | AL50: =AL49 -> 212.0172 | AM50: =AL50*AK50 -> 1.18729632 | AO50: 0 | AP50: 0
A51: Sub-Total C - Delivery (including Sub-Total B) | G51: =SUM(G48:G50) -> 22.4895225 | K51: =SUM(K48:K50) -> 23.42855019 | M51: 0.939027696 | N51: 0.04175400772 | R51: =SUM(R48:R50) -> 24.80335019 | T51: 1.3748 | U51: 0.058680541 | Y51: =SUM(Y48:Y50) -> 27.32735019 | AA51: 2.524 | AB51: 0.1017604469 | AF51: =SUM(AF48:AF50) -> 29.15055019 | AH51: 1.8232 | AI51: 0.06671704308 | AM51: =SUM(AM48:AM50) -> 29.76055019 | AO51: 0.61 | AP51: 0.0209258486
A52: Wholesale Market Service Charge (WMSC) | C52: per kWh | E52: 0.0044 | F52: =F50 -> 211.0176 | G52: =F52*E52 -> 0.92847744 | I52: ='Rates Summary'!C19 -> 0.0044 | J52: =J50 -> 212.0172 | K52: =J52*I52 -> 0.93287568 | M52: 0.00439824 | N52: 0.00473704563 | P52: =I52 -> 0.0044 | Q52: =Q50 -> 212.0172 | R52: =Q52*P52 -> 0.93287568 | T52: 0 | U52: 0 | W52: =P52 -> 0.0044 | X52: =X50 -> 212.0172 | Y52: =X52*W52 -> 0.93287568 | AA52: 0 | AB52: 0 | AD52: =W52 -> 0.0044 | AE52: =AE50 -> 212.0172 | AF52: =AE52*AD52 -> 0.93287568 | AH52: 0 | AI52: 0 | AK52: =AD52 -> 0.0044 | AL52: =AL50 -> 212.0172 | AM52: =AL52*AK52 -> 0.93287568 | AO52: 0 | AP52: 0
A53: Rural and Remote Rate Protection (RRRP) | C53: per kWh | E53: 0.0013 | F53: =F50 -> 211.0176 | G53: 0.27432288 | I53: ='Rates Summary'!C20 -> 0.0013 | J53: =J50 -> 212.0172 | K53: 0.27562236 | M53: 0.00129948 | N53: 0.00473704563 | P53: =I53 -> 0.0013 | Q53: =Q50 -> 212.0172 | R53: 0.27562236 | T53: 0 | U53: 0 | W53: =P53 -> 0.0013 | X53: =X50 -> 212.0172 | Y53: 0.27562236 | AA53: 0 | AB53: 0 | AD53: =W53 -> 0.0013 | AE53: =AE50 -> 212.0172 | AF53: 0.27562236 | AH53: 0 | AI53: 0 | AK53: =AD53 -> 0.0013 | AL53: =AL50 -> 212.0172 | AM53: 0.27562236 | AO53: 0 | AP53: 0
A54: Standard Supply Service Charge | C54: Monthly | E54: 0.25 | F54: 1 | G54: 0.25 | I54: ='Rates Summary'!C21 -> 0.25 | J54: 1 | K54: 0.25 | M54: 0 | N54: 0 | P54: =I54 -> 0.25 | Q54: 1 | R54: 0.25 | T54: 0 | U54: 0 | W54: =P54 -> 0.25 | X54: 1 | Y54: 0.25 | AA54: 0 | AB54: 0 | AD54: =W54 -> 0.25 | AE54: 1 | AF54: 0.25 | AH54: 0 | AI54: 0 | AK54: =AD54 -> 0.25 | AL54: 1 | AM54: 0.25 | AO54: 0 | AP54: 0
A55: Debt Retirement Charge (DRC) | C55: per kWh | E55: 0.007 | F55: =E18 -> 204 | G55: 1.428 | I55: 0 | J55: =E18 -> 204 | K55: 0 | M55: -1.428 | N55: -1 | P55: 0 | Q55: =J55 -> 204 | R55: 0 | T55: 0 | W55: 0 | X55: =Q55 -> 204 | Y55: 0 | AA55: 0 | AD55: 0 | AE55: =X55 -> 204 | AF55: 0 | AH55: 0 | AK55: 0 | AL55: =AE55 -> 204 | AM55: 0 | AO55: 0
A56: TOU - Off Peak | C56: per kWh | E56: 0.083 | F56: =0.64*$E$18 -> 130.56 | G56: 10.83648 | I56: =E56 -> 0.083 | J56: =F56 -> 130.56 | K56: 10.83648 | M56: 0 | N56: 0 | P56: =I56 -> 0.083 | Q56: =J56 -> 130.56 | R56: 10.83648 | T56: 0 | U56: 0 | W56: =P56 -> 0.083 | X56: =Q56 -> 130.56 | Y56: 10.83648 | AA56: 0 | AB56: 0 | AD56: =W56 -> 0.083 | AE56: =X56 -> 130.56 | AF56: 10.83648 | AH56: 0 | AI56: 0 | AK56: =AD56 -> 0.083 | AL56: =AE56 -> 130.56 | AM56: 10.83648 | AO56: 0 | AP56: 0
A57: TOU - Mid Peak | C57: per kWh | E57: 0.128 | F57: =0.18*$E$18 -> 36.72 | G57: 4.70016 | I57: =E57 -> 0.128 | J57: =F57 -> 36.72 | K57: 4.70016 | M57: 0 | N57: 0 | P57: =I57 -> 0.128 | Q57: =J57 -> 36.72 | R57: 4.70016 | T57: 0 | U57: 0 | W57: =P57 -> 0.128 | X57: =Q57 -> 36.72 | Y57: 4.70016 | AA57: 0 | AB57: 0 | AD57: =W57 -> 0.128 | AE57: =X57 -> 36.72 | AF57: 4.70016 | AH57: 0 | AI57: 0 | AK57: =AD57 -> 0.128 | AL57: =AE57 -> 36.72 | AM57: 4.70016 | AO57: 0 | AP57: 0
A58: TOU - On Peak | C58: per kWh | E58: 0.175 | F58: =0.18*$E$18 -> 36.72 | G58: 6.426 | I58: 0.175 | J58: =F58 -> 36.72 | K58: 6.426 | M58: 0 | N58: 0 | P58: 0.175 | Q58: 36.72 | R58: 6.426 | T58: 0 | U58: 0 | W58: 0.175 | X58: 36.72 | Y58: 6.426 | AA58: 0 | AB58: 0 | AD58: 0.175 | AE58: 36.72 | AF58: 6.426 | AH58: 0 | AI58: 0 | AK58: 0.175 | AL58: 36.72 | AM58: 6.426 | AO58: 0 | AP58: 0
A59: Energy - RPP - Tier 1 | C59: per kWh | E59: 0.099 | F59: =IF(AND($S$1=1, E18>=600), 600, IF(AND($S$1=1, AND(E18<600, E18>=0)), E18, IF(AND($S$1=2, E18>=1000), 1000, IF(AND($S$1=2, AND(E18<1000, E18>=0)), E18)))) -> 204 | G59: =F59*E59 -> 20.196 | I59: 0.099 | J59: =F59 -> 204 | K59: =J59*I59 -> 20.196 | M59: 0 | N59: 0 | P59: 0.099 | Q59: 204 | R59: =Q59*P59 -> 20.196 | T59: 0 | U59: 0 | W59: 0.099 | X59: 204 | Y59: =X59*W59 -> 20.196 | AA59: 0 | AB59: 0 | AD59: 0.099 | AE59: 204 | AF59: =AE59*AD59 -> 20.196 | AH59: 0 | AI59: 0 | AK59: 0.099 | AL59: 204 | AM59: =AL59*AK59 -> 20.196 | AO59: 0 | AP59: 0
A60: Energy - RPP - Tier 2 | C60: per kWh | E60: 0.116 | F60: =IF(AND($S$1=1, E18>=600), E18-600, IF(AND($S$1=1, AND(E18<600, E18>=0)), 0, IF(AND($S$1=2, E18>=1000), E18-1000, IF(AND($S$1=2, AND(E18<1000, E18>=0)), 0)))) -> 0 | G60: =F60*E60 -> 0 | I60: 0.116 | J60: =F60 -> 0 | K60: =J60*I60 -> 0 | M60: 0 | P60: 0.116 | Q60: 0 | R60: =Q60*P60 -> 0 | T60: 0 | W60: 0.116 | X60: 0 | Y60: =X60*W60 -> 0 | AA60: 0 | AD60: 0.116 | AE60: 0 | AF60: =AE60*AD60 -> 0 | AH60: 0 | AK60: 0.116 | AL60: 0 | AM60: =AL60*AK60 -> 0 | AO60: 0
A62: Total Bill on TOU (before Taxes) | G62: =SUM(G52:G58,G51) -> 47.33296282 | K62: =SUM(K52:K58,K51) -> 46.84968823 | M62: =K62-G62 -> -0.483274584 | N62: =IF((G62)=0,"",(M62/G62)) -> -0.01021010635 | R62: =SUM(R52:R58,R51) -> 48.22448823 | T62: =R62-K62 -> 1.3748 | U62: 0.02934491246 | Y62: =SUM(Y52:Y58,Y51) -> 50.74848823 | AA62: =Y62-R62 -> 2.524 | AB62: 0.05233855438 | AF62: =SUM(AF52:AF58,AF51) -> 52.57168823 | AH62: =AF62-Y62 -> 1.8232 | AI62: 0.03592619334 | AM62: =SUM(AM52:AM58,AM51) -> 53.18168823 | AO62: =AM62-AF62 -> 0.61 | AP62: 0.01160320356
A63: HST | E63: 0.13 | G63: =G62*E63 -> 6.153285166 | I63: 0.13 | K63: =K62*I63 -> 6.09045947 | M63: -0.06282569592 | N63: -0.01021010635 | P63: 0.13 | R63: =R62*P63 -> 6.26918347 | T63: =R63-K63 -> 0.178724 | U63: 0.02934491246 | W63: 0.13 | Y63: =Y62*W63 -> 6.59730347 | AA63: =Y63-R63 -> 0.32812 | AB63: 0.05233855438 | AD63: 0.13 | AF63: =AF62*AD63 -> 6.83431947 | AH63: =AF63-Y63 -> 0.237016 | AI63: 0.03592619334 | AK63: 0.13 | AM63: =AM62*AK63 -> 6.91361947 | AO63: =AM63-AF63 -> 0.0793 | AP63: 0.01160320356
A64: Total Bill (including HST) | G64: =G62+G63 -> 53.48624798 | K64: =K62+K63 -> 52.9401477 | M64: -0.5461002799 | N64: -0.01021010635 | R64: =R62+R63 -> 54.4936717 | T64: 1.553524 | U64: 0.02934491246 | Y64: =Y62+Y63 -> 57.3457917 | AA64: 2.85212 | AB64: 0.05233855438 | AF64: =AF62+AF63 -> 59.4060077 | AH64: 2.060216 | AI64: 0.03592619334 | AM64: =AM62+AM63 -> 60.0953077 | AO64: 0.6893 | AP64: 0.01160320356
A65: Ontario Clean Energy Benefit 1 | G65: =ROUND(-G64*10%,2) -> -5.35 | K65: 0 | M65: 5.35 | N65: -1 | R65: 0 | T65: 0 | Y65: 0 | AA65: 0 | AF65: 0 | AH65: 0 | AM65: 0 | AO65: 0
A66: Total Bill on TOU (including OCEB) | G66: =G64+G65 -> 48.13624798 | K66: =K64+K65 -> 52.9401477 | M66: 4.80389972 | N66: 0.09979796767 | R66: =R64+R65 -> 54.4936717 | T66: 1.553524 | U66: 0.02934491246 | Y66: =Y64+Y65 -> 57.3457917 | AA66: 2.85212 | AB66: 0.05233855438 | AF66: =AF64+AF65 -> 59.4060077 | AH66: 2.060216 | AI66: 0.03592619334 | AM66: =AM64+AM65 -> 60.0953077 | AO66: 0.6893 | AP66: 0.01160320356
A68: Total Bill on RPP (before Taxes) | G68: =SUM(G59:G60,G52:G55,G51) -> 45.56632282 | K68: =SUM(K59:K60,K52:K55,K51) -> 45.08304823 | M68: =K68-G68 -> -0.483274584 | N68: =IF((G68)=0,"",(M68/G68)) -> -0.01060595971 | R68: =SUM(R59:R60,R52:R55,R51) -> 46.45784823 | T68: =R68-K68 -> 1.3748 | U68: 0.0304948324 | Y68: =SUM(Y59:Y60,Y52:Y55,Y51) -> 48.98184823 | AA68: =Y68-R68 -> 2.524 | AB68: 0.0543288184 | AF68: =SUM(AF59:AF60,AF52:AF55,AF51) -> 50.80504823 | AH68: =AF68-Y68 -> 1.8232 | AI68: 0.03722195192 | AM68: =SUM(AM59:AM60,AM52:AM55,AM51) -> 51.41504823 | AO68: =AM68-AF68 -> 0.61 | AP68: 0.01200668086
A69: HST | E69: 0.13 | G69: =G68*E69 -> 5.923621966 | I69: 0.13 | K69: =K68*I69 -> 5.86079627 | M69: -0.06282569592 | N69: =IF((G69)=0,"",(M69/G69)) -> -0.01060595971 | P69: 0.13 | R69: =R68*P69 -> 6.03952027 | T69: =R69-K69 -> 0.178724 | U69: 0.0304948324 | W69: 0.13 | Y69: =Y68*W69 -> 6.36764027 | AA69: =Y69-R69 -> 0.32812 | AB69: 0.0543288184 | AD69: 0.13 | AF69: =AF68*AD69 -> 6.60465627 | AH69: =AF69-Y69 -> 0.237016 | AI69: 0.03722195192 | AK69: 0.13 | AM69: =AM68*AK69 -> 6.68395627 | AO69: =AM69-AF69 -> 0.0793 | AP69: 0.01200668086
A70: Total Bill (including HST) | G70: =G68+G69 -> 51.48994478 | K70: =K68+K69 -> 50.9438445 | M70: -0.5461002799 | N70: -0.01060595971 | R70: =R68+R69 -> 52.4973685 | T70: 1.553524 | U70: 0.0304948324 | Y70: =Y68+Y69 -> 55.3494885 | AA70: 2.85212 | AB70: 0.0543288184 | AF70: =AF68+AF69 -> 57.4097045 | AH70: 2.060216 | AI70: 0.03722195192 | AM70: =AM68+AM69 -> 58.0990045 | AO70: 0.6893 | AP70: 0.01200668086
A71: Ontario Clean Energy Benefit 1 | G71: =ROUND(-G70*10%,2) -> -5.15 | K71: 0 | M71: 5.15 | N71: -1 | R71: 0 | T71: 0 | Y71: 0 | AA71: 0 | AF71: 0 | AH71: 0 | AM71: 0 | AO71: 0
A72: Total Bill on RPP (including OCEB) | G72: =SUM(G70:G71) -> 46.33994478 | K72: =SUM(K70:K71) -> 50.9438445 | M72: 4.60389972 | N72: 0.09935056552 | R72: =SUM(R70:R71) -> 52.4973685 | T72: 1.553524 | U72: 0.0304948324 | Y72: =SUM(Y70:Y71) -> 55.3494885 | AA72: 2.85212 | AB72: 0.0543288184 | AF72: =SUM(AF70:AF71) -> 57.4097045 | AH72: 2.060216 | AI72: 0.03722195192 | AM72: =SUM(AM70:AM71) -> 58.0990045 | AO72: 0.6893 | AP72: 0.01200668086
A75: Loss Factor (%) | E75: 0.0344 | I75: 0.0393 | P75: 0.0393 | W75: 0.0393 | AD75: 0.0393 | AK75: 0.0393
A77: Distribution Excluding Rate Riders | E77: 2015 Current Board-Approved | I77: 2016 Test Year 1 Proposed | M77: Impact 2016 TEST vs. 2015 Bridge | P77: 2017 Test Year 2 Proposed | T77: Impact 2017 TEST 2 vs. 2016 Test 1 | W77: 2018 Test Year 3 Proposed | AA77: Impact 2018 TEST 3 vs. 2017 Test 2 | AD77: 2019 Test Year 4 Proposed | AH77: Impact 2019 TEST 4 vs. 2018 Test 3 | AK77: 2020 Test Year 5 Proposed | AO77: Impact 2020 TEST 5 vs. 2019 Test 4
C78: Charge Unit | E78: Rate | F78: Volume | G78: Charge | I78: Rate | J78: Volume | K78: Charge | M78: $ Change | N78: % Change | P78: Rate | Q78: Volume | R78: Charge | T78: $ Change | U78: % Change | W78: Rate | X78: Volume | Y78: Charge | AA78: $ Change | AB78: % Change | AD78: Rate | AE78: Volume | AF78: Charge | AH78: $ Change | AI78: % Change | AK78: Rate | AL78: Volume | AM78: Charge | AO78: $ Change | AP78: % Change
E79: ($) | G79: ($) | I79: ($) | K79: ($) | P79: ($) | R79: ($) | W79: ($) | Y79: ($) | AD79: ($) | AF79: ($) | AK79: ($) | AM79: ($)
A80: Monthly Service Charge | C80: Monthly | E80: 12.56 | F80: 1 | G80: =F80*E80 -> 12.56 | I80: ='Rates Summary'!$E$28 -> 13.98 | J80: 1 | K80: =J80*I80 -> 13.98 | M80: =K80-G80 -> 1.42 | N80: =IF((G80)=0,"",(M80/G80)) -> 0.1130573248 | P80: ='Rates Summary'!$F$28 -> 18.54 | Q80: 1 | R80: =Q80*P80 -> 18.54 | T80: =R80-K80 -> 4.56 | U80: =IF((K80)=0,"",(T80/K80)) -> 0.3261802575 | W80: ='Rates Summary'!$G$28 -> 21.88 | X80: 1 | Y80: =X80*W80 -> 21.88 | AA80: =Y80-R80 -> 3.34 | AB80: =IF((R80)=0,"",(AA80/R80)) -> 0.1801510248 | AD80: ='Rates Summary'!$H$28 -> 25.35 | AE80: 1 | AF80: =AE80*AD80 -> 25.35 | AH80: =AF80-Y80 -> 3.47 | AI80: =IF((Y80)=0,"",(AH80/Y80)) -> 0.1585923218 | AK80: ='Rates Summary'!$I$28 -> 25.96 | AL80: 1 | AM80: =AL80*AK80 -> 25.96 | AO80: =AM80-AF80 -> 0.61 | AP80: =IF((AF80)=0,"",(AO80/AF80)) -> 0.02406311637
A81: Distribution Volumetric Rate | C81: per kWh | E81: 0.0154 | F81: =$E$18 -> 204 | G81: =F81*E81 -> 3.1416 | I81: ='Rates Summary'!$E$40 -> 0.0139 | J81: =$E$18 -> 204 | K81: =J81*I81 -> 2.8356 | M81: =K81-G81 -> -0.306 | N81: =IF((G81)=0,"",(M81/G81)) -> -0.0974025974 | P81: ='Rates Summary'!$F$40 -> 0.0082 | Q81: =$E$18 -> 204 | R81: =Q81*P81 -> 1.6728 | T81: -1.1628 | U81: =IF((K81)=0,"",(T81/K81)) -> -0.4100719424 | W81: ='Rates Summary'!$G$40 -> 0.0042 | X81: =$E$18 -> 204 | Y81: =X81*W81 -> 0.8568 | AA81: -0.816 | AB81: =IF((R81)=0,"",(AA81/R81)) -> -0.487804878 | AD81: ='Rates Summary'!$H$40 -> 0 | AE81: =$E$18 -> 204 | AF81: =AE81*AD81 -> 0 | AH81: -0.8568 | AI81: =IF((Y81)=0,"",(AH81/Y81)) -> -1 | AK81: ='Rates Summary'!$I$40 -> 0 | AL81: =$E$18 -> 204 | AM81: =AL81*AK81 -> 0 | AO81: 0 | AP81: =IF((AF81)=0,"",(AO81/AF81)) -> 
A82: "Regular" Distribution Only | G82: =SUM(G80:G81) -> 15.7016 | K82: =SUM(K80:K81) -> 16.8156 | M82: =K82-G82 -> 1.114 | N82: =IF((G82)=0,"",(M82/G82)) -> 0.07094818362 | R82: =SUM(R80:R81) -> 20.2128 | T82: =R82-K82 -> 3.3972 | U82: =IF((K82)=0,"",(T82/K82)) -> 0.2020266895 | Y82: =SUM(Y80:Y81) -> 22.7368 | AA82: =Y82-R82 -> 2.524 | AB82: =IF((R82)=0,"",(AA82/R82)) -> 0.1248713686 | AF82: =SUM(AF80:AF81) -> 25.35 | AH82: =AF82-Y82 -> 2.6132 | AI82: =IF((Y82)=0,"",(AH82/Y82)) -> 0.1149326202 | AM82: =SUM(AM80:AM81) -> 25.96 | AO82: =AM82-AF82 -> 0.61 | AP82: =IF((AF82)=0,"",(AO82/AF82)) -> 0.02406311637
B84: Residential (kWh) - 100, 250, 500, 800, 1000, 1500, 2000
B85: GS<50kW (kWh) - 1000, 2000, 5000, 10000, 15000
B86: GS>50kW (kW) - 60, 100, 500, 1000
B87: Large User - range appropriate for utility
B88: Lighting Classes and USL - 150 kWh and 1 kW, range appropriate for utility.
C90: Note that cells with the highlighted color shown to the left indicate quantities that are loss adjusted.

Sheet Bill Impact Resi 100kWh
M1: File Number: | N1: =EBNUMBER -> EB-2015-0083 | S1: 1
M2: Exhibit: | N2: 8
M3: Tab: | N3: 4
M4: Schedule: | N4: 3
M5: Page:
N7: Settlement
M8: Date: | N8: 2015-10-20
A10: Appendix 2-W
A11: Bill Impacts
A14: Customer Class: | C14: Residential | P14: =C14 -> Residential | AK14: =P14 -> Residential
A16: TOU / non-TOU: | C16: TOU
C18: Consumption | E18: 100 | F18: kWh
E20: 2015 Current Board-Approved | I20: 2016 Test Year 1 Proposed | M20: Impact 2016 TEST vs. 2015 Bridge | P20: 2017 Test Year 2 Proposed | T20: Impact 2017 TEST 2 vs. 2016 Test 1 | W20: 2018 Test Year 3 Proposed | AA20: Impact 2018 TEST 3 vs. 2017 Test 2 | AD20: 2019 Test Year 4 Proposed | AH20: Impact 2019 TEST 4 vs. 2018 Test 3 | AK20: 2020 Test Year 5 Proposed | AO20: Impact 2020 TEST 5 vs. 2019 Test 4
C21: Charge Unit | E21: Rate | F21: Volume | G21: Charge | I21: Rate | J21: Volume | K21: Charge | M21: $ Change | N21: % Change | P21: Rate | Q21: Volume | R21: Charge | T21: $ Change | U21: % Change | W21: Rate | X21: Volume | Y21: Charge | AA21: $ Change | AB21: % Change | AD21: Rate | AE21: Volume | AF21: Charge | AH21: $ Change | AI21: % Change | AK21: Rate | AL21: Volume | AM21: Charge | AO21: $ Change | AP21: % Change
E22: ($) | G22: ($) | I22: ($) | K22: ($) | P22: ($) | R22: ($) | W22: ($) | Y22: ($) | AD22: ($) | AF22: ($) | AK22: ($) | AM22: ($)
A23: Monthly Service Charge | C23: Monthly | E23: 12.56 | F23: 1 | G23: =F23*E23 -> 12.56 | I23: ='Rates Summary'!$E$28 -> 13.98 | J23: 1 | K23: =J23*I23 -> 13.98 | M23: =K23-G23 -> 1.42 | N23: =IF((G23)=0,"",(M23/G23)) -> 0.1130573248 | P23: ='Rates Summary'!$F$28 -> 18.54 | Q23: 1 | R23: =Q23*P23 -> 18.54 | T23: =R23-K23 -> 4.56 | U23: =IF((K23)=0,"",(T23/K23)) -> 0.3261802575 | W23: ='Rates Summary'!$G$28 -> 21.88 | X23: 1 | Y23: =X23*W23 -> 21.88 | AA23: =Y23-R23 -> 3.34 | AB23: =IF((R23)=0,"",(AA23/R23)) -> 0.1801510248 | AD23: ='Rates Summary'!$H$28 -> 25.35 | AE23: 1 | AF23: =AE23*AD23 -> 25.35 | AH23: =AF23-Y23 -> 3.47 | AI23: =IF((Y23)=0,"",(AH23/Y23)) -> 0.1585923218 | AK23: ='Rates Summary'!$I$28 -> 25.96 | AL23: 1 | AM23: =AL23*AK23 -> 25.96 | AO23: =AM23-AF23 -> 0.61 | AP23: =IF((AF23)=0,"",(AO23/AF23)) -> 0.02406311637
A24: Smart Meter (SMIRR) Rate Rider | C24: Monthly | E24: 2.63 | F24: 1 | G24: =F24*E24 -> 2.63 | I24: 0 | J24: 1 | K24: =J24*I24 -> 0 | M24: =K24-G24 -> -2.63 | N24: =IF((G24)=0,"",(M24/G24)) -> -1 | P24: 0 | Q24: 1 | R24: =Q24*P24 -> 0 | T24: 0 | U24: =IF((K24)=0,"",(T24/K24)) ->  | W24: 0 | X24: 1 | Y24: =X24*W24 -> 0 | AA24: 0 | AB24: =IF((R24)=0,"",(AA24/R24)) ->  | AD24: 0 | AE24: 1 | AF24: =AE24*AD24 -> 0 | AH24: 0 | AI24: =IF((Y24)=0,"",(AH24/Y24)) ->  | AK24: 0 | AL24: 1 | AM24: =AL24*AK24 -> 0 | AO24: 0 | AP24: =IF((AF24)=0,"",(AO24/AF24)) -> 
A25: Rate Rider Smart Meters Capital (2016) | C25: Monthly | E25: 0 | F25: 1 | G25: 0 | I25: ='Rates Summary'!C10 -> 0.25 | J25: 1 | K25: =J25*I25 -> 0.25 | M25: =K25-G25 -> 0.25 | P25: 0 | Q25: 1 | R25: =Q25*P25 -> 0 | T25: -0.25 | U25: -1 | W25: 0 | X25: 1 | Y25: =X25*W25 -> 0 | AA25: 0 | AD25: 0 | AE25: 1 | AF25: =AE25*AD25 -> 0 | AH25: 0 | AK25: 0 | AL25: 1 | AM25: =AL25*AK25 -> 0 | AO25: 0
A26: Rate Rider Recovery of Stranded Meters | C26: Monthly | E26: 0 | F26: 1 | G26: 0 | I26: ='Rates Summary'!$C11 -> 3.69 | J26: 1 | K26: 3.69 | M26: 3.69 | P26: 0 | Q26: 1 | R26: 0 | T26: -3.69 | U26: -1 | W26: 0 | X26: 1 | Y26: 0 | AA26: 0 | AD26: 0 | AE26: 1 | AF26: 0 | AH26: 0 | AK26: 0 | AL26: 1 | AM26: 0 | AO26: 0
F27: 1 | G27: 0 | J27: 1 | K27: 0 | M27: 0 | N27: =IF((G27)=0,"",(M27/G27)) ->  | Q27: 1 | R27: 0 | T27: 0 | X27: 1 | Y27: 0 | AA27: 0 | AE27: 1 | AF27: 0 | AH27: 0 | AL27: 1 | AM27: 0 | AO27: 0
F28: 1 | G28: 0 | J28: 1 | K28: 0 | M28: 0 | Q28: 1 | R28: 0 | T28: 0 | X28: 1 | Y28: 0 | AA28: 0 | AE28: 1 | AF28: 0 | AH28: 0 | AL28: 1 | AM28: 0 | AO28: 0
A29: Distribution Volumetric Rate | C29: per kWh | E29: 0.0154 | F29: =$E$18 -> 100 | G29: =F29*E29 -> 1.54 | I29: ='Rates Summary'!$E$40 -> 0.0139 | J29: =$E$18 -> 100 | K29: 1.39 | M29: -0.15 | N29: -0.0974025974 | P29: ='Rates Summary'!$F$40 -> 0.0082 | Q29: =$E$18 -> 100 | R29: 0.82 | T29: -0.57 | U29: -0.4100719424 | W29: ='Rates Summary'!$G$40 -> 0.0042 | X29: =$E$18 -> 100 | Y29: 0.42 | AA29: -0.4 | AB29: -0.487804878 | AD29: ='Rates Summary'!$H$40 -> 0 | AE29: =$E$18 -> 100 | AF29: 0 | AH29: -0.42 | AI29: -1 | AK29: ='Rates Summary'!$I$40 -> 0 | AL29: =$E$18 -> 100 | AM29: 0 | AO29: 0
A30: Rate Rider Tax Change (2015) | C30: per kWh | E30: -0.0001 | F30: =$E$18 -> 100 | G30: =F30*E30 -> -0.01 | I30: 0 | J30: =$E$18 -> 100 | K30: 0 | M30: 0.01 | N30: =IF((G30)=0,"",(M30/G30)) -> -1 | P30: 0 | Q30: =$E$18 -> 100 | R30: 0 | T30: 0 | W30: 0 | X30: =$E$18 -> 100 | Y30: 0 | AA30: 0 | AD30: 0 | AE30: =$E$18 -> 100 | AF30: 0 | AH30: 0 | AK30: 0 | AL30: =$E$18 -> 100 | AM30: 0 | AO30: 0
A31: LRAM VA (2016) | C31: per kWh | E31: 0 | F31: =$E$18 -> 100 | G31: 0 | I31: ='Rates Summary'!C7 -> 0.0003 | J31: 100 | K31: 0.03 | M31: 0.03 | P31: 0 | Q31: 100 | R31: 0 | T31: -0.03 | U31: =IF((K31)=0,"",(T31/K31)) -> -1 | W31: 0 | X31: 100 | Y31: 0 | AA31: 0 | AD31: 0 | AE31: 100 | AF31: 0 | AH31: 0 | AK31: 0 | AL31: 100 | AM31: 0 | AO31: 0
A32: Rate Rider Incremental Capital 2012 True-Up (2016) | C32: per kWh | E32: 0 | F32: =$E$18 -> 100 | G32: 0 | I32: ='Rates Summary'!C9 -> 0.0004 | J32: 100 | K32: 0.04 | M32: 0.04 | P32: 0 | Q32: 100 | R32: 0 | T32: -0.04 | U32: =IF((K32)=0,"",(T32/K32)) -> -1 | W32: 0 | X32: 100 | Y32: 0 | AA32: 0 | AD32: 0 | AE32: 100 | AF32: 0 | AH32: 0 | AK32: 0 | AL32: 100 | AM32: 0 | AO32: 0
C33: per kWh | E33: 0 | F33: =$E$19 -> 0 | G33: 0 | J33: =$E$19 -> 0 | K33: 0 | M33: 0 | N33: =IF((G33)=0,"",(M33/G33)) ->  | Q33: =$E$19 -> 0 | R33: 0 | T33: 0 | X33: =$E$19 -> 0 | Y33: 0 | AA33: 0 | AE33: =$E$19 -> 0 | AF33: 0 | AH33: 0 | AL33: =$E$19 -> 0 | AM33: 0 | AO33: 0
E34: 0 | F34: 100 | G34: 0 | J34: 100 | K34: 0 | M34: 0 | Q34: 100 | R34: 0 | T34: 0 | X34: 100 | Y34: 0 | AA34: 0 | AE34: 100 | AF34: 0 | AH34: 0 | AL34: 100 | AM34: 0 | AO34: 0
F35: 100 | G35: 0 | J35: 100 | K35: 0 | M35: 0 | Q35: 100 | R35: 0 | T35: 0 | X35: 100 | Y35: 0 | AA35: 0 | AE35: 100 | AF35: 0 | AH35: 0 | AL35: 100 | AM35: 0 | AO35: 0
F36: 100 | G36: 0 | J36: 100 | K36: 0 | M36: 0 | Q36: 100 | R36: 0 | T36: 0 | X36: 100 | Y36: 0 | AA36: 0 | AE36: 100 | AF36: 0 | AH36: 0 | AL36: 100 | AM36: 0 | AO36: 0
F37: 100 | G37: 0 | J37: 100 | K37: 0 | M37: 0 | Q37: 100 | R37: 0 | T37: 0 | X37: 100 | Y37: 0 | AA37: 0 | AE37: 100 | AF37: 0 | AH37: 0 | AL37: 100 | AM37: 0 | AO37: 0
F38: 100 | G38: 0 | J38: 100 | K38: 0 | M38: 0 | Q38: 100 | R38: 0 | T38: 0 | X38: 100 | Y38: 0 | AA38: 0 | AE38: 100 | AF38: 0 | AH38: 0 | AL38: 100 | AM38: 0 | AO38: 0
A39: Sub-Total A (excluding pass through) | G39: =SUM(G23:G38) -> 16.72 | K39: =SUM(K23:K38) -> 19.38 | M39: =K39-G39 -> 2.66 | N39: 0.1590909091 | R39: =SUM(R23:R38) -> 19.36 | T39: -0.02 | U39: -0.001031991744 | Y39: =SUM(Y23:Y38) -> 22.3 | AA39: 2.94 | AB39: 0.1518595041 | AF39: =SUM(AF23:AF38) -> 25.35 | AH39: 3.05 | AI39: 0.1367713004 | AM39: =SUM(AM23:AM38) -> 25.96 | AO39: 0.61 | AP39: 0.02406311637
A40: Deferral/Variance Account Disposition Rate Rider (2016) | C40: per kWh | E40: 0 | F40: =$E$18 -> 100 | G40: =F40*E40 -> 0 | I40: ='Rates Summary'!C5 -> 0.0007 | J40: =$E$18 -> 100 | K40: =J40*I40 -> 0.07 | M40: =K40-G40 -> 0.07 | N40: =IF((G40)=0,"",(M40/G40)) ->  | P40: 0 | Q40: =$E$18 -> 100 | R40: =Q40*P40 -> 0 | T40: -0.07 | U40: -1 | W40: 0 | X40: =$E$18 -> 100 | Y40: =X40*W40 -> 0 | AA40: 0 | AD40: 0 | AE40: =$E$18 -> 100 | AF40: =AE40*AD40 -> 0 | AH40: 0 | AK40: 0 | AL40: =$E$18 -> 100 | AM40: =AL40*AK40 -> 0 | AO40: 0
F41: =$E$18 -> 100 | G41: =F41*E41 -> 0 | I41: =E41 -> 0 | J41: =$E$18 -> 100 | K41: =J41*I41 -> 0 | M41: =K41-G41 -> 0 | N41: =IF((G41)=0,"",(M41/G41)) ->  | Q41: =$E$18 -> 100 | R41: =Q41*P41 -> 0 | T41: 0 | X41: =$E$18 -> 100 | Y41: =X41*W41 -> 0 | AA41: 0 | AE41: =$E$18 -> 100 | AF41: =AE41*AD41 -> 0 | AH41: 0 | AL41: =$E$18 -> 100 | AM41: =AL41*AK41 -> 0 | AO41: 0
A42: Rate Rider CGAAP Account 1576 (2016) | C42: per kWh | E42: 0 | F42: 100 | G42: 0 | I42: ='Rates Summary'!$C$8 -> -0.0108 | J42: 100 | K42: -1.08 | M42: -1.08 | P42: 0 | Q42: 100 | R42: 0 | T42: 1.08 | U42: -1 | W42: =P42 -> 0 | X42: 100 | Y42: 0 | AA42: 0 | AD42: =W42 -> 0 | AE42: 100 | AF42: 0 | AH42: 0 | AK42: =AD42 -> 0 | AL42: 100 | AM42: 0 | AO42: 0
A43: Disposition of Global Adjustment (2015) Applicable to Non-RPP Customers | C43: per kWh | E43: 0.0156 | F43: 0 | G43: 0 | I43: 0 | J43: 100 | K43: 0 | M43: 0 | P43: 0 | Q43: 100 | R43: 0 | T43: 0 | W43: 0 | X43: 100 | Y43: 0 | AA43: 0 | AD43: 0 | AE43: 100 | AF43: 0 | AH43: 0 | AK43: 0 | AL43: 100 | AM43: 0 | AO43: 0
A44: Disposition of Global Adjustment (2016) Applicable to Non-RPP Customers | C44: per kWh | E44: 0 | F44: 100 | G44: 0 | I44: ='Rates Summary'!C6 -> 0.0205 | J44: 0 | K44: 0 | M44: 0 | P44: 0 | Q44: 100 | R44: 0 | T44: 0 | W44: 0 | X44: 100 | Y44: 0 | AA44: 0 | AD44: 0 | AE44: 100 | AF44: 0 | AH44: 0 | AK44: 0 | AL44: 100 | AM44: 0 | AO44: 0
A45: Low Voltage Service Charge | C45: per kWh | E45: 0.0007 | F45: 100 | G45: =F45*E45 -> 0.07 | I45: ='Rates Summary'!C15 -> 0.0012 | J45: 100 | K45: =J45*I45 -> 0.12 | M45: =K45-G45 -> 0.05 | N45: =IF((G45)=0,"",(M45/G45)) -> 0.7142857143 | P45: =I45 -> 0.0012 | Q45: 100 | R45: =Q45*P45 -> 0.12 | T45: =R45-K45 -> 0 | U45: 0 | W45: =P45 -> 0.0012 | X45: 100 | Y45: =X45*W45 -> 0.12 | AA45: =Y45-R45 -> 0 | AB45: 0 | AD45: =W45 -> 0.0012 | AE45: 100 | AF45: =AE45*AD45 -> 0.12 | AH45: =AF45-Y45 -> 0 | AI45: 0 | AK45: =AD45 -> 0.0012 | AL45: 100 | AM45: =AL45*AK45 -> 0.12 | AO45: =AM45-AF45 -> 0 | AP45: 0
A46: Line Losses on Cost of Power | C46: per kWh | E46: =IF(ISBLANK(C16)=TRUE, 0, IF(C16="TOU", 0.64*$E$56+0.18*$E$57+0.18*$E$58, IF(AND(C16="non-TOU", F60>0), E60,E59))) -> 0.10766 | F46: =$E$18*(1+$E$75)-$E$18 -> 3.44 | G46: 0.3703504 | I46: =E46 -> 0.10766 | J46: =$E$18*(1+$I$75)-$E$18 -> 3.93 | K46: 0.4231038 | M46: 0.0527534 | N46: 0.1424418605 | P46: =I46 -> 0.10766 | Q46: =$E$18*(1+$I$75)-$E$18 -> 3.93 | R46: =Q46*P46 -> 0.4231038 | T46: =R46-K46 -> 0 | U46: 0 | W46: =P46 -> 0.10766 | X46: =$E$18*(1+$I$75)-$E$18 -> 3.93 | Y46: =X46*W46 -> 0.4231038 | AA46: =Y46-R46 -> 0 | AB46: 0 | AD46: =W46 -> 0.10766 | AE46: =$E$18*(1+$I$75)-$E$18 -> 3.93 | AF46: =AE46*AD46 -> 0.4231038 | AH46: =AF46-Y46 -> 0 | AI46: 0 | AK46: =AD46 -> 0.10766 | AL46: =$E$18*(1+$I$75)-$E$18 -> 3.93 | AM46: =AL46*AK46 -> 0.4231038 | AO46: =AM46-AF46 -> 0 | AP46: 0
A47: Smart Meter Entity Charge | C47: Monthly | E47: 0.79 | F47: 1 | G47: =F47*E47 -> 0.79 | I47: 0.79 | J47: 1 | K47: =J47*I47 -> 0.79 | M47: =K47-G47 -> 0 | P47: 0.79 | Q47: 1 | R47: =Q47*P47 -> 0.79 | T47: =R47-K47 -> 0 | U47: 0 | W47: 0.79 | X47: 1 | Y47: =X47*W47 -> 0.79 | AA47: =Y47-R47 -> 0 | AB47: 0 | AD47: 0 | AE47: 1 | AF47: =AE47*AD47 -> 0 | AH47: =AF47-Y47 -> -0.79 | AI47: -1 | AK47: 0 | AL47: 1 | AM47: =AL47*AK47 -> 0 | AO47: =AM47-AF47 -> 0
A48: Sub-Total B - Distribution (includes Sub-Total A) | G48: =SUM(G40:G47)+G39 -> 17.9503504 | K48: =SUM(K40:K47)+K39 -> 19.7031038 | M48: =K48-G48 -> 1.7527534 | N48: =IF((G48)=0,"",(M48/G48)) -> 0.09764452286 | R48: =SUM(R40:R47)+R39 -> 20.6931038 | T48: =R48-K48 -> 0.99 | U48: 0.0502458907 | Y48: =SUM(Y40:Y47)+Y39 -> 23.6331038 | AA48: =Y48-R48 -> 2.94 | AB48: 0.1420763182 | AF48: =SUM(AF40:AF47)+AF39 -> 25.8931038 | AH48: =AF48-Y48 -> 2.26 | AI48: 0.09562857334 | AM48: =SUM(AM40:AM47)+AM39 -> 26.5031038 | AO48: =AM48-AF48 -> 0.61 | AP48: 0.02355839627
A49: RTSR - Network | C49: per kWh | E49: 0.0067 | F49: =$E$18*(1+$E$75) -> 103.44 | G49: =F49*E49 -> 0.693048 | I49: ='Rates Summary'!C17 -> 0.0071 | J49: =$E$18*(1+$I$75) -> 103.93 | K49: =J49*I49 -> 0.737903 | M49: 0.044855 | N49: 0.06472134686 | P49: =I49 -> 0.0071 | Q49: =$E$18*(1+P75) -> 103.93 | R49: =Q49*P49 -> 0.737903 | T49: 0 | U49: 0 | W49: =P49 -> 0.0071 | X49: =$E$18*(1+W75) -> 103.93 | Y49: =X49*W49 -> 0.737903 | AA49: 0 | AB49: 0 | AD49: =W49 -> 0.0071 | AE49: =$E$18*(1+AD75) -> 103.93 | AF49: =AE49*AD49 -> 0.737903 | AH49: 0 | AI49: 0 | AK49: =AD49 -> 0.0071 | AL49: =$E$18*(1+AK75) -> 103.93 | AM49: =AL49*AK49 -> 0.737903 | AO49: 0 | AP49: 0
A50: RTSR - Line and Transformation Connection | C50: per kWh | E50: 0.0051 | F50: =F49 -> 103.44 | G50: =F50*E50 -> 0.527544 | I50: ='Rates Summary'!C18 -> 0.0056 | J50: =J49 -> 103.93 | K50: =J50*I50 -> 0.582008 | M50: 0.054464 | N50: 0.1032406776 | P50: =I50 -> 0.0056 | Q50: =Q49 -> 103.93 | R50: =Q50*P50 -> 0.582008 | T50: 0 | U50: 0 | W50: =P50 -> 0.0056 | X50: =X49 -> 103.93 | Y50: =X50*W50 -> 0.582008 | AA50: 0 | AB50: 0 | AD50: =W50 -> 0.0056 | AE50: =AE49 -> 103.93 | AF50: =AE50*AD50 -> 0.582008 | AH50: 0 | AI50: 0 | AK50: =AD50 -> 0.0056 | AL50: =AL49 -> 103.93 | AM50: =AL50*AK50 -> 0.582008 | AO50: 0 | AP50: 0
A51: Sub-Total C - Delivery (including Sub-Total B) | G51: =SUM(G48:G50) -> 19.1709424 | K51: =SUM(K48:K50) -> 21.0230148 | M51: 1.8520724 | N51: 0.0966083128 | R51: =SUM(R48:R50) -> 22.0130148 | T51: 0.99 | U51: 0.04709124783 | Y51: =SUM(Y48:Y50) -> 24.9530148 | AA51: 2.94 | AB51: 0.1335573535 | AF51: =SUM(AF48:AF50) -> 27.2130148 | AH51: 2.26 | AI51: 0.09057021839 | AM51: =SUM(AM48:AM50) -> 27.8230148 | AO51: 0.61 | AP51: 0.02241574498
A52: Wholesale Market Service Charge (WMSC) | C52: per kWh | E52: 0.0044 | F52: =F50 -> 103.44 | G52: =F52*E52 -> 0.455136 | I52: ='Rates Summary'!C19 -> 0.0044 | J52: =J50 -> 103.93 | K52: =J52*I52 -> 0.457292 | M52: 0.002156 | N52: 0.00473704563 | P52: =I52 -> 0.0044 | Q52: =Q50 -> 103.93 | R52: =Q52*P52 -> 0.457292 | T52: 0 | U52: 0 | W52: =P52 -> 0.0044 | X52: =X50 -> 103.93 | Y52: =X52*W52 -> 0.457292 | AA52: 0 | AB52: 0 | AD52: =W52 -> 0.0044 | AE52: =AE50 -> 103.93 | AF52: =AE52*AD52 -> 0.457292 | AH52: 0 | AI52: 0 | AK52: =AD52 -> 0.0044 | AL52: =AL50 -> 103.93 | AM52: =AL52*AK52 -> 0.457292 | AO52: 0 | AP52: 0
A53: Rural and Remote Rate Protection (RRRP) | C53: per kWh | E53: 0.0013 | F53: =F50 -> 103.44 | G53: 0.134472 | I53: ='Rates Summary'!C20 -> 0.0013 | J53: =J50 -> 103.93 | K53: 0.135109 | M53: 0.000637 | N53: 0.00473704563 | P53: =I53 -> 0.0013 | Q53: =Q50 -> 103.93 | R53: 0.135109 | T53: 0 | U53: 0 | W53: =P53 -> 0.0013 | X53: =X50 -> 103.93 | Y53: 0.135109 | AA53: 0 | AB53: 0 | AD53: =W53 -> 0.0013 | AE53: =AE50 -> 103.93 | AF53: 0.135109 | AH53: 0 | AI53: 0 | AK53: =AD53 -> 0.0013 | AL53: =AL50 -> 103.93 | AM53: 0.135109 | AO53: 0 | AP53: 0
A54: Standard Supply Service Charge | C54: Monthly | E54: 0.25 | F54: 1 | G54: 0.25 | I54: ='Rates Summary'!C21 -> 0.25 | J54: 1 | K54: 0.25 | M54: 0 | N54: 0 | P54: =I54 -> 0.25 | Q54: 1 | R54: 0.25 | T54: 0 | U54: 0 | W54: =P54 -> 0.25 | X54: 1 | Y54: 0.25 | AA54: 0 | AB54: 0 | AD54: =W54 -> 0.25 | AE54: 1 | AF54: 0.25 | AH54: 0 | AI54: 0 | AK54: =AD54 -> 0.25 | AL54: 1 | AM54: 0.25 | AO54: 0 | AP54: 0
A55: Debt Retirement Charge (DRC) | C55: per kWh | E55: 0.007 | F55: =E18 -> 100 | G55: 0.7 | I55: 0 | J55: =E18 -> 100 | K55: 0 | M55: -0.7 | N55: -1 | P55: 0 | Q55: =J55 -> 100 | R55: 0 | T55: 0 | W55: 0 | X55: =Q55 -> 100 | Y55: 0 | AA55: 0 | AD55: 0 | AE55: =X55 -> 100 | AF55: 0 | AH55: 0 | AK55: 0 | AL55: =AE55 -> 100 | AM55: 0 | AO55: 0
A56: TOU - Off Peak | C56: per kWh | E56: 0.083 | F56: =0.64*$E$18 -> 64 | G56: 5.312 | I56: =E56 -> 0.083 | J56: =F56 -> 64 | K56: 5.312 | M56: 0 | N56: 0 | P56: =I56 -> 0.083 | Q56: =J56 -> 64 | R56: 5.312 | T56: 0 | U56: 0 | W56: =P56 -> 0.083 | X56: =Q56 -> 64 | Y56: 5.312 | AA56: 0 | AB56: 0 | AD56: =W56 -> 0.083 | AE56: =X56 -> 64 | AF56: 5.312 | AH56: 0 | AI56: 0 | AK56: =AD56 -> 0.083 | AL56: =AE56 -> 64 | AM56: 5.312 | AO56: 0 | AP56: 0
A57: TOU - Mid Peak | C57: per kWh | E57: 0.128 | F57: =0.18*$E$18 -> 18 | G57: 2.304 | I57: =E57 -> 0.128 | J57: =F57 -> 18 | K57: 2.304 | M57: 0 | N57: 0 | P57: =I57 -> 0.128 | Q57: 18 | R57: 2.304 | T57: 0 | U57: 0 | W57: =P57 -> 0.128 | X57: 18 | Y57: 2.304 | AA57: 0 | AB57: 0 | AD57: =W57 -> 0.128 | AE57: 18 | AF57: 2.304 | AH57: 0 | AI57: 0 | AK57: =AD57 -> 0.128 | AL57: 18 | AM57: 2.304 | AO57: 0 | AP57: 0
A58: TOU - On Peak | C58: per kWh | E58: 0.175 | F58: =0.18*$E$18 -> 18 | G58: 3.15 | I58: 0.175 | J58: =F58 -> 18 | K58: 3.15 | M58: 0 | N58: 0 | P58: 0.175 | Q58: 18 | R58: 3.15 | T58: 0 | U58: 0 | W58: 0.175 | X58: 18 | Y58: 3.15 | AA58: 0 | AB58: 0 | AD58: 0.175 | AE58: 18 | AF58: 3.15 | AH58: 0 | AI58: 0 | AK58: 0.175 | AL58: 18 | AM58: 3.15 | AO58: 0 | AP58: 0
A59: Energy - RPP - Tier 1 | C59: per kWh | E59: 0.099 | F59: =IF(AND($S$1=1, E18>=600), 600, IF(AND($S$1=1, AND(E18<600, E18>=0)), E18, IF(AND($S$1=2, E18>=1000), 1000, IF(AND($S$1=2, AND(E18<1000, E18>=0)), E18)))) -> 100 | G59: =F59*E59 -> 9.9 | I59: 0.099 | J59: =F59 -> 100 | K59: =J59*I59 -> 9.9 | M59: 0 | N59: 0 | P59: 0.099 | Q59: 100 | R59: =Q59*P59 -> 9.9 | T59: 0 | U59: 0 | W59: 0.099 | X59: 100 | Y59: =X59*W59 -> 9.9 | AA59: 0 | AB59: 0 | AD59: 0.099 | AE59: 100 | AF59: =AE59*AD59 -> 9.9 | AH59: 0 | AI59: 0 | AK59: 0.099 | AL59: 100 | AM59: =AL59*AK59 -> 9.9 | AO59: 0 | AP59: 0
A60: Energy - RPP - Tier 2 | C60: per kWh | E60: 0.116 | F60: =IF(AND($S$1=1, E18>=600), E18-600, IF(AND($S$1=1, AND(E18<600, E18>=0)), 0, IF(AND($S$1=2, E18>=1000), E18-1000, IF(AND($S$1=2, AND(E18<1000, E18>=0)), 0)))) -> 0 | G60: =F60*E60 -> 0 | I60: 0.116 | J60: =F60 -> 0 | K60: =J60*I60 -> 0 | M60: 0 | P60: 0.116 | Q60: 0 | R60: =Q60*P60 -> 0 | T60: 0 | W60: 0.116 | X60: 0 | Y60: =X60*W60 -> 0 | AA60: 0 | AD60: 0.116 | AE60: 0 | AF60: =AE60*AD60 -> 0 | AH60: 0 | AK60: 0.116 | AL60: 0 | AM60: =AL60*AK60 -> 0 | AO60: 0
A62: Total Bill on TOU (before Taxes) | G62: =SUM(G52:G58,G51) -> 31.4765504 | K62: =SUM(K52:K58,K51) -> 32.6314158 | M62: =K62-G62 -> 1.1548654 | N62: =IF((G62)=0,"",(M62/G62)) -> 0.03668970663 | R62: =SUM(R52:R58,R51) -> 33.6214158 | T62: =R62-K62 -> 0.99 | U62: 0.03033886136 | Y62: =SUM(Y52:Y58,Y51) -> 36.5614158 | AA62: =Y62-R62 -> 2.94 | AB62: 0.08744426521 | AF62: =SUM(AF52:AF58,AF51) -> 38.8214158 | AH62: =AF62-Y62 -> 2.26 | AI62: 0.0618137988 | AM62: =SUM(AM52:AM58,AM51) -> 39.4314158 | AO62: =AM62-AF62 -> 0.61 | AP62: 0.01571297665
A63: HST | E63: 0.13 | G63: =G62*E63 -> 4.091951552 | I63: 0.13 | K63: =K62*I63 -> 4.242084054 | M63: 0.150132502 | N63: 0.03668970663 | P63: 0.13 | R63: =R62*P63 -> 4.370784054 | T63: =R63-K63 -> 0.1287 | U63: 0.03033886136 | W63: 0.13 | Y63: =Y62*W63 -> 4.752984054 | AA63: =Y63-R63 -> 0.3822 | AB63: 0.08744426521 | AD63: 0.13 | AF63: =AF62*AD63 -> 5.046784054 | AH63: =AF63-Y63 -> 0.2938 | AI63: 0.0618137988 | AK63: 0.13 | AM63: =AM62*AK63 -> 5.126084054 | AO63: =AM63-AF63 -> 0.0793 | AP63: 0.01571297665
A64: Total Bill (including HST) | G64: =G62+G63 -> 35.56850195 | K64: =K62+K63 -> 36.87349985 | M64: 1.304997902 | N64: 0.03668970663 | R64: =R62+R63 -> 37.99219985 | T64: 1.1187 | U64: 0.03033886136 | Y64: =Y62+Y63 -> 41.31439985 | AA64: 3.3222 | AB64: 0.08744426521 | AF64: =AF62+AF63 -> 43.86819985 | AH64: 2.5538 | AI64: 0.0618137988 | AM64: =AM62+AM63 -> 44.55749985 | AO64: 0.6893 | AP64: 0.01571297665
A65: Ontario Clean Energy Benefit 1 | G65: =ROUND(-G64*10%,2) -> -3.56 | K65: 0 | M65: 3.56 | N65: -1 | R65: 0 | T65: 0 | Y65: 0 | AA65: 0 | AF65: 0 | AH65: 0 | AM65: 0 | AO65: 0
A66: Total Bill on TOU (including OCEB) | G66: =G64+G65 -> 32.00850195 | K66: =K64+K65 -> 36.87349985 | M66: 4.864997902 | N66: 0.1519908026 | R66: =R64+R65 -> 37.99219985 | T66: 1.1187 | U66: 0.03033886136 | Y66: =Y64+Y65 -> 41.31439985 | AA66: 3.3222 | AB66: 0.08744426521 | AF66: =AF64+AF65 -> 43.86819985 | AH66: 2.5538 | AI66: 0.0618137988 | AM66: =AM64+AM65 -> 44.55749985 | AO66: 0.6893 | AP66: 0.01571297665
A68: Total Bill on RPP (before Taxes) | G68: =SUM(G59:G60,G52:G55,G51) -> 30.6105504 | K68: =SUM(K59:K60,K52:K55,K51) -> 31.7654158 | M68: =K68-G68 -> 1.1548654 | N68: =IF((G68)=0,"",(M68/G68)) -> 0.03772769143 | R68: =SUM(R59:R60,R52:R55,R51) -> 32.7554158 | T68: =R68-K68 -> 0.99 | U68: 0.03116597013 | Y68: =SUM(Y59:Y60,Y52:Y55,Y51) -> 35.6954158 | AA68: =Y68-R68 -> 2.94 | AB68: 0.08975614958 | AF68: =SUM(AF59:AF60,AF52:AF55,AF51) -> 37.9554158 | AH68: =AF68-Y68 -> 2.26 | AI68: 0.06331345214 | AM68: =SUM(AM59:AM60,AM52:AM55,AM51) -> 38.5654158 | AO68: =AM68-AF68 -> 0.61 | AP68: 0.01607148775
A69: HST | E69: 0.13 | G69: =G68*E69 -> 3.979371552 | I69: 0.13 | K69: =K68*I69 -> 4.129504054 | M69: 0.150132502 | N69: =IF((G69)=0,"",(M69/G69)) -> 0.03772769143 | P69: 0.13 | R69: =R68*P69 -> 4.258204054 | T69: =R69-K69 -> 0.1287 | U69: 0.03116597013 | W69: 0.13 | Y69: =Y68*W69 -> 4.640404054 | AA69: =Y69-R69 -> 0.3822 | AB69: 0.08975614958 | AD69: 0.13 | AF69: =AF68*AD69 -> 4.934204054 | AH69: =AF69-Y69 -> 0.2938 | AI69: 0.06331345214 | AK69: 0.13 | AM69: =AM68*AK69 -> 5.013504054 | AO69: =AM69-AF69 -> 0.0793 | AP69: 0.01607148775
A70: Total Bill (including HST) | G70: =G68+G69 -> 34.58992195 | K70: =K68+K69 -> 35.89491985 | M70: 1.304997902 | N70: 0.03772769143 | R70: =R68+R69 -> 37.01361985 | T70: 1.1187 | U70: 0.03116597013 | Y70: =Y68+Y69 -> 40.33581985 | AA70: 3.3222 | AB70: 0.08975614958 | AF70: =AF68+AF69 -> 42.88961985 | AH70: 2.5538 | AI70: 0.06331345214 | AM70: =AM68+AM69 -> 43.57891985 | AO70: 0.6893 | AP70: 0.01607148775
A71: Ontario Clean Energy Benefit 1 | G71: =ROUND(-G70*10%,2) -> -3.46 | K71: 0 | M71: 3.46 | N71: -1 | R71: 0 | T71: 0 | Y71: 0 | AA71: 0 | AF71: 0 | AH71: 0 | AM71: 0 | AO71: 0
A72: Total Bill on RPP (including OCEB) | G72: =SUM(G70:G71) -> 31.12992195 | K72: =SUM(K70:K71) -> 35.89491985 | M72: 4.764997902 | N72: 0.1530680966 | R72: =SUM(R70:R71) -> 37.01361985 | T72: 1.1187 | U72: 0.03116597013 | Y72: =SUM(Y70:Y71) -> 40.33581985 | AA72: 3.3222 | AB72: 0.08975614958 | AF72: =SUM(AF70:AF71) -> 42.88961985 | AH72: 2.5538 | AI72: 0.06331345214 | AM72: =SUM(AM70:AM71) -> 43.57891985 | AO72: 0.6893 | AP72: 0.01607148775
A75: Loss Factor (%) | E75: 0.0344 | I75: 0.0393 | P75: 0.0393 | W75: 0.0393 | AD75: 0.0393 | AK75: 0.0393
A77: Distribution Excluding Rate Riders | E77: 2015 Current Board-Approved | I77: 2016 Test Year 1 Proposed | M77: Impact 2016 TEST vs. 2015 Bridge | P77: 2017 Test Year 2 Proposed | T77: Impact 2017 TEST 2 vs. 2016 Test 1 | W77: 2018 Test Year 3 Proposed | AA77: Impact 2018 TEST 3 vs. 2017 Test 2 | AD77: 2019 Test Year 4 Proposed | AH77: Impact 2019 TEST 4 vs. 2018 Test 3 | AK77: 2020 Test Year 5 Proposed | AO77: Impact 2020 TEST 5 vs. 2019 Test 4
C78: Charge Unit | E78: Rate | F78: Volume | G78: Charge | I78: Rate | J78: Volume | K78: Charge | M78: $ Change | N78: % Change | P78: Rate | Q78: Volume | R78: Charge | T78: $ Change | U78: % Change | W78: Rate | X78: Volume | Y78: Charge | AA78: $ Change | AB78: % Change | AD78: Rate | AE78: Volume | AF78: Charge | AH78: $ Change | AI78: % Change | AK78: Rate | AL78: Volume | AM78: Charge | AO78: $ Change | AP78: % Change
E79: ($) | G79: ($) | I79: ($) | K79: ($) | P79: ($) | R79: ($) | W79: ($) | Y79: ($) | AD79: ($) | AF79: ($) | AK79: ($) | AM79: ($)
A80: Monthly Service Charge | C80: Monthly | E80: 12.56 | F80: 1 | G80: =F80*E80 -> 12.56 | I80: ='Rates Summary'!$E$28 -> 13.98 | J80: 1 | K80: =J80*I80 -> 13.98 | M80: =K80-G80 -> 1.42 | N80: =IF((G80)=0,"",(M80/G80)) -> 0.1130573248 | P80: ='Rates Summary'!$F$28 -> 18.54 | Q80: 1 | R80: =Q80*P80 -> 18.54 | T80: =R80-K80 -> 4.56 | U80: =IF((K80)=0,"",(T80/K80)) -> 0.3261802575 | W80: ='Rates Summary'!$G$28 -> 21.88 | X80: 1 | Y80: =X80*W80 -> 21.88 | AA80: =Y80-R80 -> 3.34 | AB80: =IF((R80)=0,"",(AA80/R80)) -> 0.1801510248 | AD80: ='Rates Summary'!$H$28 -> 25.35 | AE80: 1 | AF80: =AE80*AD80 -> 25.35 | AH80: =AF80-Y80 -> 3.47 | AI80: =IF((Y80)=0,"",(AH80/Y80)) -> 0.1585923218 | AK80: ='Rates Summary'!$I$28 -> 25.96 | AL80: 1 | AM80: =AL80*AK80 -> 25.96 | AO80: =AM80-AF80 -> 0.61 | AP80: =IF((AF80)=0,"",(AO80/AF80)) -> 0.02406311637
A81: Distribution Volumetric Rate | C81: per kWh | E81: 0.0154 | F81: =$E$18 -> 100 | G81: =F81*E81 -> 1.54 | I81: ='Rates Summary'!$E$40 -> 0.0139 | J81: =$E$18 -> 100 | K81: =J81*I81 -> 1.39 | M81: =K81-G81 -> -0.15 | N81: =IF((G81)=0,"",(M81/G81)) -> -0.0974025974 | P81: ='Rates Summary'!$F$40 -> 0.0082 | Q81: =$E$18 -> 100 | R81: =Q81*P81 -> 0.82 | T81: -0.57 | U81: =IF((K81)=0,"",(T81/K81)) -> -0.4100719424 | W81: ='Rates Summary'!$G$40 -> 0.0042 | X81: =$E$18 -> 100 | Y81: =X81*W81 -> 0.42 | AA81: -0.4 | AB81: =IF((R81)=0,"",(AA81/R81)) -> -0.487804878 | AD81: ='Rates Summary'!$H$40 -> 0 | AE81: =$E$18 -> 100 | AF81: =AE81*AD81 -> 0 | AH81: -0.42 | AI81: =IF((Y81)=0,"",(AH81/Y81)) -> -1 | AK81: ='Rates Summary'!$I$40 -> 0 | AL81: =$E$18 -> 100 | AM81: =AL81*AK81 -> 0 | AO81: 0 | AP81: =IF((AF81)=0,"",(AO81/AF81)) -> 
A82: "Regular" Distribution Only | G82: =SUM(G80:G81) -> 14.1 | K82: =SUM(K80:K81) -> 15.37 | M82: 1.27 | N82: 0.09007092199 | R82: =SUM(R80:R81) -> 19.36 | T82: 3.99 | U82: 0.2595966168 | Y82: =SUM(Y80:Y81) -> 22.3 | AA82: 2.94 | AB82: 0.1518595041 | AF82: =SUM(AF80:AF81) -> 25.35 | AH82: 3.05 | AI82: 0.1367713004 | AM82: =SUM(AM80:AM81) -> 25.96 | AO82: 0.61 | AP82: 0.02406311637
B84: Residential (kWh) - 100, 250, 500, 800, 1000, 1500, 2000
B85: GS<50kW (kWh) - 1000, 2000, 5000, 10000, 15000
B86: GS>50kW (kW) - 60, 100, 500, 1000
B87: Large User - range appropriate for utility
B88: Lighting Classes and USL - 150 kWh and 1 kW, range appropriate for utility.
C90: Note that cells with the highlighted color shown to the left indicate quantities that are loss adjusted.

Sheet Bill Impact Resi 250kWh
M1: File Number: | N1: =EBNUMBER -> EB-2015-0083 | S1: 1
M2: Exhibit: | N2: 8
M3: Tab: | N3: 4
M4: Schedule: | N4: 3
M5: Page:
N7: Settlement
M8: Date: | N8: 2015-10-20
A10: Appendix 2-W
A11: Bill Impacts
A14: Customer Class: | C14: Residential | P14: =C14 -> Residential | AK14: =P14 -> Residential
A16: TOU / non-TOU: | C16: TOU
C18: Consumption | E18: 250 | F18: kWh
E20: 2015 Current Board-Approved | I20: 2016 Test Year 1 Proposed | M20: Impact 2016 TEST vs. 2015 Bridge | P20: 2017 Test Year 2 Proposed | T20: Impact 2017 TEST 2 vs. 2016 Test 1 | W20: 2018 Test Year 3 Proposed | AA20: Impact 2018 TEST 3 vs. 2017 Test 2 | AD20: 2019 Test Year 4 Proposed | AH20: Impact 2019 TEST 4 vs. 2018 Test 3 | AK20: 2020 Test Year 5 Proposed | AO20: Impact 2020 TEST 5 vs. 2019 Test 4
C21: Charge Unit | E21: Rate | F21: Volume | G21: Charge | I21: Rate | J21: Volume | K21: Charge | M21: $ Change | N21: % Change | P21: Rate | Q21: Volume | R21: Charge | T21: $ Change | U21: % Change | W21: Rate | X21: Volume | Y21: Charge | AA21: $ Change | AB21: % Change | AD21: Rate | AE21: Volume | AF21: Charge | AH21: $ Change | AI21: % Change | AK21: Rate | AL21: Volume | AM21: Charge | AO21: $ Change | AP21: % Change
E22: ($) | G22: ($) | I22: ($) | K22: ($) | P22: ($) | R22: ($) | W22: ($) | Y22: ($) | AD22: ($) | AF22: ($) | AK22: ($) | AM22: ($)
A23: Monthly Service Charge | C23: Monthly | E23: 12.56 | F23: 1 | G23: =F23*E23 -> 12.56 | I23: ='Rates Summary'!$E$28 -> 13.98 | J23: 1 | K23: =J23*I23 -> 13.98 | M23: =K23-G23 -> 1.42 | N23: =IF((G23)=0,"",(M23/G23)) -> 0.1130573248 | P23: ='Rates Summary'!$F$28 -> 18.54 | Q23: 1 | R23: =Q23*P23 -> 18.54 | T23: =R23-K23 -> 4.56 | U23: =IF((K23)=0,"",(T23/K23)) -> 0.3261802575 | W23: ='Rates Summary'!$G$28 -> 21.88 | X23: 1 | Y23: =X23*W23 -> 21.88 | AA23: =Y23-R23 -> 3.34 | AB23: =IF((R23)=0,"",(AA23/R23)) -> 0.1801510248 | AD23: ='Rates Summary'!$H$28 -> 25.35 | AE23: 1 | AF23: =AE23*AD23 -> 25.35 | AH23: =AF23-Y23 -> 3.47 | AI23: =IF((Y23)=0,"",(AH23/Y23)) -> 0.1585923218 | AK23: ='Rates Summary'!$I$28 -> 25.96 | AL23: 1 | AM23: =AL23*AK23 -> 25.96 | AO23: =AM23-AF23 -> 0.61 | AP23: =IF((AF23)=0,"",(AO23/AF23)) -> 0.02406311637
A24: Smart Meter (SMIRR) Rate Rider | C24: Monthly | E24: 2.63 | F24: 1 | G24: =F24*E24 -> 2.63 | I24: 0 | J24: 1 | K24: =J24*I24 -> 0 | M24: =K24-G24 -> -2.63 | N24: =IF((G24)=0,"",(M24/G24)) -> -1 | P24: 0 | Q24: 1 | R24: =Q24*P24 -> 0 | T24: 0 | U24: =IF((K24)=0,"",(T24/K24)) ->  | W24: 0 | X24: 1 | Y24: =X24*W24 -> 0 | AA24: 0 | AB24: =IF((R24)=0,"",(AA24/R24)) ->  | AD24: 0 | AE24: 1 | AF24: =AE24*AD24 -> 0 | AH24: 0 | AI24: =IF((Y24)=0,"",(AH24/Y24)) ->  | AK24: 0 | AL24: 1 | AM24: =AL24*AK24 -> 0 | AO24: 0 | AP24: =IF((AF24)=0,"",(AO24/AF24)) -> 
A25: Rate Rider Smart Meters Capital (2016) | C25: Monthly | E25: 0 | F25: 1 | G25: 0 | I25: ='Rates Summary'!C10 -> 0.25 | J25: 1 | K25: =J25*I25 -> 0.25 | M25: =K25-G25 -> 0.25 | P25: 0 | Q25: 1 | R25: =Q25*P25 -> 0 | T25: -0.25 | U25: -1 | W25: 0 | X25: 1 | Y25: =X25*W25 -> 0 | AA25: 0 | AD25: 0 | AE25: 1 | AF25: =AE25*AD25 -> 0 | AH25: 0 | AK25: 0 | AL25: 1 | AM25: =AL25*AK25 -> 0 | AO25: 0
A26: Rate Rider Recovery of Stranded Meters | C26: Monthly | E26: 0 | F26: 1 | G26: 0 | I26: ='Rates Summary'!$C11 -> 3.69 | J26: 1 | K26: 3.69 | M26: 3.69 | P26: 0 | Q26: 1 | R26: 0 | T26: -3.69 | U26: -1 | W26: 0 | X26: 1 | Y26: 0 | AA26: 0 | AD26: 0 | AE26: 1 | AF26: 0 | AH26: 0 | AK26: 0 | AL26: 1 | AM26: 0 | AO26: 0
F27: 1 | G27: 0 | J27: 1 | K27: 0 | M27: 0 | N27: =IF((G27)=0,"",(M27/G27)) ->  | Q27: 1 | R27: 0 | T27: 0 | X27: 1 | Y27: 0 | AA27: 0 | AE27: 1 | AF27: 0 | AH27: 0 | AL27: 1 | AM27: 0 | AO27: 0
F28: 1 | G28: 0 | J28: 1 | K28: 0 | M28: 0 | Q28: 1 | R28: 0 | T28: 0 | X28: 1 | Y28: 0 | AA28: 0 | AE28: 1 | AF28: 0 | AH28: 0 | AL28: 1 | AM28: 0 | AO28: 0
A29: Distribution Volumetric Rate | C29: per kWh | E29: 0.0154 | F29: =$E$18 -> 250 | G29: =F29*E29 -> 3.85 | I29: ='Rates Summary'!$E$40 -> 0.0139 | J29: =$E$18 -> 250 | K29: 3.475 | M29: -0.375 | N29: -0.0974025974 | P29: ='Rates Summary'!$F$40 -> 0.0082 | Q29: =$E$18 -> 250 | R29: 2.05 | T29: -1.425 | U29: -0.4100719424 | W29: ='Rates Summary'!$G$40 -> 0.0042 | X29: =$E$18 -> 250 | Y29: 1.05 | AA29: -1 | AB29: -0.487804878 | AD29: ='Rates Summary'!$H$40 -> 0 | AE29: =$E$18 -> 250 | AF29: 0 | AH29: -1.05 | AI29: -1 | AK29: ='Rates Summary'!$I$40 -> 0 | AL29: =$E$18 -> 250 | AM29: 0 | AO29: 0
A30: Rate Rider Tax Change (2015) | C30: per kWh | E30: -0.0001 | F30: =$E$18 -> 250 | G30: =F30*E30 -> -0.025 | I30: 0 | J30: =$E$18 -> 250 | K30: 0 | M30: 0.025 | N30: =IF((G30)=0,"",(M30/G30)) -> -1 | P30: 0 | Q30: =$E$18 -> 250 | R30: 0 | T30: 0 | W30: 0 | X30: =$E$18 -> 250 | Y30: 0 | AA30: 0 | AD30: 0 | AE30: =$E$18 -> 250 | AF30: 0 | AH30: 0 | AK30: 0 | AL30: =$E$18 -> 250 | AM30: 0 | AO30: 0
A31: LRAM VA (2016) | C31: per kWh | E31: 0 | F31: =$E$18 -> 250 | G31: 0 | I31: ='Rates Summary'!C7 -> 0.0003 | J31: 250 | K31: 0.075 | M31: 0.075 | P31: 0 | Q31: 250 | R31: 0 | T31: -0.075 | U31: =IF((K31)=0,"",(T31/K31)) -> -1 | W31: 0 | X31: 250 | Y31: 0 | AA31: 0 | AD31: 0 | AE31: 250 | AF31: 0 | AH31: 0 | AK31: 0 | AL31: 250 | AM31: 0 | AO31: 0
A32: Rate Rider Incremental Capital 2012 True-Up (2016) | C32: per kWh | E32: 0 | F32: =$E$18 -> 250 | G32: 0 | I32: ='Rates Summary'!C9 -> 0.0004 | J32: 250 | K32: 0.1 | M32: 0.1 | P32: 0 | Q32: 250 | R32: 0 | T32: -0.1 | U32: =IF((K32)=0,"",(T32/K32)) -> -1 | W32: 0 | X32: 250 | Y32: 0 | AA32: 0 | AD32: 0 | AE32: 250 | AF32: 0 | AH32: 0 | AK32: 0 | AL32: 250 | AM32: 0 | AO32: 0
C33: per kWh | E33: 0 | F33: =$E$19 -> 0 | G33: 0 | J33: =$E$19 -> 0 | K33: 0 | M33: 0 | N33: =IF((G33)=0,"",(M33/G33)) ->  | Q33: =$E$19 -> 0 | R33: 0 | T33: 0 | X33: =$E$19 -> 0 | Y33: 0 | AA33: 0 | AE33: =$E$19 -> 0 | AF33: 0 | AH33: 0 | AL33: =$E$19 -> 0 | AM33: 0 | AO33: 0
E34: 0 | F34: 250 | G34: 0 | J34: 250 | K34: 0 | M34: 0 | Q34: 250 | R34: 0 | T34: 0 | X34: 250 | Y34: 0 | AA34: 0 | AE34: 250 | AF34: 0 | AH34: 0 | AL34: 250 | AM34: 0 | AO34: 0
F35: 250 | G35: 0 | J35: 250 | K35: 0 | M35: 0 | Q35: 250 | R35: 0 | T35: 0 | X35: 250 | Y35: 0 | AA35: 0 | AE35: 250 | AF35: 0 | AH35: 0 | AL35: 250 | AM35: 0 | AO35: 0
F36: 250 | G36: 0 | J36: 250 | K36: 0 | M36: 0 | Q36: 250 | R36: 0 | T36: 0 | X36: 250 | Y36: 0 | AA36: 0 | AE36: 250 | AF36: 0 | AH36: 0 | AL36: 250 | AM36: 0 | AO36: 0
F37: 250 | G37: 0 | J37: 250 | K37: 0 | M37: 0 | Q37: 250 | R37: 0 | T37: 0 | X37: 250 | Y37: 0 | AA37: 0 | AE37: 250 | AF37: 0 | AH37: 0 | AL37: 250 | AM37: 0 | AO37: 0
F38: 250 | G38: 0 | J38: 250 | K38: 0 | M38: 0 | Q38: 250 | R38: 0 | T38: 0 | X38: 250 | Y38: 0 | AA38: 0 | AE38: 250 | AF38: 0 | AH38: 0 | AL38: 250 | AM38: 0 | AO38: 0
A39: Sub-Total A (excluding pass through) | G39: =SUM(G23:G38) -> 19.015 | K39: =SUM(K23:K38) -> 21.57 | M39: =K39-G39 -> 2.555 | N39: 0.1343676045 | R39: =SUM(R23:R38) -> 20.59 | T39: -0.98 | U39: -0.04543347242 | Y39: =SUM(Y23:Y38) -> 22.93 | AA39: 2.34 | AB39: 0.1136474017 | AF39: =SUM(AF23:AF38) -> 25.35 | AH39: 2.42 | AI39: 0.1055385957 | AM39: =SUM(AM23:AM38) -> 25.96 | AO39: 0.61 | AP39: 0.02406311637
A40: Deferral/Variance Account Disposition Rate Rider (2016) | C40: per kWh | E40: 0 | F40: =$E$18 -> 250 | G40: =F40*E40 -> 0 | I40: ='Rates Summary'!C5 -> 0.0007 | J40: =$E$18 -> 250 | K40: =J40*I40 -> 0.175 | M40: =K40-G40 -> 0.175 | N40: =IF((G40)=0,"",(M40/G40)) ->  | P40: 0 | Q40: =$E$18 -> 250 | R40: =Q40*P40 -> 0 | T40: -0.175 | U40: -1 | W40: 0 | X40: =$E$18 -> 250 | Y40: =X40*W40 -> 0 | AA40: 0 | AD40: 0 | AE40: =$E$18 -> 250 | AF40: =AE40*AD40 -> 0 | AH40: 0 | AK40: 0 | AL40: =$E$18 -> 250 | AM40: =AL40*AK40 -> 0 | AO40: 0
F41: =$E$18 -> 250 | G41: =F41*E41 -> 0 | I41: =E41 -> 0 | J41: =$E$18 -> 250 | K41: =J41*I41 -> 0 | M41: =K41-G41 -> 0 | N41: =IF((G41)=0,"",(M41/G41)) ->  | Q41: =$E$18 -> 250 | R41: =Q41*P41 -> 0 | T41: 0 | X41: =$E$18 -> 250 | Y41: =X41*W41 -> 0 | AA41: 0 | AE41: =$E$18 -> 250 | AF41: =AE41*AD41 -> 0 | AH41: 0 | AL41: =$E$18 -> 250 | AM41: =AL41*AK41 -> 0 | AO41: 0
A42: Rate Rider CGAAP Account 1576 (2016) | C42: per kWh | E42: 0 | F42: 250 | G42: 0 | I42: ='Rates Summary'!$C$8 -> -0.0108 | J42: 250 | K42: -2.7 | M42: -2.7 | P42: 0 | Q42: 250 | R42: 0 | T42: 2.7 | U42: -1 | W42: =P42 -> 0 | X42: 250 | Y42: 0 | AA42: 0 | AD42: =W42 -> 0 | AE42: 250 | AF42: 0 | AH42: 0 | AK42: =AD42 -> 0 | AL42: 250 | AM42: 0 | AO42: 0
A43: Disposition of Global Adjustment (2015) Applicable to Non-RPP Customers | C43: per kWh | E43: 0.0156 | F43: 0 | G43: 0 | I43: 0 | J43: 250 | K43: 0 | M43: 0 | P43: 0 | Q43: 250 | R43: 0 | T43: 0 | W43: 0 | X43: 250 | Y43: 0 | AA43: 0 | AD43: 0 | AE43: 250 | AF43: 0 | AH43: 0 | AK43: 0 | AL43: 250 | AM43: 0 | AO43: 0
A44: Disposition of Global Adjustment (2016) Applicable to Non-RPP Customers | C44: per kWh | E44: 0 | F44: 250 | G44: 0 | I44: ='Rates Summary'!C6 -> 0.0205 | J44: 0 | K44: 0 | M44: 0 | P44: 0 | Q44: 250 | R44: 0 | T44: 0 | W44: 0 | X44: 250 | Y44: 0 | AA44: 0 | AD44: 0 | AE44: 250 | AF44: 0 | AH44: 0 | AK44: 0 | AL44: 250 | AM44: 0 | AO44: 0
A45: Low Voltage Service Charge | C45: per kWh | E45: 0.0007 | F45: 250 | G45: =F45*E45 -> 0.175 | I45: ='Rates Summary'!C15 -> 0.0012 | J45: 250 | K45: =J45*I45 -> 0.3 | M45: =K45-G45 -> 0.125 | N45: =IF((G45)=0,"",(M45/G45)) -> 0.7142857143 | P45: =I45 -> 0.0012 | Q45: 250 | R45: =Q45*P45 -> 0.3 | T45: =R45-K45 -> 0 | U45: 0 | W45: =P45 -> 0.0012 | X45: 250 | Y45: =X45*W45 -> 0.3 | AA45: =Y45-R45 -> 0 | AB45: 0 | AD45: =W45 -> 0.0012 | AE45: 250 | AF45: =AE45*AD45 -> 0.3 | AH45: =AF45-Y45 -> 0 | AI45: 0 | AK45: =AD45 -> 0.0012 | AL45: 250 | AM45: =AL45*AK45 -> 0.3 | AO45: =AM45-AF45 -> 0 | AP45: 0
A46: Line Losses on Cost of Power | C46: per kWh | E46: =IF(ISBLANK(C16)=TRUE, 0, IF(C16="TOU", 0.64*$E$56+0.18*$E$57+0.18*$E$58, IF(AND(C16="non-TOU", F60>0), E60,E59))) -> 0.10766 | F46: =$E$18*(1+$E$75)-$E$18 -> 8.6 | G46: 0.925876 | I46: =E46 -> 0.10766 | J46: =$E$18*(1+$I$75)-$E$18 -> 9.825 | K46: 1.0577595 | M46: 0.1318835 | N46: 0.1424418605 | P46: =I46 -> 0.10766 | Q46: =$E$18*(1+$I$75)-$E$18 -> 9.825 | R46: =Q46*P46 -> 1.0577595 | T46: =R46-K46 -> 0 | U46: 0 | W46: =P46 -> 0.10766 | X46: =$E$18*(1+$I$75)-$E$18 -> 9.825 | Y46: =X46*W46 -> 1.0577595 | AA46: =Y46-R46 -> 0 | AB46: 0 | AD46: =W46 -> 0.10766 | AE46: =$E$18*(1+$I$75)-$E$18 -> 9.825 | AF46: =AE46*AD46 -> 1.0577595 | AH46: =AF46-Y46 -> 0 | AI46: 0 | AK46: =AD46 -> 0.10766 | AL46: =$E$18*(1+$I$75)-$E$18 -> 9.825 | AM46: =AL46*AK46 -> 1.0577595 | AO46: =AM46-AF46 -> 0 | AP46: 0
A47: Smart Meter Entity Charge | C47: Monthly | E47: 0.79 | F47: 1 | G47: =F47*E47 -> 0.79 | I47: 0.79 | J47: 1 | K47: =J47*I47 -> 0.79 | M47: =K47-G47 -> 0 | P47: 0.79 | Q47: 1 | R47: =Q47*P47 -> 0.79 | T47: =R47-K47 -> 0 | U47: 0 | W47: 0.79 | X47: 1 | Y47: =X47*W47 -> 0.79 | AA47: =Y47-R47 -> 0 | AB47: 0 | AD47: 0 | AE47: 1 | AF47: =AE47*AD47 -> 0 | AH47: =AF47-Y47 -> -0.79 | AI47: -1 | AK47: 0 | AL47: 1 | AM47: =AL47*AK47 -> 0 | AO47: =AM47-AF47 -> 0
A48: Sub-Total B - Distribution (includes Sub-Total A) | G48: =SUM(G40:G47)+G39 -> 20.905876 | K48: =SUM(K40:K47)+K39 -> 21.1927595 | M48: =K48-G48 -> 0.2868835 | N48: =IF((G48)=0,"",(M48/G48)) -> 0.01372262516 | R48: =SUM(R40:R47)+R39 -> 22.7377595 | T48: =R48-K48 -> 1.545 | U48: 0.07290225702 | Y48: =SUM(Y40:Y47)+Y39 -> 25.0777595 | AA48: =Y48-R48 -> 2.34 | AB48: 0.1029125143 | AF48: =SUM(AF40:AF47)+AF39 -> 26.7077595 | AH48: =AF48-Y48 -> 1.63 | AI48: 0.06499783204 | AM48: =SUM(AM40:AM47)+AM39 -> 27.3177595 | AO48: =AM48-AF48 -> 0.61 | AP48: 0.02283980429
A49: RTSR - Network | C49: per kWh | E49: 0.0067 | F49: =$E$18*(1+$E$75) -> 258.6 | G49: =F49*E49 -> 1.73262 | I49: ='Rates Summary'!C17 -> 0.0071 | J49: =$E$18*(1+$I$75) -> 259.825 | K49: =J49*I49 -> 1.8447575 | M49: 0.1121375 | N49: 0.06472134686 | P49: =I49 -> 0.0071 | Q49: =$E$18*(1+P75) -> 259.825 | R49: =Q49*P49 -> 1.8447575 | T49: 0 | U49: 0 | W49: =P49 -> 0.0071 | X49: =$E$18*(1+W75) -> 259.825 | Y49: =X49*W49 -> 1.8447575 | AA49: 0 | AB49: 0 | AD49: =W49 -> 0.0071 | AE49: =$E$18*(1+AD75) -> 259.825 | AF49: =AE49*AD49 -> 1.8447575 | AH49: 0 | AI49: 0 | AK49: =AD49 -> 0.0071 | AL49: =$E$18*(1+AK75) -> 259.825 | AM49: =AL49*AK49 -> 1.8447575 | AO49: 0 | AP49: 0
A50: RTSR - Line and Transformation Connection | C50: per kWh | E50: 0.0051 | F50: =F49 -> 258.6 | G50: =F50*E50 -> 1.31886 | I50: ='Rates Summary'!C18 -> 0.0056 | J50: =J49 -> 259.825 | K50: =J50*I50 -> 1.45502 | M50: 0.13616 | N50: 0.1032406776 | P50: =I50 -> 0.0056 | Q50: =Q49 -> 259.825 | R50: =Q50*P50 -> 1.45502 | T50: 0 | U50: 0 | W50: =P50 -> 0.0056 | X50: =X49 -> 259.825 | Y50: =X50*W50 -> 1.45502 | AA50: 0 | AB50: 0 | AD50: =W50 -> 0.0056 | AE50: =AE49 -> 259.825 | AF50: =AE50*AD50 -> 1.45502 | AH50: 0 | AI50: 0 | AK50: =AD50 -> 0.0056 | AL50: =AL49 -> 259.825 | AM50: =AL50*AK50 -> 1.45502 | AO50: 0 | AP50: 0
A51: Sub-Total C - Delivery (including Sub-Total B) | G51: =SUM(G48:G50) -> 23.957356 | K51: =SUM(K48:K50) -> 24.492537 | M51: 0.535181 | N51: 0.02233890084 | R51: =SUM(R48:R50) -> 26.037537 | T51: 1.545 | U51: 0.06308043956 | Y51: =SUM(Y48:Y50) -> 28.377537 | AA51: 2.34 | AB51: 0.08987025155 | AF51: =SUM(AF48:AF50) -> 30.007537 | AH51: 1.63 | AI51: 0.05743979825 | AM51: =SUM(AM48:AM50) -> 30.617537 | AO51: 0.61 | AP51: 0.02032822621
A52: Wholesale Market Service Charge (WMSC) | C52: per kWh | E52: 0.0044 | F52: =F50 -> 258.6 | G52: =F52*E52 -> 1.13784 | I52: ='Rates Summary'!C19 -> 0.0044 | J52: =J50 -> 259.825 | K52: =J52*I52 -> 1.14323 | M52: 0.00539 | N52: 0.00473704563 | P52: =I52 -> 0.0044 | Q52: =Q50 -> 259.825 | R52: =Q52*P52 -> 1.14323 | T52: 0 | U52: 0 | W52: =P52 -> 0.0044 | X52: =X50 -> 259.825 | Y52: =X52*W52 -> 1.14323 | AA52: 0 | AB52: 0 | AD52: =W52 -> 0.0044 | AE52: =AE50 -> 259.825 | AF52: =AE52*AD52 -> 1.14323 | AH52: 0 | AI52: 0 | AK52: =AD52 -> 0.0044 | AL52: =AL50 -> 259.825 | AM52: =AL52*AK52 -> 1.14323 | AO52: 0 | AP52: 0
A53: Rural and Remote Rate Protection (RRRP) | C53: per kWh | E53: 0.0013 | F53: =F50 -> 258.6 | G53: 0.33618 | I53: ='Rates Summary'!C20 -> 0.0013 | J53: =J50 -> 259.825 | K53: 0.3377725 | M53: 0.0015925 | N53: 0.00473704563 | P53: =I53 -> 0.0013 | Q53: =Q50 -> 259.825 | R53: 0.3377725 | T53: 0 | U53: 0 | W53: =P53 -> 0.0013 | X53: =X50 -> 259.825 | Y53: 0.3377725 | AA53: 0 | AB53: 0 | AD53: =W53 -> 0.0013 | AE53: =AE50 -> 259.825 | AF53: 0.3377725 | AH53: 0 | AI53: 0 | AK53: =AD53 -> 0.0013 | AL53: =AL50 -> 259.825 | AM53: 0.3377725 | AO53: 0 | AP53: 0
A54: Standard Supply Service Charge | C54: Monthly | E54: 0.25 | F54: 1 | G54: 0.25 | I54: ='Rates Summary'!C21 -> 0.25 | J54: 1 | K54: 0.25 | M54: 0 | N54: 0 | P54: =I54 -> 0.25 | Q54: 1 | R54: 0.25 | T54: 0 | U54: 0 | W54: =P54 -> 0.25 | X54: 1 | Y54: 0.25 | AA54: 0 | AB54: 0 | AD54: =W54 -> 0.25 | AE54: 1 | AF54: 0.25 | AH54: 0 | AI54: 0 | AK54: =AD54 -> 0.25 | AL54: 1 | AM54: 0.25 | AO54: 0 | AP54: 0
A55: Debt Retirement Charge (DRC) | C55: per kWh | E55: 0.007 | F55: =E18 -> 250 | G55: 1.75 | I55: 0 | J55: =E18 -> 250 | K55: 0 | M55: -1.75 | N55: -1 | P55: 0 | Q55: =J55 -> 250 | R55: 0 | T55: 0 | W55: 0 | X55: =Q55 -> 250 | Y55: 0 | AA55: 0 | AD55: 0 | AE55: =X55 -> 250 | AF55: 0 | AH55: 0 | AK55: 0 | AL55: =AE55 -> 250 | AM55: 0 | AO55: 0
A56: TOU - Off Peak | C56: per kWh | E56: 0.083 | F56: =0.64*$E$18 -> 160 | G56: 13.28 | I56: =E56 -> 0.083 | J56: =F56 -> 160 | K56: 13.28 | M56: 0 | N56: 0 | P56: =I56 -> 0.083 | Q56: =J56 -> 160 | R56: 13.28 | T56: 0 | U56: 0 | W56: =P56 -> 0.083 | X56: =Q56 -> 160 | Y56: 13.28 | AA56: 0 | AB56: 0 | AD56: =W56 -> 0.083 | AE56: =X56 -> 160 | AF56: 13.28 | AH56: 0 | AI56: 0 | AK56: =AD56 -> 0.083 | AL56: =AE56 -> 160 | AM56: 13.28 | AO56: 0 | AP56: 0
A57: TOU - Mid Peak | C57: per kWh | E57: 0.128 | F57: =0.18*$E$18 -> 45 | G57: 5.76 | I57: =E57 -> 0.128 | J57: =F57 -> 45 | K57: 5.76 | M57: 0 | N57: 0 | P57: =I57 -> 0.128 | Q57: 45 | R57: 5.76 | T57: 0 | U57: 0 | W57: =P57 -> 0.128 | X57: 45 | Y57: 5.76 | AA57: 0 | AB57: 0 | AD57: =W57 -> 0.128 | AE57: 45 | AF57: 5.76 | AH57: 0 | AI57: 0 | AK57: =AD57 -> 0.128 | AL57: 45 | AM57: 5.76 | AO57: 0 | AP57: 0
A58: TOU - On Peak | C58: per kWh | E58: 0.175 | F58: =0.18*$E$18 -> 45 | G58: 7.875 | I58: 0.175 | J58: =F58 -> 45 | K58: 7.875 | M58: 0 | N58: 0 | P58: 0.175 | Q58: 45 | R58: 7.875 | T58: 0 | U58: 0 | W58: 0.175 | X58: 45 | Y58: 7.875 | AA58: 0 | AB58: 0 | AD58: 0.175 | AE58: 45 | AF58: 7.875 | AH58: 0 | AI58: 0 | AK58: 0.175 | AL58: 45 | AM58: 7.875 | AO58: 0 | AP58: 0
A59: Energy - RPP - Tier 1 | C59: per kWh | E59: 0.099 | F59: =IF(AND($S$1=1, E18>=600), 600, IF(AND($S$1=1, AND(E18<600, E18>=0)), E18, IF(AND($S$1=2, E18>=1000), 1000, IF(AND($S$1=2, AND(E18<1000, E18>=0)), E18)))) -> 250 | G59: =F59*E59 -> 24.75 | I59: 0.099 | J59: =F59 -> 250 | K59: =J59*I59 -> 24.75 | M59: 0 | N59: 0 | P59: 0.099 | Q59: 250 | R59: =Q59*P59 -> 24.75 | T59: 0 | U59: 0 | W59: 0.099 | X59: 250 | Y59: =X59*W59 -> 24.75 | AA59: 0 | AB59: 0 | AD59: 0.099 | AE59: 250 | AF59: =AE59*AD59 -> 24.75 | AH59: 0 | AI59: 0 | AK59: 0.099 | AL59: 250 | AM59: =AL59*AK59 -> 24.75 | AO59: 0 | AP59: 0
A60: Energy - RPP - Tier 2 | C60: per kWh | E60: 0.116 | F60: =IF(AND($S$1=1, E18>=600), E18-600, IF(AND($S$1=1, AND(E18<600, E18>=0)), 0, IF(AND($S$1=2, E18>=1000), E18-1000, IF(AND($S$1=2, AND(E18<1000, E18>=0)), 0)))) -> 0 | G60: =F60*E60 -> 0 | I60: 0.116 | J60: =F60 -> 0 | K60: =J60*I60 -> 0 | M60: 0 | P60: 0.116 | Q60: 0 | R60: =Q60*P60 -> 0 | T60: 0 | W60: 0.116 | X60: 0 | Y60: =X60*W60 -> 0 | AA60: 0 | AD60: 0.116 | AE60: 0 | AF60: =AE60*AD60 -> 0 | AH60: 0 | AK60: 0.116 | AL60: 0 | AM60: =AL60*AK60 -> 0 | AO60: 0
A62: Total Bill on TOU (before Taxes) | G62: =SUM(G52:G58,G51) -> 54.346376 | K62: =SUM(K52:K58,K51) -> 53.1385395 | M62: =K62-G62 -> -1.2078365 | N62: =IF((G62)=0,"",(M62/G62)) -> -0.02222478459 | R62: =SUM(R52:R58,R51) -> 54.6835395 | T62: =R62-K62 -> 1.545 | U62: 0.02907494287 | Y62: =SUM(Y52:Y58,Y51) -> 57.0235395 | AA62: =Y62-R62 -> 2.34 | AB62: 0.04279167043 | AF62: =SUM(AF52:AF58,AF51) -> 58.6535395 | AH62: =AF62-Y62 -> 1.63 | AI62: 0.0285846865 | AM62: =SUM(AM52:AM58,AM51) -> 59.2635395 | AO62: =AM62-AF62 -> 0.61 | AP62: 0.01040005437
A63: HST | E63: 0.13 | G63: =G62*E63 -> 7.06502888 | I63: 0.13 | K63: =K62*I63 -> 6.908010135 | M63: -0.157018745 | N63: -0.02222478459 | P63: 0.13 | R63: =R62*P63 -> 7.108860135 | T63: =R63-K63 -> 0.20085 | U63: 0.02907494287 | W63: 0.13 | Y63: =Y62*W63 -> 7.413060135 | AA63: =Y63-R63 -> 0.3042 | AB63: 0.04279167043 | AD63: 0.13 | AF63: =AF62*AD63 -> 7.624960135 | AH63: =AF63-Y63 -> 0.2119 | AI63: 0.0285846865 | AK63: 0.13 | AM63: =AM62*AK63 -> 7.704260135 | AO63: =AM63-AF63 -> 0.0793 | AP63: 0.01040005437
A64: Total Bill (including HST) | G64: =G62+G63 -> 61.41140488 | K64: =K62+K63 -> 60.04654964 | M64: -1.364855245 | N64: -0.02222478459 | R64: =R62+R63 -> 61.79239964 | T64: 1.74585 | U64: 0.02907494287 | Y64: =Y62+Y63 -> 64.43659963 | AA64: 2.6442 | AB64: 0.04279167043 | AF64: =AF62+AF63 -> 66.27849964 | AH64: 1.8419 | AI64: 0.0285846865 | AM64: =AM62+AM63 -> 66.96779964 | AO64: 0.6893 | AP64: 0.01040005437
A65: Ontario Clean Energy Benefit 1 | G65: =ROUND(-G64*10%,2) -> -6.14 | K65: 0 | M65: 6.14 | N65: -1 | R65: 0 | T65: 0 | Y65: 0 | AA65: 0 | AF65: 0 | AH65: 0 | AM65: 0 | AO65: 0
A66: Total Bill on TOU (including OCEB) | G66: =G64+G65 -> 55.27140488 | K66: =K64+K65 -> 60.04654964 | M66: 4.775144755 | N66: 0.08639448853 | R66: =R64+R65 -> 61.79239964 | T66: 1.74585 | U66: 0.02907494287 | Y66: =Y64+Y65 -> 64.43659963 | AA66: 2.6442 | AB66: 0.04279167043 | AF66: =AF64+AF65 -> 66.27849964 | AH66: 1.8419 | AI66: 0.0285846865 | AM66: =AM64+AM65 -> 66.96779964 | AO66: 0.6893 | AP66: 0.01040005437
A68: Total Bill on RPP (before Taxes) | G68: =SUM(G59:G60,G52:G55,G51) -> 52.181376 | K68: =SUM(K59:K60,K52:K55,K51) -> 50.9735395 | M68: =K68-G68 -> -1.2078365 | N68: =IF((G68)=0,"",(M68/G68)) -> -0.02314688865 | R68: =SUM(R59:R60,R52:R55,R51) -> 52.5185395 | T68: =R68-K68 -> 1.545 | U68: 0.0303098434 | Y68: =SUM(Y59:Y60,Y52:Y55,Y51) -> 54.8585395 | AA68: =Y68-R68 -> 2.34 | AB68: 0.04455569447 | AF68: =SUM(AF59:AF60,AF52:AF55,AF51) -> 56.4885395 | AH68: =AF68-Y68 -> 1.63 | AI68: 0.02971278519 | AM68: =SUM(AM59:AM60,AM52:AM55,AM51) -> 57.0985395 | AO68: =AM68-AF68 -> 0.61 | AP68: 0.01079865058
A69: HST | E69: 0.13 | G69: =G68*E69 -> 6.78357888 | I69: 0.13 | K69: =K68*I69 -> 6.626560135 | M69: -0.157018745 | N69: =IF((G69)=0,"",(M69/G69)) -> -0.02314688865 | P69: 0.13 | R69: =R68*P69 -> 6.827410135 | T69: =R69-K69 -> 0.20085 | U69: 0.0303098434 | W69: 0.13 | Y69: =Y68*W69 -> 7.131610135 | AA69: =Y69-R69 -> 0.3042 | AB69: 0.04455569447 | AD69: 0.13 | AF69: =AF68*AD69 -> 7.343510135 | AH69: =AF69-Y69 -> 0.2119 | AI69: 0.02971278519 | AK69: 0.13 | AM69: =AM68*AK69 -> 7.422810135 | AO69: =AM69-AF69 -> 0.0793 | AP69: 0.01079865058
A70: Total Bill (including HST) | G70: =G68+G69 -> 58.96495488 | K70: =K68+K69 -> 57.60009963 | M70: -1.364855245 | N70: -0.02314688865 | R70: =R68+R69 -> 59.34594964 | T70: 1.74585 | U70: 0.0303098434 | Y70: =Y68+Y69 -> 61.99014964 | AA70: 2.6442 | AB70: 0.04455569447 | AF70: =AF68+AF69 -> 63.83204964 | AH70: 1.8419 | AI70: 0.02971278519 | AM70: =AM68+AM69 -> 64.52134964 | AO70: 0.6893 | AP70: 0.01079865058
A71: Ontario Clean Energy Benefit 1 | G71: =ROUND(-G70*10%,2) -> -5.9 | K71: 0 | M71: 5.9 | N71: -1 | R71: 0 | T71: 0 | Y71: 0 | AA71: 0 | AF71: 0 | AH71: 0 | AM71: 0 | AO71: 0
A72: Total Bill on RPP (including OCEB) | G72: =SUM(G70:G71) -> 53.06495488 | K72: =SUM(K70:K71) -> 57.60009963 | M72: 4.535144755 | N72: 0.08546402735 | R72: =SUM(R70:R71) -> 59.34594964 | T72: 1.74585 | U72: 0.0303098434 | Y72: =SUM(Y70:Y71) -> 61.99014964 | AA72: 2.6442 | AB72: 0.04455569447 | AF72: =SUM(AF70:AF71) -> 63.83204964 | AH72: 1.8419 | AI72: 0.02971278519 | AM72: =SUM(AM70:AM71) -> 64.52134964 | AO72: 0.6893 | AP72: 0.01079865058
A75: Loss Factor (%) | E75: 0.0344 | I75: 0.0393 | P75: 0.0393 | W75: 0.0393 | AD75: 0.0393 | AK75: 0.0393
A77: Distribution Excluding Rate Riders | E77: 2015 Current Board-Approved | I77: 2016 Test Year 1 Proposed | M77: Impact 2016 TEST vs. 2015 Bridge | P77: 2017 Test Year 2 Proposed | T77: Impact 2017 TEST 2 vs. 2016 Test 1 | W77: 2018 Test Year 3 Proposed | AA77: Impact 2018 TEST 3 vs. 2017 Test 2 | AD77: 2019 Test Year 4 Proposed | AH77: Impact 2019 TEST 4 vs. 2018 Test 3 | AK77: 2020 Test Year 5 Proposed | AO77: Impact 2020 TEST 5 vs. 2019 Test 4
C78: Charge Unit | E78: Rate | F78: Volume | G78: Charge | I78: Rate | J78: Volume | K78: Charge | M78: $ Change | N78: % Change | P78: Rate | Q78: Volume | R78: Charge | T78: $ Change | U78: % Change | W78: Rate | X78: Volume | Y78: Charge | AA78: $ Change | AB78: % Change | AD78: Rate | AE78: Volume | AF78: Charge | AH78: $ Change | AI78: % Change | AK78: Rate | AL78: Volume | AM78: Charge | AO78: $ Change | AP78: % Change
E79: ($) | G79: ($) | I79: ($) | K79: ($) | P79: ($) | R79: ($) | W79: ($) | Y79: ($) | AD79: ($) | AF79: ($) | AK79: ($) | AM79: ($)
A80: Monthly Service Charge | C80: Monthly | E80: 12.56 | F80: 1 | G80: =F80*E80 -> 12.56 | I80: ='Rates Summary'!$E$28 -> 13.98 | J80: 1 | K80: =J80*I80 -> 13.98 | M80: =K80-G80 -> 1.42 | N80: =IF((G80)=0,"",(M80/G80)) -> 0.1130573248 | P80: ='Rates Summary'!$F$28 -> 18.54 | Q80: 1 | R80: =Q80*P80 -> 18.54 | T80: =R80-K80 -> 4.56 | U80: =IF((K80)=0,"",(T80/K80)) -> 0.3261802575 | W80: ='Rates Summary'!$G$28 -> 21.88 | X80: 1 | Y80: =X80*W80 -> 21.88 | AA80: =Y80-R80 -> 3.34 | AB80: =IF((R80)=0,"",(AA80/R80)) -> 0.1801510248 | AD80: ='Rates Summary'!$H$28 -> 25.35 | AE80: 1 | AF80: =AE80*AD80 -> 25.35 | AH80: =AF80-Y80 -> 3.47 | AI80: =IF((Y80)=0,"",(AH80/Y80)) -> 0.1585923218 | AK80: ='Rates Summary'!$I$28 -> 25.96 | AL80: 1 | AM80: =AL80*AK80 -> 25.96 | AO80: =AM80-AF80 -> 0.61 | AP80: =IF((AF80)=0,"",(AO80/AF80)) -> 0.02406311637
A81: Distribution Volumetric Rate | C81: per kWh | E81: 0.0154 | F81: =$E$18 -> 250 | G81: =F81*E81 -> 3.85 | I81: ='Rates Summary'!$E$40 -> 0.0139 | J81: =$E$18 -> 250 | K81: =J81*I81 -> 3.475 | M81: =K81-G81 -> -0.375 | N81: =IF((G81)=0,"",(M81/G81)) -> -0.0974025974 | P81: ='Rates Summary'!$F$40 -> 0.0082 | Q81: =$E$18 -> 250 | R81: =Q81*P81 -> 2.05 | T81: -1.425 | U81: =IF((K81)=0,"",(T81/K81)) -> -0.4100719424 | W81: ='Rates Summary'!$G$40 -> 0.0042 | X81: =$E$18 -> 250 | Y81: =X81*W81 -> 1.05 | AA81: -1 | AB81: =IF((R81)=0,"",(AA81/R81)) -> -0.487804878 | AD81: ='Rates Summary'!$H$40 -> 0 | AE81: =$E$18 -> 250 | AF81: =AE81*AD81 -> 0 | AH81: -1.05 | AI81: =IF((Y81)=0,"",(AH81/Y81)) -> -1 | AK81: ='Rates Summary'!$I$40 -> 0 | AL81: =$E$18 -> 250 | AM81: =AL81*AK81 -> 0 | AO81: 0 | AP81: =IF((AF81)=0,"",(AO81/AF81)) -> 
A82: "Regular" Distribution Only | G82: =SUM(G80:G81) -> 16.41 | K82: =SUM(K80:K81) -> 17.455 | M82: 1.045 | N82: 0.06368068251 | R82: =SUM(R80:R81) -> 20.59 | T82: 3.135 | U82: 0.1796046978 | Y82: =SUM(Y80:Y81) -> 22.93 | AA82: 2.34 | AB82: 0.1136474017 | AF82: =SUM(AF80:AF81) -> 25.35 | AH82: 2.42 | AI82: 0.1055385957 | AM82: =SUM(AM80:AM81) -> 25.96 | AO82: 0.61 | AP82: 0.02406311637
B84: Residential (kWh) - 100, 250, 500, 800, 1000, 1500, 2000
B85: GS<50kW (kWh) - 1000, 2000, 5000, 10000, 15000
B86: GS>50kW (kW) - 60, 100, 500, 1000
B87: Large User - range appropriate for utility
B88: Lighting Classes and USL - 150 kWh and 1 kW, range appropriate for utility.
C90: Note that cells with the highlighted color shown to the left indicate quantities that are loss adjusted.

Sheet Bill Impact Resi 500kWh
M1: File Number: | N1: =EBNUMBER -> EB-2015-0083 | S1: 1
M2: Exhibit: | N2: 8
M3: Tab: | N3: 4
M4: Schedule: | N4: 3
M5: Page:
N7: Settlement
M8: Date: | N8: 2015-10-20
A10: Appendix 2-W
A11: Bill Impacts
A14: Customer Class: | C14: Residential | P14: =C14 -> Residential | AK14: =P14 -> Residential
A16: TOU / non-TOU: | C16: TOU
C18: Consumption | E18: 500 | F18: kWh
E20: 2015 Current Board-Approved | I20: 2016 Test Year 1 Proposed | M20: Impact 2016 TEST vs. 2015 Bridge | P20: 2017 Test Year 2 Proposed | T20: Impact 2017 TEST 2 vs. 2016 Test 1 | W20: 2018 Test Year 3 Proposed | AA20: Impact 2018 TEST 3 vs. 2017 Test 2 | AD20: 2019 Test Year 4 Proposed | AH20: Impact 2019 TEST 4 vs. 2018 Test 3 | AK20: 2020 Test Year 5 Proposed | AO20: Impact 2020 TEST 5 vs. 2019 Test 4
C21: Charge Unit | E21: Rate | F21: Volume | G21: Charge | I21: Rate | J21: Volume | K21: Charge | M21: $ Change | N21: % Change | P21: Rate | Q21: Volume | R21: Charge | T21: $ Change | U21: % Change | W21: Rate | X21: Volume | Y21: Charge | AA21: $ Change | AB21: % Change | AD21: Rate | AE21: Volume | AF21: Charge | AH21: $ Change | AI21: % Change | AK21: Rate | AL21: Volume | AM21: Charge | AO21: $ Change | AP21: % Change
E22: ($) | G22: ($) | I22: ($) | K22: ($) | P22: ($) | R22: ($) | W22: ($) | Y22: ($) | AD22: ($) | AF22: ($) | AK22: ($) | AM22: ($)
A23: Monthly Service Charge | C23: Monthly | E23: 12.56 | F23: 1 | G23: =F23*E23 -> 12.56 | I23: ='Rates Summary'!$E$28 -> 13.98 | J23: 1 | K23: =J23*I23 -> 13.98 | M23: =K23-G23 -> 1.42 | N23: =IF((G23)=0,"",(M23/G23)) -> 0.1130573248 | P23: ='Rates Summary'!$F$28 -> 18.54 | Q23: 1 | R23: =Q23*P23 -> 18.54 | T23: =R23-K23 -> 4.56 | U23: =IF((K23)=0,"",(T23/K23)) -> 0.3261802575 | W23: ='Rates Summary'!$G$28 -> 21.88 | X23: 1 | Y23: =X23*W23 -> 21.88 | AA23: =Y23-R23 -> 3.34 | AB23: =IF((R23)=0,"",(AA23/R23)) -> 0.1801510248 | AD23: ='Rates Summary'!$H$28 -> 25.35 | AE23: 1 | AF23: =AE23*AD23 -> 25.35 | AH23: =AF23-Y23 -> 3.47 | AI23: =IF((Y23)=0,"",(AH23/Y23)) -> 0.1585923218 | AK23: ='Rates Summary'!$I$28 -> 25.96 | AL23: 1 | AM23: =AL23*AK23 -> 25.96 | AO23: =AM23-AF23 -> 0.61 | AP23: =IF((AF23)=0,"",(AO23/AF23)) -> 0.02406311637
A24: Smart Meter (SMIRR) Rate Rider | C24: Monthly | E24: 2.63 | F24: 1 | G24: =F24*E24 -> 2.63 | I24: 0 | J24: 1 | K24: =J24*I24 -> 0 | M24: =K24-G24 -> -2.63 | N24: =IF((G24)=0,"",(M24/G24)) -> -1 | P24: 0 | Q24: 1 | R24: =Q24*P24 -> 0 | T24: 0 | U24: =IF((K24)=0,"",(T24/K24)) ->  | W24: 0 | X24: 1 | Y24: =X24*W24 -> 0 | AA24: 0 | AB24: =IF((R24)=0,"",(AA24/R24)) ->  | AD24: 0 | AE24: 1 | AF24: =AE24*AD24 -> 0 | AH24: 0 | AI24: =IF((Y24)=0,"",(AH24/Y24)) ->  | AK24: 0 | AL24: 1 | AM24: =AL24*AK24 -> 0 | AO24: 0 | AP24: =IF((AF24)=0,"",(AO24/AF24)) -> 
A25: Rate Rider Smart Meters Capital (2016) | C25: Monthly | E25: 0 | F25: 1 | G25: 0 | I25: ='Rates Summary'!C10 -> 0.25 | J25: 1 | K25: =J25*I25 -> 0.25 | M25: =K25-G25 -> 0.25 | P25: 0 | Q25: 1 | R25: =Q25*P25 -> 0 | T25: -0.25 | U25: -1 | W25: 0 | X25: 1 | Y25: =X25*W25 -> 0 | AA25: 0 | AD25: 0 | AE25: 1 | AF25: =AE25*AD25 -> 0 | AH25: 0 | AK25: 0 | AL25: 1 | AM25: =AL25*AK25 -> 0 | AO25: 0
A26: Rate Rider Recovery of Stranded Meters | C26: Monthly | E26: 0 | F26: 1 | G26: 0 | I26: ='Rates Summary'!$C11 -> 3.69 | J26: 1 | K26: 3.69 | M26: 3.69 | P26: 0 | Q26: 1 | R26: 0 | T26: -3.69 | U26: -1 | W26: 0 | X26: 1 | Y26: 0 | AA26: 0 | AD26: 0 | AE26: 1 | AF26: 0 | AH26: 0 | AK26: 0 | AL26: 1 | AM26: 0 | AO26: 0
F27: 1 | G27: 0 | J27: 1 | K27: 0 | M27: 0 | N27: =IF((G27)=0,"",(M27/G27)) ->  | Q27: 1 | R27: 0 | T27: 0 | X27: 1 | Y27: 0 | AA27: 0 | AE27: 1 | AF27: 0 | AH27: 0 | AL27: 1 | AM27: 0 | AO27: 0
F28: 1 | G28: 0 | J28: 1 | K28: 0 | M28: 0 | Q28: 1 | R28: 0 | T28: 0 | X28: 1 | Y28: 0 | AA28: 0 | AE28: 1 | AF28: 0 | AH28: 0 | AL28: 1 | AM28: 0 | AO28: 0
A29: Distribution Volumetric Rate | C29: per kWh | E29: 0.0154 | F29: =$E$18 -> 500 | G29: =F29*E29 -> 7.7 | I29: ='Rates Summary'!$E$40 -> 0.0139 | J29: =$E$18 -> 500 | K29: 6.95 | M29: -0.75 | N29: -0.0974025974 | P29: ='Rates Summary'!$F$40 -> 0.0082 | Q29: =$E$18 -> 500 | R29: 4.1 | T29: -2.85 | U29: -0.4100719424 | W29: ='Rates Summary'!$G$40 -> 0.0042 | X29: =$E$18 -> 500 | Y29: 2.1 | AA29: -2 | AB29: -0.487804878 | AD29: ='Rates Summary'!$H$40 -> 0 | AE29: =$E$18 -> 500 | AF29: 0 | AH29: -2.1 | AI29: -1 | AK29: ='Rates Summary'!$I$40 -> 0 | AL29: =$E$18 -> 500 | AM29: 0 | AO29: 0
A30: Rate Rider Tax Change (2015) | C30: per kWh | E30: -0.0001 | F30: =$E$18 -> 500 | G30: =F30*E30 -> -0.05 | I30: 0 | J30: =$E$18 -> 500 | K30: 0 | M30: 0.05 | N30: =IF((G30)=0,"",(M30/G30)) -> -1 | P30: 0 | Q30: =$E$18 -> 500 | R30: 0 | T30: 0 | W30: 0 | X30: =$E$18 -> 500 | Y30: 0 | AA30: 0 | AD30: 0 | AE30: =$E$18 -> 500 | AF30: 0 | AH30: 0 | AK30: 0 | AL30: =$E$18 -> 500 | AM30: 0 | AO30: 0
A31: LRAM VA (2016) | C31: per kWh | E31: 0 | F31: =$E$18 -> 500 | G31: 0 | I31: ='Rates Summary'!C7 -> 0.0003 | J31: 500 | K31: 0.15 | M31: 0.15 | P31: 0 | Q31: 500 | R31: 0 | T31: -0.15 | U31: =IF((K31)=0,"",(T31/K31)) -> -1 | W31: 0 | X31: 500 | Y31: 0 | AA31: 0 | AD31: 0 | AE31: 500 | AF31: 0 | AH31: 0 | AK31: 0 | AL31: 500 | AM31: 0 | AO31: 0
A32: Rate Rider Incremental Capital 2012 True-Up (2016) | C32: per kWh | E32: 0 | F32: =$E$18 -> 500 | G32: 0 | I32: ='Rates Summary'!C9 -> 0.0004 | J32: 500 | K32: 0.2 | M32: 0.2 | P32: 0 | Q32: 500 | R32: 0 | T32: -0.2 | U32: =IF((K32)=0,"",(T32/K32)) -> -1 | W32: 0 | X32: 500 | Y32: 0 | AA32: 0 | AD32: 0 | AE32: 500 | AF32: 0 | AH32: 0 | AK32: 0 | AL32: 500 | AM32: 0 | AO32: 0
C33: per kWh | E33: 0 | F33: =$E$19 -> 0 | G33: 0 | J33: =$E$19 -> 0 | K33: 0 | M33: 0 | N33: =IF((G33)=0,"",(M33/G33)) ->  | Q33: =$E$19 -> 0 | R33: 0 | T33: 0 | X33: =$E$19 -> 0 | Y33: 0 | AA33: 0 | AE33: =$E$19 -> 0 | AF33: 0 | AH33: 0 | AL33: =$E$19 -> 0 | AM33: 0 | AO33: 0
E34: 0 | F34: 500 | G34: 0 | J34: 500 | K34: 0 | M34: 0 | Q34: 500 | R34: 0 | T34: 0 | X34: 500 | Y34: 0 | AA34: 0 | AE34: 500 | AF34: 0 | AH34: 0 | AL34: 500 | AM34: 0 | AO34: 0
F35: 500 | G35: 0 | J35: 500 | K35: 0 | M35: 0 | Q35: 500 | R35: 0 | T35: 0 | X35: 500 | Y35: 0 | AA35: 0 | AE35: 500 | AF35: 0 | AH35: 0 | AL35: 500 | AM35: 0 | AO35: 0
F36: 500 | G36: 0 | J36: 500 | K36: 0 | M36: 0 | Q36: 500 | R36: 0 | T36: 0 | X36: 500 | Y36: 0 | AA36: 0 | AE36: 500 | AF36: 0 | AH36: 0 | AL36: 500 | AM36: 0 | AO36: 0
F37: 500 | G37: 0 | J37: 500 | K37: 0 | M37: 0 | Q37: 500 | R37: 0 | T37: 0 | X37: 500 | Y37: 0 | AA37: 0 | AE37: 500 | AF37: 0 | AH37: 0 | AL37: 500 | AM37: 0 | AO37: 0
F38: 500 | G38: 0 | J38: 500 | K38: 0 | M38: 0 | Q38: 500 | R38: 0 | T38: 0 | X38: 500 | Y38: 0 | AA38: 0 | AE38: 500 | AF38: 0 | AH38: 0 | AL38: 500 | AM38: 0 | AO38: 0
A39: Sub-Total A (excluding pass through) | G39: =SUM(G23:G38) -> 22.84 | K39: =SUM(K23:K38) -> 25.22 | M39: =K39-G39 -> 2.38 | N39: 0.1042031524 | R39: =SUM(R23:R38) -> 22.64 | T39: -2.58 | U39: -0.1022997621 | Y39: =SUM(Y23:Y38) -> 23.98 | AA39: 1.34 | AB39: 0.05918727915 | AF39: =SUM(AF23:AF38) -> 25.35 | AH39: 1.37 | AI39: 0.05713094245 | AM39: =SUM(AM23:AM38) -> 25.96 | AO39: 0.61 | AP39: 0.02406311637
A40: Deferral/Variance Account Disposition Rate Rider (2016) | C40: per kWh | E40: 0 | F40: =$E$18 -> 500 | G40: =F40*E40 -> 0 | I40: ='Rates Summary'!C5 -> 0.0007 | J40: =$E$18 -> 500 | K40: =J40*I40 -> 0.35 | M40: =K40-G40 -> 0.35 | N40: =IF((G40)=0,"",(M40/G40)) ->  | P40: 0 | Q40: =$E$18 -> 500 | R40: =Q40*P40 -> 0 | T40: -0.35 | U40: -1 | W40: 0 | X40: =$E$18 -> 500 | Y40: =X40*W40 -> 0 | AA40: 0 | AD40: 0 | AE40: =$E$18 -> 500 | AF40: =AE40*AD40 -> 0 | AH40: 0 | AK40: 0 | AL40: =$E$18 -> 500 | AM40: =AL40*AK40 -> 0 | AO40: 0
F41: =$E$18 -> 500 | G41: =F41*E41 -> 0 | I41: =E41 -> 0 | J41: =$E$18 -> 500 | K41: =J41*I41 -> 0 | M41: =K41-G41 -> 0 | N41: =IF((G41)=0,"",(M41/G41)) ->  | Q41: =$E$18 -> 500 | R41: =Q41*P41 -> 0 | T41: 0 | X41: =$E$18 -> 500 | Y41: =X41*W41 -> 0 | AA41: 0 | AE41: =$E$18 -> 500 | AF41: =AE41*AD41 -> 0 | AH41: 0 | AL41: =$E$18 -> 500 | AM41: =AL41*AK41 -> 0 | AO41: 0
A42: Rate Rider CGAAP Account 1576 (2016) | C42: per kWh | E42: 0 | F42: 500 | G42: 0 | I42: ='Rates Summary'!$C$8 -> -0.0108 | J42: 500 | K42: -5.4 | M42: -5.4 | P42: 0 | Q42: 500 | R42: 0 | T42: 5.4 | U42: -1 | W42: =P42 -> 0 | X42: 500 | Y42: 0 | AA42: 0 | AD42: =W42 -> 0 | AE42: 500 | AF42: 0 | AH42: 0 | AK42: =AD42 -> 0 | AL42: 500 | AM42: 0 | AO42: 0
A43: Disposition of Global Adjustment (2015) Applicable to Non-RPP Customers | C43: per kWh | E43: 0.0156 | F43: 0 | G43: 0 | I43: 0 | J43: 500 | K43: 0 | M43: 0 | P43: 0 | Q43: 500 | R43: 0 | T43: 0 | W43: 0 | X43: 500 | Y43: 0 | AA43: 0 | AD43: 0 | AE43: 500 | AF43: 0 | AH43: 0 | AK43: 0 | AL43: 500 | AM43: 0 | AO43: 0
A44: Disposition of Global Adjustment (2016) Applicable to Non-RPP Customers | C44: per kWh | E44: 0 | F44: 500 | G44: 0 | I44: ='Rates Summary'!C6 -> 0.0205 | J44: 0 | K44: 0 | M44: 0 | P44: 0 | Q44: 500 | R44: 0 | T44: 0 | W44: 0 | X44: 500 | Y44: 0 | AA44: 0 | AD44: 0 | AE44: 500 | AF44: 0 | AH44: 0 | AK44: 0 | AL44: 500 | AM44: 0 | AO44: 0
A45: Low Voltage Service Charge | C45: per kWh | E45: 0.0007 | F45: 500 | G45: =F45*E45 -> 0.35 | I45: ='Rates Summary'!C15 -> 0.0012 | J45: 500 | K45: =J45*I45 -> 0.6 | M45: =K45-G45 -> 0.25 | N45: =IF((G45)=0,"",(M45/G45)) -> 0.7142857143 | P45: =I45 -> 0.0012 | Q45: 500 | R45: =Q45*P45 -> 0.6 | T45: =R45-K45 -> 0 | U45: 0 | W45: =P45 -> 0.0012 | X45: 500 | Y45: =X45*W45 -> 0.6 | AA45: =Y45-R45 -> 0 | AB45: 0 | AD45: =W45 -> 0.0012 | AE45: 500 | AF45: =AE45*AD45 -> 0.6 | AH45: =AF45-Y45 -> 0 | AI45: 0 | AK45: =AD45 -> 0.0012 | AL45: 500 | AM45: =AL45*AK45 -> 0.6 | AO45: =AM45-AF45 -> 0 | AP45: 0
A46: Line Losses on Cost of Power | C46: per kWh | E46: =IF(ISBLANK(C16)=TRUE, 0, IF(C16="TOU", 0.64*$E$56+0.18*$E$57+0.18*$E$58, IF(AND(C16="non-TOU", F60>0), E60,E59))) -> 0.10766 | F46: =$E$18*(1+$E$75)-$E$18 -> 17.2 | G46: 1.851752 | I46: =E46 -> 0.10766 | J46: =$E$18*(1+$I$75)-$E$18 -> 19.65 | K46: 2.115519 | M46: 0.263767 | N46: 0.1424418605 | P46: =I46 -> 0.10766 | Q46: =$E$18*(1+$I$75)-$E$18 -> 19.65 | R46: =Q46*P46 -> 2.115519 | T46: =R46-K46 -> 0 | U46: 0 | W46: =P46 -> 0.10766 | X46: =$E$18*(1+$I$75)-$E$18 -> 19.65 | Y46: =X46*W46 -> 2.115519 | AA46: =Y46-R46 -> 0 | AB46: 0 | AD46: =W46 -> 0.10766 | AE46: =$E$18*(1+$I$75)-$E$18 -> 19.65 | AF46: =AE46*AD46 -> 2.115519 | AH46: =AF46-Y46 -> 0 | AI46: 0 | AK46: =AD46 -> 0.10766 | AL46: =$E$18*(1+$I$75)-$E$18 -> 19.65 | AM46: =AL46*AK46 -> 2.115519 | AO46: =AM46-AF46 -> 0 | AP46: 0
A47: Smart Meter Entity Charge | C47: Monthly | E47: 0.79 | F47: 1 | G47: =F47*E47 -> 0.79 | I47: 0.79 | J47: 1 | K47: =J47*I47 -> 0.79 | M47: =K47-G47 -> 0 | P47: 0.79 | Q47: 1 | R47: =Q47*P47 -> 0.79 | T47: =R47-K47 -> 0 | U47: 0 | W47: 0.79 | X47: 1 | Y47: =X47*W47 -> 0.79 | AA47: =Y47-R47 -> 0 | AB47: 0 | AD47: 0 | AE47: 1 | AF47: =AE47*AD47 -> 0 | AH47: =AF47-Y47 -> -0.79 | AI47: -1 | AK47: 0 | AL47: 1 | AM47: =AL47*AK47 -> 0 | AO47: =AM47-AF47 -> 0
A48: Sub-Total B - Distribution (includes Sub-Total A) | G48: =SUM(G40:G47)+G39 -> 25.831752 | K48: =SUM(K40:K47)+K39 -> 23.675519 | M48: =K48-G48 -> -2.156233 | N48: =IF((G48)=0,"",(M48/G48)) -> -0.08347219345 | R48: =SUM(R40:R47)+R39 -> 26.145519 | T48: =R48-K48 -> 2.47 | U48: 0.1043271744 | Y48: =SUM(Y40:Y47)+Y39 -> 27.485519 | AA48: =Y48-R48 -> 1.34 | AB48: 0.05125161218 | AF48: =SUM(AF40:AF47)+AF39 -> 28.065519 | AH48: =AF48-Y48 -> 0.58 | AI48: 0.02110202103 | AM48: =SUM(AM40:AM47)+AM39 -> 28.675519 | AO48: =AM48-AF48 -> 0.61 | AP48: 0.0217348555
A49: RTSR - Network | C49: per kWh | E49: 0.0067 | F49: =$E$18*(1+$E$75) -> 517.2 | G49: =F49*E49 -> 3.46524 | I49: ='Rates Summary'!C17 -> 0.0071 | J49: =$E$18*(1+$I$75) -> 519.65 | K49: =J49*I49 -> 3.689515 | M49: 0.224275 | N49: 0.06472134686 | P49: =I49 -> 0.0071 | Q49: =$E$18*(1+P75) -> 519.65 | R49: =Q49*P49 -> 3.689515 | T49: 0 | U49: 0 | W49: =P49 -> 0.0071 | X49: =$E$18*(1+W75) -> 519.65 | Y49: =X49*W49 -> 3.689515 | AA49: 0 | AB49: 0 | AD49: =W49 -> 0.0071 | AE49: =$E$18*(1+AD75) -> 519.65 | AF49: =AE49*AD49 -> 3.689515 | AH49: 0 | AI49: 0 | AK49: =AD49 -> 0.0071 | AL49: =$E$18*(1+AK75) -> 519.65 | AM49: =AL49*AK49 -> 3.689515 | AO49: 0 | AP49: 0
A50: RTSR - Line and Transformation Connection | C50: per kWh | E50: 0.0051 | F50: =F49 -> 517.2 | G50: =F50*E50 -> 2.63772 | I50: ='Rates Summary'!C18 -> 0.0056 | J50: =J49 -> 519.65 | K50: =J50*I50 -> 2.91004 | M50: 0.27232 | N50: 0.1032406776 | P50: =I50 -> 0.0056 | Q50: =Q49 -> 519.65 | R50: =Q50*P50 -> 2.91004 | T50: 0 | U50: 0 | W50: =P50 -> 0.0056 | X50: =X49 -> 519.65 | Y50: =X50*W50 -> 2.91004 | AA50: 0 | AB50: 0 | AD50: =W50 -> 0.0056 | AE50: =AE49 -> 519.65 | AF50: =AE50*AD50 -> 2.91004 | AH50: 0 | AI50: 0 | AK50: =AD50 -> 0.0056 | AL50: =AL49 -> 519.65 | AM50: =AL50*AK50 -> 2.91004 | AO50: 0 | AP50: 0
A51: Sub-Total C - Delivery (including Sub-Total B) | G51: =SUM(G48:G50) -> 31.934712 | K51: =SUM(K48:K50) -> 30.275074 | M51: -1.659638 | N51: -0.05196971872 | R51: =SUM(R48:R50) -> 32.745074 | T51: 2.47 | U51: 0.08158526714 | Y51: =SUM(Y48:Y50) -> 34.085074 | AA51: 1.34 | AB51: 0.04092218573 | AF51: =SUM(AF48:AF50) -> 34.665074 | AH51: 0.58 | AI51: 0.01701624588 | AM51: =SUM(AM48:AM50) -> 35.275074 | AO51: 0.61 | AP51: 0.01759696229
A52: Wholesale Market Service Charge (WMSC) | C52: per kWh | E52: 0.0044 | F52: =F50 -> 517.2 | G52: =F52*E52 -> 2.27568 | I52: ='Rates Summary'!C19 -> 0.0044 | J52: =J50 -> 519.65 | K52: =J52*I52 -> 2.28646 | M52: 0.01078 | N52: 0.00473704563 | P52: =I52 -> 0.0044 | Q52: =Q50 -> 519.65 | R52: =Q52*P52 -> 2.28646 | T52: 0 | U52: 0 | W52: =P52 -> 0.0044 | X52: =X50 -> 519.65 | Y52: =X52*W52 -> 2.28646 | AA52: 0 | AB52: 0 | AD52: =W52 -> 0.0044 | AE52: =AE50 -> 519.65 | AF52: =AE52*AD52 -> 2.28646 | AH52: 0 | AI52: 0 | AK52: =AD52 -> 0.0044 | AL52: =AL50 -> 519.65 | AM52: =AL52*AK52 -> 2.28646 | AO52: 0 | AP52: 0
A53: Rural and Remote Rate Protection (RRRP) | C53: per kWh | E53: 0.0013 | F53: =F50 -> 517.2 | G53: 0.67236 | I53: ='Rates Summary'!C20 -> 0.0013 | J53: =J50 -> 519.65 | K53: 0.675545 | M53: 0.003185 | N53: 0.00473704563 | P53: =I53 -> 0.0013 | Q53: =Q50 -> 519.65 | R53: 0.675545 | T53: 0 | U53: 0 | W53: =P53 -> 0.0013 | X53: =X50 -> 519.65 | Y53: 0.675545 | AA53: 0 | AB53: 0 | AD53: =W53 -> 0.0013 | AE53: =AE50 -> 519.65 | AF53: 0.675545 | AH53: 0 | AI53: 0 | AK53: =AD53 -> 0.0013 | AL53: =AL50 -> 519.65 | AM53: 0.675545 | AO53: 0 | AP53: 0
A54: Standard Supply Service Charge | C54: Monthly | E54: 0.25 | F54: 1 | G54: 0.25 | I54: ='Rates Summary'!C21 -> 0.25 | J54: 1 | K54: 0.25 | M54: 0 | N54: 0 | P54: =I54 -> 0.25 | Q54: 1 | R54: 0.25 | T54: 0 | U54: 0 | W54: =P54 -> 0.25 | X54: 1 | Y54: 0.25 | AA54: 0 | AB54: 0 | AD54: =W54 -> 0.25 | AE54: 1 | AF54: 0.25 | AH54: 0 | AI54: 0 | AK54: =AD54 -> 0.25 | AL54: 1 | AM54: 0.25 | AO54: 0 | AP54: 0
A55: Debt Retirement Charge (DRC) | C55: per kWh | E55: 0.007 | F55: =E18 -> 500 | G55: 3.5 | I55: 0 | J55: =E18 -> 500 | K55: 0 | M55: -3.5 | N55: -1 | P55: 0 | Q55: =J55 -> 500 | R55: 0 | T55: 0 | W55: 0 | X55: =Q55 -> 500 | Y55: 0 | AA55: 0 | AD55: 0 | AE55: =X55 -> 500 | AF55: 0 | AH55: 0 | AK55: 0 | AL55: =AE55 -> 500 | AM55: 0 | AO55: 0
A56: TOU - Off Peak | C56: per kWh | E56: 0.083 | F56: =0.64*$E$18 -> 320 | G56: 26.56 | I56: =E56 -> 0.083 | J56: =F56 -> 320 | K56: 26.56 | M56: 0 | N56: 0 | P56: =I56 -> 0.083 | Q56: =J56 -> 320 | R56: 26.56 | T56: 0 | U56: 0 | W56: =P56 -> 0.083 | X56: =Q56 -> 320 | Y56: 26.56 | AA56: 0 | AB56: 0 | AD56: =W56 -> 0.083 | AE56: =X56 -> 320 | AF56: 26.56 | AH56: 0 | AI56: 0 | AK56: =AD56 -> 0.083 | AL56: =AE56 -> 320 | AM56: 26.56 | AO56: 0 | AP56: 0
A57: TOU - Mid Peak | C57: per kWh | E57: 0.128 | F57: =0.18*$E$18 -> 90 | G57: 11.52 | I57: =E57 -> 0.128 | J57: =F57 -> 90 | K57: 11.52 | M57: 0 | N57: 0 | P57: =I57 -> 0.128 | Q57: 90 | R57: 11.52 | T57: 0 | U57: 0 | W57: =P57 -> 0.128 | X57: 90 | Y57: 11.52 | AA57: 0 | AB57: 0 | AD57: =W57 -> 0.128 | AE57: 90 | AF57: 11.52 | AH57: 0 | AI57: 0 | AK57: =AD57 -> 0.128 | AL57: 90 | AM57: 11.52 | AO57: 0 | AP57: 0
A58: TOU - On Peak | C58: per kWh | E58: 0.175 | F58: =0.18*$E$18 -> 90 | G58: 15.75 | I58: 0.175 | J58: =F58 -> 90 | K58: 15.75 | M58: 0 | N58: 0 | P58: 0.175 | Q58: 90 | R58: 15.75 | T58: 0 | U58: 0 | W58: 0.175 | X58: 90 | Y58: 15.75 | AA58: 0 | AB58: 0 | AD58: 0.175 | AE58: 90 | AF58: 15.75 | AH58: 0 | AI58: 0 | AK58: 0.175 | AL58: 90 | AM58: 15.75 | AO58: 0 | AP58: 0
A59: Energy - RPP - Tier 1 | C59: per kWh | E59: 0.099 | F59: =IF(AND($S$1=1, E18>=600), 600, IF(AND($S$1=1, AND(E18<600, E18>=0)), E18, IF(AND($S$1=2, E18>=1000), 1000, IF(AND($S$1=2, AND(E18<1000, E18>=0)), E18)))) -> 500 | G59: =F59*E59 -> 49.5 | I59: 0.099 | J59: =F59 -> 500 | K59: =J59*I59 -> 49.5 | M59: 0 | N59: 0 | P59: 0.099 | Q59: 500 | R59: =Q59*P59 -> 49.5 | T59: 0 | U59: 0 | W59: 0.099 | X59: 500 | Y59: =X59*W59 -> 49.5 | AA59: 0 | AB59: 0 | AD59: 0.099 | AE59: 500 | AF59: =AE59*AD59 -> 49.5 | AH59: 0 | AI59: 0 | AK59: 0.099 | AL59: 500 | AM59: =AL59*AK59 -> 49.5 | AO59: 0 | AP59: 0
A60: Energy - RPP - Tier 2 | C60: per kWh | E60: 0.116 | F60: =IF(AND($S$1=1, E18>=600), E18-600, IF(AND($S$1=1, AND(E18<600, E18>=0)), 0, IF(AND($S$1=2, E18>=1000), E18-1000, IF(AND($S$1=2, AND(E18<1000, E18>=0)), 0)))) -> 0 | G60: =F60*E60 -> 0 | I60: 0.116 | J60: =F60 -> 0 | K60: =J60*I60 -> 0 | M60: 0 | P60: 0.116 | Q60: 0 | R60: =Q60*P60 -> 0 | T60: 0 | W60: 0.116 | X60: 0 | Y60: =X60*W60 -> 0 | AA60: 0 | AD60: 0.116 | AE60: 0 | AF60: =AE60*AD60 -> 0 | AH60: 0 | AK60: 0.116 | AL60: 0 | AM60: =AL60*AK60 -> 0 | AO60: 0
A62: Total Bill on TOU (before Taxes) | G62: =SUM(G52:G58,G51) -> 92.462752 | K62: =SUM(K52:K58,K51) -> 87.317079 | M62: =K62-G62 -> -5.145673 | N62: =IF((G62)=0,"",(M62/G62)) -> -0.05565130703 | R62: =SUM(R52:R58,R51) -> 89.787079 | T62: =R62-K62 -> 2.47 | U62: 0.02828770761 | Y62: =SUM(Y52:Y58,Y51) -> 91.127079 | AA62: =Y62-R62 -> 1.34 | AB62: 0.01492419639 | AF62: =SUM(AF52:AF58,AF51) -> 91.707079 | AH62: =AF62-Y62 -> 0.58 | AI62: 0.006364738192 | AM62: =SUM(AM52:AM58,AM51) -> 92.317079 | AO62: =AM62-AF62 -> 0.61 | AP62: 0.006651613012
A63: HST | E63: 0.13 | G63: =G62*E63 -> 12.02015776 | I63: 0.13 | K63: =K62*I63 -> 11.35122027 | M63: -0.66893749 | N63: -0.05565130703 | P63: 0.13 | R63: =R62*P63 -> 11.67232027 | T63: =R63-K63 -> 0.3211 | U63: 0.02828770761 | W63: 0.13 | Y63: =Y62*W63 -> 11.84652027 | AA63: =Y63-R63 -> 0.1742 | AB63: 0.01492419639 | AD63: 0.13 | AF63: =AF62*AD63 -> 11.92192027 | AH63: =AF63-Y63 -> 0.0754 | AI63: 0.006364738192 | AK63: 0.13 | AM63: =AM62*AK63 -> 12.00122027 | AO63: =AM63-AF63 -> 0.0793 | AP63: 0.006651613012
A64: Total Bill (including HST) | G64: =G62+G63 -> 104.4829098 | K64: =K62+K63 -> 98.66829927 | M64: -5.81461049 | N64: -0.05565130703 | R64: =R62+R63 -> 101.4593993 | T64: 2.7911 | U64: 0.02828770761 | Y64: =Y62+Y63 -> 102.9735993 | AA64: 1.5142 | AB64: 0.01492419639 | AF64: =AF62+AF63 -> 103.6289993 | AH64: 0.6554 | AI64: 0.006364738192 | AM64: =AM62+AM63 -> 104.3182993 | AO64: 0.6893 | AP64: 0.006651613012
A65: Ontario Clean Energy Benefit 1 | G65: =ROUND(-G64*10%,2) -> -10.45 | K65: 0 | M65: 10.45 | N65: -1 | R65: 0 | T65: 0 | Y65: 0 | AA65: 0 | AF65: 0 | AH65: 0 | AM65: 0 | AO65: 0
A66: Total Bill on TOU (including OCEB) | G66: =G64+G65 -> 94.03290976 | K66: =K64+K65 -> 98.66829927 | M66: 4.63538951 | N66: 0.04929539585 | R66: =R64+R65 -> 101.4593993 | T66: 2.7911 | U66: 0.02828770761 | Y66: =Y64+Y65 -> 102.9735993 | AA66: 1.5142 | AB66: 0.01492419639 | AF66: =AF64+AF65 -> 103.6289993 | AH66: 0.6554 | AI66: 0.006364738192 | AM66: =AM64+AM65 -> 104.3182993 | AO66: 0.6893 | AP66: 0.006651613012
A68: Total Bill on RPP (before Taxes) | G68: =SUM(G59:G60,G52:G55,G51) -> 88.132752 | K68: =SUM(K59:K60,K52:K55,K51) -> 82.987079 | M68: =K68-G68 -> -5.145673 | N68: =IF((G68)=0,"",(M68/G68)) -> -0.05838547967 | R68: =SUM(R59:R60,R52:R55,R51) -> 85.457079 | T68: =R68-K68 -> 2.47 | U68: 0.02976366959 | Y68: =SUM(Y59:Y60,Y52:Y55,Y51) -> 86.797079 | AA68: =Y68-R68 -> 1.34 | AB68: 0.01568038617 | AF68: =SUM(AF59:AF60,AF52:AF55,AF51) -> 87.377079 | AH68: =AF68-Y68 -> 0.58 | AI68: 0.006682252521 | AM68: =SUM(AM59:AM60,AM52:AM55,AM51) -> 87.987079 | AO68: =AM68-AF68 -> 0.61 | AP68: 0.006981235891
A69: HST | E69: 0.13 | G69: =G68*E69 -> 11.45725776 | I69: 0.13 | K69: =K68*I69 -> 10.78832027 | M69: -0.66893749 | N69: =IF((G69)=0,"",(M69/G69)) -> -0.05838547967 | P69: 0.13 | R69: =R68*P69 -> 11.10942027 | T69: =R69-K69 -> 0.3211 | U69: 0.02976366959 | W69: 0.13 | Y69: =Y68*W69 -> 11.28362027 | AA69: =Y69-R69 -> 0.1742 | AB69: 0.01568038617 | AD69: 0.13 | AF69: =AF68*AD69 -> 11.35902027 | AH69: =AF69-Y69 -> 0.0754 | AI69: 0.006682252521 | AK69: 0.13 | AM69: =AM68*AK69 -> 11.43832027 | AO69: =AM69-AF69 -> 0.0793 | AP69: 0.006981235891
A70: Total Bill (including HST) | G70: =G68+G69 -> 99.59000976 | K70: =K68+K69 -> 93.77539927 | M70: -5.81461049 | N70: -0.05838547967 | R70: =R68+R69 -> 96.56649927 | T70: 2.7911 | U70: 0.02976366959 | Y70: =Y68+Y69 -> 98.08069927 | AA70: 1.5142 | AB70: 0.01568038617 | AF70: =AF68+AF69 -> 98.73609927 | AH70: 0.6554 | AI70: 0.006682252521 | AM70: =AM68+AM69 -> 99.42539927 | AO70: 0.6893 | AP70: 0.006981235891
A71: Ontario Clean Energy Benefit 1 | G71: =ROUND(-G70*10%,2) -> -9.96 | K71: 0 | M71: 9.96 | N71: -1 | R71: 0 | T71: 0 | Y71: 0 | AA71: 0 | AF71: 0 | AH71: 0 | AM71: 0 | AO71: 0
A72: Total Bill on RPP (including OCEB) | G72: =SUM(G70:G71) -> 89.63000976 | K72: =SUM(K70:K71) -> 93.77539927 | M72: 4.14538951 | N72: 0.04625001739 | R72: =SUM(R70:R71) -> 96.56649927 | T72: 2.7911 | U72: 0.02976366959 | Y72: =SUM(Y70:Y71) -> 98.08069927 | AA72: 1.5142 | AB72: 0.01568038617 | AF72: =SUM(AF70:AF71) -> 98.73609927 | AH72: 0.6554 | AI72: 0.006682252521 | AM72: =SUM(AM70:AM71) -> 99.42539927 | AO72: 0.6893 | AP72: 0.006981235891
A75: Loss Factor (%) | E75: 0.0344 | I75: 0.0393 | P75: 0.0393 | W75: 0.0393 | AD75: 0.0393 | AK75: 0.0393
A77: Distribution Excluding Rate Riders | E77: 2015 Current Board-Approved | I77: 2016 Test Year 1 Proposed | M77: Impact 2016 TEST vs. 2015 Bridge | P77: 2017 Test Year 2 Proposed | T77: Impact 2017 TEST 2 vs. 2016 Test 1 | W77: 2018 Test Year 3 Proposed | AA77: Impact 2018 TEST 3 vs. 2017 Test 2 | AD77: 2019 Test Year 4 Proposed | AH77: Impact 2019 TEST 4 vs. 2018 Test 3 | AK77: 2020 Test Year 5 Proposed | AO77: Impact 2020 TEST 5 vs. 2019 Test 4
C78: Charge Unit | E78: Rate | F78: Volume | G78: Charge | I78: Rate | J78: Volume | K78: Charge | M78: $ Change | N78: % Change | P78: Rate | Q78: Volume | R78: Charge | T78: $ Change | U78: % Change | W78: Rate | X78: Volume | Y78: Charge | AA78: $ Change | AB78: % Change | AD78: Rate | AE78: Volume | AF78: Charge | AH78: $ Change | AI78: % Change | AK78: Rate | AL78: Volume | AM78: Charge | AO78: $ Change | AP78: % Change
E79: ($) | G79: ($) | I79: ($) | K79: ($) | P79: ($) | R79: ($) | W79: ($) | Y79: ($) | AD79: ($) | AF79: ($) | AK79: ($) | AM79: ($)
A80: Monthly Service Charge | C80: Monthly | E80: 12.56 | F80: 1 | G80: =F80*E80 -> 12.56 | I80: ='Rates Summary'!$E$28 -> 13.98 | J80: 1 | K80: =J80*I80 -> 13.98 | M80: =K80-G80 -> 1.42 | N80: =IF((G80)=0,"",(M80/G80)) -> 0.1130573248 | P80: ='Rates Summary'!$F$28 -> 18.54 | Q80: 1 | R80: =Q80*P80 -> 18.54 | T80: =R80-K80 -> 4.56 | U80: =IF((K80)=0,"",(T80/K80)) -> 0.3261802575 | W80: ='Rates Summary'!$G$28 -> 21.88 | X80: 1 | Y80: =X80*W80 -> 21.88 | AA80: =Y80-R80 -> 3.34 | AB80: =IF((R80)=0,"",(AA80/R80)) -> 0.1801510248 | AD80: ='Rates Summary'!$H$28 -> 25.35 | AE80: 1 | AF80: =AE80*AD80 -> 25.35 | AH80: =AF80-Y80 -> 3.47 | AI80: =IF((Y80)=0,"",(AH80/Y80)) -> 0.1585923218 | AK80: ='Rates Summary'!$I$28 -> 25.96 | AL80: 1 | AM80: =AL80*AK80 -> 25.96 | AO80: =AM80-AF80 -> 0.61 | AP80: =IF((AF80)=0,"",(AO80/AF80)) -> 0.02406311637
A81: Distribution Volumetric Rate | C81: per kWh | E81: 0.0154 | F81: =$E$18 -> 500 | G81: =F81*E81 -> 7.7 | I81: ='Rates Summary'!$E$40 -> 0.0139 | J81: =$E$18 -> 500 | K81: =J81*I81 -> 6.95 | M81: =K81-G81 -> -0.75 | N81: =IF((G81)=0,"",(M81/G81)) -> -0.0974025974 | P81: ='Rates Summary'!$F$40 -> 0.0082 | Q81: =$E$18 -> 500 | R81: =Q81*P81 -> 4.1 | T81: -2.85 | U81: =IF((K81)=0,"",(T81/K81)) -> -0.4100719424 | W81: ='Rates Summary'!$G$40 -> 0.0042 | X81: =$E$18 -> 500 | Y81: =X81*W81 -> 2.1 | AA81: -2 | AB81: =IF((R81)=0,"",(AA81/R81)) -> -0.487804878 | AD81: ='Rates Summary'!$H$40 -> 0 | AE81: =$E$18 -> 500 | AF81: =AE81*AD81 -> 0 | AH81: -2.1 | AI81: =IF((Y81)=0,"",(AH81/Y81)) -> -1 | AK81: ='Rates Summary'!$I$40 -> 0 | AL81: =$E$18 -> 500 | AM81: =AL81*AK81 -> 0 | AO81: 0 | AP81: =IF((AF81)=0,"",(AO81/AF81)) -> 
A82: "Regular" Distribution Only | G82: =SUM(G80:G81) -> 20.26 | K82: =SUM(K80:K81) -> 20.93 | M82: 0.67 | N82: 0.03307008885 | R82: =SUM(R80:R81) -> 22.64 | T82: 1.71 | U82: 0.08170090779 | Y82: =SUM(Y80:Y81) -> 23.98 | AA82: 1.34 | AB82: 0.05918727915 | AF82: =SUM(AF80:AF81) -> 25.35 | AH82: 1.37 | AI82: 0.05713094245 | AM82: =SUM(AM80:AM81) -> 25.96 | AO82: 0.61 | AP82: 0.02406311637
B84: Residential (kWh) - 100, 250, 500, 800, 1000, 1500, 2000
B85: GS<50kW (kWh) - 1000, 2000, 5000, 10000, 15000
B86: GS>50kW (kW) - 60, 100, 500, 1000
B87: Large User - range appropriate for utility
B88: Lighting Classes and USL - 150 kWh and 1 kW, range appropriate for utility.
C90: Note that cells with the highlighted color shown to the left indicate quantities that are loss adjusted.

Sheet Bill Impact Resi 800kWh
M1: File Number: | N1: =EBNUMBER -> EB-2015-0083 | S1: 1
M2: Exhibit: | N2: 8
M3: Tab: | N3: 4
M4: Schedule: | N4: 3
M5: Page:
N7: Settlement
M8: Date: | N8: 2015-10-16
A10: Appendix 2-W
A11: Bill Impacts
A14: Customer Class: | C14: Residential | P14: =C14 -> Residential | AK14: =P14 -> Residential
A16: TOU / non-TOU: | C16: TOU
C18: Consumption | E18: 800 | F18: kWh
E20: 2015 Current Board-Approved | I20: 2016 Test Year 1 Proposed | M20: Impact 2016 TEST vs. 2015 Bridge | P20: 2017 Test Year 2 Proposed | T20: Impact 2017 TEST 2 vs. 2016 Test 1 | W20: 2018 Test Year 3 Proposed | AA20: Impact 2018 TEST 3 vs. 2017 Test 2 | AD20: 2019 Test Year 4 Proposed | AH20: Impact 2019 TEST 4 vs. 2018 Test 3 | AK20: 2020 Test Year 5 Proposed | AO20: Impact 2020 TEST 5 vs. 2019 Test 4
C21: Charge Unit | E21: Rate | F21: Volume | G21: Charge | I21: Rate | J21: Volume | K21: Charge | M21: $ Change | N21: % Change | P21: Rate | Q21: Volume | R21: Charge | T21: $ Change | U21: % Change | W21: Rate | X21: Volume | Y21: Charge | AA21: $ Change | AB21: % Change | AD21: Rate | AE21: Volume | AF21: Charge | AH21: $ Change | AI21: % Change | AK21: Rate | AL21: Volume | AM21: Charge | AO21: $ Change | AP21: % Change
E22: ($) | G22: ($) | I22: ($) | K22: ($) | P22: ($) | R22: ($) | W22: ($) | Y22: ($) | AD22: ($) | AF22: ($) | AK22: ($) | AM22: ($)
A23: Monthly Service Charge | C23: Monthly | E23: 12.56 | F23: 1 | G23: =F23*E23 -> 12.56 | I23: ='Rates Summary'!$E$28 -> 13.98 | J23: 1 | K23: =J23*I23 -> 13.98 | M23: =K23-G23 -> 1.42 | N23: =IF((G23)=0,"",(M23/G23)) -> 0.1130573248 | P23: ='Rates Summary'!$F$28 -> 18.54 | Q23: 1 | R23: =Q23*P23 -> 18.54 | T23: =R23-K23 -> 4.56 | U23: =IF((K23)=0,"",(T23/K23)) -> 0.3261802575 | W23: ='Rates Summary'!$G$28 -> 21.88 | X23: 1 | Y23: =X23*W23 -> 21.88 | AA23: =Y23-R23 -> 3.34 | AB23: =IF((R23)=0,"",(AA23/R23)) -> 0.1801510248 | AD23: ='Rates Summary'!$H$28 -> 25.35 | AE23: 1 | AF23: =AE23*AD23 -> 25.35 | AH23: =AF23-Y23 -> 3.47 | AI23: =IF((Y23)=0,"",(AH23/Y23)) -> 0.1585923218 | AK23: ='Rates Summary'!$I$28 -> 25.96 | AL23: 1 | AM23: =AL23*AK23 -> 25.96 | AO23: =AM23-AF23 -> 0.61 | AP23: =IF((AF23)=0,"",(AO23/AF23)) -> 0.02406311637
A24: Smart Meter (SMIRR) Rate Rider | C24: Monthly | E24: 2.63 | F24: 1 | G24: =F24*E24 -> 2.63 | I24: 0 | J24: 1 | K24: =J24*I24 -> 0 | M24: =K24-G24 -> -2.63 | N24: =IF((G24)=0,"",(M24/G24)) -> -1 | P24: 0 | Q24: 1 | R24: =Q24*P24 -> 0 | T24: 0 | U24: =IF((K24)=0,"",(T24/K24)) ->  | W24: 0 | X24: 1 | Y24: =X24*W24 -> 0 | AA24: 0 | AB24: =IF((R24)=0,"",(AA24/R24)) ->  | AD24: 0 | AE24: 1 | AF24: =AE24*AD24 -> 0 | AH24: 0 | AI24: =IF((Y24)=0,"",(AH24/Y24)) ->  | AK24: 0 | AL24: 1 | AM24: =AL24*AK24 -> 0 | AO24: 0 | AP24: =IF((AF24)=0,"",(AO24/AF24)) -> 
A25: Rate Rider Smart Meters Capital (2016) | C25: Monthly | E25: 0 | F25: 1 | G25: 0 | I25: ='Rates Summary'!C10 -> 0.25 | J25: 1 | K25: =J25*I25 -> 0.25 | M25: =K25-G25 -> 0.25 | P25: 0 | Q25: 1 | R25: =Q25*P25 -> 0 | T25: -0.25 | U25: -1 | W25: 0 | X25: 1 | Y25: =X25*W25 -> 0 | AA25: 0 | AD25: 0 | AE25: 1 | AF25: =AE25*AD25 -> 0 | AH25: 0 | AK25: 0 | AL25: 1 | AM25: =AL25*AK25 -> 0 | AO25: 0
A26: Rate Rider Recovery of Stranded Meters | C26: Monthly | E26: 0 | F26: 1 | G26: 0 | I26: ='Rates Summary'!$C11 -> 3.69 | J26: 1 | K26: 3.69 | M26: 3.69 | P26: 0 | Q26: 1 | R26: 0 | T26: -3.69 | U26: -1 | W26: 0 | X26: 1 | Y26: 0 | AA26: 0 | AD26: 0 | AE26: 1 | AF26: 0 | AH26: 0 | AK26: 0 | AL26: 1 | AM26: 0 | AO26: 0
F27: 1 | G27: 0 | J27: 1 | K27: 0 | M27: 0 | N27: =IF((G27)=0,"",(M27/G27)) ->  | Q27: 1 | R27: 0 | T27: 0 | X27: 1 | Y27: 0 | AA27: 0 | AE27: 1 | AF27: 0 | AH27: 0 | AL27: 1 | AM27: 0 | AO27: 0
F28: 1 | G28: 0 | J28: 1 | K28: 0 | M28: 0 | Q28: 1 | R28: 0 | T28: 0 | X28: 1 | Y28: 0 | AA28: 0 | AE28: 1 | AF28: 0 | AH28: 0 | AL28: 1 | AM28: 0 | AO28: 0
A29: Distribution Volumetric Rate | C29: per kWh | E29: 0.0154 | F29: =$E$18 -> 800 | G29: =F29*E29 -> 12.32 | I29: ='Rates Summary'!$E$40 -> 0.0139 | J29: =$E$18 -> 800 | K29: 11.12 | M29: -1.2 | N29: -0.0974025974 | P29: ='Rates Summary'!$F$40 -> 0.0082 | Q29: =$E$18 -> 800 | R29: 6.56 | T29: -4.56 | U29: -0.4100719424 | W29: ='Rates Summary'!$G$40 -> 0.0042 | X29: =$E$18 -> 800 | Y29: 3.36 | AA29: -3.2 | AB29: -0.487804878 | AD29: ='Rates Summary'!$H$40 -> 0 | AE29: =$E$18 -> 800 | AF29: 0 | AH29: -3.36 | AI29: -1 | AK29: ='Rates Summary'!$I$40 -> 0 | AL29: =$E$18 -> 800 | AM29: 0 | AO29: 0
A30: Rate Rider Tax Change (2015) | C30: per kWh | E30: -0.0001 | F30: =$E$18 -> 800 | G30: =F30*E30 -> -0.08 | I30: 0 | J30: =$E$18 -> 800 | K30: 0 | M30: 0.08 | N30: =IF((G30)=0,"",(M30/G30)) -> -1 | P30: 0 | Q30: =$E$18 -> 800 | R30: 0 | T30: 0 | W30: 0 | X30: =$E$18 -> 800 | Y30: 0 | AA30: 0 | AD30: 0 | AE30: =$E$18 -> 800 | AF30: 0 | AH30: 0 | AK30: 0 | AL30: =$E$18 -> 800 | AM30: 0 | AO30: 0
A31: LRAM VA (2016) | C31: per kWh | E31: 0 | F31: =$E$18 -> 800 | G31: 0 | I31: ='Rates Summary'!C7 -> 0.0003 | J31: 800 | K31: 0.24 | M31: 0.24 | P31: 0 | Q31: 800 | R31: 0 | T31: -0.24 | U31: =IF((K31)=0,"",(T31/K31)) -> -1 | W31: 0 | X31: 800 | Y31: 0 | AA31: 0 | AD31: 0 | AE31: 800 | AF31: 0 | AH31: 0 | AK31: 0 | AL31: 800 | AM31: 0 | AO31: 0
A32: Rate Rider Incremental Capital 2012 True-Up (2016) | C32: per kWh | E32: 0 | F32: =$E$18 -> 800 | G32: 0 | I32: ='Rates Summary'!C9 -> 0.0004 | J32: 800 | K32: 0.32 | M32: 0.32 | P32: 0 | Q32: 800 | R32: 0 | T32: -0.32 | U32: =IF((K32)=0,"",(T32/K32)) -> -1 | W32: 0 | X32: 800 | Y32: 0 | AA32: 0 | AD32: 0 | AE32: 800 | AF32: 0 | AH32: 0 | AK32: 0 | AL32: 800 | AM32: 0 | AO32: 0
C33: per kWh | E33: 0 | F33: =$E$19 -> 0 | G33: 0 | J33: =$E$19 -> 0 | K33: 0 | M33: 0 | N33: =IF((G33)=0,"",(M33/G33)) ->  | Q33: =$E$19 -> 0 | R33: 0 | T33: 0 | X33: =$E$19 -> 0 | Y33: 0 | AA33: 0 | AE33: =$E$19 -> 0 | AF33: 0 | AH33: 0 | AL33: =$E$19 -> 0 | AM33: 0 | AO33: 0
E34: 0 | F34: 800 | G34: 0 | J34: 800 | K34: 0 | M34: 0 | Q34: 800 | R34: 0 | T34: 0 | X34: 800 | Y34: 0 | AA34: 0 | AE34: 800 | AF34: 0 | AH34: 0 | AL34: 800 | AM34: 0 | AO34: 0
F35: 800 | G35: 0 | J35: 800 | K35: 0 | M35: 0 | Q35: 800 | R35: 0 | T35: 0 | X35: 800 | Y35: 0 | AA35: 0 | AE35: 800 | AF35: 0 | AH35: 0 | AL35: 800 | AM35: 0 | AO35: 0
F36: 800 | G36: 0 | J36: 800 | K36: 0 | M36: 0 | Q36: 800 | R36: 0 | T36: 0 | X36: 800 | Y36: 0 | AA36: 0 | AE36: 800 | AF36: 0 | AH36: 0 | AL36: 800 | AM36: 0 | AO36: 0
F37: 800 | G37: 0 | J37: 800 | K37: 0 | M37: 0 | Q37: 800 | R37: 0 | T37: 0 | X37: 800 | Y37: 0 | AA37: 0 | AE37: 800 | AF37: 0 | AH37: 0 | AL37: 800 | AM37: 0 | AO37: 0
F38: 800 | G38: 0 | J38: 800 | K38: 0 | M38: 0 | Q38: 800 | R38: 0 | T38: 0 | X38: 800 | Y38: 0 | AA38: 0 | AE38: 800 | AF38: 0 | AH38: 0 | AL38: 800 | AM38: 0 | AO38: 0
A39: Sub-Total A (excluding pass through) | G39: =SUM(G23:G38) -> 27.43 | K39: =SUM(K23:K38) -> 29.6 | M39: =K39-G39 -> 2.17 | N39: 0.079110463 | R39: =SUM(R23:R38) -> 25.1 | T39: -4.5 | U39: -0.152027027 | Y39: =SUM(Y23:Y38) -> 25.24 | AA39: 0.14 | AB39: 0.005577689243 | AF39: =SUM(AF23:AF38) -> 25.35 | AH39: 0.11 | AI39: 0.004358161648 | AM39: =SUM(AM23:AM38) -> 25.96 | AO39: 0.61 | AP39: 0.02406311637
A40: Deferral/Variance Account Disposition Rate Rider (2016) | C40: per kWh | E40: 0 | F40: =$E$18 -> 800 | G40: =F40*E40 -> 0 | I40: ='Rates Summary'!C5 -> 0.0007 | J40: =$E$18 -> 800 | K40: =J40*I40 -> 0.56 | M40: =K40-G40 -> 0.56 | N40: =IF((G40)=0,"",(M40/G40)) ->  | P40: 0 | Q40: =$E$18 -> 800 | R40: =Q40*P40 -> 0 | T40: -0.56 | U40: -1 | W40: 0 | X40: =$E$18 -> 800 | Y40: =X40*W40 -> 0 | AA40: 0 | AD40: 0 | AE40: =$E$18 -> 800 | AF40: =AE40*AD40 -> 0 | AH40: 0 | AK40: 0 | AL40: =$E$18 -> 800 | AM40: =AL40*AK40 -> 0 | AO40: 0
F41: =$E$18 -> 800 | G41: =F41*E41 -> 0 | I41: =E41 -> 0 | J41: =$E$18 -> 800 | K41: =J41*I41 -> 0 | M41: =K41-G41 -> 0 | N41: =IF((G41)=0,"",(M41/G41)) ->  | Q41: =$E$18 -> 800 | R41: =Q41*P41 -> 0 | T41: 0 | X41: =$E$18 -> 800 | Y41: =X41*W41 -> 0 | AA41: 0 | AE41: =$E$18 -> 800 | AF41: =AE41*AD41 -> 0 | AH41: 0 | AL41: =$E$18 -> 800 | AM41: =AL41*AK41 -> 0 | AO41: 0
A42: Rate Rider CGAAP Account 1576 (2016) | C42: per kWh | E42: 0 | F42: 800 | G42: 0 | I42: ='Rates Summary'!$C$8 -> -0.0108 | J42: 800 | K42: -8.64 | M42: -8.64 | P42: 0 | Q42: 800 | R42: 0 | T42: 8.64 | U42: -1 | W42: =P42 -> 0 | X42: 800 | Y42: 0 | AA42: 0 | AD42: =W42 -> 0 | AE42: 800 | AF42: 0 | AH42: 0 | AK42: =AD42 -> 0 | AL42: 800 | AM42: 0 | AO42: 0
A43: Disposition of Global Adjustment (2015) Applicable to Non-RPP Customers | C43: per kWh | E43: 0.0156 | F43: 0 | G43: 0 | I43: 0 | J43: 800 | K43: 0 | M43: 0 | P43: 0 | Q43: 800 | R43: 0 | T43: 0 | W43: 0 | X43: 800 | Y43: 0 | AA43: 0 | AD43: 0 | AE43: 800 | AF43: 0 | AH43: 0 | AK43: 0 | AL43: 800 | AM43: 0 | AO43: 0
A44: Disposition of Global Adjustment (2016) Applicable to Non-RPP Customers | C44: per kWh | E44: 0 | F44: 800 | G44: 0 | I44: ='Rates Summary'!C6 -> 0.0205 | J44: 0 | K44: 0 | M44: 0 | P44: 0 | Q44: 800 | R44: 0 | T44: 0 | W44: 0 | X44: 800 | Y44: 0 | AA44: 0 | AD44: 0 | AE44: 800 | AF44: 0 | AH44: 0 | AK44: 0 | AL44: 800 | AM44: 0 | AO44: 0
A45: Low Voltage Service Charge | C45: per kWh | E45: 0.0007 | F45: 800 | G45: =F45*E45 -> 0.56 | I45: ='Rates Summary'!C15 -> 0.0012 | J45: 800 | K45: =J45*I45 -> 0.96 | M45: =K45-G45 -> 0.4 | N45: =IF((G45)=0,"",(M45/G45)) -> 0.7142857143 | P45: =I45 -> 0.0012 | Q45: 800 | R45: =Q45*P45 -> 0.96 | T45: =R45-K45 -> 0 | U45: 0 | W45: =P45 -> 0.0012 | X45: 800 | Y45: =X45*W45 -> 0.96 | AA45: =Y45-R45 -> 0 | AB45: 0 | AD45: =W45 -> 0.0012 | AE45: 800 | AF45: =AE45*AD45 -> 0.96 | AH45: =AF45-Y45 -> 0 | AI45: 0 | AK45: =AD45 -> 0.0012 | AL45: 800 | AM45: =AL45*AK45 -> 0.96 | AO45: =AM45-AF45 -> 0 | AP45: 0
A46: Line Losses on Cost of Power | C46: per kWh | E46: =IF(ISBLANK(C16)=TRUE, 0, IF(C16="TOU", 0.64*$E$56+0.18*$E$57+0.18*$E$58, IF(AND(C16="non-TOU", F60>0), E60,E59))) -> 0.10766 | F46: =$E$18*(1+$E$75)-$E$18 -> 27.52 | G46: 2.9628032 | I46: =E46 -> 0.10766 | J46: =$E$18*(1+$I$75)-$E$18 -> 31.44 | K46: 3.3848304 | M46: 0.4220272 | N46: 0.1424418605 | P46: =I46 -> 0.10766 | Q46: =$E$18*(1+$I$75)-$E$18 -> 31.44 | R46: =Q46*P46 -> 3.3848304 | T46: =R46-K46 -> 0 | U46: 0 | W46: =P46 -> 0.10766 | X46: =$E$18*(1+$I$75)-$E$18 -> 31.44 | Y46: =X46*W46 -> 3.3848304 | AA46: =Y46-R46 -> 0 | AB46: 0 | AD46: =W46 -> 0.10766 | AE46: =$E$18*(1+$I$75)-$E$18 -> 31.44 | AF46: =AE46*AD46 -> 3.3848304 | AH46: =AF46-Y46 -> 0 | AI46: 0 | AK46: =AD46 -> 0.10766 | AL46: =$E$18*(1+$I$75)-$E$18 -> 31.44 | AM46: =AL46*AK46 -> 3.3848304 | AO46: =AM46-AF46 -> 0 | AP46: 0
A47: Smart Meter Entity Charge | C47: Monthly | E47: 0.79 | F47: 1 | G47: =F47*E47 -> 0.79 | I47: 0.79 | J47: 1 | K47: =J47*I47 -> 0.79 | M47: =K47-G47 -> 0 | P47: 0.79 | Q47: 1 | R47: =Q47*P47 -> 0.79 | T47: =R47-K47 -> 0 | U47: 0 | W47: 0.79 | X47: 1 | Y47: =X47*W47 -> 0.79 | AA47: =Y47-R47 -> 0 | AB47: 0 | AD47: 0 | AE47: 1 | AF47: =AE47*AD47 -> 0 | AH47: =AF47-Y47 -> -0.79 | AI47: -1 | AK47: 0 | AL47: 1 | AM47: =AL47*AK47 -> 0 | AO47: =AM47-AF47 -> 0
A48: Sub-Total B - Distribution (includes Sub-Total A) | G48: =SUM(G40:G47)+G39 -> 31.7428032 | K48: =SUM(K40:K47)+K39 -> 26.6548304 | M48: =K48-G48 -> -5.0879728 | N48: =IF((G48)=0,"",(M48/G48)) -> -0.1602874443 | R48: =SUM(R40:R47)+R39 -> 30.2348304 | T48: =R48-K48 -> 3.58 | U48: 0.1343096147 | Y48: =SUM(Y40:Y47)+Y39 -> 30.3748304 | AA48: =Y48-R48 -> 0.14 | AB48: 0.004630421211 | AF48: =SUM(AF40:AF47)+AF39 -> 29.6948304 | AH48: =AF48-Y48 -> -0.68 | AI48: -0.02238695627 | AM48: =SUM(AM40:AM47)+AM39 -> 30.3048304 | AO48: =AM48-AF48 -> 0.61 | AP48: 0.02054229614
A49: RTSR - Network | C49: per kWh | E49: 0.0067 | F49: =$E$18*(1+$E$75) -> 827.52 | G49: =F49*E49 -> 5.544384 | I49: ='Rates Summary'!C17 -> 0.0071 | J49: =$E$18*(1+$I$75) -> 831.44 | K49: =J49*I49 -> 5.903224 | M49: 0.35884 | N49: 0.06472134686 | P49: =I49 -> 0.0071 | Q49: =$E$18*(1+P75) -> 831.44 | R49: =Q49*P49 -> 5.903224 | T49: 0 | U49: 0 | W49: =P49 -> 0.0071 | X49: =$E$18*(1+W75) -> 831.44 | Y49: =X49*W49 -> 5.903224 | AA49: 0 | AB49: 0 | AD49: =W49 -> 0.0071 | AE49: =$E$18*(1+AD75) -> 831.44 | AF49: =AE49*AD49 -> 5.903224 | AH49: 0 | AI49: 0 | AK49: =AD49 -> 0.0071 | AL49: =$E$18*(1+AK75) -> 831.44 | AM49: =AL49*AK49 -> 5.903224 | AO49: 0 | AP49: 0
A50: RTSR - Line and Transformation Connection | C50: per kWh | E50: 0.0051 | F50: =F49 -> 827.52 | G50: =F50*E50 -> 4.220352 | I50: ='Rates Summary'!C18 -> 0.0056 | J50: =J49 -> 831.44 | K50: =J50*I50 -> 4.656064 | M50: 0.435712 | N50: 0.1032406776 | P50: =I50 -> 0.0056 | Q50: =Q49 -> 831.44 | R50: =Q50*P50 -> 4.656064 | T50: 0 | U50: 0 | W50: =P50 -> 0.0056 | X50: =X49 -> 831.44 | Y50: =X50*W50 -> 4.656064 | AA50: 0 | AB50: 0 | AD50: =W50 -> 0.0056 | AE50: =AE49 -> 831.44 | AF50: =AE50*AD50 -> 4.656064 | AH50: 0 | AI50: 0 | AK50: =AD50 -> 0.0056 | AL50: =AL49 -> 831.44 | AM50: =AL50*AK50 -> 4.656064 | AO50: 0 | AP50: 0
A51: Sub-Total C - Delivery (including Sub-Total B) | G51: =SUM(G48:G50) -> 41.5075392 | K51: =SUM(K48:K50) -> 37.2141184 | M51: -4.2934208 | N51: -0.1034371317 | R51: =SUM(R48:R50) -> 40.7941184 | T51: 3.58 | U51: 0.09620004864 | Y51: =SUM(Y48:Y50) -> 40.9341184 | AA51: 0.14 | AB51: 0.003431867276 | AF51: =SUM(AF48:AF50) -> 40.2541184 | AH51: -0.68 | AI51: -0.01661205924 | AM51: =SUM(AM48:AM50) -> 40.8641184 | AO51: 0.61 | AP51: 0.01515372897
A52: Wholesale Market Service Charge (WMSC) | C52: per kWh | E52: 0.0044 | F52: =F50 -> 827.52 | G52: =F52*E52 -> 3.641088 | I52: ='Rates Summary'!C19 -> 0.0044 | J52: =J50 -> 831.44 | K52: =J52*I52 -> 3.658336 | M52: 0.017248 | N52: 0.00473704563 | P52: =I52 -> 0.0044 | Q52: =Q50 -> 831.44 | R52: =Q52*P52 -> 3.658336 | T52: 0 | U52: 0 | W52: =P52 -> 0.0044 | X52: =X50 -> 831.44 | Y52: =X52*W52 -> 3.658336 | AA52: 0 | AB52: 0 | AD52: =W52 -> 0.0044 | AE52: =AE50 -> 831.44 | AF52: =AE52*AD52 -> 3.658336 | AH52: 0 | AI52: 0 | AK52: =AD52 -> 0.0044 | AL52: =AL50 -> 831.44 | AM52: =AL52*AK52 -> 3.658336 | AO52: 0 | AP52: 0
A53: Rural and Remote Rate Protection (RRRP) | C53: per kWh | E53: 0.0013 | F53: =F50 -> 827.52 | G53: 1.075776 | I53: ='Rates Summary'!C20 -> 0.0013 | J53: =J50 -> 831.44 | K53: 1.080872 | M53: 0.005096 | N53: 0.00473704563 | P53: =I53 -> 0.0013 | Q53: =Q50 -> 831.44 | R53: 1.080872 | T53: 0 | U53: 0 | W53: =P53 -> 0.0013 | X53: =X50 -> 831.44 | Y53: 1.080872 | AA53: 0 | AB53: 0 | AD53: =W53 -> 0.0013 | AE53: =AE50 -> 831.44 | AF53: 1.080872 | AH53: 0 | AI53: 0 | AK53: =AD53 -> 0.0013 | AL53: =AL50 -> 831.44 | AM53: 1.080872 | AO53: 0 | AP53: 0
A54: Standard Supply Service Charge | C54: Monthly | E54: 0.25 | F54: 1 | G54: 0.25 | I54: ='Rates Summary'!C21 -> 0.25 | J54: 1 | K54: 0.25 | M54: 0 | N54: 0 | P54: =I54 -> 0.25 | Q54: 1 | R54: 0.25 | T54: 0 | U54: 0 | W54: =P54 -> 0.25 | X54: 1 | Y54: 0.25 | AA54: 0 | AB54: 0 | AD54: =W54 -> 0.25 | AE54: 1 | AF54: 0.25 | AH54: 0 | AI54: 0 | AK54: =AD54 -> 0.25 | AL54: 1 | AM54: 0.25 | AO54: 0 | AP54: 0
A55: Debt Retirement Charge (DRC) | C55: per kWh | E55: 0.007 | F55: =E18 -> 800 | G55: 5.6 | I55: 0 | J55: =E18 -> 800 | K55: 0 | M55: -5.6 | N55: -1 | P55: 0 | Q55: =J55 -> 800 | R55: 0 | T55: 0 | W55: 0 | X55: =Q55 -> 800 | Y55: 0 | AA55: 0 | AD55: 0 | AE55: =X55 -> 800 | AF55: 0 | AH55: 0 | AK55: 0 | AL55: =AE55 -> 800 | AM55: 0 | AO55: 0
A56: TOU - Off Peak | C56: per kWh | E56: 0.083 | F56: =0.64*$E$18 -> 512 | G56: 42.496 | I56: =E56 -> 0.083 | J56: =F56 -> 512 | K56: 42.496 | M56: 0 | N56: 0 | P56: =I56 -> 0.083 | Q56: =J56 -> 512 | R56: 42.496 | T56: 0 | U56: 0 | W56: =P56 -> 0.083 | X56: =Q56 -> 512 | Y56: 42.496 | AA56: 0 | AB56: 0 | AD56: =W56 -> 0.083 | AE56: =X56 -> 512 | AF56: 42.496 | AH56: 0 | AI56: 0 | AK56: =AD56 -> 0.083 | AL56: =AE56 -> 512 | AM56: 42.496 | AO56: 0 | AP56: 0
A57: TOU - Mid Peak | C57: per kWh | E57: 0.128 | F57: =0.18*$E$18 -> 144 | G57: 18.432 | I57: =E57 -> 0.128 | J57: =F57 -> 144 | K57: 18.432 | M57: 0 | N57: 0 | P57: =I57 -> 0.128 | Q57: 144 | R57: 18.432 | T57: 0 | U57: 0 | W57: =P57 -> 0.128 | X57: 144 | Y57: 18.432 | AA57: 0 | AB57: 0 | AD57: =W57 -> 0.128 | AE57: 144 | AF57: 18.432 | AH57: 0 | AI57: 0 | AK57: =AD57 -> 0.128 | AL57: 144 | AM57: 18.432 | AO57: 0 | AP57: 0
A58: TOU - On Peak | C58: per kWh | E58: 0.175 | F58: =0.18*$E$18 -> 144 | G58: 25.2 | I58: 0.175 | J58: =F58 -> 144 | K58: 25.2 | M58: 0 | N58: 0 | P58: 0.175 | Q58: 144 | R58: 25.2 | T58: 0 | U58: 0 | W58: 0.175 | X58: 144 | Y58: 25.2 | AA58: 0 | AB58: 0 | AD58: 0.175 | AE58: 144 | AF58: 25.2 | AH58: 0 | AI58: 0 | AK58: 0.175 | AL58: 144 | AM58: 25.2 | AO58: 0 | AP58: 0
A59: Energy - RPP - Tier 1 | C59: per kWh | E59: 0.099 | F59: =IF(AND($S$1=1, E18>=600), 600, IF(AND($S$1=1, AND(E18<600, E18>=0)), E18, IF(AND($S$1=2, E18>=1000), 1000, IF(AND($S$1=2, AND(E18<1000, E18>=0)), E18)))) -> 600 | G59: =F59*E59 -> 59.4 | I59: 0.099 | J59: =F59 -> 600 | K59: =J59*I59 -> 59.4 | M59: 0 | N59: 0 | P59: 0.099 | Q59: 600 | R59: =Q59*P59 -> 59.4 | T59: 0 | U59: 0 | W59: 0.099 | X59: 600 | Y59: =X59*W59 -> 59.4 | AA59: 0 | AB59: 0 | AD59: 0.099 | AE59: 600 | AF59: =AE59*AD59 -> 59.4 | AH59: 0 | AI59: 0 | AK59: 0.099 | AL59: 600 | AM59: =AL59*AK59 -> 59.4 | AO59: 0 | AP59: 0
A60: Energy - RPP - Tier 2 | C60: per kWh | E60: 0.116 | F60: =IF(AND($S$1=1, E18>=600), E18-600, IF(AND($S$1=1, AND(E18<600, E18>=0)), 0, IF(AND($S$1=2, E18>=1000), E18-1000, IF(AND($S$1=2, AND(E18<1000, E18>=0)), 0)))) -> 200 | G60: =F60*E60 -> 23.2 | I60: 0.116 | J60: =F60 -> 200 | K60: =J60*I60 -> 23.2 | M60: 0 | N60: 0 | P60: 0.116 | Q60: 200 | R60: =Q60*P60 -> 23.2 | T60: 0 | U60: 0 | W60: 0.116 | X60: 200 | Y60: =X60*W60 -> 23.2 | AA60: 0 | AB60: 0 | AD60: 0.116 | AE60: 200 | AF60: =AE60*AD60 -> 23.2 | AH60: 0 | AI60: 0 | AK60: 0.116 | AL60: 200 | AM60: =AL60*AK60 -> 23.2 | AO60: 0 | AP60: 0
A62: Total Bill on TOU (before Taxes) | G62: =SUM(G52:G58,G51) -> 138.2024032 | K62: =SUM(K52:K58,K51) -> 128.3313264 | M62: =K62-G62 -> -9.8710768 | N62: =IF((G62)=0,"",(M62/G62)) -> -0.07142478402 | R62: =SUM(R52:R58,R51) -> 131.9113264 | T62: =R62-K62 -> 3.58 | U62: 0.02789654015 | Y62: =SUM(Y52:Y58,Y51) -> 132.0513264 | AA62: =Y62-R62 -> 0.14 | AB62: 0.001061319023 | AF62: =SUM(AF52:AF58,AF51) -> 131.3713264 | AH62: =AF62-Y62 -> -0.68 | AI62: -0.005149512834 | AM62: =SUM(AM52:AM58,AM51) -> 131.9813264 | AO62: =AM62-AF62 -> 0.61 | AP62: 0.004643326795
A63: HST | E63: 0.13 | G63: =G62*E63 -> 17.96631242 | I63: 0.13 | K63: =K62*I63 -> 16.68307243 | M63: -1.283239984 | N63: -0.07142478402 | P63: 0.13 | R63: =R62*P63 -> 17.14847243 | T63: =R63-K63 -> 0.4654 | U63: 0.02789654015 | W63: 0.13 | Y63: =Y62*W63 -> 17.16667243 | AA63: =Y63-R63 -> 0.0182 | AB63: 0.001061319023 | AD63: 0.13 | AF63: =AF62*AD63 -> 17.07827243 | AH63: =AF63-Y63 -> -0.0884 | AI63: -0.005149512834 | AK63: 0.13 | AM63: =AM62*AK63 -> 17.15757243 | AO63: =AM63-AF63 -> 0.0793 | AP63: 0.004643326795
A64: Total Bill (including HST) | G64: =G62+G63 -> 156.1687156 | K64: =K62+K63 -> 145.0143988 | M64: -11.15431678 | N64: -0.07142478402 | R64: =R62+R63 -> 149.0597988 | T64: 4.0454 | U64: 0.02789654015 | Y64: =Y62+Y63 -> 149.2179988 | AA64: 0.1582 | AB64: 0.001061319023 | AF64: =AF62+AF63 -> 148.4495988 | AH64: -0.7684 | AI64: -0.005149512834 | AM64: =AM62+AM63 -> 149.1388988 | AO64: 0.6893 | AP64: 0.004643326795
A65: Ontario Clean Energy Benefit 1 | G65: =ROUND(-G64*10%,2) -> -15.62 | K65: 0 | M65: 15.62 | N65: -1 | R65: 0 | T65: 0 | Y65: 0 | AA65: 0 | AF65: 0 | AH65: 0 | AM65: 0 | AO65: 0
A66: Total Bill on TOU (including OCEB) | G66: =G64+G65 -> 140.5487156 | K66: =K64+K65 -> 145.0143988 | M66: 4.465683216 | N66: 0.03177320544 | R66: =R64+R65 -> 149.0597988 | T66: 4.0454 | U66: 0.02789654015 | Y66: =Y64+Y65 -> 149.2179988 | AA66: 0.1582 | AB66: 0.001061319023 | AF66: =AF64+AF65 -> 148.4495988 | AH66: -0.7684 | AI66: -0.005149512834 | AM66: =AM64+AM65 -> 149.1388988 | AO66: 0.6893 | AP66: 0.004643326795
A68: Total Bill on RPP (before Taxes) | G68: =SUM(G59:G60,G52:G55,G51) -> 134.6744032 | K68: =SUM(K59:K60,K52:K55,K51) -> 124.8033264 | M68: =K68-G68 -> -9.8710768 | N68: =IF((G68)=0,"",(M68/G68)) -> -0.07329586444 | R68: =SUM(R59:R60,R52:R55,R51) -> 128.3833264 | T68: =R68-K68 -> 3.58 | U68: 0.02868513287 | Y68: =SUM(Y59:Y60,Y52:Y55,Y51) -> 128.5233264 | AA68: =Y68-R68 -> 0.14 | AB68: 0.001090484286 | AF68: =SUM(AF59:AF60,AF52:AF55,AF51) -> 127.8433264 | AH68: =AF68-Y68 -> -0.68 | AI68: -0.005290868351 | AM68: =SUM(AM59:AM60,AM52:AM55,AM51) -> 128.4533264 | AO68: =AM68-AF68 -> 0.61 | AP68: 0.004771465333
A69: HST | E69: 0.13 | G69: =G68*E69 -> 17.50767242 | I69: 0.13 | K69: =K68*I69 -> 16.22443243 | M69: -1.283239984 | N69: =IF((G69)=0,"",(M69/G69)) -> -0.07329586444 | P69: 0.13 | R69: =R68*P69 -> 16.68983243 | T69: =R69-K69 -> 0.4654 | U69: 0.02868513287 | W69: 0.13 | Y69: =Y68*W69 -> 16.70803243 | AA69: =Y69-R69 -> 0.0182 | AB69: 0.001090484286 | AD69: 0.13 | AF69: =AF68*AD69 -> 16.61963243 | AH69: =AF69-Y69 -> -0.0884 | AI69: -0.005290868351 | AK69: 0.13 | AM69: =AM68*AK69 -> 16.69893243 | AO69: =AM69-AF69 -> 0.0793 | AP69: 0.004771465333
A70: Total Bill (including HST) | G70: =G68+G69 -> 152.1820756 | K70: =K68+K69 -> 141.0277588 | M70: -11.15431678 | N70: -0.07329586444 | R70: =R68+R69 -> 145.0731588 | T70: 4.0454 | U70: 0.02868513287 | Y70: =Y68+Y69 -> 145.2313588 | AA70: 0.1582 | AB70: 0.001090484286 | AF70: =AF68+AF69 -> 144.4629588 | AH70: -0.7684 | AI70: -0.005290868351 | AM70: =AM68+AM69 -> 145.1522588 | AO70: 0.6893 | AP70: 0.004771465333
A71: Ontario Clean Energy Benefit 1 | G71: =ROUND(-G70*10%,2) -> -15.22 | K71: 0 | M71: 15.22 | N71: -1 | R71: 0 | T71: 0 | Y71: 0 | AA71: 0 | AF71: 0 | AH71: 0 | AM71: 0 | AO71: 0
A72: Total Bill on RPP (including OCEB) | G72: =SUM(G70:G71) -> 136.9620756 | K72: =SUM(K70:K71) -> 141.0277588 | M72: 4.065683216 | N72: 0.02968473716 | R72: =SUM(R70:R71) -> 145.0731588 | T72: 4.0454 | U72: 0.02868513287 | Y72: =SUM(Y70:Y71) -> 145.2313588 | AA72: 0.1582 | AB72: 0.001090484286 | AF72: =SUM(AF70:AF71) -> 144.4629588 | AH72: -0.7684 | AI72: -0.005290868351 | AM72: =SUM(AM70:AM71) -> 145.1522588 | AO72: 0.6893 | AP72: 0.004771465333
A75: Loss Factor (%) | E75: 0.0344 | I75: 0.0393 | P75: 0.0393 | W75: 0.0393 | AD75: 0.0393 | AK75: 0.0393
A77: Distribution Excluding Rate Riders | E77: 2015 Current Board-Approved | I77: 2016 Test Year 1 Proposed | M77: Impact 2016 TEST vs. 2015 Bridge | P77: 2017 Test Year 2 Proposed | T77: Impact 2017 TEST 2 vs. 2016 Test 1 | W77: 2018 Test Year 3 Proposed | AA77: Impact 2018 TEST 3 vs. 2017 Test 2 | AD77: 2019 Test Year 4 Proposed | AH77: Impact 2019 TEST 4 vs. 2018 Test 3 | AK77: 2020 Test Year 5 Proposed | AO77: Impact 2020 TEST 5 vs. 2019 Test 4
C78: Charge Unit | E78: Rate | F78: Volume | G78: Charge | I78: Rate | J78: Volume | K78: Charge | M78: $ Change | N78: % Change | P78: Rate | Q78: Volume | R78: Charge | T78: $ Change | U78: % Change | W78: Rate | X78: Volume | Y78: Charge | AA78: $ Change | AB78: % Change | AD78: Rate | AE78: Volume | AF78: Charge | AH78: $ Change | AI78: % Change | AK78: Rate | AL78: Volume | AM78: Charge | AO78: $ Change | AP78: % Change
E79: ($) | G79: ($) | I79: ($) | K79: ($) | P79: ($) | R79: ($) | W79: ($) | Y79: ($) | AD79: ($) | AF79: ($) | AK79: ($) | AM79: ($)
A80: Monthly Service Charge | C80: Monthly | E80: 12.56 | F80: 1 | G80: =F80*E80 -> 12.56 | I80: ='Rates Summary'!$E$28 -> 13.98 | J80: 1 | K80: =J80*I80 -> 13.98 | M80: =K80-G80 -> 1.42 | N80: =IF((G80)=0,"",(M80/G80)) -> 0.1130573248 | P80: ='Rates Summary'!$F$28 -> 18.54 | Q80: 1 | R80: =Q80*P80 -> 18.54 | T80: =R80-K80 -> 4.56 | U80: =IF((K80)=0,"",(T80/K80)) -> 0.3261802575 | W80: ='Rates Summary'!$G$28 -> 21.88 | X80: 1 | Y80: =X80*W80 -> 21.88 | AA80: =Y80-R80 -> 3.34 | AB80: =IF((R80)=0,"",(AA80/R80)) -> 0.1801510248 | AD80: ='Rates Summary'!$H$28 -> 25.35 | AE80: 1 | AF80: =AE80*AD80 -> 25.35 | AH80: =AF80-Y80 -> 3.47 | AI80: =IF((Y80)=0,"",(AH80/Y80)) -> 0.1585923218 | AK80: ='Rates Summary'!$I$28 -> 25.96 | AL80: 1 | AM80: =AL80*AK80 -> 25.96 | AO80: =AM80-AF80 -> 0.61 | AP80: =IF((AF80)=0,"",(AO80/AF80)) -> 0.02406311637
A81: Distribution Volumetric Rate | C81: per kWh | E81: 0.0154 | F81: =$E$18 -> 800 | G81: =F81*E81 -> 12.32 | I81: ='Rates Summary'!$E$40 -> 0.0139 | J81: =$E$18 -> 800 | K81: =J81*I81 -> 11.12 | M81: =K81-G81 -> -1.2 | N81: =IF((G81)=0,"",(M81/G81)) -> -0.0974025974 | P81: ='Rates Summary'!$F$40 -> 0.0082 | Q81: =$E$18 -> 800 | R81: =Q81*P81 -> 6.56 | T81: -4.56 | U81: =IF((K81)=0,"",(T81/K81)) -> -0.4100719424 | W81: ='Rates Summary'!$G$40 -> 0.0042 | X81: =$E$18 -> 800 | Y81: =X81*W81 -> 3.36 | AA81: -3.2 | AB81: =IF((R81)=0,"",(AA81/R81)) -> -0.487804878 | AD81: ='Rates Summary'!$H$40 -> 0 | AE81: =$E$18 -> 800 | AF81: =AE81*AD81 -> 0 | AH81: -3.36 | AI81: =IF((Y81)=0,"",(AH81/Y81)) -> -1 | AK81: ='Rates Summary'!$I$40 -> 0 | AL81: =$E$18 -> 800 | AM81: =AL81*AK81 -> 0 | AO81: 0 | AP81: =IF((AF81)=0,"",(AO81/AF81)) -> 
A82: "Regular" Distribution Only | G82: =SUM(G80:G81) -> 24.88 | K82: =SUM(K80:K81) -> 25.1 | M82: 0.22 | N82: 0.00884244373 | R82: =SUM(R80:R81) -> 25.1 | T82: 0 | U82: 0 | Y82: =SUM(Y80:Y81) -> 25.24 | AA82: 0.14 | AB82: 0.005577689243 | AF82: =SUM(AF80:AF81) -> 25.35 | AH82: 0.11 | AI82: 0.004358161648 | AM82: =SUM(AM80:AM81) -> 25.96 | AO82: 0.61 | AP82: 0.02406311637
B84: Residential (kWh) - 100, 250, 500, 800, 1000, 1500, 2000
B85: GS<50kW (kWh) - 1000, 2000, 5000, 10000, 15000
B86: GS>50kW (kW) - 60, 100, 500, 1000
B87: Large User - range appropriate for utility
B88: Lighting Classes and USL - 150 kWh and 1 kW, range appropriate for utility.
C90: Note that cells with the highlighted color shown to the left indicate quantities that are loss adjusted.

Sheet Bill Impact Resi 1000kWh
M1: File Number: | N1: =EBNUMBER -> EB-2015-0083 | S1: 1
M2: Exhibit: | N2: 8
M3: Tab: | N3: 4
M4: Schedule: | N4: 3
M5: Page:
N7: Settlement
M8: Date: | N8: 2015-10-20
A10: Appendix 2-W
A11: Bill Impacts
A14: Customer Class: | C14: Residential | P14: =C14 -> Residential | AK14: =P14 -> Residential
A16: TOU / non-TOU: | C16: TOU
C18: Consumption | E18: 1000 | F18: kWh
E20: 2015 Current Board-Approved | I20: 2016 Test Year 1 Proposed | M20: Impact 2016 TEST vs. 2015 Bridge | P20: 2017 Test Year 2 Proposed | T20: Impact 2017 TEST 2 vs. 2016 Test 1 | W20: 2018 Test Year 3 Proposed | AA20: Impact 2018 TEST 3 vs. 2017 Test 2 | AD20: 2019 Test Year 4 Proposed | AH20: Impact 2019 TEST 4 vs. 2018 Test 3 | AK20: 2020 Test Year 5 Proposed | AO20: Impact 2020 TEST 5 vs. 2019 Test 4
C21: Charge Unit | E21: Rate | F21: Volume | G21: Charge | I21: Rate | J21: Volume | K21: Charge | M21: $ Change | N21: % Change | P21: Rate | Q21: Volume | R21: Charge | T21: $ Change | U21: % Change | W21: Rate | X21: Volume | Y21: Charge | AA21: $ Change | AB21: % Change | AD21: Rate | AE21: Volume | AF21: Charge | AH21: $ Change | AI21: % Change | AK21: Rate | AL21: Volume | AM21: Charge | AO21: $ Change | AP21: % Change
E22: ($) | G22: ($) | I22: ($) | K22: ($) | P22: ($) | R22: ($) | W22: ($) | Y22: ($) | AD22: ($) | AF22: ($) | AK22: ($) | AM22: ($)
A23: Monthly Service Charge | C23: Monthly | E23: 12.56 | F23: 1 | G23: =F23*E23 -> 12.56 | I23: ='Rates Summary'!$E$28 -> 13.98 | J23: 1 | K23: =J23*I23 -> 13.98 | M23: =K23-G23 -> 1.42 | N23: =IF((G23)=0,"",(M23/G23)) -> 0.1130573248 | P23: ='Rates Summary'!$F$28 -> 18.54 | Q23: 1 | R23: =Q23*P23 -> 18.54 | T23: =R23-K23 -> 4.56 | U23: =IF((K23)=0,"",(T23/K23)) -> 0.3261802575 | W23: ='Rates Summary'!$G$28 -> 21.88 | X23: 1 | Y23: =X23*W23 -> 21.88 | AA23: =Y23-R23 -> 3.34 | AB23: =IF((R23)=0,"",(AA23/R23)) -> 0.1801510248 | AD23: ='Rates Summary'!$H$28 -> 25.35 | AE23: 1 | AF23: =AE23*AD23 -> 25.35 | AH23: =AF23-Y23 -> 3.47 | AI23: =IF((Y23)=0,"",(AH23/Y23)) -> 0.1585923218 | AK23: ='Rates Summary'!$I$28 -> 25.96 | AL23: 1 | AM23: =AL23*AK23 -> 25.96 | AO23: =AM23-AF23 -> 0.61 | AP23: =IF((AF23)=0,"",(AO23/AF23)) -> 0.02406311637
A24: Smart Meter (SMIRR) Rate Rider | C24: Monthly | E24: 2.63 | F24: 1 | G24: =F24*E24 -> 2.63 | I24: 0 | J24: 1 | K24: =J24*I24 -> 0 | M24: =K24-G24 -> -2.63 | N24: =IF((G24)=0,"",(M24/G24)) -> -1 | P24: 0 | Q24: 1 | R24: =Q24*P24 -> 0 | T24: 0 | U24: =IF((K24)=0,"",(T24/K24)) ->  | W24: 0 | X24: 1 | Y24: =X24*W24 -> 0 | AA24: 0 | AB24: =IF((R24)=0,"",(AA24/R24)) ->  | AD24: 0 | AE24: 1 | AF24: =AE24*AD24 -> 0 | AH24: 0 | AI24: =IF((Y24)=0,"",(AH24/Y24)) ->  | AK24: 0 | AL24: 1 | AM24: =AL24*AK24 -> 0 | AO24: 0 | AP24: =IF((AF24)=0,"",(AO24/AF24)) -> 
A25: Rate Rider Smart Meters Capital (2016) | C25: Monthly | E25: 0 | F25: 1 | G25: 0 | I25: ='Rates Summary'!C10 -> 0.25 | J25: 1 | K25: =J25*I25 -> 0.25 | M25: =K25-G25 -> 0.25 | P25: 0 | Q25: 1 | R25: =Q25*P25 -> 0 | T25: -0.25 | U25: -1 | W25: 0 | X25: 1 | Y25: =X25*W25 -> 0 | AA25: 0 | AD25: 0 | AE25: 1 | AF25: =AE25*AD25 -> 0 | AH25: 0 | AK25: 0 | AL25: 1 | AM25: =AL25*AK25 -> 0 | AO25: 0
A26: Rate Rider Recovery of Stranded Meters | C26: Monthly | E26: 0 | F26: 1 | G26: 0 | I26: ='Rates Summary'!$C11 -> 3.69 | J26: 1 | K26: 3.69 | M26: 3.69 | P26: 0 | Q26: 1 | R26: 0 | T26: -3.69 | U26: -1 | W26: 0 | X26: 1 | Y26: 0 | AA26: 0 | AD26: 0 | AE26: 1 | AF26: 0 | AH26: 0 | AK26: 0 | AL26: 1 | AM26: 0 | AO26: 0
F27: 1 | G27: 0 | J27: 1 | K27: 0 | M27: 0 | N27: =IF((G27)=0,"",(M27/G27)) ->  | Q27: 1 | R27: 0 | T27: 0 | X27: 1 | Y27: 0 | AA27: 0 | AE27: 1 | AF27: 0 | AH27: 0 | AL27: 1 | AM27: 0 | AO27: 0
F28: 1 | G28: 0 | J28: 1 | K28: 0 | M28: 0 | Q28: 1 | R28: 0 | T28: 0 | X28: 1 | Y28: 0 | AA28: 0 | AE28: 1 | AF28: 0 | AH28: 0 | AL28: 1 | AM28: 0 | AO28: 0
A29: Distribution Volumetric Rate | C29: per kWh | E29: 0.0154 | F29: =$E$18 -> 1000 | G29: =F29*E29 -> 15.4 | I29: ='Rates Summary'!$E$40 -> 0.0139 | J29: =$E$18 -> 1000 | K29: 13.9 | M29: -1.5 | N29: -0.0974025974 | P29: ='Rates Summary'!$F$40 -> 0.0082 | Q29: =$E$18 -> 1000 | R29: 8.2 | T29: -5.7 | U29: -0.4100719424 | W29: ='Rates Summary'!$G$40 -> 0.0042 | X29: =$E$18 -> 1000 | Y29: 4.2 | AA29: -4 | AB29: -0.487804878 | AD29: ='Rates Summary'!$H$40 -> 0 | AE29: =$E$18 -> 1000 | AF29: 0 | AH29: -4.2 | AI29: -1 | AK29: ='Rates Summary'!$I$40 -> 0 | AL29: =$E$18 -> 1000 | AM29: 0 | AO29: 0
A30: Rate Rider Tax Change (2015) | C30: per kWh | E30: -0.0001 | F30: =$E$18 -> 1000 | G30: =F30*E30 -> -0.1 | I30: 0 | J30: =$E$18 -> 1000 | K30: 0 | M30: 0.1 | N30: =IF((G30)=0,"",(M30/G30)) -> -1 | P30: 0 | Q30: =$E$18 -> 1000 | R30: 0 | T30: 0 | W30: 0 | X30: =$E$18 -> 1000 | Y30: 0 | AA30: 0 | AD30: 0 | AE30: =$E$18 -> 1000 | AF30: 0 | AH30: 0 | AK30: 0 | AL30: =$E$18 -> 1000 | AM30: 0 | AO30: 0
A31: LRAM VA (2016) | C31: per kWh | E31: 0 | F31: =$E$18 -> 1000 | G31: 0 | I31: ='Rates Summary'!C7 -> 0.0003 | J31: 1000 | K31: 0.3 | M31: 0.3 | P31: 0 | Q31: 1000 | R31: 0 | T31: -0.3 | U31: =IF((K31)=0,"",(T31/K31)) -> -1 | W31: 0 | X31: 1000 | Y31: 0 | AA31: 0 | AD31: 0 | AE31: 1000 | AF31: 0 | AH31: 0 | AK31: 0 | AL31: 1000 | AM31: 0 | AO31: 0
A32: Rate Rider Incremental Capital 2012 True-Up (2016) | C32: per kWh | E32: 0 | F32: =$E$18 -> 1000 | G32: 0 | I32: ='Rates Summary'!C9 -> 0.0004 | J32: 1000 | K32: 0.4 | M32: 0.4 | P32: 0 | Q32: 1000 | R32: 0 | T32: -0.4 | U32: =IF((K32)=0,"",(T32/K32)) -> -1 | W32: 0 | X32: 1000 | Y32: 0 | AA32: 0 | AD32: 0 | AE32: 1000 | AF32: 0 | AH32: 0 | AK32: 0 | AL32: 1000 | AM32: 0 | AO32: 0
C33: per kWh | E33: 0 | F33: =$E$19 -> 0 | G33: 0 | J33: =$E$19 -> 0 | K33: 0 | M33: 0 | N33: =IF((G33)=0,"",(M33/G33)) ->  | Q33: =$E$19 -> 0 | R33: 0 | T33: 0 | X33: =$E$19 -> 0 | Y33: 0 | AA33: 0 | AE33: =$E$19 -> 0 | AF33: 0 | AH33: 0 | AL33: =$E$19 -> 0 | AM33: 0 | AO33: 0
E34: 0 | F34: 1000 | G34: 0 | J34: 1000 | K34: 0 | M34: 0 | Q34: 1000 | R34: 0 | T34: 0 | X34: 1000 | Y34: 0 | AA34: 0 | AE34: 1000 | AF34: 0 | AH34: 0 | AL34: 1000 | AM34: 0 | AO34: 0
F35: 1000 | G35: 0 | J35: 1000 | K35: 0 | M35: 0 | Q35: 1000 | R35: 0 | T35: 0 | X35: 1000 | Y35: 0 | AA35: 0 | AE35: 1000 | AF35: 0 | AH35: 0 | AL35: 1000 | AM35: 0 | AO35: 0
F36: 1000 | G36: 0 | J36: 1000 | K36: 0 | M36: 0 | Q36: 1000 | R36: 0 | T36: 0 | X36: 1000 | Y36: 0 | AA36: 0 | AE36: 1000 | AF36: 0 | AH36: 0 | AL36: 1000 | AM36: 0 | AO36: 0
F37: 1000 | G37: 0 | J37: 1000 | K37: 0 | M37: 0 | Q37: 1000 | R37: 0 | T37: 0 | X37: 1000 | Y37: 0 | AA37: 0 | AE37: 1000 | AF37: 0 | AH37: 0 | AL37: 1000 | AM37: 0 | AO37: 0
F38: 1000 | G38: 0 | J38: 1000 | K38: 0 | M38: 0 | Q38: 1000 | R38: 0 | T38: 0 | X38: 1000 | Y38: 0 | AA38: 0 | AE38: 1000 | AF38: 0 | AH38: 0 | AL38: 1000 | AM38: 0 | AO38: 0
A39: Sub-Total A (excluding pass through) | G39: =SUM(G23:G38) -> 30.49 | K39: =SUM(K23:K38) -> 32.52 | M39: =K39-G39 -> 2.03 | N39: 0.0665792063 | R39: =SUM(R23:R38) -> 26.74 | T39: -5.78 | U39: -0.1777367774 | Y39: =SUM(Y23:Y38) -> 26.08 | AA39: -0.66 | AB39: -0.02468212416 | AF39: =SUM(AF23:AF38) -> 25.35 | AH39: -0.73 | AI39: -0.02799079755 | AM39: =SUM(AM23:AM38) -> 25.96 | AO39: 0.61 | AP39: 0.02406311637
A40: Deferral/Variance Account Disposition Rate Rider (2016) | C40: per kWh | E40: 0 | F40: =$E$18 -> 1000 | G40: =F40*E40 -> 0 | I40: ='Rates Summary'!C5 -> 0.0007 | J40: =$E$18 -> 1000 | K40: =J40*I40 -> 0.7 | M40: =K40-G40 -> 0.7 | N40: =IF((G40)=0,"",(M40/G40)) ->  | P40: 0 | Q40: =$E$18 -> 1000 | R40: =Q40*P40 -> 0 | T40: -0.7 | U40: -1 | W40: 0 | X40: =$E$18 -> 1000 | Y40: =X40*W40 -> 0 | AA40: 0 | AD40: 0 | AE40: =$E$18 -> 1000 | AF40: =AE40*AD40 -> 0 | AH40: 0 | AK40: 0 | AL40: =$E$18 -> 1000 | AM40: =AL40*AK40 -> 0 | AO40: 0
F41: =$E$18 -> 1000 | G41: =F41*E41 -> 0 | I41: =E41 -> 0 | J41: =$E$18 -> 1000 | K41: =J41*I41 -> 0 | M41: =K41-G41 -> 0 | N41: =IF((G41)=0,"",(M41/G41)) ->  | Q41: =$E$18 -> 1000 | R41: =Q41*P41 -> 0 | T41: 0 | X41: =$E$18 -> 1000 | Y41: =X41*W41 -> 0 | AA41: 0 | AE41: =$E$18 -> 1000 | AF41: =AE41*AD41 -> 0 | AH41: 0 | AL41: =$E$18 -> 1000 | AM41: =AL41*AK41 -> 0 | AO41: 0
A42: Rate Rider CGAAP Account 1576 (2016) | C42: per kWh | E42: 0 | F42: 1000 | G42: 0 | I42: ='Rates Summary'!$C$8 -> -0.0108 | J42: 1000 | K42: -10.8 | M42: -10.8 | P42: 0 | Q42: 1000 | R42: 0 | T42: 10.8 | U42: -1 | W42: =P42 -> 0 | X42: 1000 | Y42: 0 | AA42: 0 | AD42: =W42 -> 0 | AE42: 1000 | AF42: 0 | AH42: 0 | AK42: =AD42 -> 0 | AL42: 1000 | AM42: 0 | AO42: 0
A43: Disposition of Global Adjustment (2015) Applicable to Non-RPP Customers | C43: per kWh | E43: 0.0156 | F43: 0 | G43: 0 | I43: 0 | J43: 1000 | K43: 0 | M43: 0 | P43: 0 | Q43: 1000 | R43: 0 | T43: 0 | W43: 0 | X43: 1000 | Y43: 0 | AA43: 0 | AD43: 0 | AE43: 1000 | AF43: 0 | AH43: 0 | AK43: 0 | AL43: 1000 | AM43: 0 | AO43: 0
A44: Disposition of Global Adjustment (2016) Applicable to Non-RPP Customers | C44: per kWh | E44: 0 | F44: 1000 | G44: 0 | I44: ='Rates Summary'!C6 -> 0.0205 | J44: 0 | K44: 0 | M44: 0 | P44: 0 | Q44: 1000 | R44: 0 | T44: 0 | W44: 0 | X44: 1000 | Y44: 0 | AA44: 0 | AD44: 0 | AE44: 1000 | AF44: 0 | AH44: 0 | AK44: 0 | AL44: 1000 | AM44: 0 | AO44: 0
A45: Low Voltage Service Charge | C45: per kWh | E45: 0.0007 | F45: 1000 | G45: =F45*E45 -> 0.7 | I45: ='Rates Summary'!C15 -> 0.0012 | J45: 1000 | K45: =J45*I45 -> 1.2 | M45: =K45-G45 -> 0.5 | N45: =IF((G45)=0,"",(M45/G45)) -> 0.7142857143 | P45: =I45 -> 0.0012 | Q45: 1000 | R45: =Q45*P45 -> 1.2 | T45: =R45-K45 -> 0 | U45: 0 | W45: =P45 -> 0.0012 | X45: 1000 | Y45: =X45*W45 -> 1.2 | AA45: =Y45-R45 -> 0 | AB45: 0 | AD45: =W45 -> 0.0012 | AE45: 1000 | AF45: =AE45*AD45 -> 1.2 | AH45: =AF45-Y45 -> 0 | AI45: 0 | AK45: =AD45 -> 0.0012 | AL45: 1000 | AM45: =AL45*AK45 -> 1.2 | AO45: =AM45-AF45 -> 0 | AP45: 0
A46: Line Losses on Cost of Power | C46: per kWh | E46: =IF(ISBLANK(C16)=TRUE, 0, IF(C16="TOU", 0.64*$E$56+0.18*$E$57+0.18*$E$58, IF(AND(C16="non-TOU", F60>0), E60,E59))) -> 0.10766 | F46: =$E$18*(1+$E$75)-$E$18 -> 34.4 | G46: 3.703504 | I46: =E46 -> 0.10766 | J46: =$E$18*(1+$I$75)-$E$18 -> 39.3 | K46: 4.231038 | M46: 0.527534 | N46: 0.1424418605 | P46: =I46 -> 0.10766 | Q46: =$E$18*(1+$I$75)-$E$18 -> 39.3 | R46: =Q46*P46 -> 4.231038 | T46: =R46-K46 -> 0 | U46: 0 | W46: =P46 -> 0.10766 | X46: =$E$18*(1+$I$75)-$E$18 -> 39.3 | Y46: =X46*W46 -> 4.231038 | AA46: =Y46-R46 -> 0 | AB46: 0 | AD46: =W46 -> 0.10766 | AE46: =$E$18*(1+$I$75)-$E$18 -> 39.3 | AF46: =AE46*AD46 -> 4.231038 | AH46: =AF46-Y46 -> 0 | AI46: 0 | AK46: =AD46 -> 0.10766 | AL46: =$E$18*(1+$I$75)-$E$18 -> 39.3 | AM46: =AL46*AK46 -> 4.231038 | AO46: =AM46-AF46 -> 0 | AP46: 0
A47: Smart Meter Entity Charge | C47: Monthly | E47: 0.79 | F47: 1 | G47: =F47*E47 -> 0.79 | I47: 0.79 | J47: 1 | K47: =J47*I47 -> 0.79 | M47: =K47-G47 -> 0 | P47: 0.79 | Q47: 1 | R47: =Q47*P47 -> 0.79 | T47: =R47-K47 -> 0 | U47: 0 | W47: 0.79 | X47: 1 | Y47: =X47*W47 -> 0.79 | AA47: =Y47-R47 -> 0 | AB47: 0 | AD47: 0 | AE47: 1 | AF47: =AE47*AD47 -> 0 | AH47: =AF47-Y47 -> -0.79 | AI47: -1 | AK47: 0 | AL47: 1 | AM47: =AL47*AK47 -> 0 | AO47: =AM47-AF47 -> 0
A48: Sub-Total B - Distribution (includes Sub-Total A) | G48: =SUM(G40:G47)+G39 -> 35.683504 | K48: =SUM(K40:K47)+K39 -> 28.641038 | M48: =K48-G48 -> -7.042466 | N48: =IF((G48)=0,"",(M48/G48)) -> -0.1973591495 | R48: =SUM(R40:R47)+R39 -> 32.961038 | T48: =R48-K48 -> 4.32 | U48: 0.1508325222 | Y48: =SUM(Y40:Y47)+Y39 -> 32.301038 | AA48: =Y48-R48 -> -0.66 | AB48: -0.02002364125 | AF48: =SUM(AF40:AF47)+AF39 -> 30.781038 | AH48: =AF48-Y48 -> -1.52 | AI48: -0.04705731129 | AM48: =SUM(AM40:AM47)+AM39 -> 31.391038 | AO48: =AM48-AF48 -> 0.61 | AP48: 0.01981739537
A49: RTSR - Network | C49: per kWh | E49: 0.0067 | F49: =$E$18*(1+$E$75) -> 1034.4 | G49: =F49*E49 -> 6.93048 | I49: ='Rates Summary'!C17 -> 0.0071 | J49: =$E$18*(1+$I$75) -> 1039.3 | K49: =J49*I49 -> 7.37903 | M49: 0.44855 | N49: 0.06472134686 | P49: =I49 -> 0.0071 | Q49: =$E$18*(1+P75) -> 1039.3 | R49: =Q49*P49 -> 7.37903 | T49: 0 | U49: 0 | W49: =P49 -> 0.0071 | X49: =$E$18*(1+W75) -> 1039.3 | Y49: =X49*W49 -> 7.37903 | AA49: 0 | AB49: 0 | AD49: =W49 -> 0.0071 | AE49: =$E$18*(1+AD75) -> 1039.3 | AF49: =AE49*AD49 -> 7.37903 | AH49: 0 | AI49: 0 | AK49: =AD49 -> 0.0071 | AL49: =$E$18*(1+AK75) -> 1039.3 | AM49: =AL49*AK49 -> 7.37903 | AO49: 0 | AP49: 0
A50: RTSR - Line and Transformation Connection | C50: per kWh | E50: 0.0051 | F50: =F49 -> 1034.4 | G50: =F50*E50 -> 5.27544 | I50: ='Rates Summary'!C18 -> 0.0056 | J50: =J49 -> 1039.3 | K50: =J50*I50 -> 5.82008 | M50: 0.54464 | N50: 0.1032406776 | P50: =I50 -> 0.0056 | Q50: =Q49 -> 1039.3 | R50: =Q50*P50 -> 5.82008 | T50: 0 | U50: 0 | W50: =P50 -> 0.0056 | X50: =X49 -> 1039.3 | Y50: =X50*W50 -> 5.82008 | AA50: 0 | AB50: 0 | AD50: =W50 -> 0.0056 | AE50: =AE49 -> 1039.3 | AF50: =AE50*AD50 -> 5.82008 | AH50: 0 | AI50: 0 | AK50: =AD50 -> 0.0056 | AL50: =AL49 -> 1039.3 | AM50: =AL50*AK50 -> 5.82008 | AO50: 0 | AP50: 0
A51: Sub-Total C - Delivery (including Sub-Total B) | G51: =SUM(G48:G50) -> 47.889424 | K51: =SUM(K48:K50) -> 41.840148 | M51: -6.049276 | N51: -0.1263175769 | R51: =SUM(R48:R50) -> 46.160148 | T51: 4.32 | U51: 0.1032501128 | Y51: =SUM(Y48:Y50) -> 45.500148 | AA51: -0.66 | AB51: -0.01429804774 | AF51: =SUM(AF48:AF50) -> 43.980148 | AH51: -1.52 | AI51: -0.03340648474 | AM51: =SUM(AM48:AM50) -> 44.590148 | AO51: 0.61 | AP51: 0.01386989421
A52: Wholesale Market Service Charge (WMSC) | C52: per kWh | E52: 0.0044 | F52: =F50 -> 1034.4 | G52: =F52*E52 -> 4.55136 | I52: ='Rates Summary'!C19 -> 0.0044 | J52: =J50 -> 1039.3 | K52: =J52*I52 -> 4.57292 | M52: 0.02156 | N52: 0.00473704563 | P52: =I52 -> 0.0044 | Q52: =Q50 -> 1039.3 | R52: =Q52*P52 -> 4.57292 | T52: 0 | U52: 0 | W52: =P52 -> 0.0044 | X52: =X50 -> 1039.3 | Y52: =X52*W52 -> 4.57292 | AA52: 0 | AB52: 0 | AD52: =W52 -> 0.0044 | AE52: =AE50 -> 1039.3 | AF52: =AE52*AD52 -> 4.57292 | AH52: 0 | AI52: 0 | AK52: =AD52 -> 0.0044 | AL52: =AL50 -> 1039.3 | AM52: =AL52*AK52 -> 4.57292 | AO52: 0 | AP52: 0
A53: Rural and Remote Rate Protection (RRRP) | C53: per kWh | E53: 0.0013 | F53: =F50 -> 1034.4 | G53: 1.34472 | I53: ='Rates Summary'!C20 -> 0.0013 | J53: =J50 -> 1039.3 | K53: 1.35109 | M53: 0.00637 | N53: 0.00473704563 | P53: =I53 -> 0.0013 | Q53: =Q50 -> 1039.3 | R53: 1.35109 | T53: 0 | U53: 0 | W53: =P53 -> 0.0013 | X53: =X50 -> 1039.3 | Y53: 1.35109 | AA53: 0 | AB53: 0 | AD53: =W53 -> 0.0013 | AE53: =AE50 -> 1039.3 | AF53: 1.35109 | AH53: 0 | AI53: 0 | AK53: =AD53 -> 0.0013 | AL53: =AL50 -> 1039.3 | AM53: 1.35109 | AO53: 0 | AP53: 0
A54: Standard Supply Service Charge | C54: Monthly | E54: 0.25 | F54: 1 | G54: 0.25 | I54: ='Rates Summary'!C21 -> 0.25 | J54: 1 | K54: 0.25 | M54: 0 | N54: 0 | P54: =I54 -> 0.25 | Q54: 1 | R54: 0.25 | T54: 0 | U54: 0 | W54: =P54 -> 0.25 | X54: 1 | Y54: 0.25 | AA54: 0 | AB54: 0 | AD54: =W54 -> 0.25 | AE54: 1 | AF54: 0.25 | AH54: 0 | AI54: 0 | AK54: =AD54 -> 0.25 | AL54: 1 | AM54: 0.25 | AO54: 0 | AP54: 0
A55: Debt Retirement Charge (DRC) | C55: per kWh | E55: 0.007 | F55: =E18 -> 1000 | G55: 7 | I55: 0 | J55: =E18 -> 1000 | K55: 0 | M55: -7 | N55: -1 | P55: 0 | Q55: =J55 -> 1000 | R55: 0 | T55: 0 | W55: 0 | X55: =Q55 -> 1000 | Y55: 0 | AA55: 0 | AD55: 0 | AE55: =X55 -> 1000 | AF55: 0 | AH55: 0 | AK55: 0 | AL55: =AE55 -> 1000 | AM55: 0 | AO55: 0
A56: TOU - Off Peak | C56: per kWh | E56: 0.083 | F56: =0.64*$E$18 -> 640 | G56: 53.12 | I56: =E56 -> 0.083 | J56: =F56 -> 640 | K56: 53.12 | M56: 0 | N56: 0 | P56: =I56 -> 0.083 | Q56: =J56 -> 640 | R56: 53.12 | T56: 0 | U56: 0 | W56: =P56 -> 0.083 | X56: =Q56 -> 640 | Y56: 53.12 | AA56: 0 | AB56: 0 | AD56: =W56 -> 0.083 | AE56: =X56 -> 640 | AF56: 53.12 | AH56: 0 | AI56: 0 | AK56: =AD56 -> 0.083 | AL56: =AE56 -> 640 | AM56: 53.12 | AO56: 0 | AP56: 0
A57: TOU - Mid Peak | C57: per kWh | E57: 0.128 | F57: =0.18*$E$18 -> 180 | G57: 23.04 | I57: =E57 -> 0.128 | J57: =F57 -> 180 | K57: 23.04 | M57: 0 | N57: 0 | P57: =I57 -> 0.128 | Q57: 180 | R57: 23.04 | T57: 0 | U57: 0 | W57: =P57 -> 0.128 | X57: 180 | Y57: 23.04 | AA57: 0 | AB57: 0 | AD57: =W57 -> 0.128 | AE57: 180 | AF57: 23.04 | AH57: 0 | AI57: 0 | AK57: =AD57 -> 0.128 | AL57: 180 | AM57: 23.04 | AO57: 0 | AP57: 0
A58: TOU - On Peak | C58: per kWh | E58: 0.175 | F58: =0.18*$E$18 -> 180 | G58: 31.5 | I58: 0.175 | J58: =F58 -> 180 | K58: 31.5 | M58: 0 | N58: 0 | P58: 0.175 | Q58: 180 | R58: 31.5 | T58: 0 | U58: 0 | W58: 0.175 | X58: 180 | Y58: 31.5 | AA58: 0 | AB58: 0 | AD58: 0.175 | AE58: 180 | AF58: 31.5 | AH58: 0 | AI58: 0 | AK58: 0.175 | AL58: 180 | AM58: 31.5 | AO58: 0 | AP58: 0
A59: Energy - RPP - Tier 1 | C59: per kWh | E59: 0.099 | F59: =IF(AND($S$1=1, E18>=600), 600, IF(AND($S$1=1, AND(E18<600, E18>=0)), E18, IF(AND($S$1=2, E18>=1000), 1000, IF(AND($S$1=2, AND(E18<1000, E18>=0)), E18)))) -> 600 | G59: =F59*E59 -> 59.4 | I59: 0.099 | J59: =F59 -> 600 | K59: =J59*I59 -> 59.4 | M59: 0 | N59: 0 | P59: 0.099 | Q59: 600 | R59: =Q59*P59 -> 59.4 | T59: 0 | U59: 0 | W59: 0.099 | X59: 600 | Y59: =X59*W59 -> 59.4 | AA59: 0 | AB59: 0 | AD59: 0.099 | AE59: 600 | AF59: =AE59*AD59 -> 59.4 | AH59: 0 | AI59: 0 | AK59: 0.099 | AL59: 600 | AM59: =AL59*AK59 -> 59.4 | AO59: 0 | AP59: 0
A60: Energy - RPP - Tier 2 | C60: per kWh | E60: 0.116 | F60: =IF(AND($S$1=1, E18>=600), E18-600, IF(AND($S$1=1, AND(E18<600, E18>=0)), 0, IF(AND($S$1=2, E18>=1000), E18-1000, IF(AND($S$1=2, AND(E18<1000, E18>=0)), 0)))) -> 400 | G60: =F60*E60 -> 46.4 | I60: 0.116 | J60: =F60 -> 400 | K60: =J60*I60 -> 46.4 | M60: 0 | N60: 0 | P60: 0.116 | Q60: 400 | R60: =Q60*P60 -> 46.4 | T60: 0 | U60: 0 | W60: 0.116 | X60: 400 | Y60: =X60*W60 -> 46.4 | AA60: 0 | AB60: 0 | AD60: 0.116 | AE60: 400 | AF60: =AE60*AD60 -> 46.4 | AH60: 0 | AI60: 0 | AK60: 0.116 | AL60: 400 | AM60: =AL60*AK60 -> 46.4 | AO60: 0 | AP60: 0
A62: Total Bill on TOU (before Taxes) | G62: =SUM(G52:G58,G51) -> 168.695504 | K62: =SUM(K52:K58,K51) -> 155.674158 | M62: =K62-G62 -> -13.021346 | N62: =IF((G62)=0,"",(M62/G62)) -> -0.07718845904 | R62: =SUM(R52:R58,R51) -> 159.994158 | T62: =R62-K62 -> 4.32 | U62: 0.02775027054 | Y62: =SUM(Y52:Y58,Y51) -> 159.334158 | AA62: =Y62-R62 -> -0.66 | AB62: -0.00412515062 | AF62: =SUM(AF52:AF58,AF51) -> 157.814158 | AH62: =AF62-Y62 -> -1.52 | AI62: -0.009539699579 | AM62: =SUM(AM52:AM58,AM51) -> 158.424158 | AO62: =AM62-AF62 -> 0.61 | AP62: 0.003865305925
A63: HST | E63: 0.13 | G63: =G62*E63 -> 21.93041552 | I63: 0.13 | K63: =K62*I63 -> 20.23764054 | M63: -1.69277498 | N63: -0.07718845904 | P63: 0.13 | R63: =R62*P63 -> 20.79924054 | T63: =R63-K63 -> 0.5616 | U63: 0.02775027054 | W63: 0.13 | Y63: =Y62*W63 -> 20.71344054 | AA63: =Y63-R63 -> -0.0858 | AB63: -0.00412515062 | AD63: 0.13 | AF63: =AF62*AD63 -> 20.51584054 | AH63: =AF63-Y63 -> -0.1976 | AI63: -0.009539699579 | AK63: 0.13 | AM63: =AM62*AK63 -> 20.59514054 | AO63: =AM63-AF63 -> 0.0793 | AP63: 0.003865305925
A64: Total Bill (including HST) | G64: =G62+G63 -> 190.6259195 | K64: =K62+K63 -> 175.9117985 | M64: -14.71412098 | N64: -0.07718845904 | R64: =R62+R63 -> 180.7933985 | T64: 4.8816 | U64: 0.02775027054 | Y64: =Y62+Y63 -> 180.0475985 | AA64: -0.7458 | AB64: -0.00412515062 | AF64: =AF62+AF63 -> 178.3299985 | AH64: -1.7176 | AI64: -0.009539699579 | AM64: =AM62+AM63 -> 179.0192985 | AO64: 0.6893 | AP64: 0.003865305925
A65: Ontario Clean Energy Benefit 1 | G65: =ROUND(-G64*10%,2) -> -19.06 | K65: 0 | M65: 19.06 | N65: -1 | R65: 0 | T65: 0 | Y65: 0 | AA65: 0 | AF65: 0 | AH65: 0 | AM65: 0 | AO65: 0
A66: Total Bill on TOU (including OCEB) | G66: =G64+G65 -> 171.5659195 | K66: =K64+K65 -> 175.9117985 | M66: 4.34587902 | N66: 0.02533066609 | R66: =R64+R65 -> 180.7933985 | T66: 4.8816 | U66: 0.02775027054 | Y66: =Y64+Y65 -> 180.0475985 | AA66: -0.7458 | AB66: -0.00412515062 | AF66: =AF64+AF65 -> 178.3299985 | AH66: -1.7176 | AI66: -0.009539699579 | AM66: =AM64+AM65 -> 179.0192985 | AO66: 0.6893 | AP66: 0.003865305925
A68: Total Bill on RPP (before Taxes) | G68: =SUM(G59:G60,G52:G55,G51) -> 166.835504 | K68: =SUM(K59:K60,K52:K55,K51) -> 153.814158 | M68: =K68-G68 -> -13.021346 | N68: =IF((G68)=0,"",(M68/G68)) -> -0.07804901048 | R68: =SUM(R59:R60,R52:R55,R51) -> 158.134158 | T68: =R68-K68 -> 4.32 | U68: 0.0280858411 | Y68: =SUM(Y59:Y60,Y52:Y55,Y51) -> 157.474158 | AA68: =Y68-R68 -> -0.66 | AB68: -0.00417367132 | AF68: =SUM(AF59:AF60,AF52:AF55,AF51) -> 155.954158 | AH68: =AF68-Y68 -> -1.52 | AI68: -0.009652377376 | AM68: =SUM(AM59:AM60,AM52:AM55,AM51) -> 156.564158 | AO68: =AM68-AF68 -> 0.61 | AP68: 0.003911405812
A69: HST | E69: 0.13 | G69: =G68*E69 -> 21.68861552 | I69: 0.13 | K69: =K68*I69 -> 19.99584054 | M69: -1.69277498 | N69: =IF((G69)=0,"",(M69/G69)) -> -0.07804901048 | P69: 0.13 | R69: =R68*P69 -> 20.55744054 | T69: =R69-K69 -> 0.5616 | U69: 0.0280858411 | W69: 0.13 | Y69: =Y68*W69 -> 20.47164054 | AA69: =Y69-R69 -> -0.0858 | AB69: -0.00417367132 | AD69: 0.13 | AF69: =AF68*AD69 -> 20.27404054 | AH69: =AF69-Y69 -> -0.1976 | AI69: -0.009652377376 | AK69: 0.13 | AM69: =AM68*AK69 -> 20.35334054 | AO69: =AM69-AF69 -> 0.0793 | AP69: 0.003911405812
A70: Total Bill (including HST) | G70: =G68+G69 -> 188.5241195 | K70: =K68+K69 -> 173.8099985 | M70: -14.71412098 | N70: -0.07804901048 | R70: =R68+R69 -> 178.6915985 | T70: 4.8816 | U70: 0.0280858411 | Y70: =Y68+Y69 -> 177.9457985 | AA70: -0.7458 | AB70: -0.00417367132 | AF70: =AF68+AF69 -> 176.2281985 | AH70: -1.7176 | AI70: -0.009652377376 | AM70: =AM68+AM69 -> 176.9174985 | AO70: 0.6893 | AP70: 0.003911405812
A71: Ontario Clean Energy Benefit 1 | G71: =ROUND(-G70*10%,2) -> -18.85 | K71: 0 | M71: 18.85 | N71: -1 | R71: 0 | T71: 0 | Y71: 0 | AA71: 0 | AF71: 0 | AH71: 0 | AM71: 0 | AO71: 0
A72: Total Bill on RPP (including OCEB) | G72: =SUM(G70:G71) -> 169.6741195 | K72: =SUM(K70:K71) -> 173.8099985 | M72: 4.13587902 | N72: 0.02437542645 | R72: =SUM(R70:R71) -> 178.6915985 | T72: 4.8816 | U72: 0.0280858411 | Y72: =SUM(Y70:Y71) -> 177.9457985 | AA72: -0.7458 | AB72: -0.00417367132 | AF72: =SUM(AF70:AF71) -> 176.2281985 | AH72: -1.7176 | AI72: -0.009652377376 | AM72: =SUM(AM70:AM71) -> 176.9174985 | AO72: 0.6893 | AP72: 0.003911405812
A75: Loss Factor (%) | E75: 0.0344 | I75: 0.0393 | P75: 0.0393 | W75: 0.0393 | AD75: 0.0393 | AK75: 0.0393
A77: Distribution Excluding Rate Riders | E77: 2015 Current Board-Approved | I77: 2016 Test Year 1 Proposed | M77: Impact 2016 TEST vs. 2015 Bridge | P77: 2017 Test Year 2 Proposed | T77: Impact 2017 TEST 2 vs. 2016 Test 1 | W77: 2018 Test Year 3 Proposed | AA77: Impact 2018 TEST 3 vs. 2017 Test 2 | AD77: 2019 Test Year 4 Proposed | AH77: Impact 2019 TEST 4 vs. 2018 Test 3 | AK77: 2020 Test Year 5 Proposed | AO77: Impact 2020 TEST 5 vs. 2019 Test 4
C78: Charge Unit | E78: Rate | F78: Volume | G78: Charge | I78: Rate | J78: Volume | K78: Charge | M78: $ Change | N78: % Change | P78: Rate | Q78: Volume | R78: Charge | T78: $ Change | U78: % Change | W78: Rate | X78: Volume | Y78: Charge | AA78: $ Change | AB78: % Change | AD78: Rate | AE78: Volume | AF78: Charge | AH78: $ Change | AI78: % Change | AK78: Rate | AL78: Volume | AM78: Charge | AO78: $ Change | AP78: % Change
E79: ($) | G79: ($) | I79: ($) | K79: ($) | P79: ($) | R79: ($) | W79: ($) | Y79: ($) | AD79: ($) | AF79: ($) | AK79: ($) | AM79: ($)
A80: Monthly Service Charge | C80: Monthly | E80: 12.56 | F80: 1 | G80: =F80*E80 -> 12.56 | I80: ='Rates Summary'!$E$28 -> 13.98 | J80: 1 | K80: =J80*I80 -> 13.98 | M80: =K80-G80 -> 1.42 | N80: =IF((G80)=0,"",(M80/G80)) -> 0.1130573248 | P80: ='Rates Summary'!$F$28 -> 18.54 | Q80: 1 | R80: =Q80*P80 -> 18.54 | T80: =R80-K80 -> 4.56 | U80: =IF((K80)=0,"",(T80/K80)) -> 0.3261802575 | W80: ='Rates Summary'!$G$28 -> 21.88 | X80: 1 | Y80: =X80*W80 -> 21.88 | AA80: =Y80-R80 -> 3.34 | AB80: =IF((R80)=0,"",(AA80/R80)) -> 0.1801510248 | AD80: ='Rates Summary'!$H$28 -> 25.35 | AE80: 1 | AF80: =AE80*AD80 -> 25.35 | AH80: =AF80-Y80 -> 3.47 | AI80: =IF((Y80)=0,"",(AH80/Y80)) -> 0.1585923218 | AK80: ='Rates Summary'!$I$28 -> 25.96 | AL80: 1 | AM80: =AL80*AK80 -> 25.96 | AO80: =AM80-AF80 -> 0.61 | AP80: =IF((AF80)=0,"",(AO80/AF80)) -> 0.02406311637
A81: Distribution Volumetric Rate | C81: per kWh | E81: 0.0154 | F81: =$E$18 -> 1000 | G81: =F81*E81 -> 15.4 | I81: ='Rates Summary'!$E$40 -> 0.0139 | J81: =$E$18 -> 1000 | K81: =J81*I81 -> 13.9 | M81: =K81-G81 -> -1.5 | N81: =IF((G81)=0,"",(M81/G81)) -> -0.0974025974 | P81: ='Rates Summary'!$F$40 -> 0.0082 | Q81: =$E$18 -> 1000 | R81: =Q81*P81 -> 8.2 | T81: -5.7 | U81: =IF((K81)=0,"",(T81/K81)) -> -0.4100719424 | W81: ='Rates Summary'!$G$40 -> 0.0042 | X81: =$E$18 -> 1000 | Y81: =X81*W81 -> 4.2 | AA81: -4 | AB81: =IF((R81)=0,"",(AA81/R81)) -> -0.487804878 | AD81: ='Rates Summary'!$H$40 -> 0 | AE81: =$E$18 -> 1000 | AF81: =AE81*AD81 -> 0 | AH81: -4.2 | AI81: =IF((Y81)=0,"",(AH81/Y81)) -> -1 | AK81: ='Rates Summary'!$I$40 -> 0 | AL81: =$E$18 -> 1000 | AM81: =AL81*AK81 -> 0 | AO81: 0 | AP81: =IF((AF81)=0,"",(AO81/AF81)) -> 
A82: "Regular" Distribution Only | G82: =SUM(G80:G81) -> 27.96 | K82: =SUM(K80:K81) -> 27.88 | M82: -0.08 | N82: -0.002861230329 | R82: =SUM(R80:R81) -> 26.74 | T82: -1.14 | U82: -0.04088952654 | Y82: =SUM(Y80:Y81) -> 26.08 | AA82: -0.66 | AB82: -0.02468212416 | AF82: =SUM(AF80:AF81) -> 25.35 | AH82: -0.73 | AI82: -0.02799079755 | AM82: =SUM(AM80:AM81) -> 25.96 | AO82: 0.61 | AP82: 0.02406311637
B84: Residential (kWh) - 100, 250, 500, 800, 1000, 1500, 2000
B85: GS<50kW (kWh) - 1000, 2000, 5000, 10000, 15000
B86: GS>50kW (kW) - 60, 100, 500, 1000
B87: Large User - range appropriate for utility
B88: Lighting Classes and USL - 150 kWh and 1 kW, range appropriate for utility.
C90: Note that cells with the highlighted color shown to the left indicate quantities that are loss adjusted.

Sheet Bill Impact Resi 1500kWh
M1: File Number: | N1: =EBNUMBER -> EB-2015-0083 | S1: 1
M2: Exhibit: | N2: 8
M3: Tab: | N3: 4
M4: Schedule: | N4: 3
M5: Page:
N7: Settlement
M8: Date: | N8: 2015-10-20
A10: Appendix 2-W
A11: Bill Impacts
A14: Customer Class: | C14: Residential | P14: =C14 -> Residential | AK14: =P14 -> Residential
A16: TOU / non-TOU: | C16: TOU
C18: Consumption | E18: 1500 | F18: kWh
E20: 2015 Current Board-Approved | I20: 2016 Test Year 1 Proposed | M20: Impact 2016 TEST vs. 2015 Bridge | P20: 2017 Test Year 2 Proposed | T20: Impact 2017 TEST 2 vs. 2016 Test 1 | W20: 2018 Test Year 3 Proposed | AA20: Impact 2018 TEST 3 vs. 2017 Test 2 | AD20: 2019 Test Year 4 Proposed | AH20: Impact 2019 TEST 4 vs. 2018 Test 3 | AK20: 2020 Test Year 5 Proposed | AO20: Impact 2020 TEST 5 vs. 2019 Test 4
C21: Charge Unit | E21: Rate | F21: Volume | G21: Charge | I21: Rate | J21: Volume | K21: Charge | M21: $ Change | N21: % Change | P21: Rate | Q21: Volume | R21: Charge | T21: $ Change | U21: % Change | W21: Rate | X21: Volume | Y21: Charge | AA21: $ Change | AB21: % Change | AD21: Rate | AE21: Volume | AF21: Charge | AH21: $ Change | AI21: % Change | AK21: Rate | AL21: Volume | AM21: Charge | AO21: $ Change | AP21: % Change
E22: ($) | G22: ($) | I22: ($) | K22: ($) | P22: ($) | R22: ($) | W22: ($) | Y22: ($) | AD22: ($) | AF22: ($) | AK22: ($) | AM22: ($)
A23: Monthly Service Charge | C23: Monthly | E23: 12.56 | F23: 1 | G23: =F23*E23 -> 12.56 | I23: ='Rates Summary'!$E$28 -> 13.98 | J23: 1 | K23: =J23*I23 -> 13.98 | M23: =K23-G23 -> 1.42 | N23: =IF((G23)=0,"",(M23/G23)) -> 0.1130573248 | P23: ='Rates Summary'!$F$28 -> 18.54 | Q23: 1 | R23: =Q23*P23 -> 18.54 | T23: =R23-K23 -> 4.56 | U23: =IF((K23)=0,"",(T23/K23)) -> 0.3261802575 | W23: ='Rates Summary'!$G$28 -> 21.88 | X23: 1 | Y23: =X23*W23 -> 21.88 | AA23: =Y23-R23 -> 3.34 | AB23: =IF((R23)=0,"",(AA23/R23)) -> 0.1801510248 | AD23: ='Rates Summary'!$H$28 -> 25.35 | AE23: 1 | AF23: =AE23*AD23 -> 25.35 | AH23: =AF23-Y23 -> 3.47 | AI23: =IF((Y23)=0,"",(AH23/Y23)) -> 0.1585923218 | AK23: ='Rates Summary'!$I$28 -> 25.96 | AL23: 1 | AM23: =AL23*AK23 -> 25.96 | AO23: =AM23-AF23 -> 0.61 | AP23: =IF((AF23)=0,"",(AO23/AF23)) -> 0.02406311637
A24: Smart Meter (SMIRR) Rate Rider | C24: Monthly | E24: 2.63 | F24: 1 | G24: =F24*E24 -> 2.63 | I24: 0 | J24: 1 | K24: =J24*I24 -> 0 | M24: =K24-G24 -> -2.63 | N24: =IF((G24)=0,"",(M24/G24)) -> -1 | P24: 0 | Q24: 1 | R24: =Q24*P24 -> 0 | T24: 0 | U24: =IF((K24)=0,"",(T24/K24)) ->  | W24: 0 | X24: 1 | Y24: =X24*W24 -> 0 | AA24: 0 | AB24: =IF((R24)=0,"",(AA24/R24)) ->  | AD24: 0 | AE24: 1 | AF24: =AE24*AD24 -> 0 | AH24: 0 | AI24: =IF((Y24)=0,"",(AH24/Y24)) ->  | AK24: 0 | AL24: 1 | AM24: =AL24*AK24 -> 0 | AO24: 0 | AP24: =IF((AF24)=0,"",(AO24/AF24)) -> 
A25: Rate Rider Smart Meters Capital (2016) | C25: Monthly | E25: 0 | F25: 1 | G25: 0 | I25: ='Rates Summary'!C10 -> 0.25 | J25: 1 | K25: =J25*I25 -> 0.25 | M25: =K25-G25 -> 0.25 | P25: 0 | Q25: 1 | R25: =Q25*P25 -> 0 | T25: -0.25 | U25: -1 | W25: 0 | X25: 1 | Y25: =X25*W25 -> 0 | AA25: 0 | AD25: 0 | AE25: 1 | AF25: =AE25*AD25 -> 0 | AH25: 0 | AK25: 0 | AL25: 1 | AM25: =AL25*AK25 -> 0 | AO25: 0
A26: Rate Rider Recovery of Stranded Meters | C26: Monthly | E26: 0 | F26: 1 | G26: 0 | I26: ='Rates Summary'!$C11 -> 3.69 | J26: 1 | K26: 3.69 | M26: 3.69 | P26: 0 | Q26: 1 | R26: 0 | T26: -3.69 | U26: -1 | W26: 0 | X26: 1 | Y26: 0 | AA26: 0 | AD26: 0 | AE26: 1 | AF26: 0 | AH26: 0 | AK26: 0 | AL26: 1 | AM26: 0 | AO26: 0
F27: 1 | G27: 0 | J27: 1 | K27: 0 | M27: 0 | N27: =IF((G27)=0,"",(M27/G27)) ->  | Q27: 1 | R27: 0 | T27: 0 | X27: 1 | Y27: 0 | AA27: 0 | AE27: 1 | AF27: 0 | AH27: 0 | AL27: 1 | AM27: 0 | AO27: 0
F28: 1 | G28: 0 | J28: 1 | K28: 0 | M28: 0 | Q28: 1 | R28: 0 | T28: 0 | X28: 1 | Y28: 0 | AA28: 0 | AE28: 1 | AF28: 0 | AH28: 0 | AL28: 1 | AM28: 0 | AO28: 0
A29: Distribution Volumetric Rate | C29: per kWh | E29: 0.0154 | F29: =$E$18 -> 1500 | G29: =F29*E29 -> 23.1 | I29: ='Rates Summary'!$E$40 -> 0.0139 | J29: =$E$18 -> 1500 | K29: 20.85 | M29: -2.25 | N29: -0.0974025974 | P29: ='Rates Summary'!$F$40 -> 0.0082 | Q29: =$E$18 -> 1500 | R29: 12.3 | T29: -8.55 | U29: -0.4100719424 | W29: ='Rates Summary'!$G$40 -> 0.0042 | X29: =$E$18 -> 1500 | Y29: 6.3 | AA29: -6 | AB29: -0.487804878 | AD29: ='Rates Summary'!$H$40 -> 0 | AE29: =$E$18 -> 1500 | AF29: 0 | AH29: -6.3 | AI29: -1 | AK29: ='Rates Summary'!$I$40 -> 0 | AL29: =$E$18 -> 1500 | AM29: 0 | AO29: 0
A30: Rate Rider Tax Change (2015) | C30: per kWh | E30: -0.0001 | F30: =$E$18 -> 1500 | G30: =F30*E30 -> -0.15 | I30: 0 | J30: =$E$18 -> 1500 | K30: 0 | M30: 0.15 | N30: =IF((G30)=0,"",(M30/G30)) -> -1 | P30: 0 | Q30: =$E$18 -> 1500 | R30: 0 | T30: 0 | W30: 0 | X30: =$E$18 -> 1500 | Y30: 0 | AA30: 0 | AD30: 0 | AE30: =$E$18 -> 1500 | AF30: 0 | AH30: 0 | AK30: 0 | AL30: =$E$18 -> 1500 | AM30: 0 | AO30: 0
A31: LRAM VA (2016) | C31: per kWh | E31: 0 | F31: =$E$18 -> 1500 | G31: 0 | I31: ='Rates Summary'!C7 -> 0.0003 | J31: 1500 | K31: 0.45 | M31: 0.45 | P31: 0 | Q31: 1500 | R31: 0 | T31: -0.45 | U31: =IF((K31)=0,"",(T31/K31)) -> -1 | W31: 0 | X31: 1500 | Y31: 0 | AA31: 0 | AD31: 0 | AE31: 1500 | AF31: 0 | AH31: 0 | AK31: 0 | AL31: 1500 | AM31: 0 | AO31: 0
A32: Rate Rider Incremental Capital 2012 True-Up (2016) | C32: per kWh | E32: 0 | F32: =$E$18 -> 1500 | G32: 0 | I32: ='Rates Summary'!C9 -> 0.0004 | J32: 1500 | K32: 0.6 | M32: 0.6 | P32: 0 | Q32: 1500 | R32: 0 | T32: -0.6 | U32: =IF((K32)=0,"",(T32/K32)) -> -1 | W32: 0 | X32: 1500 | Y32: 0 | AA32: 0 | AD32: 0 | AE32: 1500 | AF32: 0 | AH32: 0 | AK32: 0 | AL32: 1500 | AM32: 0 | AO32: 0
C33: per kWh | E33: 0 | F33: =$E$19 -> 0 | G33: 0 | J33: =$E$19 -> 0 | K33: 0 | M33: 0 | N33: =IF((G33)=0,"",(M33/G33)) ->  | Q33: =$E$19 -> 0 | R33: 0 | T33: 0 | X33: =$E$19 -> 0 | Y33: 0 | AA33: 0 | AE33: =$E$19 -> 0 | AF33: 0 | AH33: 0 | AL33: =$E$19 -> 0 | AM33: 0 | AO33: 0
E34: 0 | F34: 1500 | G34: 0 | J34: 1500 | K34: 0 | M34: 0 | Q34: 1500 | R34: 0 | T34: 0 | X34: 1500 | Y34: 0 | AA34: 0 | AE34: 1500 | AF34: 0 | AH34: 0 | AL34: 1500 | AM34: 0 | AO34: 0
F35: 1500 | G35: 0 | J35: 1500 | K35: 0 | M35: 0 | Q35: 1500 | R35: 0 | T35: 0 | X35: 1500 | Y35: 0 | AA35: 0 | AE35: 1500 | AF35: 0 | AH35: 0 | AL35: 1500 | AM35: 0 | AO35: 0
F36: 1500 | G36: 0 | J36: 1500 | K36: 0 | M36: 0 | Q36: 1500 | R36: 0 | T36: 0 | X36: 1500 | Y36: 0 | AA36: 0 | AE36: 1500 | AF36: 0 | AH36: 0 | AL36: 1500 | AM36: 0 | AO36: 0
F37: 1500 | G37: 0 | J37: 1500 | K37: 0 | M37: 0 | Q37: 1500 | R37: 0 | T37: 0 | X37: 1500 | Y37: 0 | AA37: 0 | AE37: 1500 | AF37: 0 | AH37: 0 | AL37: 1500 | AM37: 0 | AO37: 0
F38: 1500 | G38: 0 | J38: 1500 | K38: 0 | M38: 0 | Q38: 1500 | R38: 0 | T38: 0 | X38: 1500 | Y38: 0 | AA38: 0 | AE38: 1500 | AF38: 0 | AH38: 0 | AL38: 1500 | AM38: 0 | AO38: 0
A39: Sub-Total A (excluding pass through) | G39: =SUM(G23:G38) -> 38.14 | K39: =SUM(K23:K38) -> 39.82 | M39: =K39-G39 -> 1.68 | N39: 0.04404824331 | R39: =SUM(R23:R38) -> 30.84 | T39: -8.98 | U39: -0.2255148167 | Y39: =SUM(Y23:Y38) -> 28.18 | AA39: -2.66 | AB39: -0.08625162127 | AF39: =SUM(AF23:AF38) -> 25.35 | AH39: -2.83 | AI39: -0.1004258339 | AM39: =SUM(AM23:AM38) -> 25.96 | AO39: 0.61 | AP39: 0.02406311637
A40: Deferral/Variance Account Disposition Rate Rider (2016) | C40: per kWh | E40: 0 | F40: =$E$18 -> 1500 | G40: =F40*E40 -> 0 | I40: ='Rates Summary'!C5 -> 0.0007 | J40: =$E$18 -> 1500 | K40: =J40*I40 -> 1.05 | M40: =K40-G40 -> 1.05 | N40: =IF((G40)=0,"",(M40/G40)) ->  | P40: 0 | Q40: =$E$18 -> 1500 | R40: =Q40*P40 -> 0 | T40: -1.05 | U40: -1 | W40: 0 | X40: =$E$18 -> 1500 | Y40: =X40*W40 -> 0 | AA40: 0 | AD40: 0 | AE40: =$E$18 -> 1500 | AF40: =AE40*AD40 -> 0 | AH40: 0 | AK40: 0 | AL40: =$E$18 -> 1500 | AM40: =AL40*AK40 -> 0 | AO40: 0
F41: =$E$18 -> 1500 | G41: =F41*E41 -> 0 | I41: =E41 -> 0 | J41: =$E$18 -> 1500 | K41: =J41*I41 -> 0 | M41: =K41-G41 -> 0 | N41: =IF((G41)=0,"",(M41/G41)) ->  | Q41: =$E$18 -> 1500 | R41: =Q41*P41 -> 0 | T41: 0 | X41: =$E$18 -> 1500 | Y41: =X41*W41 -> 0 | AA41: 0 | AE41: =$E$18 -> 1500 | AF41: =AE41*AD41 -> 0 | AH41: 0 | AL41: =$E$18 -> 1500 | AM41: =AL41*AK41 -> 0 | AO41: 0
A42: Rate Rider CGAAP Account 1576 (2016) | C42: per kWh | E42: 0 | F42: 1500 | G42: 0 | I42: ='Rates Summary'!$C$8 -> -0.0108 | J42: 1500 | K42: -16.2 | M42: -16.2 | P42: 0 | Q42: 1500 | R42: 0 | T42: 16.2 | U42: -1 | W42: =P42 -> 0 | X42: 1500 | Y42: 0 | AA42: 0 | AD42: =W42 -> 0 | AE42: 1500 | AF42: 0 | AH42: 0 | AK42: =AD42 -> 0 | AL42: 1500 | AM42: 0 | AO42: 0
A43: Disposition of Global Adjustment (2015) Applicable to Non-RPP Customers | C43: per kWh | E43: 0.0156 | F43: 0 | G43: 0 | I43: 0 | J43: 1500 | K43: 0 | M43: 0 | P43: 0 | Q43: 1500 | R43: 0 | T43: 0 | W43: 0 | X43: 1500 | Y43: 0 | AA43: 0 | AD43: 0 | AE43: 1500 | AF43: 0 | AH43: 0 | AK43: 0 | AL43: 1500 | AM43: 0 | AO43: 0
A44: Disposition of Global Adjustment (2016) Applicable to Non-RPP Customers | C44: per kWh | E44: 0 | F44: 1500 | G44: 0 | I44: ='Rates Summary'!C6 -> 0.0205 | J44: 0 | K44: 0 | M44: 0 | P44: 0 | Q44: 1500 | R44: 0 | T44: 0 | W44: 0 | X44: 1500 | Y44: 0 | AA44: 0 | AD44: 0 | AE44: 1500 | AF44: 0 | AH44: 0 | AK44: 0 | AL44: 1500 | AM44: 0 | AO44: 0
A45: Low Voltage Service Charge | C45: per kWh | E45: 0.0007 | F45: 1500 | G45: =F45*E45 -> 1.05 | I45: ='Rates Summary'!C15 -> 0.0012 | J45: 1500 | K45: =J45*I45 -> 1.8 | M45: =K45-G45 -> 0.75 | N45: =IF((G45)=0,"",(M45/G45)) -> 0.7142857143 | P45: =I45 -> 0.0012 | Q45: 1500 | R45: =Q45*P45 -> 1.8 | T45: =R45-K45 -> 0 | U45: 0 | W45: =P45 -> 0.0012 | X45: 1500 | Y45: =X45*W45 -> 1.8 | AA45: =Y45-R45 -> 0 | AB45: 0 | AD45: =W45 -> 0.0012 | AE45: 1500 | AF45: =AE45*AD45 -> 1.8 | AH45: =AF45-Y45 -> 0 | AI45: 0 | AK45: =AD45 -> 0.0012 | AL45: 1500 | AM45: =AL45*AK45 -> 1.8 | AO45: =AM45-AF45 -> 0 | AP45: 0
A46: Line Losses on Cost of Power | C46: per kWh | E46: =IF(ISBLANK(C16)=TRUE, 0, IF(C16="TOU", 0.64*$E$56+0.18*$E$57+0.18*$E$58, IF(AND(C16="non-TOU", F60>0), E60,E59))) -> 0.10766 | F46: =$E$18*(1+$E$75)-$E$18 -> 51.6 | G46: 5.555256 | I46: =E46 -> 0.10766 | J46: =$E$18*(1+$I$75)-$E$18 -> 58.95 | K46: 6.346557 | M46: 0.791301 | N46: 0.1424418605 | P46: =I46 -> 0.10766 | Q46: =$E$18*(1+$I$75)-$E$18 -> 58.95 | R46: =Q46*P46 -> 6.346557 | T46: =R46-K46 -> 0 | U46: 0 | W46: =P46 -> 0.10766 | X46: =$E$18*(1+$I$75)-$E$18 -> 58.95 | Y46: =X46*W46 -> 6.346557 | AA46: =Y46-R46 -> 0 | AB46: 0 | AD46: =W46 -> 0.10766 | AE46: =$E$18*(1+$I$75)-$E$18 -> 58.95 | AF46: =AE46*AD46 -> 6.346557 | AH46: =AF46-Y46 -> 0 | AI46: 0 | AK46: =AD46 -> 0.10766 | AL46: =$E$18*(1+$I$75)-$E$18 -> 58.95 | AM46: =AL46*AK46 -> 6.346557 | AO46: =AM46-AF46 -> 0 | AP46: 0
A47: Smart Meter Entity Charge | C47: Monthly | E47: 0.79 | F47: 1 | G47: =F47*E47 -> 0.79 | I47: 0.79 | J47: 1 | K47: =J47*I47 -> 0.79 | M47: =K47-G47 -> 0 | P47: 0.79 | Q47: 1 | R47: =Q47*P47 -> 0.79 | T47: =R47-K47 -> 0 | U47: 0 | W47: 0.79 | X47: 1 | Y47: =X47*W47 -> 0.79 | AA47: =Y47-R47 -> 0 | AB47: 0 | AD47: 0 | AE47: 1 | AF47: =AE47*AD47 -> 0 | AH47: =AF47-Y47 -> -0.79 | AI47: -1 | AK47: 0 | AL47: 1 | AM47: =AL47*AK47 -> 0 | AO47: =AM47-AF47 -> 0
A48: Sub-Total B - Distribution (includes Sub-Total A) | G48: =SUM(G40:G47)+G39 -> 45.535256 | K48: =SUM(K40:K47)+K39 -> 33.606557 | M48: =K48-G48 -> -11.928699 | N48: =IF((G48)=0,"",(M48/G48)) -> -0.2619662224 | R48: =SUM(R40:R47)+R39 -> 39.776557 | T48: =R48-K48 -> 6.17 | U48: 0.183595124 | Y48: =SUM(Y40:Y47)+Y39 -> 37.116557 | AA48: =Y48-R48 -> -2.66 | AB48: -0.06687356073 | AF48: =SUM(AF40:AF47)+AF39 -> 33.496557 | AH48: =AF48-Y48 -> -3.62 | AI48: -0.097530598 | AM48: =SUM(AM40:AM47)+AM39 -> 34.106557 | AO48: =AM48-AF48 -> 0.61 | AP48: 0.01821082686
A49: RTSR - Network | C49: per kWh | E49: 0.0067 | F49: =$E$18*(1+$E$75) -> 1551.6 | G49: =F49*E49 -> 10.39572 | I49: ='Rates Summary'!C17 -> 0.0071 | J49: =$E$18*(1+$I$75) -> 1558.95 | K49: =J49*I49 -> 11.068545 | M49: 0.672825 | N49: 0.06472134686 | P49: =I49 -> 0.0071 | Q49: =$E$18*(1+P75) -> 1558.95 | R49: =Q49*P49 -> 11.068545 | T49: 0 | U49: 0 | W49: =P49 -> 0.0071 | X49: =$E$18*(1+W75) -> 1558.95 | Y49: =X49*W49 -> 11.068545 | AA49: 0 | AB49: 0 | AD49: =W49 -> 0.0071 | AE49: =$E$18*(1+AD75) -> 1558.95 | AF49: =AE49*AD49 -> 11.068545 | AH49: 0 | AI49: 0 | AK49: =AD49 -> 0.0071 | AL49: =$E$18*(1+AK75) -> 1558.95 | AM49: =AL49*AK49 -> 11.068545 | AO49: 0 | AP49: 0
A50: RTSR - Line and Transformation Connection | C50: per kWh | E50: 0.0051 | F50: =F49 -> 1551.6 | G50: =F50*E50 -> 7.91316 | I50: ='Rates Summary'!C18 -> 0.0056 | J50: =J49 -> 1558.95 | K50: =J50*I50 -> 8.73012 | M50: 0.81696 | N50: 0.1032406776 | P50: =I50 -> 0.0056 | Q50: =Q49 -> 1558.95 | R50: =Q50*P50 -> 8.73012 | T50: 0 | U50: 0 | W50: =P50 -> 0.0056 | X50: =X49 -> 1558.95 | Y50: =X50*W50 -> 8.73012 | AA50: 0 | AB50: 0 | AD50: =W50 -> 0.0056 | AE50: =AE49 -> 1558.95 | AF50: =AE50*AD50 -> 8.73012 | AH50: 0 | AI50: 0 | AK50: =AD50 -> 0.0056 | AL50: =AL49 -> 1558.95 | AM50: =AL50*AK50 -> 8.73012 | AO50: 0 | AP50: 0
A51: Sub-Total C - Delivery (including Sub-Total B) | G51: =SUM(G48:G50) -> 63.844136 | K51: =SUM(K48:K50) -> 53.405222 | M51: -10.438914 | N51: -0.1635062302 | R51: =SUM(R48:R50) -> 59.575222 | T51: 6.17 | U51: 0.1155317733 | Y51: =SUM(Y48:Y50) -> 56.915222 | AA51: -2.66 | AB51: -0.04464943496 | AF51: =SUM(AF48:AF50) -> 53.295222 | AH51: -3.62 | AI51: -0.06360337134 | AM51: =SUM(AM48:AM50) -> 53.905222 | AO51: 0.61 | AP51: 0.01144567894
A52: Wholesale Market Service Charge (WMSC) | C52: per kWh | E52: 0.0044 | F52: =F50 -> 1551.6 | G52: =F52*E52 -> 6.82704 | I52: ='Rates Summary'!C19 -> 0.0044 | J52: =J50 -> 1558.95 | K52: =J52*I52 -> 6.85938 | M52: 0.03234 | N52: 0.00473704563 | P52: =I52 -> 0.0044 | Q52: =Q50 -> 1558.95 | R52: =Q52*P52 -> 6.85938 | T52: 0 | U52: 0 | W52: =P52 -> 0.0044 | X52: =X50 -> 1558.95 | Y52: =X52*W52 -> 6.85938 | AA52: 0 | AB52: 0 | AD52: =W52 -> 0.0044 | AE52: =AE50 -> 1558.95 | AF52: =AE52*AD52 -> 6.85938 | AH52: 0 | AI52: 0 | AK52: =AD52 -> 0.0044 | AL52: =AL50 -> 1558.95 | AM52: =AL52*AK52 -> 6.85938 | AO52: 0 | AP52: 0
A53: Rural and Remote Rate Protection (RRRP) | C53: per kWh | E53: 0.0013 | F53: =F50 -> 1551.6 | G53: 2.01708 | I53: ='Rates Summary'!C20 -> 0.0013 | J53: =J50 -> 1558.95 | K53: 2.026635 | M53: 0.009555 | N53: 0.00473704563 | P53: =I53 -> 0.0013 | Q53: =Q50 -> 1558.95 | R53: 2.026635 | T53: 0 | U53: 0 | W53: =P53 -> 0.0013 | X53: =X50 -> 1558.95 | Y53: 2.026635 | AA53: 0 | AB53: 0 | AD53: =W53 -> 0.0013 | AE53: =AE50 -> 1558.95 | AF53: 2.026635 | AH53: 0 | AI53: 0 | AK53: =AD53 -> 0.0013 | AL53: =AL50 -> 1558.95 | AM53: 2.026635 | AO53: 0 | AP53: 0
A54: Standard Supply Service Charge | C54: Monthly | E54: 0.25 | F54: 1 | G54: 0.25 | I54: ='Rates Summary'!C21 -> 0.25 | J54: 1 | K54: 0.25 | M54: 0 | N54: 0 | P54: =I54 -> 0.25 | Q54: 1 | R54: 0.25 | T54: 0 | U54: 0 | W54: =P54 -> 0.25 | X54: 1 | Y54: 0.25 | AA54: 0 | AB54: 0 | AD54: =W54 -> 0.25 | AE54: 1 | AF54: 0.25 | AH54: 0 | AI54: 0 | AK54: =AD54 -> 0.25 | AL54: 1 | AM54: 0.25 | AO54: 0 | AP54: 0
A55: Debt Retirement Charge (DRC) | C55: per kWh | E55: 0.007 | F55: =E18 -> 1500 | G55: 10.5 | I55: 0 | J55: =E18 -> 1500 | K55: 0 | M55: -10.5 | N55: -1 | P55: 0 | Q55: =J55 -> 1500 | R55: 0 | T55: 0 | W55: 0 | X55: =Q55 -> 1500 | Y55: 0 | AA55: 0 | AD55: 0 | AE55: =X55 -> 1500 | AF55: 0 | AH55: 0 | AK55: 0 | AL55: =AE55 -> 1500 | AM55: 0 | AO55: 0
A56: TOU - Off Peak | C56: per kWh | E56: 0.083 | F56: =0.64*$E$18 -> 960 | G56: 79.68 | I56: =E56 -> 0.083 | J56: =F56 -> 960 | K56: 79.68 | M56: 0 | N56: 0 | P56: =I56 -> 0.083 | Q56: =J56 -> 960 | R56: 79.68 | T56: 0 | U56: 0 | W56: =P56 -> 0.083 | X56: =Q56 -> 960 | Y56: 79.68 | AA56: 0 | AB56: 0 | AD56: =W56 -> 0.083 | AE56: =X56 -> 960 | AF56: 79.68 | AH56: 0 | AI56: 0 | AK56: =AD56 -> 0.083 | AL56: =AE56 -> 960 | AM56: 79.68 | AO56: 0 | AP56: 0
A57: TOU - Mid Peak | C57: per kWh | E57: 0.128 | F57: =0.18*$E$18 -> 270 | G57: 34.56 | I57: =E57 -> 0.128 | J57: =F57 -> 270 | K57: 34.56 | M57: 0 | N57: 0 | P57: =I57 -> 0.128 | Q57: 270 | R57: 34.56 | T57: 0 | U57: 0 | W57: =P57 -> 0.128 | X57: 270 | Y57: 34.56 | AA57: 0 | AB57: 0 | AD57: =W57 -> 0.128 | AE57: 270 | AF57: 34.56 | AH57: 0 | AI57: 0 | AK57: =AD57 -> 0.128 | AL57: 270 | AM57: 34.56 | AO57: 0 | AP57: 0
A58: TOU - On Peak | C58: per kWh | E58: 0.175 | F58: =0.18*$E$18 -> 270 | G58: 47.25 | I58: 0.175 | J58: =F58 -> 270 | K58: 47.25 | M58: 0 | N58: 0 | P58: 0.175 | Q58: 270 | R58: 47.25 | T58: 0 | U58: 0 | W58: 0.175 | X58: 270 | Y58: 47.25 | AA58: 0 | AB58: 0 | AD58: 0.175 | AE58: 270 | AF58: 47.25 | AH58: 0 | AI58: 0 | AK58: 0.175 | AL58: 270 | AM58: 47.25 | AO58: 0 | AP58: 0
A59: Energy - RPP - Tier 1 | C59: per kWh | E59: 0.099 | F59: =IF(AND($S$1=1, E18>=600), 600, IF(AND($S$1=1, AND(E18<600, E18>=0)), E18, IF(AND($S$1=2, E18>=1000), 1000, IF(AND($S$1=2, AND(E18<1000, E18>=0)), E18)))) -> 600 | G59: =F59*E59 -> 59.4 | I59: 0.099 | J59: =F59 -> 600 | K59: =J59*I59 -> 59.4 | M59: 0 | N59: 0 | P59: 0.099 | Q59: 600 | R59: =Q59*P59 -> 59.4 | T59: 0 | U59: 0 | W59: 0.099 | X59: 600 | Y59: =X59*W59 -> 59.4 | AA59: 0 | AB59: 0 | AD59: 0.099 | AE59: 600 | AF59: =AE59*AD59 -> 59.4 | AH59: 0 | AI59: 0 | AK59: 0.099 | AL59: 600 | AM59: =AL59*AK59 -> 59.4 | AO59: 0 | AP59: 0
A60: Energy - RPP - Tier 2 | C60: per kWh | E60: 0.116 | F60: =IF(AND($S$1=1, E18>=600), E18-600, IF(AND($S$1=1, AND(E18<600, E18>=0)), 0, IF(AND($S$1=2, E18>=1000), E18-1000, IF(AND($S$1=2, AND(E18<1000, E18>=0)), 0)))) -> 900 | G60: =F60*E60 -> 104.4 | I60: 0.116 | J60: =F60 -> 900 | K60: =J60*I60 -> 104.4 | M60: 0 | N60: 0 | P60: 0.116 | Q60: 900 | R60: =Q60*P60 -> 104.4 | T60: 0 | U60: 0 | W60: 0.116 | X60: 900 | Y60: =X60*W60 -> 104.4 | AA60: 0 | AB60: 0 | AD60: 0.116 | AE60: 900 | AF60: =AE60*AD60 -> 104.4 | AH60: 0 | AI60: 0 | AK60: 0.116 | AL60: 900 | AM60: =AL60*AK60 -> 104.4 | AO60: 0 | AP60: 0
A62: Total Bill on TOU (before Taxes) | G62: =SUM(G52:G58,G51) -> 244.928256 | K62: =SUM(K52:K58,K51) -> 224.031237 | M62: =K62-G62 -> -20.897019 | N62: =IF((G62)=0,"",(M62/G62)) -> -0.08531893927 | R62: =SUM(R52:R58,R51) -> 230.201237 | T62: =R62-K62 -> 6.17 | U62: 0.02754080227 | Y62: =SUM(Y52:Y58,Y51) -> 227.541237 | AA62: =Y62-R62 -> -2.66 | AB62: -0.01155510733 | AF62: =SUM(AF52:AF58,AF51) -> 223.921237 | AH62: =AF62-Y62 -> -3.62 | AI62: -0.01590920419 | AM62: =SUM(AM52:AM58,AM51) -> 224.531237 | AO62: =AM62-AF62 -> 0.61 | AP62: 0.002724172161
A63: HST | E63: 0.13 | G63: =G62*E63 -> 31.84067328 | I63: 0.13 | K63: =K62*I63 -> 29.12406081 | M63: -2.71661247 | N63: -0.08531893927 | P63: 0.13 | R63: =R62*P63 -> 29.92616081 | T63: =R63-K63 -> 0.8021 | U63: 0.02754080227 | W63: 0.13 | Y63: =Y62*W63 -> 29.58036081 | AA63: =Y63-R63 -> -0.3458 | AB63: -0.01155510733 | AD63: 0.13 | AF63: =AF62*AD63 -> 29.10976081 | AH63: =AF63-Y63 -> -0.4706 | AI63: -0.01590920419 | AK63: 0.13 | AM63: =AM62*AK63 -> 29.18906081 | AO63: =AM63-AF63 -> 0.0793 | AP63: 0.002724172161
A64: Total Bill (including HST) | G64: =G62+G63 -> 276.7689293 | K64: =K62+K63 -> 253.1552978 | M64: -23.61363147 | N64: -0.08531893927 | R64: =R62+R63 -> 260.1273978 | T64: 6.9721 | U64: 0.02754080227 | Y64: =Y62+Y63 -> 257.1215978 | AA64: -3.0058 | AB64: -0.01155510733 | AF64: =AF62+AF63 -> 253.0309978 | AH64: -4.0906 | AI64: -0.01590920419 | AM64: =AM62+AM63 -> 253.7202978 | AO64: 0.6893 | AP64: 0.002724172161
A65: Ontario Clean Energy Benefit 1 | G65: =ROUND(-G64*10%,2) -> -27.68 | K65: 0 | M65: 27.68 | N65: -1 | R65: 0 | T65: 0 | Y65: 0 | AA65: 0 | AF65: 0 | AH65: 0 | AM65: 0 | AO65: 0
A66: Total Bill on TOU (including OCEB) | G66: =G64+G65 -> 249.0889293 | K66: =K64+K65 -> 253.1552978 | M66: 4.06636853 | N66: 0.01632496692 | R66: =R64+R65 -> 260.1273978 | T66: 6.9721 | U66: 0.02754080227 | Y66: =Y64+Y65 -> 257.1215978 | AA66: -3.0058 | AB66: -0.01155510733 | AF66: =AF64+AF65 -> 253.0309978 | AH66: -4.0906 | AI66: -0.01590920419 | AM66: =AM64+AM65 -> 253.7202978 | AO66: 0.6893 | AP66: 0.002724172161
A68: Total Bill on RPP (before Taxes) | G68: =SUM(G59:G60,G52:G55,G51) -> 247.238256 | K68: =SUM(K59:K60,K52:K55,K51) -> 226.341237 | M68: =K68-G68 -> -20.897019 | N68: =IF((G68)=0,"",(M68/G68)) -> -0.08452178614 | R68: =SUM(R59:R60,R52:R55,R51) -> 232.511237 | T68: =R68-K68 -> 6.17 | U68: 0.02725972554 | Y68: =SUM(Y59:Y60,Y52:Y55,Y51) -> 229.851237 | AA68: =Y68-R68 -> -2.66 | AB68: -0.01144030729 | AF68: =SUM(AF59:AF60,AF52:AF55,AF51) -> 226.231237 | AH68: =AF68-Y68 -> -3.62 | AI68: -0.01574931702 | AM68: =SUM(AM59:AM60,AM52:AM55,AM51) -> 226.841237 | AO68: =AM68-AF68 -> 0.61 | AP68: 0.002696356207
A69: HST | E69: 0.13 | G69: =G68*E69 -> 32.14097328 | I69: 0.13 | K69: =K68*I69 -> 29.42436081 | M69: -2.71661247 | N69: =IF((G69)=0,"",(M69/G69)) -> -0.08452178614 | P69: 0.13 | R69: =R68*P69 -> 30.22646081 | T69: =R69-K69 -> 0.8021 | U69: 0.02725972554 | W69: 0.13 | Y69: =Y68*W69 -> 29.88066081 | AA69: =Y69-R69 -> -0.3458 | AB69: -0.01144030729 | AD69: 0.13 | AF69: =AF68*AD69 -> 29.41006081 | AH69: =AF69-Y69 -> -0.4706 | AI69: -0.01574931702 | AK69: 0.13 | AM69: =AM68*AK69 -> 29.48936081 | AO69: =AM69-AF69 -> 0.0793 | AP69: 0.002696356207
A70: Total Bill (including HST) | G70: =G68+G69 -> 279.3792293 | K70: =K68+K69 -> 255.7655978 | M70: -23.61363147 | N70: -0.08452178614 | R70: =R68+R69 -> 262.7376978 | T70: 6.9721 | U70: 0.02725972554 | Y70: =Y68+Y69 -> 259.7318978 | AA70: -3.0058 | AB70: -0.01144030729 | AF70: =AF68+AF69 -> 255.6412978 | AH70: -4.0906 | AI70: -0.01574931702 | AM70: =AM68+AM69 -> 256.3305978 | AO70: 0.6893 | AP70: 0.002696356207
A71: Ontario Clean Energy Benefit 1 | G71: =ROUND(-G70*10%,2) -> -27.94 | K71: 0 | M71: 27.94 | N71: -1 | R71: 0 | T71: 0 | Y71: 0 | AA71: 0 | AF71: 0 | AH71: 0 | AM71: 0 | AO71: 0
A72: Total Bill on RPP (including OCEB) | G72: =SUM(G70:G71) -> 251.4392293 | K72: =SUM(K70:K71) -> 255.7655978 | M72: 4.32636853 | N72: 0.0172064182 | R72: =SUM(R70:R71) -> 262.7376978 | T72: 6.9721 | U72: 0.02725972554 | Y72: =SUM(Y70:Y71) -> 259.7318978 | AA72: -3.0058 | AB72: -0.01144030729 | AF72: =SUM(AF70:AF71) -> 255.6412978 | AH72: -4.0906 | AI72: -0.01574931702 | AM72: =SUM(AM70:AM71) -> 256.3305978 | AO72: 0.6893 | AP72: 0.002696356207
A75: Loss Factor (%) | E75: 0.0344 | I75: 0.0393 | P75: 0.0393 | W75: 0.0393 | AD75: 0.0393 | AK75: 0.0393
A77: Distribution Excluding Rate Riders | E77: 2015 Current Board-Approved | I77: 2016 Test Year 1 Proposed | M77: Impact 2016 TEST vs. 2015 Bridge | P77: 2017 Test Year 2 Proposed | T77: Impact 2017 TEST 2 vs. 2016 Test 1 | W77: 2018 Test Year 3 Proposed | AA77: Impact 2018 TEST 3 vs. 2017 Test 2 | AD77: 2019 Test Year 4 Proposed | AH77: Impact 2019 TEST 4 vs. 2018 Test 3 | AK77: 2020 Test Year 5 Proposed | AO77: Impact 2020 TEST 5 vs. 2019 Test 4
C78: Charge Unit | E78: Rate | F78: Volume | G78: Charge | I78: Rate | J78: Volume | K78: Charge | M78: $ Change | N78: % Change | P78: Rate | Q78: Volume | R78: Charge | T78: $ Change | U78: % Change | W78: Rate | X78: Volume | Y78: Charge | AA78: $ Change | AB78: % Change | AD78: Rate | AE78: Volume | AF78: Charge | AH78: $ Change | AI78: % Change | AK78: Rate | AL78: Volume | AM78: Charge | AO78: $ Change | AP78: % Change
E79: ($) | G79: ($) | I79: ($) | K79: ($) | P79: ($) | R79: ($) | W79: ($) | Y79: ($) | AD79: ($) | AF79: ($) | AK79: ($) | AM79: ($)
A80: Monthly Service Charge | C80: Monthly | E80: 12.56 | F80: 1 | G80: =F80*E80 -> 12.56 | I80: ='Rates Summary'!$E$28 -> 13.98 | J80: 1 | K80: =J80*I80 -> 13.98 | M80: =K80-G80 -> 1.42 | N80: =IF((G80)=0,"",(M80/G80)) -> 0.1130573248 | P80: ='Rates Summary'!$F$28 -> 18.54 | Q80: 1 | R80: =Q80*P80 -> 18.54 | T80: =R80-K80 -> 4.56 | U80: =IF((K80)=0,"",(T80/K80)) -> 0.3261802575 | W80: ='Rates Summary'!$G$28 -> 21.88 | X80: 1 | Y80: =X80*W80 -> 21.88 | AA80: =Y80-R80 -> 3.34 | AB80: =IF((R80)=0,"",(AA80/R80)) -> 0.1801510248 | AD80: ='Rates Summary'!$H$28 -> 25.35 | AE80: 1 | AF80: =AE80*AD80 -> 25.35 | AH80: =AF80-Y80 -> 3.47 | AI80: =IF((Y80)=0,"",(AH80/Y80)) -> 0.1585923218 | AK80: ='Rates Summary'!$I$28 -> 25.96 | AL80: 1 | AM80: =AL80*AK80 -> 25.96 | AO80: =AM80-AF80 -> 0.61 | AP80: =IF((AF80)=0,"",(AO80/AF80)) -> 0.02406311637
A81: Distribution Volumetric Rate | C81: per kWh | E81: 0.0154 | F81: =$E$18 -> 1500 | G81: =F81*E81 -> 23.1 | I81: ='Rates Summary'!$E$40 -> 0.0139 | J81: =$E$18 -> 1500 | K81: =J81*I81 -> 20.85 | M81: =K81-G81 -> -2.25 | N81: =IF((G81)=0,"",(M81/G81)) -> -0.0974025974 | P81: ='Rates Summary'!$F$40 -> 0.0082 | Q81: =$E$18 -> 1500 | R81: =Q81*P81 -> 12.3 | T81: -8.55 | U81: =IF((K81)=0,"",(T81/K81)) -> -0.4100719424 | W81: ='Rates Summary'!$G$40 -> 0.0042 | X81: =$E$18 -> 1500 | Y81: =X81*W81 -> 6.3 | AA81: -6 | AB81: =IF((R81)=0,"",(AA81/R81)) -> -0.487804878 | AD81: ='Rates Summary'!$H$40 -> 0 | AE81: =$E$18 -> 1500 | AF81: =AE81*AD81 -> 0 | AH81: -6.3 | AI81: =IF((Y81)=0,"",(AH81/Y81)) -> -1 | AK81: ='Rates Summary'!$I$40 -> 0 | AL81: =$E$18 -> 1500 | AM81: =AL81*AK81 -> 0 | AO81: 0 | AP81: =IF((AF81)=0,"",(AO81/AF81)) -> 
A82: "Regular" Distribution Only | G82: =SUM(G80:G81) -> 35.66 | K82: =SUM(K80:K81) -> 34.83 | M82: -0.83 | N82: -0.02327537858 | R82: =SUM(R80:R81) -> 30.84 | T82: -3.99 | U82: -0.1145564169 | Y82: =SUM(Y80:Y81) -> 28.18 | AA82: -2.66 | AB82: -0.08625162127 | AF82: =SUM(AF80:AF81) -> 25.35 | AH82: -2.83 | AI82: -0.1004258339 | AM82: =SUM(AM80:AM81) -> 25.96 | AO82: 0.61 | AP82: 0.02406311637
B84: Residential (kWh) - 100, 250, 500, 800, 1000, 1500, 2000
B85: GS<50kW (kWh) - 1000, 2000, 5000, 10000, 15000
B86: GS>50kW (kW) - 60, 100, 500, 1000
B87: Large User - range appropriate for utility
B88: Lighting Classes and USL - 150 kWh and 1 kW, range appropriate for utility.
C90: Note that cells with the highlighted color shown to the left indicate quantities that are loss adjusted.

Sheet Bill Impact Resi 2000kWh
M1: File Number: | N1: =EBNUMBER -> EB-2015-0083 | S1: 1
M2: Exhibit: | N2: 8
M3: Tab: | N3: 4
M4: Schedule: | N4: 3
M5: Page:
N7: Settlement
M8: Date: | N8: 2015-10-20
A10: Appendix 2-W
A11: Bill Impacts
A14: Customer Class: | C14: Residential | P14: =C14 -> Residential | AK14: =P14 -> Residential
A16: TOU / non-TOU: | C16: TOU
C18: Consumption | E18: 2000 | F18: kWh
E20: 2015 Current Board-Approved | I20: 2016 Test Year 1 Proposed | M20: Impact 2016 TEST vs. 2015 Bridge | P20: 2017 Test Year 2 Proposed | T20: Impact 2017 TEST 2 vs. 2016 Test 1 | W20: 2018 Test Year 3 Proposed | AA20: Impact 2018 TEST 3 vs. 2017 Test 2 | AD20: 2019 Test Year 4 Proposed | AH20: Impact 2019 TEST 4 vs. 2018 Test 3 | AK20: 2020 Test Year 5 Proposed | AO20: Impact 2020 TEST 5 vs. 2019 Test 4
C21: Charge Unit | E21: Rate | F21: Volume | G21: Charge | I21: Rate | J21: Volume | K21: Charge | M21: $ Change | N21: % Change | P21: Rate | Q21: Volume | R21: Charge | T21: $ Change | U21: % Change | W21: Rate | X21: Volume | Y21: Charge | AA21: $ Change | AB21: % Change | AD21: Rate | AE21: Volume | AF21: Charge | AH21: $ Change | AI21: % Change | AK21: Rate | AL21: Volume | AM21: Charge | AO21: $ Change | AP21: % Change
E22: ($) | G22: ($) | I22: ($) | K22: ($) | P22: ($) | R22: ($) | W22: ($) | Y22: ($) | AD22: ($) | AF22: ($) | AK22: ($) | AM22: ($)
A23: Monthly Service Charge | C23: Monthly | E23: 12.56 | F23: 1 | G23: =F23*E23 -> 12.56 | I23: ='Rates Summary'!$E$28 -> 13.98 | J23: 1 | K23: =J23*I23 -> 13.98 | M23: =K23-G23 -> 1.42 | N23: =IF((G23)=0,"",(M23/G23)) -> 0.1130573248 | P23: ='Rates Summary'!$F$28 -> 18.54 | Q23: 1 | R23: =Q23*P23 -> 18.54 | T23: =R23-K23 -> 4.56 | U23: =IF((K23)=0,"",(T23/K23)) -> 0.3261802575 | W23: ='Rates Summary'!$G$28 -> 21.88 | X23: 1 | Y23: =X23*W23 -> 21.88 | AA23: =Y23-R23 -> 3.34 | AB23: =IF((R23)=0,"",(AA23/R23)) -> 0.1801510248 | AD23: ='Rates Summary'!$H$28 -> 25.35 | AE23: 1 | AF23: =AE23*AD23 -> 25.35 | AH23: =AF23-Y23 -> 3.47 | AI23: =IF((Y23)=0,"",(AH23/Y23)) -> 0.1585923218 | AK23: ='Rates Summary'!$I$28 -> 25.96 | AL23: 1 | AM23: =AL23*AK23 -> 25.96 | AO23: =AM23-AF23 -> 0.61 | AP23: =IF((AF23)=0,"",(AO23/AF23)) -> 0.02406311637
A24: Smart Meter (SMIRR) Rate Rider | C24: Monthly | E24: 2.63 | F24: 1 | G24: =F24*E24 -> 2.63 | I24: 0 | J24: 1 | K24: =J24*I24 -> 0 | M24: =K24-G24 -> -2.63 | N24: =IF((G24)=0,"",(M24/G24)) -> -1 | P24: 0 | Q24: 1 | R24: =Q24*P24 -> 0 | T24: 0 | U24: =IF((K24)=0,"",(T24/K24)) ->  | W24: 0 | X24: 1 | Y24: =X24*W24 -> 0 | AA24: 0 | AB24: =IF((R24)=0,"",(AA24/R24)) ->  | AD24: 0 | AE24: 1 | AF24: =AE24*AD24 -> 0 | AH24: 0 | AI24: =IF((Y24)=0,"",(AH24/Y24)) ->  | AK24: 0 | AL24: 1 | AM24: =AL24*AK24 -> 0 | AO24: 0 | AP24: =IF((AF24)=0,"",(AO24/AF24)) -> 
A25: Rate Rider Smart Meters Capital (2016) | C25: Monthly | E25: 0 | F25: 1 | G25: 0 | I25: ='Rates Summary'!C10 -> 0.25 | J25: 1 | K25: =J25*I25 -> 0.25 | M25: =K25-G25 -> 0.25 | P25: 0 | Q25: 1 | R25: =Q25*P25 -> 0 | T25: -0.25 | U25: -1 | W25: 0 | X25: 1 | Y25: =X25*W25 -> 0 | AA25: 0 | AD25: 0 | AE25: 1 | AF25: =AE25*AD25 -> 0 | AH25: 0 | AK25: 0 | AL25: 1 | AM25: =AL25*AK25 -> 0 | AO25: 0
A26: Rate Rider Recovery of Stranded Meters | C26: Monthly | E26: 0 | F26: 1 | G26: 0 | I26: ='Rates Summary'!$C11 -> 3.69 | J26: 1 | K26: 3.69 | M26: 3.69 | P26: 0 | Q26: 1 | R26: 0 | T26: -3.69 | U26: -1 | W26: 0 | X26: 1 | Y26: 0 | AA26: 0 | AD26: 0 | AE26: 1 | AF26: 0 | AH26: 0 | AK26: 0 | AL26: 1 | AM26: 0 | AO26: 0
F27: 1 | G27: 0 | J27: 1 | K27: 0 | M27: 0 | N27: =IF((G27)=0,"",(M27/G27)) ->  | Q27: 1 | R27: 0 | T27: 0 | X27: 1 | Y27: 0 | AA27: 0 | AE27: 1 | AF27: 0 | AH27: 0 | AL27: 1 | AM27: 0 | AO27: 0
F28: 1 | G28: 0 | J28: 1 | K28: 0 | M28: 0 | Q28: 1 | R28: 0 | T28: 0 | X28: 1 | Y28: 0 | AA28: 0 | AE28: 1 | AF28: 0 | AH28: 0 | AL28: 1 | AM28: 0 | AO28: 0
A29: Distribution Volumetric Rate | C29: per kWh | E29: 0.0154 | F29: =$E$18 -> 2000 | G29: =F29*E29 -> 30.8 | I29: ='Rates Summary'!$E$40 -> 0.0139 | J29: =$E$18 -> 2000 | K29: 27.8 | M29: -3 | N29: -0.0974025974 | P29: ='Rates Summary'!$F$40 -> 0.0082 | Q29: =$E$18 -> 2000 | R29: 16.4 | T29: -11.4 | U29: -0.4100719424 | W29: ='Rates Summary'!$G$40 -> 0.0042 | X29: =$E$18 -> 2000 | Y29: 8.4 | AA29: -8 | AB29: -0.487804878 | AD29: ='Rates Summary'!$H$40 -> 0 | AE29: =$E$18 -> 2000 | AF29: 0 | AH29: -8.4 | AI29: -1 | AK29: ='Rates Summary'!$I$40 -> 0 | AL29: =$E$18 -> 2000 | AM29: 0 | AO29: 0
A30: Rate Rider Tax Change (2015) | C30: per kWh | E30: -0.0001 | F30: =$E$18 -> 2000 | G30: =F30*E30 -> -0.2 | I30: 0 | J30: =$E$18 -> 2000 | K30: 0 | M30: 0.2 | N30: =IF((G30)=0,"",(M30/G30)) -> -1 | P30: 0 | Q30: =$E$18 -> 2000 | R30: 0 | T30: 0 | W30: 0 | X30: =$E$18 -> 2000 | Y30: 0 | AA30: 0 | AD30: 0 | AE30: =$E$18 -> 2000 | AF30: 0 | AH30: 0 | AK30: 0 | AL30: =$E$18 -> 2000 | AM30: 0 | AO30: 0
A31: LRAM VA (2016) | C31: per kWh | E31: 0 | F31: =$E$18 -> 2000 | G31: 0 | I31: ='Rates Summary'!C7 -> 0.0003 | J31: 2000 | K31: 0.6 | M31: 0.6 | P31: 0 | Q31: 2000 | R31: 0 | T31: -0.6 | U31: =IF((K31)=0,"",(T31/K31)) -> -1 | W31: 0 | X31: 2000 | Y31: 0 | AA31: 0 | AD31: 0 | AE31: 2000 | AF31: 0 | AH31: 0 | AK31: 0 | AL31: 2000 | AM31: 0 | AO31: 0
A32: Rate Rider Incremental Capital 2012 True-Up (2016) | C32: per kWh | E32: 0 | F32: =$E$18 -> 2000 | G32: 0 | I32: ='Rates Summary'!C9 -> 0.0004 | J32: 2000 | K32: 0.8 | M32: 0.8 | P32: 0 | Q32: 2000 | R32: 0 | T32: -0.8 | U32: =IF((K32)=0,"",(T32/K32)) -> -1 | W32: 0 | X32: 2000 | Y32: 0 | AA32: 0 | AD32: 0 | AE32: 2000 | AF32: 0 | AH32: 0 | AK32: 0 | AL32: 2000 | AM32: 0 | AO32: 0
C33: per kWh | E33: 0 | F33: =$E$19 -> 0 | G33: 0 | J33: =$E$19 -> 0 | K33: 0 | M33: 0 | N33: =IF((G33)=0,"",(M33/G33)) ->  | Q33: =$E$19 -> 0 | R33: 0 | T33: 0 | X33: =$E$19 -> 0 | Y33: 0 | AA33: 0 | AE33: =$E$19 -> 0 | AF33: 0 | AH33: 0 | AL33: =$E$19 -> 0 | AM33: 0 | AO33: 0
E34: 0 | F34: 2000 | G34: 0 | J34: 2000 | K34: 0 | M34: 0 | Q34: 2000 | R34: 0 | T34: 0 | X34: 2000 | Y34: 0 | AA34: 0 | AE34: 2000 | AF34: 0 | AH34: 0 | AL34: 2000 | AM34: 0 | AO34: 0
F35: 2000 | G35: 0 | J35: 2000 | K35: 0 | M35: 0 | Q35: 2000 | R35: 0 | T35: 0 | X35: 2000 | Y35: 0 | AA35: 0 | AE35: 2000 | AF35: 0 | AH35: 0 | AL35: 2000 | AM35: 0 | AO35: 0
F36: 2000 | G36: 0 | J36: 2000 | K36: 0 | M36: 0 | Q36: 2000 | R36: 0 | T36: 0 | X36: 2000 | Y36: 0 | AA36: 0 | AE36: 2000 | AF36: 0 | AH36: 0 | AL36: 2000 | AM36: 0 | AO36: 0
F37: 2000 | G37: 0 | J37: 2000 | K37: 0 | M37: 0 | Q37: 2000 | R37: 0 | T37: 0 | X37: 2000 | Y37: 0 | AA37: 0 | AE37: 2000 | AF37: 0 | AH37: 0 | AL37: 2000 | AM37: 0 | AO37: 0
F38: 2000 | G38: 0 | J38: 2000 | K38: 0 | M38: 0 | Q38: 2000 | R38: 0 | T38: 0 | X38: 2000 | Y38: 0 | AA38: 0 | AE38: 2000 | AF38: 0 | AH38: 0 | AL38: 2000 | AM38: 0 | AO38: 0
A39: Sub-Total A (excluding pass through) | G39: =SUM(G23:G38) -> 45.79 | K39: =SUM(K23:K38) -> 47.12 | M39: =K39-G39 -> 1.33 | N39: 0.02904564315 | R39: =SUM(R23:R38) -> 34.94 | T39: -12.18 | U39: -0.2584889643 | Y39: =SUM(Y23:Y38) -> 30.28 | AA39: -4.66 | AB39: -0.133371494 | AF39: =SUM(AF23:AF38) -> 25.35 | AH39: -4.93 | AI39: -0.1628137384 | AM39: =SUM(AM23:AM38) -> 25.96 | AO39: 0.61 | AP39: 0.02406311637
A40: Deferral/Variance Account Disposition Rate Rider (2016) | C40: per kWh | E40: 0 | F40: =$E$18 -> 2000 | G40: =F40*E40 -> 0 | I40: ='Rates Summary'!C5 -> 0.0007 | J40: =$E$18 -> 2000 | K40: =J40*I40 -> 1.4 | M40: =K40-G40 -> 1.4 | N40: =IF((G40)=0,"",(M40/G40)) ->  | P40: 0 | Q40: =$E$18 -> 2000 | R40: =Q40*P40 -> 0 | T40: -1.4 | U40: -1 | W40: 0 | X40: =$E$18 -> 2000 | Y40: =X40*W40 -> 0 | AA40: 0 | AD40: 0 | AE40: =$E$18 -> 2000 | AF40: =AE40*AD40 -> 0 | AH40: 0 | AK40: 0 | AL40: =$E$18 -> 2000 | AM40: =AL40*AK40 -> 0 | AO40: 0
F41: =$E$18 -> 2000 | G41: =F41*E41 -> 0 | I41: =E41 -> 0 | J41: =$E$18 -> 2000 | K41: =J41*I41 -> 0 | M41: =K41-G41 -> 0 | N41: =IF((G41)=0,"",(M41/G41)) ->  | Q41: =$E$18 -> 2000 | R41: =Q41*P41 -> 0 | T41: 0 | X41: =$E$18 -> 2000 | Y41: =X41*W41 -> 0 | AA41: 0 | AE41: =$E$18 -> 2000 | AF41: =AE41*AD41 -> 0 | AH41: 0 | AL41: =$E$18 -> 2000 | AM41: =AL41*AK41 -> 0 | AO41: 0
A42: Rate Rider CGAAP Account 1576 (2016) | C42: per kWh | E42: 0 | F42: 2000 | G42: 0 | I42: ='Rates Summary'!$C$8 -> -0.0108 | J42: 2000 | K42: -21.6 | M42: -21.6 | P42: 0 | Q42: 2000 | R42: 0 | T42: 21.6 | U42: -1 | W42: =P42 -> 0 | X42: 2000 | Y42: 0 | AA42: 0 | AD42: =W42 -> 0 | AE42: 2000 | AF42: 0 | AH42: 0 | AK42: =AD42 -> 0 | AL42: 2000 | AM42: 0 | AO42: 0
A43: Disposition of Global Adjustment (2015) Applicable to Non-RPP Customers | C43: per kWh | E43: 0.0156 | F43: 0 | G43: 0 | I43: 0 | J43: 2000 | K43: 0 | M43: 0 | P43: 0 | Q43: 2000 | R43: 0 | T43: 0 | W43: 0 | X43: 2000 | Y43: 0 | AA43: 0 | AD43: 0 | AE43: 2000 | AF43: 0 | AH43: 0 | AK43: 0 | AL43: 2000 | AM43: 0 | AO43: 0
A44: Disposition of Global Adjustment (2016) Applicable to Non-RPP Customers | C44: per kWh | E44: 0 | F44: 2000 | G44: 0 | I44: ='Rates Summary'!C6 -> 0.0205 | J44: 0 | K44: 0 | M44: 0 | P44: 0 | Q44: 2000 | R44: 0 | T44: 0 | W44: 0 | X44: 2000 | Y44: 0 | AA44: 0 | AD44: 0 | AE44: 2000 | AF44: 0 | AH44: 0 | AK44: 0 | AL44: 2000 | AM44: 0 | AO44: 0
A45: Low Voltage Service Charge | C45: per kWh | E45: 0.0007 | F45: 2000 | G45: =F45*E45 -> 1.4 | I45: ='Rates Summary'!C15 -> 0.0012 | J45: 2000 | K45: =J45*I45 -> 2.4 | M45: =K45-G45 -> 1 | N45: =IF((G45)=0,"",(M45/G45)) -> 0.7142857143 | P45: =I45 -> 0.0012 | Q45: 2000 | R45: =Q45*P45 -> 2.4 | T45: =R45-K45 -> 0 | U45: 0 | W45: =P45 -> 0.0012 | X45: 2000 | Y45: =X45*W45 -> 2.4 | AA45: =Y45-R45 -> 0 | AB45: 0 | AD45: =W45 -> 0.0012 | AE45: 2000 | AF45: =AE45*AD45 -> 2.4 | AH45: =AF45-Y45 -> 0 | AI45: 0 | AK45: =AD45 -> 0.0012 | AL45: 2000 | AM45: =AL45*AK45 -> 2.4 | AO45: =AM45-AF45 -> 0 | AP45: 0
A46: Line Losses on Cost of Power | C46: per kWh | E46: =IF(ISBLANK(C16)=TRUE, 0, IF(C16="TOU", 0.64*$E$56+0.18*$E$57+0.18*$E$58, IF(AND(C16="non-TOU", F60>0), E60,E59))) -> 0.10766 | F46: =$E$18*(1+$E$75)-$E$18 -> 68.8 | G46: 7.407008 | I46: =E46 -> 0.10766 | J46: =$E$18*(1+$I$75)-$E$18 -> 78.6 | K46: 8.462076 | M46: 1.055068 | N46: 0.1424418605 | P46: =I46 -> 0.10766 | Q46: =$E$18*(1+$I$75)-$E$18 -> 78.6 | R46: =Q46*P46 -> 8.462076 | T46: =R46-K46 -> 0 | U46: 0 | W46: =P46 -> 0.10766 | X46: =$E$18*(1+$I$75)-$E$18 -> 78.6 | Y46: =X46*W46 -> 8.462076 | AA46: =Y46-R46 -> 0 | AB46: 0 | AD46: =W46 -> 0.10766 | AE46: =$E$18*(1+$I$75)-$E$18 -> 78.6 | AF46: =AE46*AD46 -> 8.462076 | AH46: =AF46-Y46 -> 0 | AI46: 0 | AK46: =AD46 -> 0.10766 | AL46: =$E$18*(1+$I$75)-$E$18 -> 78.6 | AM46: =AL46*AK46 -> 8.462076 | AO46: =AM46-AF46 -> 0 | AP46: 0
A47: Smart Meter Entity Charge | C47: Monthly | E47: 0.79 | F47: 1 | G47: =F47*E47 -> 0.79 | I47: 0.79 | J47: 1 | K47: =J47*I47 -> 0.79 | M47: =K47-G47 -> 0 | P47: 0.79 | Q47: 1 | R47: =Q47*P47 -> 0.79 | T47: =R47-K47 -> 0 | U47: 0 | W47: 0.79 | X47: 1 | Y47: =X47*W47 -> 0.79 | AA47: =Y47-R47 -> 0 | AB47: 0 | AD47: 0 | AE47: 1 | AF47: =AE47*AD47 -> 0 | AH47: =AF47-Y47 -> -0.79 | AI47: -1 | AK47: 0 | AL47: 1 | AM47: =AL47*AK47 -> 0 | AO47: =AM47-AF47 -> 0
A48: Sub-Total B - Distribution (includes Sub-Total A) | G48: =SUM(G40:G47)+G39 -> 55.387008 | K48: =SUM(K40:K47)+K39 -> 38.572076 | M48: =K48-G48 -> -16.814932 | N48: =IF((G48)=0,"",(M48/G48)) -> -0.3035898238 | R48: =SUM(R40:R47)+R39 -> 46.592076 | T48: =R48-K48 -> 8.02 | U48: 0.2079224359 | Y48: =SUM(Y40:Y47)+Y39 -> 41.932076 | AA48: =Y48-R48 -> -4.66 | AB48: -0.1000170072 | AF48: =SUM(AF40:AF47)+AF39 -> 36.212076 | AH48: =AF48-Y48 -> -5.72 | AI48: -0.1364110854 | AM48: =SUM(AM40:AM47)+AM39 -> 36.822076 | AO48: =AM48-AF48 -> 0.61 | AP48: 0.01684520932
A49: RTSR - Network | C49: per kWh | E49: 0.0067 | F49: =$E$18*(1+$E$75) -> 2068.8 | G49: =F49*E49 -> 13.86096 | I49: ='Rates Summary'!C17 -> 0.0071 | J49: =$E$18*(1+$I$75) -> 2078.6 | K49: =J49*I49 -> 14.75806 | M49: 0.8971 | N49: 0.06472134686 | P49: =I49 -> 0.0071 | Q49: =$E$18*(1+P75) -> 2078.6 | R49: =Q49*P49 -> 14.75806 | T49: 0 | U49: 0 | W49: =P49 -> 0.0071 | X49: =$E$18*(1+W75) -> 2078.6 | Y49: =X49*W49 -> 14.75806 | AA49: 0 | AB49: 0 | AD49: =W49 -> 0.0071 | AE49: =$E$18*(1+AD75) -> 2078.6 | AF49: =AE49*AD49 -> 14.75806 | AH49: 0 | AI49: 0 | AK49: =AD49 -> 0.0071 | AL49: =$E$18*(1+AK75) -> 2078.6 | AM49: =AL49*AK49 -> 14.75806 | AO49: 0 | AP49: 0
A50: RTSR - Line and Transformation Connection | C50: per kWh | E50: 0.0051 | F50: =F49 -> 2068.8 | G50: =F50*E50 -> 10.55088 | I50: ='Rates Summary'!C18 -> 0.0056 | J50: =J49 -> 2078.6 | K50: =J50*I50 -> 11.64016 | M50: 1.08928 | N50: 0.1032406776 | P50: =I50 -> 0.0056 | Q50: =Q49 -> 2078.6 | R50: =Q50*P50 -> 11.64016 | T50: 0 | U50: 0 | W50: =P50 -> 0.0056 | X50: =X49 -> 2078.6 | Y50: =X50*W50 -> 11.64016 | AA50: 0 | AB50: 0 | AD50: =W50 -> 0.0056 | AE50: =AE49 -> 2078.6 | AF50: =AE50*AD50 -> 11.64016 | AH50: 0 | AI50: 0 | AK50: =AD50 -> 0.0056 | AL50: =AL49 -> 2078.6 | AM50: =AL50*AK50 -> 11.64016 | AO50: 0 | AP50: 0
A51: Sub-Total C - Delivery (including Sub-Total B) | G51: =SUM(G48:G50) -> 79.798848 | K51: =SUM(K48:K50) -> 64.970296 | M51: -14.828552 | N51: -0.1858241362 | R51: =SUM(R48:R50) -> 72.990296 | T51: 8.02 | U51: 0.123441026 | Y51: =SUM(Y48:Y50) -> 68.330296 | AA51: -4.66 | AB51: -0.06384410333 | AF51: =SUM(AF48:AF50) -> 62.610296 | AH51: -5.72 | AI51: -0.08371103793 | AM51: =SUM(AM48:AM50) -> 63.220296 | AO51: 0.61 | AP51: 0.009742806519
A52: Wholesale Market Service Charge (WMSC) | C52: per kWh | E52: 0.0044 | F52: =F50 -> 2068.8 | G52: =F52*E52 -> 9.10272 | I52: ='Rates Summary'!C19 -> 0.0044 | J52: =J50 -> 2078.6 | K52: =J52*I52 -> 9.14584 | M52: 0.04312 | N52: 0.00473704563 | P52: =I52 -> 0.0044 | Q52: =Q50 -> 2078.6 | R52: =Q52*P52 -> 9.14584 | T52: 0 | U52: 0 | W52: =P52 -> 0.0044 | X52: =X50 -> 2078.6 | Y52: =X52*W52 -> 9.14584 | AA52: 0 | AB52: 0 | AD52: =W52 -> 0.0044 | AE52: =AE50 -> 2078.6 | AF52: =AE52*AD52 -> 9.14584 | AH52: 0 | AI52: 0 | AK52: =AD52 -> 0.0044 | AL52: =AL50 -> 2078.6 | AM52: =AL52*AK52 -> 9.14584 | AO52: 0 | AP52: 0
A53: Rural and Remote Rate Protection (RRRP) | C53: per kWh | E53: 0.0013 | F53: =F50 -> 2068.8 | G53: 2.68944 | I53: ='Rates Summary'!C20 -> 0.0013 | J53: =J50 -> 2078.6 | K53: 2.70218 | M53: 0.01274 | N53: 0.00473704563 | P53: =I53 -> 0.0013 | Q53: =Q50 -> 2078.6 | R53: 2.70218 | T53: 0 | U53: 0 | W53: =P53 -> 0.0013 | X53: =X50 -> 2078.6 | Y53: 2.70218 | AA53: 0 | AB53: 0 | AD53: =W53 -> 0.0013 | AE53: =AE50 -> 2078.6 | AF53: 2.70218 | AH53: 0 | AI53: 0 | AK53: =AD53 -> 0.0013 | AL53: =AL50 -> 2078.6 | AM53: 2.70218 | AO53: 0 | AP53: 0
A54: Standard Supply Service Charge | C54: Monthly | E54: 0.25 | F54: 1 | G54: 0.25 | I54: ='Rates Summary'!C21 -> 0.25 | J54: 1 | K54: 0.25 | M54: 0 | N54: 0 | P54: =I54 -> 0.25 | Q54: 1 | R54: 0.25 | T54: 0 | U54: 0 | W54: =P54 -> 0.25 | X54: 1 | Y54: 0.25 | AA54: 0 | AB54: 0 | AD54: =W54 -> 0.25 | AE54: 1 | AF54: 0.25 | AH54: 0 | AI54: 0 | AK54: =AD54 -> 0.25 | AL54: 1 | AM54: 0.25 | AO54: 0 | AP54: 0
A55: Debt Retirement Charge (DRC) | C55: per kWh | E55: 0.007 | F55: =E18 -> 2000 | G55: 14 | I55: 0 | J55: =E18 -> 2000 | K55: 0 | M55: -14 | N55: -1 | P55: 0 | Q55: =J55 -> 2000 | R55: 0 | T55: 0 | W55: 0 | X55: =Q55 -> 2000 | Y55: 0 | AA55: 0 | AD55: 0 | AE55: =X55 -> 2000 | AF55: 0 | AH55: 0 | AK55: 0 | AL55: =AE55 -> 2000 | AM55: 0 | AO55: 0
A56: TOU - Off Peak | C56: per kWh | E56: 0.083 | F56: =0.64*$E$18 -> 1280 | G56: 106.24 | I56: =E56 -> 0.083 | J56: =F56 -> 1280 | K56: 106.24 | M56: 0 | N56: 0 | P56: =I56 -> 0.083 | Q56: =J56 -> 1280 | R56: 106.24 | T56: 0 | U56: 0 | W56: =P56 -> 0.083 | X56: =Q56 -> 1280 | Y56: 106.24 | AA56: 0 | AB56: 0 | AD56: =W56 -> 0.083 | AE56: =X56 -> 1280 | AF56: 106.24 | AH56: 0 | AI56: 0 | AK56: =AD56 -> 0.083 | AL56: =AE56 -> 1280 | AM56: 106.24 | AO56: 0 | AP56: 0
A57: TOU - Mid Peak | C57: per kWh | E57: 0.128 | F57: =0.18*$E$18 -> 360 | G57: 46.08 | I57: =E57 -> 0.128 | J57: =F57 -> 360 | K57: 46.08 | M57: 0 | N57: 0 | P57: =I57 -> 0.128 | Q57: 360 | R57: 46.08 | T57: 0 | U57: 0 | W57: =P57 -> 0.128 | X57: 360 | Y57: 46.08 | AA57: 0 | AB57: 0 | AD57: =W57 -> 0.128 | AE57: 360 | AF57: 46.08 | AH57: 0 | AI57: 0 | AK57: =AD57 -> 0.128 | AL57: 360 | AM57: 46.08 | AO57: 0 | AP57: 0
A58: TOU - On Peak | C58: per kWh | E58: 0.175 | F58: =0.18*$E$18 -> 360 | G58: 63 | I58: 0.175 | J58: =F58 -> 360 | K58: 63 | M58: 0 | N58: 0 | P58: 0.175 | Q58: 360 | R58: 63 | T58: 0 | U58: 0 | W58: 0.175 | X58: 360 | Y58: 63 | AA58: 0 | AB58: 0 | AD58: 0.175 | AE58: 360 | AF58: 63 | AH58: 0 | AI58: 0 | AK58: 0.175 | AL58: 360 | AM58: 63 | AO58: 0 | AP58: 0
A59: Energy - RPP - Tier 1 | C59: per kWh | E59: 0.099 | F59: =IF(AND($S$1=1, E18>=600), 600, IF(AND($S$1=1, AND(E18<600, E18>=0)), E18, IF(AND($S$1=2, E18>=1000), 1000, IF(AND($S$1=2, AND(E18<1000, E18>=0)), E18)))) -> 600 | G59: =F59*E59 -> 59.4 | I59: 0.099 | J59: =F59 -> 600 | K59: =J59*I59 -> 59.4 | M59: 0 | N59: 0 | P59: 0.099 | Q59: 600 | R59: =Q59*P59 -> 59.4 | T59: 0 | U59: 0 | W59: 0.099 | X59: 600 | Y59: =X59*W59 -> 59.4 | AA59: 0 | AB59: 0 | AD59: 0.099 | AE59: 600 | AF59: =AE59*AD59 -> 59.4 | AH59: 0 | AI59: 0 | AK59: 0.099 | AL59: 600 | AM59: =AL59*AK59 -> 59.4 | AO59: 0 | AP59: 0
A60: Energy - RPP - Tier 2 | C60: per kWh | E60: 0.116 | F60: =IF(AND($S$1=1, E18>=600), E18-600, IF(AND($S$1=1, AND(E18<600, E18>=0)), 0, IF(AND($S$1=2, E18>=1000), E18-1000, IF(AND($S$1=2, AND(E18<1000, E18>=0)), 0)))) -> 1400 | G60: =F60*E60 -> 162.4 | I60: 0.116 | J60: =F60 -> 1400 | K60: =J60*I60 -> 162.4 | M60: 0 | N60: 0 | P60: 0.116 | Q60: 1400 | R60: =Q60*P60 -> 162.4 | T60: 0 | U60: 0 | W60: 0.116 | X60: 1400 | Y60: =X60*W60 -> 162.4 | AA60: 0 | AB60: 0 | AD60: 0.116 | AE60: 1400 | AF60: =AE60*AD60 -> 162.4 | AH60: 0 | AI60: 0 | AK60: 0.116 | AL60: 1400 | AM60: =AL60*AK60 -> 162.4 | AO60: 0 | AP60: 0
A62: Total Bill on TOU (before Taxes) | G62: =SUM(G52:G58,G51) -> 321.161008 | K62: =SUM(K52:K58,K51) -> 292.388316 | M62: =K62-G62 -> -28.772692 | N62: =IF((G62)=0,"",(M62/G62)) -> -0.08958961793 | R62: =SUM(R52:R58,R51) -> 300.408316 | T62: =R62-K62 -> 8.02 | U62: 0.02742927662 | Y62: =SUM(Y52:Y58,Y51) -> 295.748316 | AA62: =Y62-R62 -> -4.66 | AB62: -0.01551222037 | AF62: =SUM(AF52:AF58,AF51) -> 290.028316 | AH62: =AF62-Y62 -> -5.72 | AI62: -0.01934076947 | AM62: =SUM(AM52:AM58,AM51) -> 290.638316 | AO62: =AM62-AF62 -> 0.61 | AP62: 0.002103242912
A63: HST | E63: 0.13 | G63: =G62*E63 -> 41.75093104 | I63: 0.13 | K63: =K62*I63 -> 38.01048108 | M63: -3.74044996 | N63: -0.08958961793 | P63: 0.13 | R63: =R62*P63 -> 39.05308108 | T63: =R63-K63 -> 1.0426 | U63: 0.02742927662 | W63: 0.13 | Y63: =Y62*W63 -> 38.44728108 | AA63: =Y63-R63 -> -0.6058 | AB63: -0.01551222037 | AD63: 0.13 | AF63: =AF62*AD63 -> 37.70368108 | AH63: =AF63-Y63 -> -0.7436 | AI63: -0.01934076947 | AK63: 0.13 | AM63: =AM62*AK63 -> 37.78298108 | AO63: =AM63-AF63 -> 0.0793 | AP63: 0.002103242912
A64: Total Bill (including HST) | G64: =G62+G63 -> 362.911939 | K64: =K62+K63 -> 330.3987971 | M64: -32.51314196 | N64: -0.08958961793 | R64: =R62+R63 -> 339.4613971 | T64: 9.0626 | U64: 0.02742927662 | Y64: =Y62+Y63 -> 334.1955971 | AA64: -5.2658 | AB64: -0.01551222037 | AF64: =AF62+AF63 -> 327.7319971 | AH64: -6.4636 | AI64: -0.01934076947 | AM64: =AM62+AM63 -> 328.4212971 | AO64: 0.6893 | AP64: 0.002103242912
A65: Ontario Clean Energy Benefit 1 | G65: =ROUND(-G64*10%,2) -> -36.29 | K65: 0 | M65: 36.29 | N65: -1 | R65: 0 | T65: 0 | Y65: 0 | AA65: 0 | AF65: 0 | AH65: 0 | AM65: 0 | AO65: 0
A66: Total Bill on TOU (including OCEB) | G66: =G64+G65 -> 326.621939 | K66: =K64+K65 -> 330.3987971 | M66: 3.77685804 | N66: 0.0115633936 | R66: =R64+R65 -> 339.4613971 | T66: 9.0626 | U66: 0.02742927662 | Y66: =Y64+Y65 -> 334.1955971 | AA66: -5.2658 | AB66: -0.01551222037 | AF66: =AF64+AF65 -> 327.7319971 | AH66: -6.4636 | AI66: -0.01934076947 | AM66: =AM64+AM65 -> 328.4212971 | AO66: 0.6893 | AP66: 0.002103242912
A68: Total Bill on RPP (before Taxes) | G68: =SUM(G59:G60,G52:G55,G51) -> 327.641008 | K68: =SUM(K59:K60,K52:K55,K51) -> 298.868316 | M68: =K68-G68 -> -28.772692 | N68: =IF((G68)=0,"",(M68/G68)) -> -0.08781773739 | R68: =SUM(R59:R60,R52:R55,R51) -> 306.888316 | T68: =R68-K68 -> 8.02 | U68: 0.02683456081 | Y68: =SUM(Y59:Y60,Y52:Y55,Y51) -> 302.228316 | AA68: =Y68-R68 -> -4.66 | AB68: -0.01518467715 | AF68: =SUM(AF59:AF60,AF52:AF55,AF51) -> 296.508316 | AH68: =AF68-Y68 -> -5.72 | AI68: -0.01892608898 | AM68: =SUM(AM59:AM60,AM52:AM55,AM51) -> 297.118316 | AO68: =AM68-AF68 -> 0.61 | AP68: 0.002057277881
A69: HST | E69: 0.13 | G69: =G68*E69 -> 42.59333104 | I69: 0.13 | K69: =K68*I69 -> 38.85288108 | M69: -3.74044996 | N69: =IF((G69)=0,"",(M69/G69)) -> -0.08781773739 | P69: 0.13 | R69: =R68*P69 -> 39.89548108 | T69: =R69-K69 -> 1.0426 | U69: 0.02683456081 | W69: 0.13 | Y69: =Y68*W69 -> 39.28968108 | AA69: =Y69-R69 -> -0.6058 | AB69: -0.01518467715 | AD69: 0.13 | AF69: =AF68*AD69 -> 38.54608108 | AH69: =AF69-Y69 -> -0.7436 | AI69: -0.01892608898 | AK69: 0.13 | AM69: =AM68*AK69 -> 38.62538108 | AO69: =AM69-AF69 -> 0.0793 | AP69: 0.002057277881
A70: Total Bill (including HST) | G70: =G68+G69 -> 370.234339 | K70: =K68+K69 -> 337.7211971 | M70: -32.51314196 | N70: -0.08781773739 | R70: =R68+R69 -> 346.7837971 | T70: 9.0626 | U70: 0.02683456081 | Y70: =Y68+Y69 -> 341.5179971 | AA70: -5.2658 | AB70: -0.01518467715 | AF70: =AF68+AF69 -> 335.0543971 | AH70: -6.4636 | AI70: -0.01892608898 | AM70: =AM68+AM69 -> 335.7436971 | AO70: 0.6893 | AP70: 0.002057277881
A71: Ontario Clean Energy Benefit 1 | G71: =ROUND(-G70*10%,2) -> -37.02 | K71: 0 | M71: 37.02 | N71: -1 | R71: 0 | T71: 0 | Y71: 0 | AA71: 0 | AF71: 0 | AH71: 0 | AM71: 0 | AO71: 0
A72: Total Bill on RPP (including OCEB) | G72: =SUM(G70:G71) -> 333.214339 | K72: =SUM(K70:K71) -> 337.7211971 | M72: 4.50685804 | N72: 0.01352540246 | R72: =SUM(R70:R71) -> 346.7837971 | T72: 9.0626 | U72: 0.02683456081 | Y72: =SUM(Y70:Y71) -> 341.5179971 | AA72: -5.2658 | AB72: -0.01518467715 | AF72: =SUM(AF70:AF71) -> 335.0543971 | AH72: -6.4636 | AI72: -0.01892608898 | AM72: =SUM(AM70:AM71) -> 335.7436971 | AO72: 0.6893 | AP72: 0.002057277881
A75: Loss Factor (%) | E75: 0.0344 | I75: 0.0393 | P75: 0.0393 | W75: 0.0393 | AD75: 0.0393 | AK75: 0.0393
A77: Distribution Excluding Rate Riders | E77: 2015 Current Board-Approved | I77: 2016 Test Year 1 Proposed | M77: Impact 2016 TEST vs. 2015 Bridge | P77: 2017 Test Year 2 Proposed | T77: Impact 2017 TEST 2 vs. 2016 Test 1 | W77: 2018 Test Year 3 Proposed | AA77: Impact 2018 TEST 3 vs. 2017 Test 2 | AD77: 2019 Test Year 4 Proposed | AH77: Impact 2019 TEST 4 vs. 2018 Test 3 | AK77: 2020 Test Year 5 Proposed | AO77: Impact 2020 TEST 5 vs. 2019 Test 4
C78: Charge Unit | E78: Rate | F78: Volume | G78: Charge | I78: Rate | J78: Volume | K78: Charge | M78: $ Change | N78: % Change | P78: Rate | Q78: Volume | R78: Charge | T78: $ Change | U78: % Change | W78: Rate | X78: Volume | Y78: Charge | AA78: $ Change | AB78: % Change | AD78: Rate | AE78: Volume | AF78: Charge | AH78: $ Change | AI78: % Change | AK78: Rate | AL78: Volume | AM78: Charge | AO78: $ Change | AP78: % Change
E79: ($) | G79: ($) | I79: ($) | K79: ($) | P79: ($) | R79: ($) | W79: ($) | Y79: ($) | AD79: ($) | AF79: ($) | AK79: ($) | AM79: ($)
A80: Monthly Service Charge | C80: Monthly | E80: 12.56 | F80: 1 | G80: =F80*E80 -> 12.56 | I80: ='Rates Summary'!$E$28 -> 13.98 | J80: 1 | K80: =J80*I80 -> 13.98 | M80: =K80-G80 -> 1.42 | N80: =IF((G80)=0,"",(M80/G80)) -> 0.1130573248 | P80: ='Rates Summary'!$F$28 -> 18.54 | Q80: 1 | R80: =Q80*P80 -> 18.54 | T80: =R80-K80 -> 4.56 | U80: =IF((K80)=0,"",(T80/K80)) -> 0.3261802575 | W80: ='Rates Summary'!$G$28 -> 21.88 | X80: 1 | Y80: =X80*W80 -> 21.88 | AA80: =Y80-R80 -> 3.34 | AB80: =IF((R80)=0,"",(AA80/R80)) -> 0.1801510248 | AD80: ='Rates Summary'!$H$28 -> 25.35 | AE80: 1 | AF80: =AE80*AD80 -> 25.35 | AH80: =AF80-Y80 -> 3.47 | AI80: =IF((Y80)=0,"",(AH80/Y80)) -> 0.1585923218 | AK80: ='Rates Summary'!$I$28 -> 25.96 | AL80: 1 | AM80: =AL80*AK80 -> 25.96 | AO80: =AM80-AF80 -> 0.61 | AP80: =IF((AF80)=0,"",(AO80/AF80)) -> 0.02406311637
A81: Distribution Volumetric Rate | C81: per kWh | E81: 0.0154 | F81: =$E$18 -> 2000 | G81: =F81*E81 -> 30.8 | I81: ='Rates Summary'!$E$40 -> 0.0139 | J81: =$E$18 -> 2000 | K81: =J81*I81 -> 27.8 | M81: =K81-G81 -> -3 | N81: =IF((G81)=0,"",(M81/G81)) -> -0.0974025974 | P81: ='Rates Summary'!$F$40 -> 0.0082 | Q81: =$E$18 -> 2000 | R81: =Q81*P81 -> 16.4 | T81: -11.4 | U81: =IF((K81)=0,"",(T81/K81)) -> -0.4100719424 | W81: ='Rates Summary'!$G$40 -> 0.0042 | X81: =$E$18 -> 2000 | Y81: =X81*W81 -> 8.4 | AA81: -8 | AB81: =IF((R81)=0,"",(AA81/R81)) -> -0.487804878 | AD81: ='Rates Summary'!$H$40 -> 0 | AE81: =$E$18 -> 2000 | AF81: =AE81*AD81 -> 0 | AH81: -8.4 | AI81: =IF((Y81)=0,"",(AH81/Y81)) -> -1 | AK81: ='Rates Summary'!$I$40 -> 0 | AL81: =$E$18 -> 2000 | AM81: =AL81*AK81 -> 0 | AO81: 0 | AP81: =IF((AF81)=0,"",(AO81/AF81)) -> 
A82: "Regular" Distribution Only | G82: =SUM(G80:G81) -> 43.36 | K82: =SUM(K80:K81) -> 41.78 | M82: -1.58 | N82: -0.03643911439 | R82: =SUM(R80:R81) -> 34.94 | T82: -6.84 | U82: -0.163714696 | Y82: =SUM(Y80:Y81) -> 30.28 | AA82: -4.66 | AB82: -0.133371494 | AF82: =SUM(AF80:AF81) -> 25.35 | AH82: -4.93 | AI82: -0.1628137384 | AM82: =SUM(AM80:AM81) -> 25.96 | AO82: 0.61 | AP82: 0.02406311637
B84: Residential (kWh) - 100, 250, 500, 800, 1000, 1500, 2000
B85: GS<50kW (kWh) - 1000, 2000, 5000, 10000, 15000
B86: GS>50kW (kW) - 60, 100, 500, 1000
B87: Large User - range appropriate for utility
B88: Lighting Classes and USL - 150 kWh and 1 kW, range appropriate for utility.
C90: Note that cells with the highlighted color shown to the left indicate quantities that are loss adjusted.

Sheet Bill Impact GS < 50 2000kWh
M1: File Number: | N1: =EBNUMBER -> EB-2015-0083 | S1: 1
M2: Exhibit: | N2: ='Bill Impact Resi 204kWh'!$N$2 -> 8
M3: Tab: | N3: ='Bill Impact Resi 204kWh'!$N$3 -> 4
M4: Schedule: | N4: ='Bill Impact Resi 204kWh'!$N$4 -> 3
M5: Page:
M7: Date: | N7: ='Bill Impact Resi 204kWh'!$N$7 -> Settlement
A10: Appendix 2-W
A11: Bill Impacts
A14: Customer Class: | C14: General Service Less Than 50 kW | P14: =C14 -> General Service Less Than 50 kW | AK14: =P14 -> General Service Less Than 50 kW
A16: TOU / non-TOU: | C16: TOU
C18: Consumption | E18: 2000 | F18: kWh
E20: 2015 Current Board-Approved | I20: 2016 Test Year 1 Proposed | M20: Impact 2016 TEST vs. 2015 Bridge | P20: 2017 Test Year 2 Proposed | T20: Impact 2017 TEST 2 vs. 2016 Test 1 | W20: 2018 Test Year 3 Proposed | AA20: Impact 2018 TEST 3 vs. 2017 Test 2 | AD20: 2019 Test Year 4 Proposed | AH20: Impact 2019 TEST 4 vs. 2018 Test 3 | AK20: 2020 Test Year 5 Proposed | AO20: Impact 2019 TEST 5 vs. 2019 Test 4
C21: Charge Unit | E21: Rate | F21: Volume | G21: Charge | I21: Rate | J21: Volume | K21: Charge | M21: $ Change | N21: % Change | P21: Rate | Q21: Volume | R21: Charge | T21: $ Change | U21: % Change | W21: Rate | X21: Volume | Y21: Charge | AA21: $ Change | AB21: % Change | AD21: Rate | AE21: Volume | AF21: Charge | AH21: $ Change | AI21: % Change | AK21: Rate | AL21: Volume | AM21: Charge | AO21: $ Change | AP21: % Change
E22: ($) | G22: ($) | I22: ($) | K22: ($) | P22: ($) | R22: ($) | W22: ($) | Y22: ($) | AD22: ($) | AF22: ($) | AK22: ($) | AM22: ($)
A23: Monthly Service Charge | C23: Monthly | E23: 25.85 | F23: 1 | G23: =F23*E23 -> 25.85 | I23: ='Rates Summary'!$E$29 -> 14.27 | J23: 1 | K23: =J23*I23 -> 14.27 | M23: =K23-G23 -> -11.58 | N23: =IF((G23)=0,"",(M23/G23)) -> -0.4479690522 | P23: ='Rates Summary'!$F$29 -> 14.59 | Q23: 1 | R23: =Q23*P23 -> 14.59 | T23: =R23-K23 -> 0.32 | U23: =IF((K23)=0,"",(T23/K23)) -> 0.02242466713 | W23: ='Rates Summary'!$G$29 -> 14.94 | X23: 1 | Y23: =X23*W23 -> 14.94 | AA23: =Y23-R23 -> 0.35 | AB23: =IF((R23)=0,"",(AA23/R23)) -> 0.02398903358 | AD23: ='Rates Summary'!$H$29 -> 15.22 | AE23: 1 | AF23: =AE23*AD23 -> 15.22 | AH23: =AF23-Y23 -> 0.28 | AI23: =IF((Y23)=0,"",(AH23/Y23)) -> 0.0187416332 | AK23: ='Rates Summary'!$I$29 -> 15.4 | AL23: 1 | AM23: =AL23*AK23 -> 15.4 | AO23: =AM23-AF23 -> 0.18 | AP23: =IF((AF23)=0,"",(AO23/AF23)) -> 0.01182654402
A24: Smart Meter (SMIRR) Rate Rider | C24: Monthly | E24: 3.65 | F24: 1 | G24: =F24*E24 -> 3.65 | I24: 0 | J24: 1 | K24: 0 | M24: -3.65 | N24: =IF((G24)=0,"",(M24/G24)) -> -1 | P24: 0 | Q24: 1 | R24: 0 | T24: 0 | U24: =IF((K24)=0,"",(T24/K24)) ->  | W24: 0 | X24: 1 | Y24: 0 | AA24: 0 | AB24: =IF((R24)=0,"",(AA24/R24)) ->  | AD24: 0 | AE24: 1 | AF24: 0 | AH24: 0 | AI24: =IF((Y24)=0,"",(AH24/Y24)) ->  | AK24: 0 | AL24: 1 | AM24: 0 | AO24: 0 | AP24: =IF((AF24)=0,"",(AO24/AF24)) -> 
A25: Rate Rider Smart Meters Capital (2016) | C25: Monthly | E25: 0 | F25: 1 | G25: 0 | I25: ='Rates Summary'!D10 -> 0.43 | J25: 1 | K25: 0.43 | M25: 0.43 | N25: 1 | P25: 0 | Q25: 1 | R25: 0 | T25: -0.43 | U25: -1 | W25: 0 | X25: 1 | Y25: 0 | AA25: 0 | AD25: 0 | AE25: 1 | AF25: 0 | AH25: 0 | AK25: 0 | AL25: 1 | AM25: 0 | AO25: 0
A26: Rate Rider Recovery of Stranded Meters (2016) | C26: Monthly | E26: 0 | F26: 1 | G26: 0 | I26: ='Rates Summary'!$D$11 -> 6.4 | J26: 1 | K26: 6.4 | M26: 6.4 | N26: 1 | P26: 0 | Q26: 1 | R26: 0 | T26: -6.4 | U26: -1 | W26: 0 | X26: 1 | Y26: 0 | AA26: 0 | AD26: 0 | AE26: 1 | AF26: 0 | AH26: 0 | AK26: 0 | AL26: 1 | AM26: 0 | AO26: 0
F27: 1 | G27: 0 | I27: 0 | J27: 1 | K27: 0 | M27: 0 | N27: =IF((G27)=0,"",(M27/G27)) ->  | P27: 0 | Q27: 1 | R27: 0 | T27: 0 | W27: 0 | X27: 1 | Y27: 0 | AA27: 0 | AD27: 0 | AE27: 1 | AF27: 0 | AH27: 0 | AK27: 0 | AL27: 1 | AM27: 0 | AO27: 0
F28: 1 | G28: 0 | I28: 0 | J28: 1 | K28: 0 | M28: 0 | N28: =IF((G28)=0,"",(M28/G28)) ->  | P28: 0 | Q28: 1 | R28: 0 | T28: 0 | W28: 0 | X28: 1 | Y28: 0 | AA28: 0 | AD28: 0 | AE28: 1 | AF28: 0 | AH28: 0 | AK28: 0 | AL28: 1 | AM28: 0 | AO28: 0
A29: Distribution Volumetric Rate | C29: per kWh | E29: 0.0106 | F29: =$E$18 -> 2000 | G29: 21.2 | I29: ='Rates Summary'!$E$41 -> 0.0146 | J29: =$E$18 -> 2000 | K29: =J29*I29 -> 29.2 | M29: =K29-G29 -> 8 | N29: =IF((G29)=0,"",(M29/G29)) -> 0.3773584906 | P29: ='Rates Summary'!$F$41 -> 0.0151 | Q29: =$E$18 -> 2000 | R29: =Q29*P29 -> 30.2 | T29: 1 | U29: 0.03424657534 | W29: ='Rates Summary'!$G$41 -> 0.0155 | X29: =$E$18 -> 2000 | Y29: =X29*W29 -> 31 | AA29: 0.8 | AB29: 0.02649006623 | AD29: ='Rates Summary'!$H$41 -> 0.0161 | AE29: =$E$18 -> 2000 | AF29: =AE29*AD29 -> 32.2 | AH29: 1.2 | AI29: 0.03870967742 | AK29: ='Rates Summary'!$I$41 -> 0.0166 | AL29: =$E$18 -> 2000 | AM29: =AL29*AK29 -> 33.2 | AO29: 1 | AP29: 0.03105590062
A30: Rate Rider Tax Change (2015) | C30: per kWh | E30: -0.0001 | F30: =$E$18 -> 2000 | G30: -0.2 | I30: 0 | J30: =$E$18 -> 2000 | K30: 0 | M30: 0.2 | N30: =IF((G30)=0,"",(M30/G30)) -> -1 | P30: 0 | Q30: =$E$18 -> 2000 | R30: 0 | T30: 0 | W30: 0 | X30: =$E$18 -> 2000 | Y30: 0 | AA30: 0 | AD30: 0 | AE30: =$E$18 -> 2000 | AF30: 0 | AH30: 0 | AK30: 0 | AL30: =$E$18 -> 2000 | AM30: 0 | AO30: 0
A31: LRAM VA (2016) | C31: per kWh | E31: 0 | F31: =$E$18 -> 2000 | G31: 0 | I31: ='Rates Summary'!D7 -> 0.0008 | J31: 2000 | K31: 1.6 | M31: 1.6 | N31: 1 | P31: 0 | Q31: 2000 | R31: 0 | T31: -1.6 | U31: =IF((K31)=0,"",(T31/K31)) -> -1 | W31: 0 | X31: 2000 | Y31: 0 | AA31: 0 | AD31: 0 | AE31: 2000 | AF31: 0 | AH31: 0 | AK31: 0 | AL31: 2000 | AM31: 0 | AO31: 0
A32: Rate Rider Incremental Capital 2012 True-Up (2016) | C32: per kWh | E32: 0 | F32: =$E$18 -> 2000 | G32: 0 | I32: ='Rates Summary'!D9 -> 0.0002 | J32: 2000 | K32: 0.4 | M32: 0.4 | N32: 1 | P32: 0 | Q32: 2000 | R32: 0 | T32: -0.4 | U32: =IF((K32)=0,"",(T32/K32)) -> -1 | W32: 0 | X32: 2000 | Y32: 0 | AA32: 0 | AD32: 0 | AE32: 2000 | AF32: 0 | AH32: 0 | AK32: 0 | AL32: 2000 | AM32: 0 | AO32: 0
C33: per kWh | F33: 2000 | G33: =F33*E33 -> 0 | J33: 2000 | K33: =J33*I33 -> 0 | M33: =K33-G33 -> 0 | N33: =IF((G33)=0,"",(M33/G33)) ->  | Q33: 2000 | R33: =Q33*P33 -> 0 | T33: =R33-K33 -> 0 | U33: =IF((K33)=0,"",(T33/K33)) ->  | X33: 2000 | Y33: =X33*W33 -> 0 | AA33: =Y33-R33 -> 0 | AB33: =IF((R33)=0,"",(AA33/R33)) ->  | AE33: 2000 | AF33: =AE33*AD33 -> 0 | AH33: =AF33-Y33 -> 0 | AI33: =IF((Y33)=0,"",(AH33/Y33)) ->  | AL33: 2000 | AM33: =AL33*AK33 -> 0 | AO33: =AM33-AF33 -> 0 | AP33: =IF((AF33)=0,"",(AO33/AF33)) -> 
C34: per kWh | F34: 2000 | G34: 0 | J34: 2000 | K34: 0 | M34: 0 | Q34: 2000 | R34: 0 | T34: 0 | X34: 2000 | Y34: 0 | AA34: 0 | AE34: 2000 | AF34: 0 | AH34: 0 | AL34: 2000 | AM34: 0 | AO34: 0
F35: 2000 | G35: 0 | J35: 2000 | K35: 0 | M35: 0 | Q35: 2000 | R35: 0 | T35: 0 | X35: 2000 | Y35: 0 | AA35: 0 | AE35: 2000 | AF35: 0 | AH35: 0 | AL35: 2000 | AM35: 0 | AO35: 0
F36: 2000 | G36: 0 | J36: 2000 | K36: 0 | M36: 0 | Q36: 2000 | R36: 0 | T36: 0 | X36: 2000 | Y36: 0 | AA36: 0 | AE36: 2000 | AF36: 0 | AH36: 0 | AL36: 2000 | AM36: 0 | AO36: 0
F37: 2000 | G37: 0 | J37: 2000 | K37: 0 | M37: 0 | Q37: 2000 | R37: 0 | T37: 0 | X37: 2000 | Y37: 0 | AA37: 0 | AE37: 2000 | AF37: 0 | AH37: 0 | AL37: 2000 | AM37: 0 | AO37: 0
F38: 2000 | G38: 0 | J38: 2000 | K38: 0 | M38: 0 | Q38: 2000 | R38: 0 | T38: 0 | X38: 2000 | Y38: 0 | AA38: 0 | AE38: 2000 | AF38: 0 | AH38: 0 | AL38: 2000 | AM38: 0 | AO38: 0
A39: Sub-Total A (excluding pass through) | G39: =SUM(G23:G38) -> 50.5 | K39: =SUM(K23:K38) -> 52.3 | M39: =K39-G39 -> 1.8 | N39: =IF((G39)=0,"",(M39/G39)) -> 0.03564356436 | R39: =SUM(R23:R38) -> 44.79 | T39: -7.51 | U39: -0.1435946463 | Y39: =SUM(Y23:Y38) -> 45.94 | AA39: 1.15 | AB39: 0.02567537397 | AF39: =SUM(AF23:AF38) -> 47.42 | AH39: 1.48 | AI39: =IF((Y39)=0,"",(AH39/Y39)) -> 0.03221593383 | AM39: =SUM(AM23:AM38) -> 48.6 | AO39: 1.18 | AP39: 0.02488401518
A40: Deferral/Variance Account Disposition Rate Rider (2016) | C40: per kWh | E40: 0 | F40: =$E$18 -> 2000 | G40: =F40*E40 -> 0 | I40: ='Rates Summary'!D5 -> -0.0007 | J40: =$E$18 -> 2000 | K40: =J40*I40 -> -1.4 | M40: =K40-G40 -> -1.4 | N40: 1 | P40: 0 | Q40: =$E$18 -> 2000 | R40: =Q40*P40 -> 0 | T40: 1.4 | U40: -1 | W40: 0 | X40: =$E$18 -> 2000 | Y40: =X40*W40 -> 0 | AA40: 0 | AD40: 0 | AE40: =$E$18 -> 2000 | AF40: =AE40*AD40 -> 0 | AH40: 0 | AI40: =IF((Y40)=0,"",(AH40/Y40)) ->  | AK40: 0 | AL40: =$E$18 -> 2000 | AM40: =AL40*AK40 -> 0 | AO40: 0
F41: =$E$18 -> 2000 | G41: =F41*E41 -> 0 | I41: =E41 -> 0 | J41: =$E$18 -> 2000 | K41: =J41*I41 -> 0 | M41: =K41-G41 -> 0 | N41: =IF((G41)=0,"",(M41/G41)) ->  | Q41: =$E$18 -> 2000 | R41: =Q41*P41 -> 0 | T41: 0 | X41: =$E$18 -> 2000 | Y41: =X41*W41 -> 0 | AA41: 0 | AE41: =$E$18 -> 2000 | AF41: =AE41*AD41 -> 0 | AH41: 0 | AL41: =$E$18 -> 2000 | AM41: =AL41*AK41 -> 0 | AO41: 0
A42: Rate Rider CGAAP Account 1576 (2016) | C42: per kWh | E42: 0 | F42: 2000 | G42: 0 | I42: ='Rates Summary'!$D$8 -> -0.0062 | J42: 2000 | K42: -12.4 | M42: -12.4 | N42: 1 | P42: 0 | Q42: 2000 | R42: 0 | T42: 12.4 | U42: -1 | W42: 0 | X42: 2000 | Y42: 0 | AA42: 0 | AD42: 0 | AE42: 2000 | AF42: 0 | AH42: 0 | AK42: 0 | AL42: 2000 | AM42: 0 | AO42: 0
A43: Disposition of Global Adjustment (2015) Applicable to Non-RPP Customers | C43: per kWh | E43: 0.0156 | F43: 0 | G43: 0 | I43: 0 | J43: 2000 | K43: 0 | M43: 0 | P43: 0 | Q43: 2000 | R43: 0 | T43: 0 | W43: 0 | X43: 2000 | Y43: 0 | AA43: 0 | AD43: 0 | AE43: 2000 | AF43: 0 | AH43: 0 | AK43: 0 | AL43: 2000 | AM43: 0 | AO43: 0
A44: Disposition of Global Adjustment (2016) Applicable to Non-RPP Customers | C44: per kWh | E44: 0 | F44: 2000 | G44: 0 | I44: ='Rates Summary'!D6 -> 0.0205 | J44: 0 | K44: 0 | M44: 0 | P44: 0 | Q44: 2000 | R44: 0 | T44: 0 | W44: 0 | X44: 2000 | Y44: 0 | AA44: 0 | AD44: 0 | AE44: 2000 | AF44: 0 | AH44: 0 | AK44: 0 | AL44: 2000 | AM44: 0 | AO44: 0
A45: Low Voltage Service Charge | C45: per kWh | E45: 0.0006 | F45: 2000 | G45: =F45*E45 -> 1.2 | I45: ='Rates Summary'!D15 -> 0.0011 | J45: 2000 | K45: =J45*I45 -> 2.2 | M45: =K45-G45 -> 1 | N45: =IF((G45)=0,"",(M45/G45)) -> 0.8333333333 | P45: =I45 -> 0.0011 | Q45: 2000 | R45: =Q45*P45 -> 2.2 | T45: =R45-K45 -> 0 | U45: 0 | W45: =P45 -> 0.0011 | X45: 2000 | Y45: =X45*W45 -> 2.2 | AA45: =Y45-R45 -> 0 | AB45: 0 | AD45: =W45 -> 0.0011 | AE45: 2000 | AF45: =AE45*AD45 -> 2.2 | AH45: =AF45-Y45 -> 0 | AI45: 0 | AK45: =AD45 -> 0.0011 | AL45: 2000 | AM45: =AL45*AK45 -> 2.2 | AO45: =AM45-AF45 -> 0 | AP45: 0
A46: Line Losses on Cost of Power | C46: per kWh | E46: =IF(ISBLANK(C16)=TRUE, 0, IF(C16="TOU", 0.64*$E$56+0.18*$E$57+0.18*$E$58, IF(AND(C16="non-TOU", F60>0), E60,E59))) -> 0.10766 | F46: =$E$18*(1+$E$75)-$E$18 -> 68.8 | G46: 7.407008 | I46: =0.64*$E$56+0.18*$E$57+0.18*$E$58 -> 0.10766 | J46: =$E$18*(1+$I$75)-$E$18 -> 78.6 | K46: 8.462076 | M46: 1.055068 | N46: 0.1424418605 | P46: =0.64*$E$56+0.18*$E$57+0.18*$E$58 -> 0.10766 | Q46: =$E$18*(1+$I$75)-$E$18 -> 78.6 | R46: =Q46*P46 -> 8.462076 | T46: =R46-K46 -> 0 | U46: 0 | W46: =0.64*$E$56+0.18*$E$57+0.18*$E$58 -> 0.10766 | X46: =$E$18*(1+$I$75)-$E$18 -> 78.6 | Y46: =X46*W46 -> 8.462076 | AA46: =Y46-R46 -> 0 | AB46: 0 | AD46: =0.64*$E$56+0.18*$E$57+0.18*$E$58 -> 0.10766 | AE46: =$E$18*(1+$I$75)-$E$18 -> 78.6 | AF46: =AE46*AD46 -> 8.462076 | AH46: =AF46-Y46 -> 0 | AI46: 0 | AK46: =0.64*$E$56+0.18*$E$57+0.18*$E$58 -> 0.10766 | AL46: =$E$18*(1+$I$75)-$E$18 -> 78.6 | AM46: =AL46*AK46 -> 8.462076 | AO46: =AM46-AF46 -> 0 | AP46: 0
A47: Smart Meter Entity Charge | C47: Monthly | E47: 0.79 | F47: 1 | G47: =F47*E47 -> 0.79 | I47: 0.79 | J47: 1 | K47: =J47*I47 -> 0.79 | M47: =K47-G47 -> 0 | P47: 0.79 | Q47: 1 | R47: =Q47*P47 -> 0.79 | T47: =R47-K47 -> 0 | U47: 0 | W47: 0.79 | X47: 1 | Y47: =X47*W47 -> 0.79 | AA47: =Y47-R47 -> 0 | AB47: 0 | AD47: 0 | AE47: 1 | AF47: =AE47*AD47 -> 0 | AH47: =AF47-Y47 -> -0.79 | AI47: -1 | AK47: 0 | AL47: 1 | AM47: =AL47*AK47 -> 0 | AO47: =AM47-AF47 -> 0
A48: Sub-Total B - Distribution (includes Sub-Total A) | G48: =SUM(G40:G47)+G39 -> 59.897008 | K48: =SUM(K40:K47)+K39 -> 49.952076 | M48: =K48-G48 -> -9.944932 | N48: =IF((G48)=0,"",(M48/G48)) -> -0.1660338693 | R48: =SUM(R40:R47)+R39 -> 56.242076 | T48: =R48-K48 -> 6.29 | U48: =IF((K48)=0,"",(T48/K48)) -> 0.1259206925 | Y48: =SUM(Y40:Y47)+Y39 -> 57.392076 | AA48: =Y48-R48 -> 1.15 | AB48: =IF((R48)=0,"",(AA48/R48)) -> 0.02044732488 | AF48: =SUM(AF40:AF47)+AF39 -> 58.082076 | AH48: =AF48-Y48 -> 0.69 | AI48: =IF((Y48)=0,"",(AH48/Y48)) -> 0.01202256562 | AM48: =SUM(AM40:AM47)+AM39 -> 59.262076 | AO48: =AM48-AF48 -> 1.18 | AP48: =IF((AF48)=0,"",(AO48/AF48)) -> 0.02031607823
A49: RTSR - Network | C49: per kWh | E49: 0.006 | F49: =$E$18*(1+$E$75) -> 2068.8 | G49: =F49*E49 -> 12.4128 | I49: ='Rates Summary'!D17 -> 0.0063 | J49: =$E$18*(1+$I$75) -> 2078.6 | K49: =J49*I49 -> 13.09518 | M49: =K49-G49 -> 0.68238 | N49: 0.05497389791 | P49: =I49 -> 0.0063 | Q49: =$E$18*(1+P75) -> 2078.6 | R49: =Q49*P49 -> 13.09518 | T49: 0 | U49: 0 | W49: =P49 -> 0.0063 | X49: =$E$18*(1+W75) -> 2078.6 | Y49: =X49*W49 -> 13.09518 | AA49: 0 | AB49: 0 | AD49: =W49 -> 0.0063 | AE49: =$E$18*(1+AD75) -> 2078.6 | AF49: =AE49*AD49 -> 13.09518 | AH49: 0 | AI49: 0 | AK49: =AD49 -> 0.0063 | AL49: =$E$18*(1+AK75) -> 2078.6 | AM49: =AL49*AK49 -> 13.09518 | AO49: 0 | AP49: 0
A50: RTSR - Line and Transformation Connection | C50: per kWh | E50: 0.0046 | F50: =F49 -> 2068.8 | G50: =F50*E50 -> 9.51648 | I50: ='Rates Summary'!D18 -> 0.0051 | J50: =J49 -> 2078.6 | K50: =J50*I50 -> 10.60086 | M50: 1.08438 | N50: 0.1139475941 | P50: =I50 -> 0.0051 | Q50: =Q49 -> 2078.6 | R50: =Q50*P50 -> 10.60086 | T50: 0 | U50: 0 | W50: =P50 -> 0.0051 | X50: =X49 -> 2078.6 | Y50: =X50*W50 -> 10.60086 | AA50: 0 | AB50: 0 | AD50: =W50 -> 0.0051 | AE50: =AE49 -> 2078.6 | AF50: =AE50*AD50 -> 10.60086 | AH50: 0 | AI50: 0 | AK50: =AD50 -> 0.0051 | AL50: =AL49 -> 2078.6 | AM50: =AL50*AK50 -> 10.60086 | AO50: 0 | AP50: 0
A51: Sub-Total C - Delivery (including Sub-Total B) | G51: =SUM(G48:G50) -> 81.826288 | K51: =SUM(K48:K50) -> 73.648116 | M51: -8.178172 | N51: -0.0999455334 | R51: =SUM(R48:R50) -> 79.938116 | T51: 6.29 | U51: 0.08540612227 | Y51: =SUM(Y48:Y50) -> 81.088116 | AA51: 1.15 | AB51: 0.01438612839 | AF51: =SUM(AF48:AF50) -> 81.778116 | AH51: 0.69 | AI51: 0.008509261702 | AM51: =SUM(AM48:AM50) -> 82.958116 | AO51: 1.18 | AP51: 0.01442928815
A52: Wholesale Market Service Charge (WMSC) | C52: per kWh | E52: 0.0044 | F52: =F50 -> 2068.8 | G52: =F52*E52 -> 9.10272 | I52: =E52 -> 0.0044 | J52: =J50 -> 2078.6 | K52: =J52*I52 -> 9.14584 | M52: 0.04312 | N52: 0.00473704563 | P52: =I52 -> 0.0044 | Q52: =Q50 -> 2078.6 | R52: =Q52*P52 -> 9.14584 | T52: 0 | U52: 0 | W52: =P52 -> 0.0044 | X52: =X50 -> 2078.6 | Y52: =X52*W52 -> 9.14584 | AA52: 0 | AB52: 0 | AD52: =W52 -> 0.0044 | AE52: =AE50 -> 2078.6 | AF52: =AE52*AD52 -> 9.14584 | AH52: 0 | AI52: 0 | AK52: =AD52 -> 0.0044 | AL52: =AL50 -> 2078.6 | AM52: =AL52*AK52 -> 9.14584 | AO52: 0 | AP52: 0
A53: Rural and Remote Rate Protection (RRRP) | C53: per kWh | E53: 0.0013 | F53: =F50 -> 2068.8 | G53: 2.68944 | I53: =E53 -> 0.0013 | J53: =J50 -> 2078.6 | K53: 2.70218 | M53: 0.01274 | N53: 0.00473704563 | P53: =I53 -> 0.0013 | Q53: =Q50 -> 2078.6 | R53: 2.70218 | T53: 0 | U53: 0 | W53: =P53 -> 0.0013 | X53: =X50 -> 2078.6 | Y53: 2.70218 | AA53: 0 | AB53: 0 | AD53: =W53 -> 0.0013 | AE53: =AE50 -> 2078.6 | AF53: 2.70218 | AH53: 0 | AI53: 0 | AK53: =AD53 -> 0.0013 | AL53: =AL50 -> 2078.6 | AM53: 2.70218 | AO53: 0 | AP53: 0
A54: Standard Supply Service Charge | C54: Monthly | E54: 0.25 | F54: 1 | G54: 0.25 | I54: =E54 -> 0.25 | J54: 1 | K54: 0.25 | M54: 0 | N54: 0 | P54: =I54 -> 0.25 | Q54: 1 | R54: 0.25 | T54: 0 | U54: 0 | W54: =P54 -> 0.25 | X54: 1 | Y54: 0.25 | AA54: 0 | AB54: 0 | AD54: =W54 -> 0.25 | AE54: 1 | AF54: 0.25 | AH54: 0 | AI54: 0 | AK54: =AD54 -> 0.25 | AL54: 1 | AM54: 0.25 | AO54: 0 | AP54: 0
A55: Debt Retirement Charge (DRC) | C55: per kWh | E55: 0.007 | F55: =E18 -> 2000 | G55: 14 | I55: =E55 -> 0.007 | J55: =E18 -> 2000 | K55: 14 | M55: 0 | N55: 0 | P55: =I55 -> 0.007 | Q55: =J55 -> 2000 | R55: 14 | T55: 0 | U55: 0 | W55: =P55 -> 0.007 | X55: =Q55 -> 2000 | Y55: 14 | AA55: 0 | AB55: 0 | AD55: =W55 -> 0.007 | AE55: =X55 -> 2000 | AF55: 14 | AH55: 0 | AI55: 0 | AK55: =AD55 -> 0.007 | AL55: =AE55 -> 2000 | AM55: 14 | AO55: 0 | AP55: 0
A56: TOU - Off Peak | C56: per kWh | E56: 0.083 | F56: =0.64*$E$18 -> 1280 | G56: 106.24 | I56: =E56 -> 0.083 | J56: =F56 -> 1280 | K56: 106.24 | M56: 0 | N56: 0 | P56: =I56 -> 0.083 | Q56: =J56 -> 1280 | R56: 106.24 | T56: 0 | U56: 0 | W56: =P56 -> 0.083 | X56: =Q56 -> 1280 | Y56: 106.24 | AA56: 0 | AB56: 0 | AD56: =W56 -> 0.083 | AE56: =X56 -> 1280 | AF56: 106.24 | AH56: 0 | AI56: 0 | AK56: =AD56 -> 0.083 | AL56: =AE56 -> 1280 | AM56: 106.24 | AO56: 0 | AP56: 0
A57: TOU - Mid Peak | C57: per kWh | E57: 0.128 | F57: =0.18*$E$18 -> 360 | G57: 46.08 | I57: =E57 -> 0.128 | J57: =F57 -> 360 | K57: 46.08 | M57: 0 | N57: 0 | P57: =I57 -> 0.128 | Q57: 360 | R57: 46.08 | T57: 0 | U57: 0 | W57: =P57 -> 0.128 | X57: 360 | Y57: 46.08 | AA57: 0 | AB57: 0 | AD57: =W57 -> 0.128 | AE57: 360 | AF57: 46.08 | AH57: 0 | AI57: 0 | AK57: =AD57 -> 0.128 | AL57: 360 | AM57: 46.08 | AO57: 0 | AP57: 0
A58: TOU - On Peak | C58: per kWh | E58: 0.175 | F58: =0.18*$E$18 -> 360 | G58: 63 | I58: 0.175 | J58: =F58 -> 360 | K58: 63 | M58: 0 | N58: 0 | P58: 0.175 | Q58: 360 | R58: 63 | T58: 0 | U58: 0 | W58: 0.175 | X58: 360 | Y58: 63 | AA58: 0 | AB58: 0 | AD58: 0.175 | AE58: 360 | AF58: 63 | AH58: 0 | AI58: 0 | AK58: 0.175 | AL58: 360 | AM58: 63 | AO58: 0 | AP58: 0
A59: Energy - RPP - Tier 1 | C59: per kWh | E59: 0.099 | F59: =IF(AND($S$1=1, E18>=600), 600, IF(AND($S$1=1, AND(E18<600, E18>=0)), E18, IF(AND($S$1=2, E18>=1000), 1000, IF(AND($S$1=2, AND(E18<1000, E18>=0)), E18)))) -> 600 | G59: =F59*E59 -> 59.4 | I59: 0.099 | J59: =F59 -> 600 | K59: =J59*I59 -> 59.4 | M59: 0 | N59: 0 | P59: 0.099 | Q59: 600 | R59: =Q59*P59 -> 59.4 | T59: 0 | U59: 0 | W59: 0.099 | X59: 600 | Y59: =X59*W59 -> 59.4 | AA59: 0 | AB59: 0 | AD59: 0.099 | AE59: 600 | AF59: =AE59*AD59 -> 59.4 | AH59: 0 | AI59: 0 | AK59: 0.099 | AL59: 600 | AM59: =AL59*AK59 -> 59.4 | AO59: 0 | AP59: 0
A60: Energy - RPP - Tier 2 | C60: per kWh | E60: 0.116 | F60: =IF(AND($S$1=1, E18>=600), E18-600, IF(AND($S$1=1, AND(E18<600, E18>=0)), 0, IF(AND($S$1=2, E18>=1000), E18-1000, IF(AND($S$1=2, AND(E18<1000, E18>=0)), 0)))) -> 1400 | G60: =F60*E60 -> 162.4 | I60: 0.116 | J60: =F60 -> 1400 | K60: =J60*I60 -> 162.4 | M60: 0 | N60: 0 | P60: 0.116 | Q60: 1400 | R60: =Q60*P60 -> 162.4 | T60: 0 | U60: 0 | W60: 0.116 | X60: 1400 | Y60: =X60*W60 -> 162.4 | AA60: 0 | AB60: 0 | AD60: 0.116 | AE60: 1400 | AF60: =AE60*AD60 -> 162.4 | AH60: 0 | AI60: 0 | AK60: 0.116 | AL60: 1400 | AM60: =AL60*AK60 -> 162.4 | AO60: 0 | AP60: 0
A62: Total Bill on TOU (before Taxes) | G62: =SUM(G52:G58,G51) -> 323.188448 | K62: =SUM(K52:K58,K51) -> 315.066136 | M62: =K62-G62 -> -8.122312 | N62: =IF((G62)=0,"",(M62/G62)) -> -0.02513181412 | R62: =SUM(R52:R58,R51) -> 321.356136 | T62: =R62-K62 -> 6.29 | U62: 0.0199640624 | Y62: =SUM(Y52:Y58,Y51) -> 322.506136 | AA62: =Y62-R62 -> 1.15 | AB62: 0.003578584228 | AF62: =SUM(AF52:AF58,AF51) -> 323.196136 | AH62: =AF62-Y62 -> 0.69 | AI62: 0.002139494177 | AM62: =SUM(AM52:AM58,AM51) -> 324.376136 | AO62: =AM62-AF62 -> 1.18 | AP62: 0.003651033749
A63: HST | E63: 0.13 | G63: =G62*E63 -> 42.01449824 | I63: 0.13 | K63: =K62*I63 -> 40.95859768 | M63: -1.05590056 | N63: -0.02513181412 | P63: 0.13 | R63: =R62*P63 -> 41.77629768 | T63: =R63-K63 -> 0.8177 | U63: 0.0199640624 | W63: 0.13 | Y63: =Y62*W63 -> 41.92579768 | AA63: =Y63-R63 -> 0.1495 | AB63: 0.003578584228 | AD63: 0.13 | AF63: =AF62*AD63 -> 42.01549768 | AH63: =AF63-Y63 -> 0.0897 | AI63: 0.002139494177 | AK63: 0.13 | AM63: =AM62*AK63 -> 42.16889768 | AO63: =AM63-AF63 -> 0.1534 | AP63: 0.003651033749
A64: Total Bill (including HST) | G64: =G62+G63 -> 365.2029462 | K64: =K62+K63 -> 356.0247337 | M64: -9.17821256 | N64: -0.02513181412 | R64: =R62+R63 -> 363.1324337 | T64: 7.1077 | U64: 0.0199640624 | Y64: =Y62+Y63 -> 364.4319337 | AA64: 1.2995 | AB64: 0.003578584228 | AF64: =AF62+AF63 -> 365.2116337 | AH64: 0.7797 | AI64: 0.002139494177 | AM64: =AM62+AM63 -> 366.5450337 | AO64: 1.3334 | AP64: 0.003651033749
A65: Ontario Clean Energy Benefit 1 | G65: =ROUND(-G64*10%,2) -> -36.52 | M65: 36.52 | N65: -1 | T65: 0 | AA65: 0 | AH65: 0 | AO65: 0
A66: Total Bill on TOU (including OCEB) | G66: =G64+G65 -> 328.6829462 | K66: =K64+K65 -> 356.0247337 | M66: 27.34178744 | N66: 0.08318590226 | R66: =R64+R65 -> 363.1324337 | T66: 7.1077 | U66: 0.0199640624 | Y66: =Y64+Y65 -> 364.4319337 | AA66: 1.2995 | AB66: 0.003578584228 | AF66: =AF64+AF65 -> 365.2116337 | AH66: 0.7797 | AI66: 0.002139494177 | AM66: =AM64+AM65 -> 366.5450337 | AO66: 1.3334 | AP66: 0.003651033749
A68: Total Bill on RPP (before Taxes) | G68: =SUM(G60:G61,G51,G52:G55) -> 270.268448 | K68: =SUM(K60:K61,K51,K52:K55) -> 262.146136 | M68: =K68-G68 -> -8.122312 | N68: =IF((G68)=0,"",(M68/G68)) -> -0.03005275703 | R68: =SUM(R60:R61,R51,R52:R55) -> 268.436136 | T68: =R68-K68 -> 6.29 | U68: 0.02399425029 | Y68: =SUM(Y60:Y61,Y51,Y52:Y55) -> 269.586136 | AA68: =Y68-R68 -> 1.15 | AB68: 0.004284072991 | AF68: =SUM(AF60:AF61,AF51,AF52:AF55) -> 270.276136 | AH68: =AF68-Y68 -> 0.69 | AI68: 0.0025594788 | AM68: =SUM(AM60:AM61,AM51,AM52:AM55) -> 271.456136 | AO68: =AM68-AF68 -> 1.18 | AP68: 0.004365905246
A69: HST | E69: 0.13 | G69: =G68*E69 -> 35.13489824 | I69: 0.13 | K69: =K68*I69 -> 34.07899768 | M69: -1.05590056 | N69: =IF((G69)=0,"",(M69/G69)) -> -0.03005275703 | P69: 0.13 | R69: =R68*P69 -> 34.89669768 | T69: =R69-K69 -> 0.8177 | U69: 0.02399425029 | W69: 0.13 | Y69: =Y68*W69 -> 35.04619768 | AA69: =Y69-R69 -> 0.1495 | AB69: 0.004284072991 | AD69: 0.13 | AF69: =AF68*AD69 -> 35.13589768 | AH69: =AF69-Y69 -> 0.0897 | AI69: 0.0025594788 | AK69: 0.13 | AM69: =AM68*AK69 -> 35.28929768 | AO69: =AM69-AF69 -> 0.1534 | AP69: 0.004365905246
A70: Total Bill (including HST) | G70: =G68+G69 -> 305.4033462 | K70: =K68+K69 -> 296.2251337 | M70: -9.17821256 | N70: -0.03005275703 | R70: =R68+R69 -> 303.3328337 | T70: 7.1077 | U70: 0.02399425029 | Y70: =Y68+Y69 -> 304.6323337 | AA70: 1.2995 | AB70: 0.004284072991 | AF70: =AF68+AF69 -> 305.4120337 | AH70: 0.7797 | AI70: 0.0025594788 | AM70: =AM68+AM69 -> 306.7454337 | AO70: 1.3334 | AP70: 0.004365905246
A71: Ontario Clean Energy Benefit 1 | G71: =ROUND(-G70*10%,2) -> -30.54 | M71: 30.54 | N71: -1 | T71: 0 | AA71: 0 | AH71: 0 | AO71: 0
A72: Total Bill on RPP (including OCEB) | G72: =SUM(G70:G71) -> 274.8633462 | K72: =SUM(K70:K71) -> 296.2251337 | M72: 21.36178744 | N72: 0.07771784682 | R72: =SUM(R70:R71) -> 303.3328337 | T72: 7.1077 | U72: 0.02399425029 | Y72: =SUM(Y70:Y71) -> 304.6323337 | AA72: 1.2995 | AB72: 0.004284072991 | AF72: =SUM(AF70:AF71) -> 305.4120337 | AH72: 0.7797 | AI72: 0.0025594788 | AM72: =SUM(AM70:AM71) -> 306.7454337 | AO72: 1.3334 | AP72: 0.004365905246
A75: Loss Factor (%) | E75: 0.0344 | I75: 0.0393 | P75: 0.0393 | W75: 0.0393 | AD75: 0.0393 | AK75: 0.0393
A77: Distribution Excluding Rate Riders | E77: 2015 Current Board-Approved | I77: 2016 Test Year 1 Proposed | M77: Impact 2016 TEST vs. 2015 Bridge | P77: 2017 Test Year 2 Proposed | T77: Impact 2017 TEST 2 vs. 2016 Test 1 | W77: 2018 Test Year 3 Proposed | AA77: Impact 2018 TEST 3 vs. 2017 Test 2 | AD77: 2019 Test Year 4 Proposed | AH77: Impact 2019 TEST 4 vs. 2018 Test 3 | AK77: 2020 Test Year 5 Proposed | AO77: Impact 2020 TEST 5 vs. 2019 Test 4
C78: Charge Unit | E78: Rate | F78: Volume | G78: Charge | I78: Rate | J78: Volume | K78: Charge | M78: $ Change | N78: % Change | P78: Rate | Q78: Volume | R78: Charge | T78: $ Change | U78: % Change | W78: Rate | X78: Volume | Y78: Charge | AA78: $ Change | AB78: % Change | AD78: Rate | AE78: Volume | AF78: Charge | AH78: $ Change | AI78: % Change | AK78: Rate | AL78: Volume | AM78: Charge | AO78: $ Change | AP78: % Change
E79: ($) | G79: ($) | I79: ($) | K79: ($) | P79: ($) | R79: ($) | W79: ($) | Y79: ($) | AD79: ($) | AF79: ($) | AK79: ($) | AM79: ($)
A80: Monthly Service Charge | C80: Monthly | E80: 25.85 | F80: 1 | G80: =F80*E80 -> 25.85 | I80: ='Rates Summary'!$E$29 -> 14.27 | J80: 1 | K80: =J80*I80 -> 14.27 | M80: =K80-G80 -> -11.58 | N80: =IF((G80)=0,"",(M80/G80)) -> -0.4479690522 | P80: ='Rates Summary'!$F$29 -> 14.59 | Q80: 1 | R80: =Q80*P80 -> 14.59 | T80: =R80-K80 -> 0.32 | U80: =IF((K80)=0,"",(T80/K80)) -> 0.02242466713 | W80: ='Rates Summary'!$G$29 -> 14.94 | X80: 1 | Y80: =X80*W80 -> 14.94 | AA80: =Y80-R80 -> 0.35 | AB80: =IF((R80)=0,"",(AA80/R80)) -> 0.02398903358 | AD80: ='Rates Summary'!$H$29 -> 15.22 | AE80: 1 | AF80: =AE80*AD80 -> 15.22 | AH80: =AF80-Y80 -> 0.28 | AI80: =IF((Y80)=0,"",(AH80/Y80)) -> 0.0187416332 | AK80: ='Rates Summary'!$I$29 -> 15.4 | AL80: 1 | AM80: =AL80*AK80 -> 15.4 | AO80: =AM80-AF80 -> 0.18 | AP80: =IF((AF80)=0,"",(AO80/AF80)) -> 0.01182654402
A81: Distribution Volumetric Rate | C81: per kWh | E81: 0.0106 | F81: =$E$18 -> 2000 | G81: =F81*E81 -> 21.2 | I81: ='Rates Summary'!$E$41 -> 0.0146 | J81: =$E$18 -> 2000 | K81: 29.2 | M81: 8 | N81: =IF((G81)=0,"",(M81/G81)) -> 0.3773584906 | P81: ='Rates Summary'!$F$41 -> 0.0151 | Q81: =$E$18 -> 2000 | R81: 30.2 | T81: 1 | U81: =IF((K81)=0,"",(T81/K81)) -> 0.03424657534 | W81: ='Rates Summary'!$G$41 -> 0.0155 | X81: =$E$18 -> 2000 | Y81: 31 | AA81: 0.8 | AB81: =IF((R81)=0,"",(AA81/R81)) -> 0.02649006623 | AD81: ='Rates Summary'!$H$41 -> 0.0161 | AE81: =$E$18 -> 2000 | AF81: 32.2 | AH81: 1.2 | AI81: =IF((Y81)=0,"",(AH81/Y81)) -> 0.03870967742 | AK81: ='Rates Summary'!$I$41 -> 0.0166 | AL81: =$E$18 -> 2000 | AM81: 33.2 | AO81: 1 | AP81: =IF((AF81)=0,"",(AO81/AF81)) -> 0.03105590062
A82: "Regular" Distribution Only | G82: =SUM(G79:G81) -> 47.05 | K82: =SUM(K79:K81) -> 43.47 | M82: -3.58 | N82: -0.07608926674 | R82: =SUM(R79:R81) -> 44.79 | T82: 1.32 | U82: 0.0303657695 | Y82: =SUM(Y79:Y81) -> 45.94 | AA82: 1.15 | AB82: 0.02567537397 | AF82: =SUM(AF79:AF81) -> 47.42 | AH82: 1.48 | AI82: 0.03221593383 | AM82: =SUM(AM79:AM81) -> 48.6 | AO82: 1.18 | AP82: 0.02488401518
B85: Residential (kWh) - 100, 250, 500, 800, 1000, 1500, 2000
B86: GS<50kW (kWh) - 1000, 2000, 5000, 10000, 15000
B87: GS>50kW (kW) - 60, 100, 500, 1000
B88: Large User - range appropriate for utility
B89: Lighting Classes and USL - 150 kWh and 1 kW, range appropriate for utility.
C91: Note that cells with the highlighted color shown to the left indicate quantities that are loss adjusted.

Sheet Bill Impact GS <50 1000kWh
M1: File Number: | N1: =EBNUMBER -> EB-2015-0083 | S1: 1
M2: Exhibit: | N2: ='Bill Impact Resi 204kWh'!$N$2 -> 8
M3: Tab: | N3: ='Bill Impact Resi 204kWh'!$N$3 -> 4
M4: Schedule: | N4: ='Bill Impact Resi 204kWh'!$N$4 -> 3
M5: Page:
M7: Date: | N7: ='Bill Impact Resi 204kWh'!$N$7 -> Settlement
A10: Appendix 2-W
A11: Bill Impacts
A14: Customer Class: | C14: General Service Less Than 50 kW | P14: =C14 -> General Service Less Than 50 kW | AK14: =P14 -> General Service Less Than 50 kW
A16: TOU / non-TOU: | C16: TOU
C18: Consumption | E18: 1000 | F18: kWh
E20: 2015 Current Board-Approved | I20: 2016 Test Year 1 Proposed | M20: Impact 2016 TEST vs. 2015 Bridge | P20: 2017 Test Year 2 Proposed | T20: Impact 2017 TEST 2 vs. 2016 Test 1 | W20: 2018 Test Year 3 Proposed | AA20: Impact 2018 TEST 3 vs. 2017 Test 2 | AD20: 2019 Test Year 4 Proposed | AH20: Impact 2019 TEST 4 vs. 2018 Test 3 | AK20: 2020 Test Year 5 Proposed | AO20: Impact 2019 TEST 5 vs. 2019 Test 4
C21: Charge Unit | E21: Rate | F21: Volume | G21: Charge | I21: Rate | J21: Volume | K21: Charge | M21: $ Change | N21: % Change | P21: Rate | Q21: Volume | R21: Charge | T21: $ Change | U21: % Change | W21: Rate | X21: Volume | Y21: Charge | AA21: $ Change | AB21: % Change | AD21: Rate | AE21: Volume | AF21: Charge | AH21: $ Change | AI21: % Change | AK21: Rate | AL21: Volume | AM21: Charge | AO21: $ Change | AP21: % Change
E22: ($) | G22: ($) | I22: ($) | K22: ($) | P22: ($) | R22: ($) | W22: ($) | Y22: ($) | AD22: ($) | AF22: ($) | AK22: ($) | AM22: ($)
A23: Monthly Service Charge | C23: Monthly | E23: 25.85 | F23: 1 | G23: =F23*E23 -> 25.85 | I23: ='Rates Summary'!$E$29 -> 14.27 | J23: 1 | K23: =J23*I23 -> 14.27 | M23: =K23-G23 -> -11.58 | N23: =IF((G23)=0,"",(M23/G23)) -> -0.4479690522 | P23: ='Rates Summary'!$F$29 -> 14.59 | Q23: 1 | R23: =Q23*P23 -> 14.59 | T23: =R23-K23 -> 0.32 | U23: =IF((K23)=0,"",(T23/K23)) -> 0.02242466713 | W23: ='Rates Summary'!$G$29 -> 14.94 | X23: 1 | Y23: =X23*W23 -> 14.94 | AA23: =Y23-R23 -> 0.35 | AB23: =IF((R23)=0,"",(AA23/R23)) -> 0.02398903358 | AD23: ='Rates Summary'!$H$29 -> 15.22 | AE23: 1 | AF23: =AE23*AD23 -> 15.22 | AH23: =AF23-Y23 -> 0.28 | AI23: =IF((Y23)=0,"",(AH23/Y23)) -> 0.0187416332 | AK23: ='Rates Summary'!$I$29 -> 15.4 | AL23: 1 | AM23: =AL23*AK23 -> 15.4 | AO23: =AM23-AF23 -> 0.18 | AP23: =IF((AF23)=0,"",(AO23/AF23)) -> 0.01182654402
A24: Smart Meter (SMIRR) Rate Rider | C24: Monthly | E24: 3.65 | F24: 1 | G24: =F24*E24 -> 3.65 | I24: 0 | J24: 1 | K24: 0 | M24: -3.65 | N24: =IF((G24)=0,"",(M24/G24)) -> -1 | P24: 0 | Q24: 1 | R24: 0 | T24: 0 | U24: =IF((K24)=0,"",(T24/K24)) ->  | W24: 0 | X24: 1 | Y24: 0 | AA24: 0 | AB24: =IF((R24)=0,"",(AA24/R24)) ->  | AD24: 0 | AE24: 1 | AF24: 0 | AH24: 0 | AI24: =IF((Y24)=0,"",(AH24/Y24)) ->  | AK24: 0 | AL24: 1 | AM24: 0 | AO24: 0 | AP24: =IF((AF24)=0,"",(AO24/AF24)) -> 
A25: Rate Rider Smart Meters Capital (2016) | C25: Monthly | E25: 0 | F25: 1 | G25: 0 | I25: ='Rates Summary'!D10 -> 0.43 | J25: 1 | K25: 0.43 | M25: 0.43 | N25: 1 | P25: 0 | Q25: 1 | R25: 0 | T25: -0.43 | U25: -1 | W25: 0 | X25: 1 | Y25: 0 | AA25: 0 | AD25: 0 | AE25: 1 | AF25: 0 | AH25: 0 | AK25: 0 | AL25: 1 | AM25: 0 | AO25: 0
A26: Rate Rider Recovery of Stranded Meters (2016) | C26: Monthly | E26: 0 | F26: 1 | G26: 0 | I26: ='Rates Summary'!$D$11 -> 6.4 | J26: 1 | K26: 6.4 | M26: 6.4 | N26: 1 | P26: 0 | Q26: 1 | R26: 0 | T26: -6.4 | U26: -1 | W26: 0 | X26: 1 | Y26: 0 | AA26: 0 | AD26: 0 | AE26: 1 | AF26: 0 | AH26: 0 | AK26: 0 | AL26: 1 | AM26: 0 | AO26: 0
F27: 1 | G27: 0 | I27: 0 | J27: 1 | K27: 0 | M27: 0 | N27: =IF((G27)=0,"",(M27/G27)) ->  | P27: 0 | Q27: 1 | R27: 0 | T27: 0 | W27: 0 | X27: 1 | Y27: 0 | AA27: 0 | AD27: 0 | AE27: 1 | AF27: 0 | AH27: 0 | AK27: 0 | AL27: 1 | AM27: 0 | AO27: 0
F28: 1 | G28: 0 | I28: 0 | J28: 1 | K28: 0 | M28: 0 | N28: =IF((G28)=0,"",(M28/G28)) ->  | P28: 0 | Q28: 1 | R28: 0 | T28: 0 | W28: 0 | X28: 1 | Y28: 0 | AA28: 0 | AD28: 0 | AE28: 1 | AF28: 0 | AH28: 0 | AK28: 0 | AL28: 1 | AM28: 0 | AO28: 0
A29: Distribution Volumetric Rate | C29: per kWh | E29: 0.0106 | F29: =$E$18 -> 1000 | G29: 10.6 | I29: ='Rates Summary'!$E$41 -> 0.0146 | J29: =$E$18 -> 1000 | K29: 14.6 | M29: 4 | N29: =IF((G29)=0,"",(M29/G29)) -> 0.3773584906 | P29: ='Rates Summary'!$F$41 -> 0.0151 | Q29: =$E$18 -> 1000 | R29: 15.1 | T29: 0.5 | U29: 0.03424657534 | W29: ='Rates Summary'!$G$41 -> 0.0155 | X29: =$E$18 -> 1000 | Y29: 15.5 | AA29: 0.4 | AB29: 0.02649006623 | AD29: ='Rates Summary'!$H$41 -> 0.0161 | AE29: =$E$18 -> 1000 | AF29: 16.1 | AH29: 0.6 | AI29: 0.03870967742 | AK29: ='Rates Summary'!$I$41 -> 0.0166 | AL29: =$E$18 -> 1000 | AM29: 16.6 | AO29: 0.5 | AP29: 0.03105590062
A30: Rate Rider Tax Change (2015) | C30: per kWh | E30: -0.0001 | F30: =$E$18 -> 1000 | G30: -0.1 | I30: 0 | J30: =$E$18 -> 1000 | K30: 0 | M30: 0.1 | N30: =IF((G30)=0,"",(M30/G30)) -> -1 | P30: 0 | Q30: =$E$18 -> 1000 | R30: 0 | T30: 0 | W30: 0 | X30: =$E$18 -> 1000 | Y30: 0 | AA30: 0 | AD30: 0 | AE30: =$E$18 -> 1000 | AF30: 0 | AH30: 0 | AK30: 0 | AL30: =$E$18 -> 1000 | AM30: 0 | AO30: 0
A31: LRAM VA (2016) | C31: per kWh | E31: 0 | F31: =$E$18 -> 1000 | G31: 0 | I31: ='Rates Summary'!D7 -> 0.0008 | J31: 1000 | K31: 0.8 | M31: 0.8 | N31: 1 | P31: 0 | Q31: 1000 | R31: 0 | T31: -0.8 | U31: =IF((K31)=0,"",(T31/K31)) -> -1 | W31: 0 | X31: 1000 | Y31: 0 | AA31: 0 | AD31: 0 | AE31: 1000 | AF31: 0 | AH31: 0 | AK31: 0 | AL31: 1000 | AM31: 0 | AO31: 0
A32: Rate Rider Incremental Capital 2012 True-Up (2016) | C32: per kWh | E32: 0 | F32: =$E$18 -> 1000 | G32: 0 | I32: ='Rates Summary'!D9 -> 0.0002 | J32: 1000 | K32: 0.2 | M32: 0.2 | N32: 1 | P32: 0 | Q32: 1000 | R32: 0 | T32: -0.2 | U32: =IF((K32)=0,"",(T32/K32)) -> -1 | W32: 0 | X32: 1000 | Y32: 0 | AA32: 0 | AD32: 0 | AE32: 1000 | AF32: 0 | AH32: 0 | AK32: 0 | AL32: 1000 | AM32: 0 | AO32: 0
C33: per kWh | F33: 1000 | G33: 0 | J33: 1000 | K33: 0 | M33: 0 | N33: =IF((G33)=0,"",(M33/G33)) ->  | Q33: 1000 | R33: 0 | T33: 0 | X33: 1000 | Y33: 0 | AA33: 0 | AE33: 1000 | AF33: 0 | AH33: 0 | AL33: 1000 | AM33: 0 | AO33: 0
C34: per kWh | F34: 1000 | G34: 0 | J34: 1000 | K34: 0 | M34: 0 | Q34: 1000 | R34: 0 | T34: 0 | X34: 1000 | Y34: 0 | AA34: 0 | AE34: 1000 | AF34: 0 | AH34: 0 | AL34: 1000 | AM34: 0 | AO34: 0
F35: 1000 | G35: 0 | J35: 1000 | K35: 0 | M35: 0 | Q35: 1000 | R35: 0 | T35: 0 | X35: 1000 | Y35: 0 | AA35: 0 | AE35: 1000 | AF35: 0 | AH35: 0 | AL35: 1000 | AM35: 0 | AO35: 0
F36: 1000 | G36: 0 | J36: 1000 | K36: 0 | M36: 0 | Q36: 1000 | R36: 0 | T36: 0 | X36: 1000 | Y36: 0 | AA36: 0 | AE36: 1000 | AF36: 0 | AH36: 0 | AL36: 1000 | AM36: 0 | AO36: 0
F37: 1000 | G37: 0 | J37: 1000 | K37: 0 | M37: 0 | Q37: 1000 | R37: 0 | T37: 0 | X37: 1000 | Y37: 0 | AA37: 0 | AE37: 1000 | AF37: 0 | AH37: 0 | AL37: 1000 | AM37: 0 | AO37: 0
F38: 1000 | G38: 0 | J38: 1000 | K38: 0 | M38: 0 | Q38: 1000 | R38: 0 | T38: 0 | X38: 1000 | Y38: 0 | AA38: 0 | AE38: 1000 | AF38: 0 | AH38: 0 | AL38: 1000 | AM38: 0 | AO38: 0
A39: Sub-Total A (excluding pass through) | G39: =SUM(G23:G38) -> 40 | K39: =SUM(K23:K38) -> 36.7 | M39: -3.3 | N39: -0.0825 | R39: =SUM(R23:R38) -> 29.69 | T39: -7.01 | U39: -0.1910081744 | Y39: =SUM(Y23:Y38) -> 30.44 | AA39: 0.75 | AB39: 0.02526103065 | AF39: =SUM(AF23:AF38) -> 31.32 | AH39: 0.88 | AI39: =IF((Y39)=0,"",(AH39/Y39)) -> 0.02890932983 | AM39: =SUM(AM23:AM38) -> 32 | AO39: 0.68 | AP39: 0.02171136654
A40: Deferral/Variance Account Disposition Rate Rider (2016) | C40: per kWh | E40: 0 | F40: =$E$18 -> 1000 | G40: =F40*E40 -> 0 | I40: ='Rates Summary'!D5 -> -0.0007 | J40: =$E$18 -> 1000 | K40: =J40*I40 -> -0.7 | M40: =K40-G40 -> -0.7 | N40: 1 | P40: 0 | Q40: =$E$18 -> 1000 | R40: =Q40*P40 -> 0 | T40: 0.7 | U40: -1 | W40: 0 | X40: =$E$18 -> 1000 | Y40: =X40*W40 -> 0 | AA40: 0 | AD40: 0 | AE40: =$E$18 -> 1000 | AF40: =AE40*AD40 -> 0 | AH40: 0 | AI40: =IF((Y40)=0,"",(AH40/Y40)) ->  | AK40: 0 | AL40: =$E$18 -> 1000 | AM40: =AL40*AK40 -> 0 | AO40: 0
F41: =$E$18 -> 1000 | G41: =F41*E41 -> 0 | I41: =E41 -> 0 | J41: =$E$18 -> 1000 | K41: =J41*I41 -> 0 | M41: =K41-G41 -> 0 | N41: =IF((G41)=0,"",(M41/G41)) ->  | Q41: =$E$18 -> 1000 | R41: =Q41*P41 -> 0 | T41: 0 | X41: =$E$18 -> 1000 | Y41: =X41*W41 -> 0 | AA41: 0 | AE41: =$E$18 -> 1000 | AF41: =AE41*AD41 -> 0 | AH41: 0 | AL41: =$E$18 -> 1000 | AM41: =AL41*AK41 -> 0 | AO41: 0
A42: Rate Rider CGAAP Account 1576 (2016) | C42: per kWh | E42: 0 | F42: 1000 | G42: 0 | I42: ='Rates Summary'!$D$8 -> -0.0062 | J42: 1000 | K42: -6.2 | M42: -6.2 | N42: 1 | P42: 0 | Q42: 1000 | R42: 0 | T42: 6.2 | U42: -1 | W42: 0 | X42: 1000 | Y42: 0 | AA42: 0 | AD42: 0 | AE42: 1000 | AF42: 0 | AH42: 0 | AK42: 0 | AL42: 1000 | AM42: 0 | AO42: 0
A43: Disposition of Global Adjustment (2015) Applicable to Non-RPP Customers | C43: per kWh | E43: 0.0156 | F43: 0 | G43: 0 | I43: 0 | J43: 1000 | K43: 0 | M43: 0 | P43: 0 | Q43: 1000 | R43: 0 | T43: 0 | W43: 0 | X43: 1000 | Y43: 0 | AA43: 0 | AD43: 0 | AE43: 1000 | AF43: 0 | AH43: 0 | AK43: 0 | AL43: 1000 | AM43: 0 | AO43: 0
A44: Disposition of Global Adjustment (2016) Applicable to Non-RPP Customers | C44: per kWh | E44: 0 | F44: 1000 | G44: 0 | I44: ='Rates Summary'!D6 -> 0.0205 | J44: 0 | K44: 0 | M44: 0 | P44: 0 | Q44: 1000 | R44: 0 | T44: 0 | W44: 0 | X44: 1000 | Y44: 0 | AA44: 0 | AD44: 0 | AE44: 1000 | AF44: 0 | AH44: 0 | AK44: 0 | AL44: 1000 | AM44: 0 | AO44: 0
A45: Low Voltage Service Charge | C45: per kWh | E45: 0.0006 | F45: 1000 | G45: =F45*E45 -> 0.6 | I45: ='Rates Summary'!D15 -> 0.0011 | J45: 1000 | K45: =J45*I45 -> 1.1 | M45: =K45-G45 -> 0.5 | N45: =IF((G45)=0,"",(M45/G45)) -> 0.8333333333 | P45: =I45 -> 0.0011 | Q45: 1000 | R45: =Q45*P45 -> 1.1 | T45: =R45-K45 -> 0 | U45: 0 | W45: =P45 -> 0.0011 | X45: 1000 | Y45: =X45*W45 -> 1.1 | AA45: =Y45-R45 -> 0 | AB45: 0 | AD45: =W45 -> 0.0011 | AE45: 1000 | AF45: =AE45*AD45 -> 1.1 | AH45: =AF45-Y45 -> 0 | AI45: 0 | AK45: =AD45 -> 0.0011 | AL45: 1000 | AM45: =AL45*AK45 -> 1.1 | AO45: =AM45-AF45 -> 0 | AP45: 0
A46: Line Losses on Cost of Power | C46: per kWh | E46: =IF(ISBLANK(C16)=TRUE, 0, IF(C16="TOU", 0.64*$E$56+0.18*$E$57+0.18*$E$58, IF(AND(C16="non-TOU", F60>0), E60,E59))) -> 0.10766 | F46: =$E$18*(1+$E$75)-$E$18 -> 34.4 | G46: 3.703504 | I46: =0.64*$E$56+0.18*$E$57+0.18*$E$58 -> 0.10766 | J46: =$E$18*(1+$I$75)-$E$18 -> 39.3 | K46: 4.231038 | M46: 0.527534 | N46: 0.1424418605 | P46: =0.64*$E$56+0.18*$E$57+0.18*$E$58 -> 0.10766 | Q46: =$E$18*(1+$I$75)-$E$18 -> 39.3 | R46: =Q46*P46 -> 4.231038 | T46: =R46-K46 -> 0 | U46: 0 | W46: =0.64*$E$56+0.18*$E$57+0.18*$E$58 -> 0.10766 | X46: =$E$18*(1+$I$75)-$E$18 -> 39.3 | Y46: =X46*W46 -> 4.231038 | AA46: =Y46-R46 -> 0 | AB46: 0 | AD46: =0.64*$E$56+0.18*$E$57+0.18*$E$58 -> 0.10766 | AE46: =$E$18*(1+$I$75)-$E$18 -> 39.3 | AF46: =AE46*AD46 -> 4.231038 | AH46: =AF46-Y46 -> 0 | AI46: 0 | AK46: =0.64*$E$56+0.18*$E$57+0.18*$E$58 -> 0.10766 | AL46: =$E$18*(1+$I$75)-$E$18 -> 39.3 | AM46: =AL46*AK46 -> 4.231038 | AO46: =AM46-AF46 -> 0 | AP46: 0
A47: Smart Meter Entity Charge | C47: Monthly | E47: 0.79 | F47: 1 | G47: =F47*E47 -> 0.79 | I47: 0.79 | J47: 1 | K47: =J47*I47 -> 0.79 | M47: =K47-G47 -> 0 | P47: 0.79 | Q47: 1 | R47: =Q47*P47 -> 0.79 | T47: =R47-K47 -> 0 | U47: 0 | W47: 0.79 | X47: 1 | Y47: =X47*W47 -> 0.79 | AA47: =Y47-R47 -> 0 | AB47: 0 | AD47: 0 | AE47: 1 | AF47: =AE47*AD47 -> 0 | AH47: =AF47-Y47 -> -0.79 | AI47: -1 | AK47: 0 | AL47: 1 | AM47: =AL47*AK47 -> 0 | AO47: =AM47-AF47 -> 0
A48: Sub-Total B - Distribution (includes Sub-Total A) | G48: =SUM(G40:G47)+G39 -> 45.093504 | K48: =SUM(K40:K47)+K39 -> 35.921038 | M48: =K48-G48 -> -9.172466 | N48: =IF((G48)=0,"",(M48/G48)) -> -0.2034099191 | R48: =SUM(R40:R47)+R39 -> 35.811038 | T48: =R48-K48 -> -0.11 | U48: -0.00306227231 | Y48: =SUM(Y40:Y47)+Y39 -> 36.561038 | AA48: =Y48-R48 -> 0.75 | AB48: 0.02094326336 | AF48: =SUM(AF40:AF47)+AF39 -> 36.651038 | AH48: =AF48-Y48 -> 0.09 | AI48: 0.002461636893 | AM48: =SUM(AM40:AM47)+AM39 -> 37.331038 | AO48: =AM48-AF48 -> 0.68 | AP48: 0.01855336266
A49: RTSR - Network | C49: per kWh | E49: 0.006 | F49: =$E$18*(1+$E$75) -> 1034.4 | G49: =F49*E49 -> 6.2064 | I49: ='Rates Summary'!D17 -> 0.0063 | J49: =$E$18*(1+$I$75) -> 1039.3 | K49: =J49*I49 -> 6.54759 | M49: =K49-G49 -> 0.34119 | N49: 0.05497389791 | P49: =I49 -> 0.0063 | Q49: =$E$18*(1+P75) -> 1039.3 | R49: =Q49*P49 -> 6.54759 | T49: 0 | U49: 0 | W49: =P49 -> 0.0063 | X49: =$E$18*(1+W75) -> 1039.3 | Y49: =X49*W49 -> 6.54759 | AA49: 0 | AB49: 0 | AD49: =W49 -> 0.0063 | AE49: =$E$18*(1+AD75) -> 1039.3 | AF49: =AE49*AD49 -> 6.54759 | AH49: 0 | AI49: 0 | AK49: =AD49 -> 0.0063 | AL49: =$E$18*(1+AK75) -> 1039.3 | AM49: =AL49*AK49 -> 6.54759 | AO49: 0 | AP49: 0
A50: RTSR - Line and Transformation Connection | C50: per kWh | E50: 0.0046 | F50: =F49 -> 1034.4 | G50: =F50*E50 -> 4.75824 | I50: ='Rates Summary'!D18 -> 0.0051 | J50: =J49 -> 1039.3 | K50: =J50*I50 -> 5.30043 | M50: 0.54219 | N50: 0.1139475941 | P50: =I50 -> 0.0051 | Q50: =Q49 -> 1039.3 | R50: =Q50*P50 -> 5.30043 | T50: 0 | U50: 0 | W50: =P50 -> 0.0051 | X50: =X49 -> 1039.3 | Y50: =X50*W50 -> 5.30043 | AA50: 0 | AB50: 0 | AD50: =W50 -> 0.0051 | AE50: =AE49 -> 1039.3 | AF50: =AE50*AD50 -> 5.30043 | AH50: 0 | AI50: 0 | AK50: =AD50 -> 0.0051 | AL50: =AL49 -> 1039.3 | AM50: =AL50*AK50 -> 5.30043 | AO50: 0 | AP50: 0
A51: Sub-Total C - Delivery (including Sub-Total B) | G51: =SUM(G48:G50) -> 56.058144 | K51: =SUM(K48:K50) -> 47.769058 | M51: -8.289086 | N51: -0.1478658658 | R51: =SUM(R48:R50) -> 47.659058 | T51: -0.11 | U51: -0.002302745849 | Y51: =SUM(Y48:Y50) -> 48.409058 | AA51: 0.75 | AB51: 0.01573677768 | AF51: =SUM(AF48:AF50) -> 48.499058 | AH51: 0.09 | AI51: 0.001859156193 | AM51: =SUM(AM48:AM50) -> 49.179058 | AO51: 0.68 | AP51: 0.01402089088
A52: Wholesale Market Service Charge (WMSC) | C52: per kWh | E52: 0.0044 | F52: =F50 -> 1034.4 | G52: =F52*E52 -> 4.55136 | I52: =E52 -> 0.0044 | J52: =J50 -> 1039.3 | K52: =J52*I52 -> 4.57292 | M52: 0.02156 | N52: 0.00473704563 | P52: =I52 -> 0.0044 | Q52: =Q50 -> 1039.3 | R52: =Q52*P52 -> 4.57292 | T52: 0 | U52: 0 | W52: =P52 -> 0.0044 | X52: =X50 -> 1039.3 | Y52: =X52*W52 -> 4.57292 | AA52: 0 | AB52: 0 | AD52: =W52 -> 0.0044 | AE52: =AE50 -> 1039.3 | AF52: =AE52*AD52 -> 4.57292 | AH52: 0 | AI52: 0 | AK52: =AD52 -> 0.0044 | AL52: =AL50 -> 1039.3 | AM52: =AL52*AK52 -> 4.57292 | AO52: 0 | AP52: 0
A53: Rural and Remote Rate Protection (RRRP) | C53: per kWh | E53: 0.0013 | F53: =F50 -> 1034.4 | G53: 1.34472 | I53: =E53 -> 0.0013 | J53: =J50 -> 1039.3 | K53: 1.35109 | M53: 0.00637 | N53: 0.00473704563 | P53: =I53 -> 0.0013 | Q53: =Q50 -> 1039.3 | R53: 1.35109 | T53: 0 | U53: 0 | W53: =P53 -> 0.0013 | X53: =X50 -> 1039.3 | Y53: 1.35109 | AA53: 0 | AB53: 0 | AD53: =W53 -> 0.0013 | AE53: =AE50 -> 1039.3 | AF53: 1.35109 | AH53: 0 | AI53: 0 | AK53: =AD53 -> 0.0013 | AL53: =AL50 -> 1039.3 | AM53: 1.35109 | AO53: 0 | AP53: 0
A54: Standard Supply Service Charge | C54: Monthly | E54: 0.25 | F54: 1 | G54: 0.25 | I54: =E54 -> 0.25 | J54: 1 | K54: 0.25 | M54: 0 | N54: 0 | P54: =I54 -> 0.25 | Q54: 1 | R54: 0.25 | T54: 0 | U54: 0 | W54: =P54 -> 0.25 | X54: 1 | Y54: 0.25 | AA54: 0 | AB54: 0 | AD54: =W54 -> 0.25 | AE54: 1 | AF54: 0.25 | AH54: 0 | AI54: 0 | AK54: =AD54 -> 0.25 | AL54: 1 | AM54: 0.25 | AO54: 0 | AP54: 0
A55: Debt Retirement Charge (DRC) | C55: per kWh | E55: 0.007 | F55: =E18 -> 1000 | G55: 7 | I55: =E55 -> 0.007 | J55: =E18 -> 1000 | K55: 7 | M55: 0 | N55: 0 | P55: =I55 -> 0.007 | Q55: =J55 -> 1000 | R55: 7 | T55: 0 | U55: 0 | W55: =P55 -> 0.007 | X55: =Q55 -> 1000 | Y55: 7 | AA55: 0 | AB55: 0 | AD55: =W55 -> 0.007 | AE55: =X55 -> 1000 | AF55: 7 | AH55: 0 | AI55: 0 | AK55: =AD55 -> 0.007 | AL55: =AE55 -> 1000 | AM55: 7 | AO55: 0 | AP55: 0
A56: TOU - Off Peak | C56: per kWh | E56: 0.083 | F56: =0.64*$E$18 -> 640 | G56: 53.12 | I56: =E56 -> 0.083 | J56: =F56 -> 640 | K56: 53.12 | M56: 0 | N56: 0 | P56: =I56 -> 0.083 | Q56: =J56 -> 640 | R56: 53.12 | T56: 0 | U56: 0 | W56: =P56 -> 0.083 | X56: =Q56 -> 640 | Y56: 53.12 | AA56: 0 | AB56: 0 | AD56: =W56 -> 0.083 | AE56: =X56 -> 640 | AF56: 53.12 | AH56: 0 | AI56: 0 | AK56: =AD56 -> 0.083 | AL56: =AE56 -> 640 | AM56: 53.12 | AO56: 0 | AP56: 0
A57: TOU - Mid Peak | C57: per kWh | E57: 0.128 | F57: =0.18*$E$18 -> 180 | G57: 23.04 | I57: =E57 -> 0.128 | J57: =F57 -> 180 | K57: 23.04 | M57: 0 | N57: 0 | P57: =I57 -> 0.128 | Q57: 180 | R57: 23.04 | T57: 0 | U57: 0 | W57: =P57 -> 0.128 | X57: 180 | Y57: 23.04 | AA57: 0 | AB57: 0 | AD57: =W57 -> 0.128 | AE57: 180 | AF57: 23.04 | AH57: 0 | AI57: 0 | AK57: =AD57 -> 0.128 | AL57: 180 | AM57: 23.04 | AO57: 0 | AP57: 0
A58: TOU - On Peak | C58: per kWh | E58: 0.175 | F58: =0.18*$E$18 -> 180 | G58: 31.5 | I58: 0.175 | J58: =F58 -> 180 | K58: 31.5 | M58: 0 | N58: 0 | P58: 0.175 | Q58: 180 | R58: 31.5 | T58: 0 | U58: 0 | W58: 0.175 | X58: 180 | Y58: 31.5 | AA58: 0 | AB58: 0 | AD58: 0.175 | AE58: 180 | AF58: 31.5 | AH58: 0 | AI58: 0 | AK58: 0.175 | AL58: 180 | AM58: 31.5 | AO58: 0 | AP58: 0
A59: Energy - RPP - Tier 1 | C59: per kWh | E59: 0.099 | F59: =IF(AND($S$1=1, E18>=600), 600, IF(AND($S$1=1, AND(E18<600, E18>=0)), E18, IF(AND($S$1=2, E18>=1000), 1000, IF(AND($S$1=2, AND(E18<1000, E18>=0)), E18)))) -> 600 | G59: =F59*E59 -> 59.4 | I59: 0.099 | J59: =F59 -> 600 | K59: =J59*I59 -> 59.4 | M59: 0 | N59: 0 | P59: 0.099 | Q59: 600 | R59: =Q59*P59 -> 59.4 | T59: 0 | U59: 0 | W59: 0.099 | X59: 600 | Y59: =X59*W59 -> 59.4 | AA59: 0 | AB59: 0 | AD59: 0.099 | AE59: 600 | AF59: =AE59*AD59 -> 59.4 | AH59: 0 | AI59: 0 | AK59: 0.099 | AL59: 600 | AM59: =AL59*AK59 -> 59.4 | AO59: 0 | AP59: 0
A60: Energy - RPP - Tier 2 | C60: per kWh | E60: 0.116 | F60: =IF(AND($S$1=1, E18>=600), E18-600, IF(AND($S$1=1, AND(E18<600, E18>=0)), 0, IF(AND($S$1=2, E18>=1000), E18-1000, IF(AND($S$1=2, AND(E18<1000, E18>=0)), 0)))) -> 400 | G60: =F60*E60 -> 46.4 | I60: 0.116 | J60: =F60 -> 400 | K60: =J60*I60 -> 46.4 | M60: 0 | N60: 0 | P60: 0.116 | Q60: 400 | R60: =Q60*P60 -> 46.4 | T60: 0 | U60: 0 | W60: 0.116 | X60: 400 | Y60: =X60*W60 -> 46.4 | AA60: 0 | AB60: 0 | AD60: 0.116 | AE60: 400 | AF60: =AE60*AD60 -> 46.4 | AH60: 0 | AI60: 0 | AK60: 0.116 | AL60: 400 | AM60: =AL60*AK60 -> 46.4 | AO60: 0 | AP60: 0
A62: Total Bill on TOU (before Taxes) | G62: =SUM(G52:G58,G51) -> 176.864224 | K62: =SUM(K52:K58,K51) -> 168.603068 | M62: =K62-G62 -> -8.261156 | N62: =IF((G62)=0,"",(M62/G62)) -> -0.04670902805 | R62: =SUM(R52:R58,R51) -> 168.493068 | T62: =R62-K62 -> -0.11 | U62: -0.0006524199192 | Y62: =SUM(Y52:Y58,Y51) -> 169.243068 | AA62: =Y62-R62 -> 0.75 | AB62: 0.004451221697 | AF62: =SUM(AF52:AF58,AF51) -> 169.333068 | AH62: =AF62-Y62 -> 0.09 | AI62: 0.000531779535 | AM62: =SUM(AM52:AM58,AM51) -> 170.013068 | AO62: =AM62-AF62 -> 0.68 | AP62: 0.004015754324
A63: HST | E63: 0.13 | G63: =G62*E63 -> 22.99234912 | I63: 0.13 | K63: =K62*I63 -> 21.91839884 | M63: -1.07395028 | N63: -0.04670902805 | P63: 0.13 | R63: =R62*P63 -> 21.90409884 | T63: =R63-K63 -> -0.0143 | U63: -0.0006524199192 | W63: 0.13 | Y63: =Y62*W63 -> 22.00159884 | AA63: =Y63-R63 -> 0.0975 | AB63: 0.004451221697 | AD63: 0.13 | AF63: =AF62*AD63 -> 22.01329884 | AH63: =AF63-Y63 -> 0.0117 | AI63: 0.000531779535 | AK63: 0.13 | AM63: =AM62*AK63 -> 22.10169884 | AO63: =AM63-AF63 -> 0.0884 | AP63: 0.004015754324
A64: Total Bill (including HST) | G64: =G62+G63 -> 199.8565731 | K64: =K62+K63 -> 190.5214668 | M64: -9.33510628 | N64: -0.04670902805 | R64: =R62+R63 -> 190.3971668 | T64: -0.1243 | U64: -0.0006524199192 | Y64: =Y62+Y63 -> 191.2446668 | AA64: 0.8475 | AB64: 0.004451221697 | AF64: =AF62+AF63 -> 191.3463668 | AH64: 0.1017 | AI64: 0.000531779535 | AM64: =AM62+AM63 -> 192.1147668 | AO64: 0.7684 | AP64: 0.004015754324
A65: Ontario Clean Energy Benefit 1 | G65: =ROUND(-G64*10%,2) -> -19.99 | M65: 19.99 | N65: -1 | T65: 0 | AA65: 0 | AH65: 0 | AO65: 0
A66: Total Bill on TOU (including OCEB) | G66: =G64+G65 -> 179.8665731 | K66: =K64+K65 -> 190.5214668 | M66: 10.65489372 | N66: 0.05923776461 | R66: =R64+R65 -> 190.3971668 | T66: -0.1243 | U66: -0.0006524199192 | Y66: =Y64+Y65 -> 191.2446668 | AA66: 0.8475 | AB66: 0.004451221697 | AF66: =AF64+AF65 -> 191.3463668 | AH66: 0.1017 | AI66: 0.000531779535 | AM66: =AM64+AM65 -> 192.1147668 | AO66: 0.7684 | AP66: 0.004015754324
A68: Total Bill on RPP (before Taxes) | G68: =SUM(G60:G61,G51,G52:G55) -> 115.604224 | K68: =SUM(K60:K61,K51,K52:K55) -> 107.343068 | M68: =K68-G68 -> -8.261156 | N68: =IF((G68)=0,"",(M68/G68)) -> -0.07146067604 | R68: =SUM(R60:R61,R51,R52:R55) -> 107.233068 | T68: =R68-K68 -> -0.11 | U68: -0.00102475178 | Y68: =SUM(Y60:Y61,Y51,Y52:Y55) -> 107.983068 | AA68: =Y68-R68 -> 0.75 | AB68: 0.006994111182 | AF68: =SUM(AF60:AF61,AF51,AF52:AF55) -> 108.073068 | AH68: =AF68-Y68 -> 0.09 | AI68: 0.000833464002 | AM68: =SUM(AM60:AM61,AM51,AM52:AM55) -> 108.753068 | AO68: =AM68-AF68 -> 0.68 | AP68: 0.006292039382
A69: HST | E69: 0.13 | G69: =G68*E69 -> 15.02854912 | I69: 0.13 | K69: =K68*I69 -> 13.95459884 | M69: -1.07395028 | N69: =IF((G69)=0,"",(M69/G69)) -> -0.07146067604 | P69: 0.13 | R69: =R68*P69 -> 13.94029884 | T69: =R69-K69 -> -0.0143 | U69: -0.00102475178 | W69: 0.13 | Y69: =Y68*W69 -> 14.03779884 | AA69: =Y69-R69 -> 0.0975 | AB69: 0.006994111182 | AD69: 0.13 | AF69: =AF68*AD69 -> 14.04949884 | AH69: =AF69-Y69 -> 0.0117 | AI69: 0.000833464002 | AK69: 0.13 | AM69: =AM68*AK69 -> 14.13789884 | AO69: =AM69-AF69 -> 0.0884 | AP69: 0.006292039382
A70: Total Bill (including HST) | G70: =G68+G69 -> 130.6327731 | K70: =K68+K69 -> 121.2976668 | M70: -9.33510628 | N70: -0.07146067604 | R70: =R68+R69 -> 121.1733668 | T70: -0.1243 | U70: -0.00102475178 | Y70: =Y68+Y69 -> 122.0208668 | AA70: 0.8475 | AB70: 0.006994111182 | AF70: =AF68+AF69 -> 122.1225668 | AH70: 0.1017 | AI70: 0.000833464002 | AM70: =AM68+AM69 -> 122.8909668 | AO70: 0.7684 | AP70: 0.006292039382
A71: Ontario Clean Energy Benefit 1 | G71: =ROUND(-G70*10%,2) -> -13.06 | M71: 13.06 | N71: -1 | T71: 0 | AA71: 0 | AH71: 0 | AO71: 0
A72: Total Bill on RPP (including OCEB) | G72: =SUM(G70:G71) -> 117.5727731 | K72: =SUM(K70:K71) -> 121.2976668 | M72: 3.72489372 | N72: 0.03168160129 | R72: =SUM(R70:R71) -> 121.1733668 | T72: -0.1243 | U72: -0.00102475178 | Y72: =SUM(Y70:Y71) -> 122.0208668 | AA72: 0.8475 | AB72: 0.006994111182 | AF72: =SUM(AF70:AF71) -> 122.1225668 | AH72: 0.1017 | AI72: 0.000833464002 | AM72: =SUM(AM70:AM71) -> 122.8909668 | AO72: 0.7684 | AP72: 0.006292039382
A75: Loss Factor (%) | E75: 0.0344 | I75: 0.0393 | P75: 0.0393 | W75: 0.0393 | AD75: 0.0393 | AK75: 0.0393
A77: Distribution Excluding Rate Riders | E77: 2015 Current Board-Approved | I77: 2016 Test Year 1 Proposed | M77: Impact 2016 TEST vs. 2015 Bridge | P77: 2017 Test Year 2 Proposed | T77: Impact 2017 TEST 2 vs. 2016 Test 1 | W77: 2018 Test Year 3 Proposed | AA77: Impact 2018 TEST 3 vs. 2017 Test 2 | AD77: 2019 Test Year 4 Proposed | AH77: Impact 2019 TEST 4 vs. 2018 Test 3 | AK77: 2020 Test Year 5 Proposed | AO77: Impact 2020 TEST 5 vs. 2019 Test 4
C78: Charge Unit | E78: Rate | F78: Volume | G78: Charge | I78: Rate | J78: Volume | K78: Charge | M78: $ Change | N78: % Change | P78: Rate | Q78: Volume | R78: Charge | T78: $ Change | U78: % Change | W78: Rate | X78: Volume | Y78: Charge | AA78: $ Change | AB78: % Change | AD78: Rate | AE78: Volume | AF78: Charge | AH78: $ Change | AI78: % Change | AK78: Rate | AL78: Volume | AM78: Charge | AO78: $ Change | AP78: % Change
E79: ($) | G79: ($) | I79: ($) | K79: ($) | P79: ($) | R79: ($) | W79: ($) | Y79: ($) | AD79: ($) | AF79: ($) | AK79: ($) | AM79: ($)
A80: Monthly Service Charge | C80: Monthly | E80: 25.85 | F80: 1 | G80: =F80*E80 -> 25.85 | I80: ='Rates Summary'!$E$29 -> 14.27 | J80: 1 | K80: =J80*I80 -> 14.27 | M80: =K80-G80 -> -11.58 | N80: =IF((G80)=0,"",(M80/G80)) -> -0.4479690522 | P80: ='Rates Summary'!$F$29 -> 14.59 | Q80: 1 | R80: =Q80*P80 -> 14.59 | T80: =R80-K80 -> 0.32 | U80: =IF((K80)=0,"",(T80/K80)) -> 0.02242466713 | W80: ='Rates Summary'!$G$29 -> 14.94 | X80: 1 | Y80: =X80*W80 -> 14.94 | AA80: =Y80-R80 -> 0.35 | AB80: =IF((R80)=0,"",(AA80/R80)) -> 0.02398903358 | AD80: ='Rates Summary'!$H$29 -> 15.22 | AE80: 1 | AF80: =AE80*AD80 -> 15.22 | AH80: =AF80-Y80 -> 0.28 | AI80: =IF((Y80)=0,"",(AH80/Y80)) -> 0.0187416332 | AK80: ='Rates Summary'!$I$29 -> 15.4 | AL80: 1 | AM80: =AL80*AK80 -> 15.4 | AO80: =AM80-AF80 -> 0.18 | AP80: =IF((AF80)=0,"",(AO80/AF80)) -> 0.01182654402
A81: Distribution Volumetric Rate | C81: per kWh | E81: 0.0106 | F81: =$E$18 -> 1000 | G81: =F81*E81 -> 10.6 | I81: ='Rates Summary'!$E$41 -> 0.0146 | J81: =$E$18 -> 1000 | K81: 14.6 | M81: 4 | N81: =IF((G81)=0,"",(M81/G81)) -> 0.3773584906 | P81: ='Rates Summary'!$F$41 -> 0.0151 | Q81: =$E$18 -> 1000 | R81: 15.1 | T81: 0.5 | U81: =IF((K81)=0,"",(T81/K81)) -> 0.03424657534 | W81: ='Rates Summary'!$G$41 -> 0.0155 | X81: =$E$18 -> 1000 | Y81: 15.5 | AA81: 0.4 | AB81: =IF((R81)=0,"",(AA81/R81)) -> 0.02649006623 | AD81: ='Rates Summary'!$H$41 -> 0.0161 | AE81: =$E$18 -> 1000 | AF81: 16.1 | AH81: 0.6 | AI81: =IF((Y81)=0,"",(AH81/Y81)) -> 0.03870967742 | AK81: ='Rates Summary'!$I$41 -> 0.0166 | AL81: =$E$18 -> 1000 | AM81: 16.6 | AO81: 0.5 | AP81: =IF((AF81)=0,"",(AO81/AF81)) -> 0.03105590062
A82: "Regular" Distribution Only | G82: =SUM(G79:G81) -> 36.45 | K82: =SUM(K79:K81) -> 28.87 | M82: -7.58 | N82: -0.2079561043 | R82: =SUM(R79:R81) -> 29.69 | T82: 0.82 | U82: 0.0284031867 | Y82: =SUM(Y79:Y81) -> 30.44 | AA82: 0.75 | AB82: 0.02526103065 | AF82: =SUM(AF79:AF81) -> 31.32 | AH82: 0.88 | AI82: 0.02890932983 | AM82: =SUM(AM79:AM81) -> 32 | AO82: 0.68 | AP82: 0.02171136654
B85: Residential (kWh) - 100, 250, 500, 800, 1000, 1500, 2000
B86: GS<50kW (kWh) - 1000, 2000, 5000, 10000, 15000
B87: GS>50kW (kW) - 60, 100, 500, 1000
B88: Large User - range appropriate for utility
B89: Lighting Classes and USL - 150 kWh and 1 kW, range appropriate for utility.
C91: Note that cells with the highlighted color shown to the left indicate quantities that are loss adjusted.

Sheet Bill Impact GS < 50 5000kWh
M1: File Number: | N1: =EBNUMBER -> EB-2015-0083 | S1: 1
M2: Exhibit: | N2: ='Bill Impact Resi 204kWh'!$N$2 -> 8
M3: Tab: | N3: ='Bill Impact Resi 204kWh'!$N$3 -> 4
M4: Schedule: | N4: ='Bill Impact Resi 204kWh'!$N$4 -> 3
M5: Page:
M7: Date: | N7: ='Bill Impact Resi 204kWh'!$N$7 -> Settlement
A10: Appendix 2-W
A11: Bill Impacts
A14: Customer Class: | C14: General Service Less Than 50 kW | P14: =C14 -> General Service Less Than 50 kW | AK14: =P14 -> General Service Less Than 50 kW
A16: TOU / non-TOU: | C16: TOU
C18: Consumption | E18: 5000 | F18: kWh
E20: 2015 Current Board-Approved | I20: 2016 Test Year 1 Proposed | M20: Impact 2016 TEST vs. 2015 Bridge | P20: 2017 Test Year 2 Proposed | T20: Impact 2017 TEST 2 vs. 2016 Test 1 | W20: 2018 Test Year 3 Proposed | AA20: Impact 2018 TEST 3 vs. 2017 Test 2 | AD20: 2019 Test Year 4 Proposed | AH20: Impact 2019 TEST 4 vs. 2018 Test 3 | AK20: 2020 Test Year 5 Proposed | AO20: Impact 2019 TEST 5 vs. 2019 Test 4
C21: Charge Unit | E21: Rate | F21: Volume | G21: Charge | I21: Rate | J21: Volume | K21: Charge | M21: $ Change | N21: % Change | P21: Rate | Q21: Volume | R21: Charge | T21: $ Change | U21: % Change | W21: Rate | X21: Volume | Y21: Charge | AA21: $ Change | AB21: % Change | AD21: Rate | AE21: Volume | AF21: Charge | AH21: $ Change | AI21: % Change | AK21: Rate | AL21: Volume | AM21: Charge | AO21: $ Change | AP21: % Change
E22: ($) | G22: ($) | I22: ($) | K22: ($) | P22: ($) | R22: ($) | W22: ($) | Y22: ($) | AD22: ($) | AF22: ($) | AK22: ($) | AM22: ($)
A23: Monthly Service Charge | C23: Monthly | E23: 25.85 | F23: 1 | G23: =F23*E23 -> 25.85 | I23: ='Rates Summary'!$E$29 -> 14.27 | J23: 1 | K23: =J23*I23 -> 14.27 | M23: =K23-G23 -> -11.58 | N23: =IF((G23)=0,"",(M23/G23)) -> -0.4479690522 | P23: ='Rates Summary'!$F$29 -> 14.59 | Q23: 1 | R23: =Q23*P23 -> 14.59 | T23: =R23-K23 -> 0.32 | U23: =IF((K23)=0,"",(T23/K23)) -> 0.02242466713 | W23: ='Rates Summary'!$G$29 -> 14.94 | X23: 1 | Y23: =X23*W23 -> 14.94 | AA23: =Y23-R23 -> 0.35 | AB23: =IF((R23)=0,"",(AA23/R23)) -> 0.02398903358 | AD23: ='Rates Summary'!$H$29 -> 15.22 | AE23: 1 | AF23: =AE23*AD23 -> 15.22 | AH23: =AF23-Y23 -> 0.28 | AI23: =IF((Y23)=0,"",(AH23/Y23)) -> 0.0187416332 | AK23: ='Rates Summary'!$I$29 -> 15.4 | AL23: 1 | AM23: =AL23*AK23 -> 15.4 | AO23: =AM23-AF23 -> 0.18 | AP23: =IF((AF23)=0,"",(AO23/AF23)) -> 0.01182654402
A24: Smart Meter (SMIRR) Rate Rider | C24: Monthly | E24: 3.65 | F24: 1 | G24: =F24*E24 -> 3.65 | I24: 0 | J24: 1 | K24: 0 | M24: -3.65 | N24: =IF((G24)=0,"",(M24/G24)) -> -1 | P24: 0 | Q24: 1 | R24: 0 | T24: 0 | U24: =IF((K24)=0,"",(T24/K24)) ->  | W24: 0 | X24: 1 | Y24: 0 | AA24: 0 | AB24: =IF((R24)=0,"",(AA24/R24)) ->  | AD24: 0 | AE24: 1 | AF24: 0 | AH24: 0 | AI24: =IF((Y24)=0,"",(AH24/Y24)) ->  | AK24: 0 | AL24: 1 | AM24: 0 | AO24: 0 | AP24: =IF((AF24)=0,"",(AO24/AF24)) -> 
A25: Rate Rider Smart Meters Capital (2016) | C25: Monthly | E25: 0 | F25: 1 | G25: 0 | I25: ='Rates Summary'!D10 -> 0.43 | J25: 1 | K25: 0.43 | M25: 0.43 | N25: 1 | P25: 0 | Q25: 1 | R25: 0 | T25: -0.43 | U25: -1 | W25: 0 | X25: 1 | Y25: 0 | AA25: 0 | AD25: 0 | AE25: 1 | AF25: 0 | AH25: 0 | AK25: 0 | AL25: 1 | AM25: 0 | AO25: 0
A26: Rate Rider Recovery of Stranded Meters (2016) | C26: Monthly | E26: 0 | F26: 1 | G26: 0 | I26: ='Rates Summary'!$D$11 -> 6.4 | J26: 1 | K26: 6.4 | M26: 6.4 | N26: 1 | P26: 0 | Q26: 1 | R26: 0 | T26: -6.4 | U26: -1 | W26: 0 | X26: 1 | Y26: 0 | AA26: 0 | AD26: 0 | AE26: 1 | AF26: 0 | AH26: 0 | AK26: 0 | AL26: 1 | AM26: 0 | AO26: 0
F27: 1 | G27: 0 | I27: 0 | J27: 1 | K27: 0 | M27: 0 | N27: =IF((G27)=0,"",(M27/G27)) ->  | P27: 0 | Q27: 1 | R27: 0 | T27: 0 | W27: 0 | X27: 1 | Y27: 0 | AA27: 0 | AD27: 0 | AE27: 1 | AF27: 0 | AH27: 0 | AK27: 0 | AL27: 1 | AM27: 0 | AO27: 0
F28: 1 | G28: 0 | I28: 0 | J28: 1 | K28: 0 | M28: 0 | N28: =IF((G28)=0,"",(M28/G28)) ->  | P28: 0 | Q28: 1 | R28: 0 | T28: 0 | W28: 0 | X28: 1 | Y28: 0 | AA28: 0 | AD28: 0 | AE28: 1 | AF28: 0 | AH28: 0 | AK28: 0 | AL28: 1 | AM28: 0 | AO28: 0
A29: Distribution Volumetric Rate | C29: per kWh | E29: 0.0106 | F29: =$E$18 -> 5000 | G29: 53 | I29: ='Rates Summary'!$E$41 -> 0.0146 | J29: =$E$18 -> 5000 | K29: 73 | M29: 20 | N29: =IF((G29)=0,"",(M29/G29)) -> 0.3773584906 | P29: ='Rates Summary'!$F$41 -> 0.0151 | Q29: =$E$18 -> 5000 | R29: 75.5 | T29: 2.5 | U29: 0.03424657534 | W29: ='Rates Summary'!$G$41 -> 0.0155 | X29: =$E$18 -> 5000 | Y29: 77.5 | AA29: 2 | AB29: 0.02649006623 | AD29: ='Rates Summary'!$H$41 -> 0.0161 | AE29: =$E$18 -> 5000 | AF29: 80.5 | AH29: 3 | AI29: 0.03870967742 | AK29: ='Rates Summary'!$I$41 -> 0.0166 | AL29: =$E$18 -> 5000 | AM29: 83 | AO29: 2.5 | AP29: 0.03105590062
A30: Rate Rider Tax Change (2015) | C30: per kWh | E30: -0.0001 | F30: =$E$18 -> 5000 | G30: -0.5 | I30: 0 | J30: =$E$18 -> 5000 | K30: 0 | M30: 0.5 | N30: =IF((G30)=0,"",(M30/G30)) -> -1 | P30: 0 | Q30: =$E$18 -> 5000 | R30: 0 | T30: 0 | W30: 0 | X30: =$E$18 -> 5000 | Y30: 0 | AA30: 0 | AD30: 0 | AE30: =$E$18 -> 5000 | AF30: 0 | AH30: 0 | AK30: 0 | AL30: =$E$18 -> 5000 | AM30: 0 | AO30: 0
A31: LRAM VA (2016) | C31: per kWh | E31: 0 | F31: =$E$18 -> 5000 | G31: 0 | I31: ='Rates Summary'!D7 -> 0.0008 | J31: 5000 | K31: 4 | M31: 4 | N31: 1 | P31: 0 | Q31: 5000 | R31: 0 | T31: -4 | U31: =IF((K31)=0,"",(T31/K31)) -> -1 | W31: 0 | X31: 5000 | Y31: 0 | AA31: 0 | AD31: 0 | AE31: 5000 | AF31: 0 | AH31: 0 | AK31: 0 | AL31: 5000 | AM31: 0 | AO31: 0
A32: Rate Rider Incremental Capital 2012 True-Up (2016) | C32: per kWh | E32: 0 | F32: =$E$18 -> 5000 | G32: 0 | I32: ='Rates Summary'!D9 -> 0.0002 | J32: 5000 | K32: 1 | M32: 1 | N32: 1 | P32: 0 | Q32: 5000 | R32: 0 | T32: -1 | U32: =IF((K32)=0,"",(T32/K32)) -> -1 | W32: 0 | X32: 5000 | Y32: 0 | AA32: 0 | AD32: 0 | AE32: 5000 | AF32: 0 | AH32: 0 | AK32: 0 | AL32: 5000 | AM32: 0 | AO32: 0
C33: per kWh | F33: 5000 | G33: 0 | J33: 5000 | K33: 0 | M33: 0 | N33: =IF((G33)=0,"",(M33/G33)) ->  | Q33: 5000 | R33: 0 | T33: 0 | X33: 5000 | Y33: 0 | AA33: 0 | AE33: 5000 | AF33: 0 | AH33: 0 | AL33: 5000 | AM33: 0 | AO33: 0
C34: per kWh | F34: 5000 | G34: 0 | J34: 5000 | K34: 0 | M34: 0 | Q34: 5000 | R34: 0 | T34: 0 | X34: 5000 | Y34: 0 | AA34: 0 | AE34: 5000 | AF34: 0 | AH34: 0 | AL34: 5000 | AM34: 0 | AO34: 0
F35: 5000 | G35: 0 | J35: 5000 | K35: 0 | M35: 0 | Q35: 5000 | R35: 0 | T35: 0 | X35: 5000 | Y35: 0 | AA35: 0 | AE35: 5000 | AF35: 0 | AH35: 0 | AL35: 5000 | AM35: 0 | AO35: 0
F36: 5000 | G36: 0 | J36: 5000 | K36: 0 | M36: 0 | Q36: 5000 | R36: 0 | T36: 0 | X36: 5000 | Y36: 0 | AA36: 0 | AE36: 5000 | AF36: 0 | AH36: 0 | AL36: 5000 | AM36: 0 | AO36: 0
F37: 5000 | G37: 0 | J37: 5000 | K37: 0 | M37: 0 | Q37: 5000 | R37: 0 | T37: 0 | X37: 5000 | Y37: 0 | AA37: 0 | AE37: 5000 | AF37: 0 | AH37: 0 | AL37: 5000 | AM37: 0 | AO37: 0
F38: 5000 | G38: 0 | J38: 5000 | K38: 0 | M38: 0 | Q38: 5000 | R38: 0 | T38: 0 | X38: 5000 | Y38: 0 | AA38: 0 | AE38: 5000 | AF38: 0 | AH38: 0 | AL38: 5000 | AM38: 0 | AO38: 0
A39: Sub-Total A (excluding pass through) | G39: =SUM(G23:G38) -> 82 | K39: =SUM(K23:K38) -> 99.1 | M39: 17.1 | N39: 0.2085365854 | R39: =SUM(R23:R38) -> 90.09 | T39: -9.01 | U39: -0.09091826438 | Y39: =SUM(Y23:Y38) -> 92.44 | AA39: 2.35 | AB39: 0.02608502609 | AF39: =SUM(AF23:AF38) -> 95.72 | AH39: 3.28 | AI39: =IF((Y39)=0,"",(AH39/Y39)) -> 0.03548247512 | AM39: =SUM(AM23:AM38) -> 98.4 | AO39: 2.68 | AP39: 0.02799832846
A40: Deferral/Variance Account Disposition Rate Rider (2016) | C40: per kWh | E40: 0 | F40: =$E$18 -> 5000 | G40: =F40*E40 -> 0 | I40: ='Rates Summary'!D5 -> -0.0007 | J40: =$E$18 -> 5000 | K40: =J40*I40 -> -3.5 | M40: =K40-G40 -> -3.5 | N40: 1 | P40: 0 | Q40: =$E$18 -> 5000 | R40: =Q40*P40 -> 0 | T40: 3.5 | U40: -1 | W40: 0 | X40: =$E$18 -> 5000 | Y40: =X40*W40 -> 0 | AA40: 0 | AD40: 0 | AE40: =$E$18 -> 5000 | AF40: =AE40*AD40 -> 0 | AH40: 0 | AI40: =IF((Y40)=0,"",(AH40/Y40)) ->  | AK40: 0 | AL40: =$E$18 -> 5000 | AM40: =AL40*AK40 -> 0 | AO40: 0
F41: =$E$18 -> 5000 | G41: =F41*E41 -> 0 | I41: =E41 -> 0 | J41: =$E$18 -> 5000 | K41: =J41*I41 -> 0 | M41: =K41-G41 -> 0 | N41: =IF((G41)=0,"",(M41/G41)) ->  | Q41: =$E$18 -> 5000 | R41: =Q41*P41 -> 0 | T41: 0 | X41: =$E$18 -> 5000 | Y41: =X41*W41 -> 0 | AA41: 0 | AE41: =$E$18 -> 5000 | AF41: =AE41*AD41 -> 0 | AH41: 0 | AL41: =$E$18 -> 5000 | AM41: =AL41*AK41 -> 0 | AO41: 0
A42: Rate Rider CGAAP Account 1576 (2016) | C42: per kWh | E42: 0 | F42: 5000 | G42: 0 | I42: ='Rates Summary'!$D$8 -> -0.0062 | J42: 5000 | K42: -31 | M42: -31 | N42: 1 | P42: 0 | Q42: 5000 | R42: 0 | T42: 31 | U42: -1 | W42: 0 | X42: 5000 | Y42: 0 | AA42: 0 | AD42: 0 | AE42: 5000 | AF42: 0 | AH42: 0 | AK42: 0 | AL42: 5000 | AM42: 0 | AO42: 0
A43: Disposition of Global Adjustment (2015) Applicable to Non-RPP Customers | C43: per kWh | E43: 0.0156 | F43: 0 | G43: 0 | I43: 0 | J43: 5000 | K43: 0 | M43: 0 | P43: 0 | Q43: 5000 | R43: 0 | T43: 0 | W43: 0 | X43: 5000 | Y43: 0 | AA43: 0 | AD43: 0 | AE43: 5000 | AF43: 0 | AH43: 0 | AK43: 0 | AL43: 5000 | AM43: 0 | AO43: 0
A44: Disposition of Global Adjustment (2016) Applicable to Non-RPP Customers | C44: per kWh | E44: 0 | F44: 5000 | G44: 0 | I44: ='Rates Summary'!D6 -> 0.0205 | J44: 0 | K44: 0 | M44: 0 | P44: 0 | Q44: 5000 | R44: 0 | T44: 0 | W44: 0 | X44: 5000 | Y44: 0 | AA44: 0 | AD44: 0 | AE44: 5000 | AF44: 0 | AH44: 0 | AK44: 0 | AL44: 5000 | AM44: 0 | AO44: 0
A45: Low Voltage Service Charge | C45: per kWh | E45: 0.0006 | F45: 5000 | G45: =F45*E45 -> 3 | I45: ='Rates Summary'!D15 -> 0.0011 | J45: 5000 | K45: =J45*I45 -> 5.5 | M45: =K45-G45 -> 2.5 | N45: =IF((G45)=0,"",(M45/G45)) -> 0.8333333333 | P45: =I45 -> 0.0011 | Q45: 5000 | R45: =Q45*P45 -> 5.5 | T45: =R45-K45 -> 0 | U45: 0 | W45: =P45 -> 0.0011 | X45: 5000 | Y45: =X45*W45 -> 5.5 | AA45: =Y45-R45 -> 0 | AB45: 0 | AD45: =W45 -> 0.0011 | AE45: 5000 | AF45: =AE45*AD45 -> 5.5 | AH45: =AF45-Y45 -> 0 | AI45: 0 | AK45: =AD45 -> 0.0011 | AL45: 5000 | AM45: =AL45*AK45 -> 5.5 | AO45: =AM45-AF45 -> 0 | AP45: 0
A46: Line Losses on Cost of Power | C46: per kWh | E46: =IF(ISBLANK(C16)=TRUE, 0, IF(C16="TOU", 0.64*$E$56+0.18*$E$57+0.18*$E$58, IF(AND(C16="non-TOU", F60>0), E60,E59))) -> 0.10766 | F46: =$E$18*(1+$E$75)-$E$18 -> 172 | G46: 18.51752 | I46: =0.64*$E$56+0.18*$E$57+0.18*$E$58 -> 0.10766 | J46: =$E$18*(1+$I$75)-$E$18 -> 196.5 | K46: 21.15519 | M46: 2.63767 | N46: 0.1424418605 | P46: =0.64*$E$56+0.18*$E$57+0.18*$E$58 -> 0.10766 | Q46: =$E$18*(1+$I$75)-$E$18 -> 196.5 | R46: =Q46*P46 -> 21.15519 | T46: =R46-K46 -> 0 | U46: 0 | W46: =0.64*$E$56+0.18*$E$57+0.18*$E$58 -> 0.10766 | X46: =$E$18*(1+$I$75)-$E$18 -> 196.5 | Y46: =X46*W46 -> 21.15519 | AA46: =Y46-R46 -> 0 | AB46: 0 | AD46: =0.64*$E$56+0.18*$E$57+0.18*$E$58 -> 0.10766 | AE46: =$E$18*(1+$I$75)-$E$18 -> 196.5 | AF46: =AE46*AD46 -> 21.15519 | AH46: =AF46-Y46 -> 0 | AI46: 0 | AK46: =0.64*$E$56+0.18*$E$57+0.18*$E$58 -> 0.10766 | AL46: =$E$18*(1+$I$75)-$E$18 -> 196.5 | AM46: =AL46*AK46 -> 21.15519 | AO46: =AM46-AF46 -> 0 | AP46: 0
A47: Smart Meter Entity Charge | C47: Monthly | E47: 0.79 | F47: 1 | G47: =F47*E47 -> 0.79 | I47: 0.79 | J47: 1 | K47: =J47*I47 -> 0.79 | M47: =K47-G47 -> 0 | P47: 0.79 | Q47: 1 | R47: =Q47*P47 -> 0.79 | T47: =R47-K47 -> 0 | U47: 0 | W47: 0.79 | X47: 1 | Y47: =X47*W47 -> 0.79 | AA47: =Y47-R47 -> 0 | AB47: 0 | AD47: 0 | AE47: 1 | AF47: =AE47*AD47 -> 0 | AH47: =AF47-Y47 -> -0.79 | AI47: -1 | AK47: 0 | AL47: 1 | AM47: =AL47*AK47 -> 0 | AO47: =AM47-AF47 -> 0
A48: Sub-Total B - Distribution (includes Sub-Total A) | G48: =SUM(G40:G47)+G39 -> 104.30752 | K48: =SUM(K40:K47)+K39 -> 92.04519 | M48: =K48-G48 -> -12.26233 | N48: =IF((G48)=0,"",(M48/G48)) -> -0.1175594051 | R48: =SUM(R40:R47)+R39 -> 117.53519 | T48: =R48-K48 -> 25.49 | U48: 0.276929191 | Y48: =SUM(Y40:Y47)+Y39 -> 119.88519 | AA48: =Y48-R48 -> 2.35 | AB48: 0.01999401201 | AF48: =SUM(AF40:AF47)+AF39 -> 122.37519 | AH48: =AF48-Y48 -> 2.49 | AI48: 0.02076987157 | AM48: =SUM(AM40:AM47)+AM39 -> 125.05519 | AO48: =AM48-AF48 -> 2.68 | AP48: 0.02189986385
A49: RTSR - Network | C49: per kWh | E49: 0.006 | F49: =$E$18*(1+$E$75) -> 5172 | G49: =F49*E49 -> 31.032 | I49: ='Rates Summary'!D17 -> 0.0063 | J49: =$E$18*(1+$I$75) -> 5196.5 | K49: =J49*I49 -> 32.73795 | M49: =K49-G49 -> 1.70595 | N49: 0.05497389791 | P49: =I49 -> 0.0063 | Q49: =$E$18*(1+P75) -> 5196.5 | R49: =Q49*P49 -> 32.73795 | T49: 0 | U49: 0 | W49: =P49 -> 0.0063 | X49: =$E$18*(1+W75) -> 5196.5 | Y49: =X49*W49 -> 32.73795 | AA49: 0 | AB49: 0 | AD49: =W49 -> 0.0063 | AE49: =$E$18*(1+AD75) -> 5196.5 | AF49: =AE49*AD49 -> 32.73795 | AH49: 0 | AI49: 0 | AK49: =AD49 -> 0.0063 | AL49: =$E$18*(1+AK75) -> 5196.5 | AM49: =AL49*AK49 -> 32.73795 | AO49: 0 | AP49: 0
A50: RTSR - Line and Transformation Connection | C50: per kWh | E50: 0.0046 | F50: =F49 -> 5172 | G50: =F50*E50 -> 23.7912 | I50: ='Rates Summary'!D18 -> 0.0051 | J50: =J49 -> 5196.5 | K50: =J50*I50 -> 26.50215 | M50: 2.71095 | N50: 0.1139475941 | P50: =I50 -> 0.0051 | Q50: =Q49 -> 5196.5 | R50: =Q50*P50 -> 26.50215 | T50: 0 | U50: 0 | W50: =P50 -> 0.0051 | X50: =X49 -> 5196.5 | Y50: =X50*W50 -> 26.50215 | AA50: 0 | AB50: 0 | AD50: =W50 -> 0.0051 | AE50: =AE49 -> 5196.5 | AF50: =AE50*AD50 -> 26.50215 | AH50: 0 | AI50: 0 | AK50: =AD50 -> 0.0051 | AL50: =AL49 -> 5196.5 | AM50: =AL50*AK50 -> 26.50215 | AO50: 0 | AP50: 0
A51: Sub-Total C - Delivery (including Sub-Total B) | G51: =SUM(G48:G50) -> 159.13072 | K51: =SUM(K48:K50) -> 151.28529 | M51: -7.84543 | N51: -0.04930179415 | R51: =SUM(R48:R50) -> 176.77529 | T51: 25.49 | U51: 0.1684896132 | Y51: =SUM(Y48:Y50) -> 179.12529 | AA51: 2.35 | AB51: 0.01329371317 | AF51: =SUM(AF48:AF50) -> 181.61529 | AH51: 2.49 | AI51: 0.01390088468 | AM51: =SUM(AM48:AM50) -> 184.29529 | AO51: 2.68 | AP51: 0.01475646682
A52: Wholesale Market Service Charge (WMSC) | C52: per kWh | E52: 0.0044 | F52: =F50 -> 5172 | G52: =F52*E52 -> 22.7568 | I52: =E52 -> 0.0044 | J52: =J50 -> 5196.5 | K52: =J52*I52 -> 22.8646 | M52: 0.1078 | N52: 0.00473704563 | P52: =I52 -> 0.0044 | Q52: =Q50 -> 5196.5 | R52: =Q52*P52 -> 22.8646 | T52: 0 | U52: 0 | W52: =P52 -> 0.0044 | X52: =X50 -> 5196.5 | Y52: =X52*W52 -> 22.8646 | AA52: 0 | AB52: 0 | AD52: =W52 -> 0.0044 | AE52: =AE50 -> 5196.5 | AF52: =AE52*AD52 -> 22.8646 | AH52: 0 | AI52: 0 | AK52: =AD52 -> 0.0044 | AL52: =AL50 -> 5196.5 | AM52: =AL52*AK52 -> 22.8646 | AO52: 0 | AP52: 0
A53: Rural and Remote Rate Protection (RRRP) | C53: per kWh | E53: 0.0013 | F53: =F50 -> 5172 | G53: 6.7236 | I53: =E53 -> 0.0013 | J53: =J50 -> 5196.5 | K53: 6.75545 | M53: 0.03185 | N53: 0.00473704563 | P53: =I53 -> 0.0013 | Q53: =Q50 -> 5196.5 | R53: 6.75545 | T53: 0 | U53: 0 | W53: =P53 -> 0.0013 | X53: =X50 -> 5196.5 | Y53: 6.75545 | AA53: 0 | AB53: 0 | AD53: =W53 -> 0.0013 | AE53: =AE50 -> 5196.5 | AF53: 6.75545 | AH53: 0 | AI53: 0 | AK53: =AD53 -> 0.0013 | AL53: =AL50 -> 5196.5 | AM53: 6.75545 | AO53: 0 | AP53: 0
A54: Standard Supply Service Charge | C54: Monthly | E54: 0.25 | F54: 1 | G54: 0.25 | I54: =E54 -> 0.25 | J54: 1 | K54: 0.25 | M54: 0 | N54: 0 | P54: =I54 -> 0.25 | Q54: 1 | R54: 0.25 | T54: 0 | U54: 0 | W54: =P54 -> 0.25 | X54: 1 | Y54: 0.25 | AA54: 0 | AB54: 0 | AD54: =W54 -> 0.25 | AE54: 1 | AF54: 0.25 | AH54: 0 | AI54: 0 | AK54: =AD54 -> 0.25 | AL54: 1 | AM54: 0.25 | AO54: 0 | AP54: 0
A55: Debt Retirement Charge (DRC) | C55: per kWh | E55: 0.007 | F55: =E18 -> 5000 | G55: 35 | I55: =E55 -> 0.007 | J55: =E18 -> 5000 | K55: 35 | M55: 0 | N55: 0 | P55: =I55 -> 0.007 | Q55: =J55 -> 5000 | R55: 35 | T55: 0 | U55: 0 | W55: =P55 -> 0.007 | X55: =Q55 -> 5000 | Y55: 35 | AA55: 0 | AB55: 0 | AD55: =W55 -> 0.007 | AE55: =X55 -> 5000 | AF55: 35 | AH55: 0 | AI55: 0 | AK55: =AD55 -> 0.007 | AL55: =AE55 -> 5000 | AM55: 35 | AO55: 0 | AP55: 0
A56: TOU - Off Peak | C56: per kWh | E56: 0.083 | F56: =0.64*$E$18 -> 3200 | G56: 265.6 | I56: =E56 -> 0.083 | J56: =F56 -> 3200 | K56: 265.6 | M56: 0 | N56: 0 | P56: =I56 -> 0.083 | Q56: =J56 -> 3200 | R56: 265.6 | T56: 0 | U56: 0 | W56: =P56 -> 0.083 | X56: =Q56 -> 3200 | Y56: 265.6 | AA56: 0 | AB56: 0 | AD56: =W56 -> 0.083 | AE56: =X56 -> 3200 | AF56: 265.6 | AH56: 0 | AI56: 0 | AK56: =AD56 -> 0.083 | AL56: =AE56 -> 3200 | AM56: 265.6 | AO56: 0 | AP56: 0
A57: TOU - Mid Peak | C57: per kWh | E57: 0.128 | F57: =0.18*$E$18 -> 900 | G57: 115.2 | I57: =E57 -> 0.128 | J57: =F57 -> 900 | K57: 115.2 | M57: 0 | N57: 0 | P57: =I57 -> 0.128 | Q57: 900 | R57: 115.2 | T57: 0 | U57: 0 | W57: =P57 -> 0.128 | X57: 900 | Y57: 115.2 | AA57: 0 | AB57: 0 | AD57: =W57 -> 0.128 | AE57: 900 | AF57: 115.2 | AH57: 0 | AI57: 0 | AK57: =AD57 -> 0.128 | AL57: 900 | AM57: 115.2 | AO57: 0 | AP57: 0
A58: TOU - On Peak | C58: per kWh | E58: 0.175 | F58: =0.18*$E$18 -> 900 | G58: 157.5 | I58: 0.175 | J58: =F58 -> 900 | K58: 157.5 | M58: 0 | N58: 0 | P58: 0.175 | Q58: 900 | R58: 157.5 | T58: 0 | U58: 0 | W58: 0.175 | X58: 900 | Y58: 157.5 | AA58: 0 | AB58: 0 | AD58: 0.175 | AE58: 900 | AF58: 157.5 | AH58: 0 | AI58: 0 | AK58: 0.175 | AL58: 900 | AM58: 157.5 | AO58: 0 | AP58: 0
A59: Energy - RPP - Tier 1 | C59: per kWh | E59: 0.099 | F59: =IF(AND($S$1=1, E18>=600), 600, IF(AND($S$1=1, AND(E18<600, E18>=0)), E18, IF(AND($S$1=2, E18>=1000), 1000, IF(AND($S$1=2, AND(E18<1000, E18>=0)), E18)))) -> 600 | G59: =F59*E59 -> 59.4 | I59: 0.099 | J59: =F59 -> 600 | K59: =J59*I59 -> 59.4 | M59: 0 | N59: 0 | P59: 0.099 | Q59: 600 | R59: =Q59*P59 -> 59.4 | T59: 0 | U59: 0 | W59: 0.099 | X59: 600 | Y59: =X59*W59 -> 59.4 | AA59: 0 | AB59: 0 | AD59: 0.099 | AE59: 600 | AF59: =AE59*AD59 -> 59.4 | AH59: 0 | AI59: 0 | AK59: 0.099 | AL59: 600 | AM59: =AL59*AK59 -> 59.4 | AO59: 0 | AP59: 0
A60: Energy - RPP - Tier 2 | C60: per kWh | E60: 0.116 | F60: =IF(AND($S$1=1, E18>=600), E18-600, IF(AND($S$1=1, AND(E18<600, E18>=0)), 0, IF(AND($S$1=2, E18>=1000), E18-1000, IF(AND($S$1=2, AND(E18<1000, E18>=0)), 0)))) -> 4400 | G60: =F60*E60 -> 510.4 | I60: 0.116 | J60: =F60 -> 4400 | K60: =J60*I60 -> 510.4 | M60: 0 | N60: 0 | P60: 0.116 | Q60: 4400 | R60: =Q60*P60 -> 510.4 | T60: 0 | U60: 0 | W60: 0.116 | X60: 4400 | Y60: =X60*W60 -> 510.4 | AA60: 0 | AB60: 0 | AD60: 0.116 | AE60: 4400 | AF60: =AE60*AD60 -> 510.4 | AH60: 0 | AI60: 0 | AK60: 0.116 | AL60: 4400 | AM60: =AL60*AK60 -> 510.4 | AO60: 0 | AP60: 0
A62: Total Bill on TOU (before Taxes) | G62: =SUM(G52:G58,G51) -> 762.16112 | K62: =SUM(K52:K58,K51) -> 754.45534 | M62: =K62-G62 -> -7.70578 | N62: =IF((G62)=0,"",(M62/G62)) -> -0.01011043439 | R62: =SUM(R52:R58,R51) -> 779.94534 | T62: =R62-K62 -> 25.49 | U62: 0.03378596273 | Y62: =SUM(Y52:Y58,Y51) -> 782.29534 | AA62: =Y62-R62 -> 2.35 | AB62: 0.003013031657 | AF62: =SUM(AF52:AF58,AF51) -> 784.78534 | AH62: =AF62-Y62 -> 2.49 | AI62: 0.003182941113 | AM62: =SUM(AM52:AM58,AM51) -> 787.46534 | AO62: =AM62-AF62 -> 2.68 | AP62: 0.003414946564
A63: HST | E63: 0.13 | G63: =G62*E63 -> 99.0809456 | I63: 0.13 | K63: =K62*I63 -> 98.0791942 | M63: -1.0017514 | N63: -0.01011043439 | P63: 0.13 | R63: =R62*P63 -> 101.3928942 | T63: =R63-K63 -> 3.3137 | U63: 0.03378596273 | W63: 0.13 | Y63: =Y62*W63 -> 101.6983942 | AA63: =Y63-R63 -> 0.3055 | AB63: 0.003013031657 | AD63: 0.13 | AF63: =AF62*AD63 -> 102.0220942 | AH63: =AF63-Y63 -> 0.3237 | AI63: 0.003182941113 | AK63: 0.13 | AM63: =AM62*AK63 -> 102.3704942 | AO63: =AM63-AF63 -> 0.3484 | AP63: 0.003414946564
A64: Total Bill (including HST) | G64: =G62+G63 -> 861.2420656 | K64: =K62+K63 -> 852.5345342 | M64: -8.7075314 | N64: -0.01011043439 | R64: =R62+R63 -> 881.3382342 | T64: 28.8037 | U64: 0.03378596273 | Y64: =Y62+Y63 -> 883.9937342 | AA64: 2.6555 | AB64: 0.003013031657 | AF64: =AF62+AF63 -> 886.8074342 | AH64: 2.8137 | AI64: 0.003182941113 | AM64: =AM62+AM63 -> 889.8358342 | AO64: 3.0284 | AP64: 0.003414946564
A65: Ontario Clean Energy Benefit 1 | G65: =ROUND(-G64*10%,2) -> -86.12 | M65: 86.12 | N65: -1 | T65: 0 | AA65: 0 | AH65: 0 | AO65: 0
A66: Total Bill on TOU (including OCEB) | G66: =G64+G65 -> 775.1220656 | K66: =K64+K65 -> 852.5345342 | M66: 77.4124686 | N66: 0.09987132612 | R66: =R64+R65 -> 881.3382342 | T66: 28.8037 | U66: 0.03378596273 | Y66: =Y64+Y65 -> 883.9937342 | AA66: 2.6555 | AB66: 0.003013031657 | AF66: =AF64+AF65 -> 886.8074342 | AH66: 2.8137 | AI66: 0.003182941113 | AM66: =AM64+AM65 -> 889.8358342 | AO66: 3.0284 | AP66: 0.003414946564
A68: Total Bill on RPP (before Taxes) | G68: =SUM(G60:G61,G51,G52:G55) -> 734.26112 | K68: =SUM(K60:K61,K51,K52:K55) -> 726.55534 | M68: =K68-G68 -> -7.70578 | N68: =IF((G68)=0,"",(M68/G68)) -> -0.01049460443 | R68: =SUM(R60:R61,R51,R52:R55) -> 752.04534 | T68: =R68-K68 -> 25.49 | U68: 0.03508335649 | Y68: =SUM(Y60:Y61,Y51,Y52:Y55) -> 754.39534 | AA68: =Y68-R68 -> 2.35 | AB68: 0.003124811597 | AF68: =SUM(AF60:AF61,AF51,AF52:AF55) -> 756.88534 | AH68: =AF68-Y68 -> 2.49 | AI68: 0.003300656656 | AM68: =SUM(AM60:AM61,AM51,AM52:AM55) -> 759.56534 | AO68: =AM68-AF68 -> 2.68 | AP68: 0.003540826937
A69: HST | E69: 0.13 | G69: =G68*E69 -> 95.4539456 | I69: 0.13 | K69: =K68*I69 -> 94.4521942 | M69: -1.0017514 | N69: =IF((G69)=0,"",(M69/G69)) -> -0.01049460443 | P69: 0.13 | R69: =R68*P69 -> 97.7658942 | T69: =R69-K69 -> 3.3137 | U69: 0.03508335649 | W69: 0.13 | Y69: =Y68*W69 -> 98.0713942 | AA69: =Y69-R69 -> 0.3055 | AB69: 0.003124811597 | AD69: 0.13 | AF69: =AF68*AD69 -> 98.3950942 | AH69: =AF69-Y69 -> 0.3237 | AI69: 0.003300656656 | AK69: 0.13 | AM69: =AM68*AK69 -> 98.7434942 | AO69: =AM69-AF69 -> 0.3484 | AP69: 0.003540826937
A70: Total Bill (including HST) | G70: =G68+G69 -> 829.7150656 | K70: =K68+K69 -> 821.0075342 | M70: -8.7075314 | N70: -0.01049460443 | R70: =R68+R69 -> 849.8112342 | T70: 28.8037 | U70: 0.03508335649 | Y70: =Y68+Y69 -> 852.4667342 | AA70: 2.6555 | AB70: 0.003124811597 | AF70: =AF68+AF69 -> 855.2804342 | AH70: 2.8137 | AI70: 0.003300656656 | AM70: =AM68+AM69 -> 858.3088342 | AO70: 3.0284 | AP70: 0.003540826937
A71: Ontario Clean Energy Benefit 1 | G71: =ROUND(-G70*10%,2) -> -82.97 | M71: 82.97 | N71: -1 | T71: 0 | AA71: 0 | AH71: 0 | AO71: 0
A72: Total Bill on RPP (including OCEB) | G72: =SUM(G70:G71) -> 746.7450656 | K72: =SUM(K70:K71) -> 821.0075342 | M72: 74.2624686 | N72: 0.09944822138 | R72: =SUM(R70:R71) -> 849.8112342 | T72: 28.8037 | U72: 0.03508335649 | Y72: =SUM(Y70:Y71) -> 852.4667342 | AA72: 2.6555 | AB72: 0.003124811597 | AF72: =SUM(AF70:AF71) -> 855.2804342 | AH72: 2.8137 | AI72: 0.003300656656 | AM72: =SUM(AM70:AM71) -> 858.3088342 | AO72: 3.0284 | AP72: 0.003540826937
A75: Loss Factor (%) | E75: 0.0344 | I75: 0.0393 | P75: 0.0393 | W75: 0.0393 | AD75: 0.0393 | AK75: 0.0393
A77: Distribution Excluding Rate Riders | E77: 2015 Current Board-Approved | I77: 2016 Test Year 1 Proposed | M77: Impact 2016 TEST vs. 2015 Bridge | P77: 2017 Test Year 2 Proposed | T77: Impact 2017 TEST 2 vs. 2016 Test 1 | W77: 2018 Test Year 3 Proposed | AA77: Impact 2018 TEST 3 vs. 2017 Test 2 | AD77: 2019 Test Year 4 Proposed | AH77: Impact 2019 TEST 4 vs. 2018 Test 3 | AK77: 2020 Test Year 5 Proposed | AO77: Impact 2020 TEST 5 vs. 2019 Test 4
C78: Charge Unit | E78: Rate | F78: Volume | G78: Charge | I78: Rate | J78: Volume | K78: Charge | M78: $ Change | N78: % Change | P78: Rate | Q78: Volume | R78: Charge | T78: $ Change | U78: % Change | W78: Rate | X78: Volume | Y78: Charge | AA78: $ Change | AB78: % Change | AD78: Rate | AE78: Volume | AF78: Charge | AH78: $ Change | AI78: % Change | AK78: Rate | AL78: Volume | AM78: Charge | AO78: $ Change | AP78: % Change
E79: ($) | G79: ($) | I79: ($) | K79: ($) | P79: ($) | R79: ($) | W79: ($) | Y79: ($) | AD79: ($) | AF79: ($) | AK79: ($) | AM79: ($)
A80: Monthly Service Charge | C80: Monthly | E80: 25.85 | F80: 1 | G80: =F80*E80 -> 25.85 | I80: ='Rates Summary'!$E$29 -> 14.27 | J80: 1 | K80: =J80*I80 -> 14.27 | M80: =K80-G80 -> -11.58 | N80: =IF((G80)=0,"",(M80/G80)) -> -0.4479690522 | P80: ='Rates Summary'!$F$29 -> 14.59 | Q80: 1 | R80: =Q80*P80 -> 14.59 | T80: =R80-K80 -> 0.32 | U80: =IF((K80)=0,"",(T80/K80)) -> 0.02242466713 | W80: ='Rates Summary'!$G$29 -> 14.94 | X80: 1 | Y80: =X80*W80 -> 14.94 | AA80: =Y80-R80 -> 0.35 | AB80: =IF((R80)=0,"",(AA80/R80)) -> 0.02398903358 | AD80: ='Rates Summary'!$H$29 -> 15.22 | AE80: 1 | AF80: =AE80*AD80 -> 15.22 | AH80: =AF80-Y80 -> 0.28 | AI80: =IF((Y80)=0,"",(AH80/Y80)) -> 0.0187416332 | AK80: ='Rates Summary'!$I$29 -> 15.4 | AL80: 1 | AM80: =AL80*AK80 -> 15.4 | AO80: =AM80-AF80 -> 0.18 | AP80: =IF((AF80)=0,"",(AO80/AF80)) -> 0.01182654402
A81: Distribution Volumetric Rate | C81: per kWh | E81: 0.0106 | F81: =$E$18 -> 5000 | G81: =F81*E81 -> 53 | I81: ='Rates Summary'!$E$41 -> 0.0146 | J81: =$E$18 -> 5000 | K81: 73 | M81: 20 | N81: =IF((G81)=0,"",(M81/G81)) -> 0.3773584906 | P81: ='Rates Summary'!$F$41 -> 0.0151 | Q81: =$E$18 -> 5000 | R81: 75.5 | T81: 2.5 | U81: =IF((K81)=0,"",(T81/K81)) -> 0.03424657534 | W81: ='Rates Summary'!$G$41 -> 0.0155 | X81: =$E$18 -> 5000 | Y81: 77.5 | AA81: 2 | AB81: =IF((R81)=0,"",(AA81/R81)) -> 0.02649006623 | AD81: ='Rates Summary'!$H$41 -> 0.0161 | AE81: =$E$18 -> 5000 | AF81: 80.5 | AH81: 3 | AI81: =IF((Y81)=0,"",(AH81/Y81)) -> 0.03870967742 | AK81: ='Rates Summary'!$I$41 -> 0.0166 | AL81: =$E$18 -> 5000 | AM81: 83 | AO81: 2.5 | AP81: =IF((AF81)=0,"",(AO81/AF81)) -> 0.03105590062
A82: "Regular" Distribution Only | G82: =SUM(G79:G81) -> 78.85 | K82: =SUM(K79:K81) -> 87.27 | M82: 8.42 | N82: 0.1067850349 | R82: =SUM(R79:R81) -> 90.09 | T82: 2.82 | U82: 0.0323135098 | Y82: =SUM(Y79:Y81) -> 92.44 | AA82: 2.35 | AB82: 0.02608502609 | AF82: =SUM(AF79:AF81) -> 95.72 | AH82: 3.28 | AI82: 0.03548247512 | AM82: =SUM(AM79:AM81) -> 98.4 | AO82: 2.68 | AP82: 0.02799832846
B85: Residential (kWh) - 100, 250, 500, 800, 1000, 1500, 2000
B86: GS<50kW (kWh) - 1000, 2000, 5000, 10000, 15000
B87: GS>50kW (kW) - 60, 100, 500, 1000
B88: Large User - range appropriate for utility
B89: Lighting Classes and USL - 150 kWh and 1 kW, range appropriate for utility.
C91: Note that cells with the highlighted color shown to the left indicate quantities that are loss adjusted.

Sheet Bill Impact GS < 50 10000kWh
M1: File Number: | N1: =EBNUMBER -> EB-2015-0083 | S1: 1
M2: Exhibit: | N2: ='Bill Impact Resi 204kWh'!$N$2 -> 8
M3: Tab: | N3: ='Bill Impact Resi 204kWh'!$N$3 -> 4
M4: Schedule: | N4: ='Bill Impact Resi 204kWh'!$N$4 -> 3
M5: Page:
M7: Date: | N7: ='Bill Impact Resi 204kWh'!$N$7 -> Settlement
A10: Appendix 2-W
A11: Bill Impacts
A14: Customer Class: | C14: General Service Less Than 50 kW | P14: =C14 -> General Service Less Than 50 kW | AK14: =P14 -> General Service Less Than 50 kW
A16: TOU / non-TOU: | C16: TOU
C18: Consumption | E18: 10000 | F18: kWh
E20: 2015 Current Board-Approved | I20: 2016 Test Year 1 Proposed | M20: Impact 2016 TEST vs. 2015 Bridge | P20: 2017 Test Year 2 Proposed | T20: Impact 2017 TEST 2 vs. 2016 Test 1 | W20: 2018 Test Year 3 Proposed | AA20: Impact 2018 TEST 3 vs. 2017 Test 2 | AD20: 2019 Test Year 4 Proposed | AH20: Impact 2019 TEST 4 vs. 2018 Test 3 | AK20: 2020 Test Year 5 Proposed | AO20: Impact 2019 TEST 5 vs. 2019 Test 4
